{"text_format":"1","workbook":"xlsx","n_sheets":3,"sheets":["ReadMe","Μέτρα","Πίνακες"],"not_rendered":{"charts":0,"images":0,"macros":1,"external_links":0,"defined_names":14,"comments":0,"pivot_tables":0},"unopened":[],"bounds":{"document_bytes":16777216,"sheet_cells":100000,"rows_first":2000,"rows_last":500,"rows_between":2000,"halvings":0,"cell_chars":16384,"cell_head_chars":4096},"cells_cut":0,"cells_raw":0,"read":"whole","date_system":"1900"}

{"sheet":"ReadMe","index":0,"n_rows":43,"n_cols":2,"rows_kept":43,"cut":false,"hidden":false,"merged":[[0,0,1,1],[3,0,3,1]]}
["Μέτρα του άρθρου 15 παράγραφος 3 στοιχείο γ) - Εθνικό Σχέδιο Αποκατάστασης"]
[]
[]
["ΟΔΗΓΙΕΣ ΓΙΑ ΤΗ ΣΥΜΠΛΗΡΩΣΗ ΤΟΥ ΦΥΛΛΟΥ ΕΡΓΑΣΙΑΣ \"Μέτρα\""]
[]
["Επεξήγηση των χρωμάτων των κελιών"]
["Κελιά ελεύθερου κειμένου"]
["Κελιά με προεπιλεγμένες τιμές Ή \nμε συγκεκριμένες οδηγίες συμπλήρωσης "]
[]
["Όνομα στήλης","Πληροφορίες"]
["ID_Μέτρου","Αύξοντας αριθμός μέτρου ή άλλος μοναδικός κωδικός που δίνεται από τον καταχωρητή - ελεύθερο κείμενο"]
["Όνομα_καταχωρητή","Όνομα καταχωρητή - ελεύθερο κείμενο"]
["Φορέας","Φορέας καταχωρητή που προτείνει το μέτρο - ελεύθερο κείμενο"]
["Πρόγραμμα/Έργο","Ονομασία/τίτλος του προγράμματος/έργου στο οποίο ανήκει το μέτρο που περιγράφεται - ελεύθερο κείμενο"]
["Όνομα_Μέτρου","Ονομασία/τίτλος του μέτρου (200 χαρακτήρες max) - ελεύθερο κείμενο"]
["Περιγραφή_Μέτρου","Περισσότερες πληροφορίες σχετικά με το μέτρο το οποίο καταγράφεται (3.000 χαρακτήρες max) - ελεύθερο κείμενο"]
["Κατηγορία_Μέτρου","Επιλέγεται η πιο σχετική κατηγορία από τον τυποποιημένο κατάλογο (drop-down menu)"]
["Τύπος_οικοτόπου_στόχος (πολλαπλή επιλογή)","Τύπος οικοτόπου στον οποίο στοχεύει το μέτρο - επιλογή από τυποποιημένο κατάλογο (drop-down menu)- επιτρέπονται πολλαπλές εγγραφές "]
["Τύπος_οικοτόπου_στόχος (διευκρίνιση \"Other\")","Συμπληρώνεται ΜΟΝΟ αν έχει γίνει επιλογή της τιμής \"xxxx_Other\" στο προηγούμενο πεδίο - ελεύθερο κείμενο"]
["Ομάδα_Είδους_στόχου","Επιλέγεται μία ομάδα ειδών από τον κατάλογο (drop-down menu) - πρέπει να συμπληρωθεί απαραίτητα για να μπορεί κανείς να επιλέξει στο επόμενο πεδίο το είδος-στόχο"]
["Είδος_στόχος (επιστημονική ονομασία) (πολλαπλή επιλογή)","Είδος στο οποίο στοχεύει το μέτρο - επιλογή από τυποποιημένο κατάλογο (drop-down menu) - επιτρέπονται πολλαπλές εγγραφές "]
["Είδος_στόχος (διευκρίνιση \"Other\")","Συμπληρώνεται ΜΟΝΟ αν έχει γίνει επιλογή της τιμής \"Other\" στο προηγούμενο πεδίο - ελεύθερο κείμενο"]
["Κύριος_τύπος_οικοσυστήματος","Επιλέγεται ΈΝΑΣ τύπος οικοσυστήματος από τον κατάλογο (drop-down menu)"]
["Κύριος_τύπος_οικοσυστήματος (διευκρίνιση \"ι_άλλα\")","Συμπληρώνεται ΜΟΝΟ αν έχει επιλεγεί της τιμής \"ι_άλλα\" στο προηγούμενο πεδίο - ελεύθερο κείμενο"]
["Άλλος_τύπος_οικοσυστήματος (πολλαπλή επιλογή)","Επιλέγονται ένας ή περισσότεροι τύποι οικοσυστήματος από τον κατάλογο (drop-down menu) - επιτρέπονται πολλαπλές εγγραφές "]
["Άλλος_τύπος_οικοσυστήματος (διευκρίνιση \"ι_άλλα\")","Συμπληρώνεται ΜΟΝΟ αν έχει επιλεγεί της τιμής \"ι_άλλα\" στο προηγούμενο πεδίο - ελεύθερο κείμενο"]
["Πιέσεις","Αναφορά/περιγραφή των πιέσεων, στην άρση/μείωση της έντασης των οποίων στοχεύει το μέτρο - ελεύθερο κείμενο"]
["Κλίμακα_σχεδιασμού","Επιλέγεται το χωρικό επίπεδο εφαρμογής του μέτρου (drop-down menu) "]
["Περιφερειακή_ενότητα (πολλαπλή επιλογή) ","Επιλέγονται μία ή περισσότερες περιφερειακές ενότητες από τον κατάλογο (drop-down menu) ΜΟΝΟ στην περίπτωση που επιλεγεί η κατηγορία \"Τοπικό\" στην Κλίμακα_Σχεδιασμού - επιτρέπονται πολλαπλές εγγραφές "]
["Άλλα_Κράτη_Μέλη (πολλαπλή επιλογή)","Επιλέγονται ένα ή περισσότερα κράτη μέλη από τον κατάλογο (drop-down menu) ΑΝ το μέτρο εφαρμόζεται και εκτός Ελλάδας - επιτρέπονται πολλαπλές εγγραφές "]
["Περιοχή_εφαρμογής_μέτρου","Πληροφορίες για την περιοχή εφαρμογής του μέτρου (3.000 χαρακτήρες max) - ελεύθερο κείμενο"]
["Τοποθεσία_σε_σχέση με_Natura2000","Επιλέγεται μία τιμή από τον κατάλογο (drop-down menu) - θέση εφαρμογής του μέτρου σε σχέση με το δίκτυο Natura 2000 "]
["Κωδικός/-οί Natura2000","Επιλέγονται μία ή περισσότερες περιοχές Νatura 2000 από τον κατάλογο (drop-down menu), AN η τιμή στο παραπάνω πεδίο είναι \"Εντός δικτύου Natura 2000\" ή \"Εντός και εκτός δικτύου Natura 2000\""]
["Μονάδα_έκτασης","Επιλέγεται μία τιμή από τον κατάλογο (drop-down menu)"]
["Έκταση","Έκταση της περιοχής εφαρμογής του μέτρου είτε ως βέλτιστη τιμή (π.χ. 35) είτε ως εύρος τιμών (35-50) - ελεύθερο κείμενο"]
["Τύπος_Γεωχωρικών_δεδομένων","Αναφέρεται ο τύπος του αρχείου όπου δίνονται τα γεωχωρικά δεδομένα (ΠΕΡΙΟΧΗ ΕΦΑΡΜΟΓΗΣ ΤΟΥ ΜΕΤΡΟΥ) (drop-down menu) - βλ. συνοδευτικά αρχεία στον φάκελο NRP_Measures_Geospatial\n- αρχείο excel με τους κωδικούς των grid cells (KMZ_xls) ή \n- αρχείο shapefile με πολύγωνα ή τα κελιά των grids (GIS_shp)\nΚαι στις δύο περιπτώσεις, κάθε εγγραφή/πολύγωνο/κελί (grid cell) πρέπει να συνδέεται με τον μοναδικό κωδικό του μέτρου (πεδίο: ID_Μέτρου στο φύλλο εργασίας Μέτρα)"]
["Προβολικό_Σύστημα","Αναφέρεται μία από τις τρεις επιλογές για το προβολικό σύστημα στο οποίο δίνονται τα γεωχωρικά δεδομένα (drop-down menu) - συμπληρώνεται ΜΟΝΟ για αρχεία shapefile"]
["Κατάσταση_Εφαρμογής","Επιλέγονται μία ή περισσότερες τιμές από τον κατάλογο (drop-down menu):\nΠρογραμματισμένο (planned): μέτρα που έχουν προσδιοριστεί και περιγραφεί σε στρατηγικά ή επιχειρησιακά έγγραφα και σχέδια (εθνικά, περιφερειακά ή τοπικά), αλλά δεν έχουν ακόμη (επίσημα) εγκριθεί, αδειοδοτηθεί (όπου σχετικό) ή δρομολογηθεί\n- Εγκεκριμένο (adopted plan): μέτρα εγκεκριμένα, αδειοδοτημένα (όπου σχετικό) ή/και ενσωματωμένα σε εθνικά, περιφερειακά ή τοπικά σχέδια ή πολιτικές\n- Σε εξέλιξη (ongoing implementation): μέτρα που υλοποιούνται επί του παρόντος\n- Εφαρμοσμένο στο παρελθόν (already implemented in the past but full recovery has not yet been reached): μέτρα που έχουν εφαρμοστεί στο παρελθόν, αλλά η πλήρης αποκατάσταση απαιτεί περισσότερο χρόνο για να επιτευχθεί\n- Νέα πρόταση: Το μέτρο προτείνεται για πρώτη φορά"]
["Χρονοδιάγραμμα","Επιλέγεται η κατάλληλη χρονική περιόδος εφαρμογής του μέτρου από τον κατάλογο (drop-down menu)"]
["Έτη","Αν έχει επιλεγεί η τιμή \"Συγκεκριμένη Περίοδος\" στην προηγούμενη στήλη, εισάγεται εδώ η περίοδος σε έτη, π.χ. 2025-2027 - εμφανίζονται σχετικές οδηγίες"]
["Συνολικό_κόστος","Συνολικό κόστος για την υλοποίηση του μέτρου (ΜΕ τυχόν ΦΠΑ) - ελεύθερο κείμενο"]
["Πηγή_Χρηματοδότησης","Χρηματοδοτικό μέσο - ελεύθερο κείμενο"]
["Φορέας_Υλοποίησης","Φορέας υλοποίησης - ελεύθερο κείμενο"]

{"sheet":"Μέτρα","index":1,"n_rows":1002,"n_cols":33,"rows_kept":1002,"cut":false,"hidden":false,"merged":[]}
["ID_Μέτρου","Όνομα_καταχωρητή","Φορέας","Πρόγραμμα/Έργο","Όνομα_Μέτρου","Περιγραφή_Μέτρου","Κατηγορία_Μέτρου","Τύπος_οικοτόπου_στόχος (πολλαπλή επιλογή)","Τύπος_οικοτόπου_στόχος (διευκρίνιση \"Other\")","Ομάδα_Είδους_στόχος","Είδος_στόχος (επιστημονική ονομασία) (πολλαπλή επιλογή)","Είδος_στόχος (διευκρίνιση \"Other\")","Κύριος_τύπος_οικοσυστήματος","Κύριος_τύπος_οικοσυστήματος (διευκρίνιση \"ι_άλλα\")","Άλλος_τύπος_οικοσυστήματος (πολλαπλή επιλογή)","Άλλος_τύπος_οικοσυστήματος (διευκρίνιση \"ι_άλλα\")","Πιέσεις","Κλίμακα_σχεδιασμού","Περιφερειακή_ενότητα (πολλαπλή επιλογή)"," Άλλα_Κράτη_Μέλη (πολλαπλή επιλογή)","Περιοχή_εφαρμογής_μέτρου","Τοποθεσία_σε_σχέση με_Natura2000","Κωδικός/-οί Natura2000","Μονάδα_έκτασης","Έκταση","Τύπος_Γεωχωρικών_δεδομένων","Προβολικό_Σύστημα","Κατάσταση_Εφαρμογής","Χρονοδιάγραμμα","Έτη","Συνολικό_κόστος","Πηγή_Χρηματοδότησης","Φορέας_Υλοποίησης"]
[1,"Κωνσταντίνος ΧΧΧΧΧΧΧΧΧΧΧΧ","Εθνικό και Καποδιστριακό Πανεπιστήμιο Αθηνών","LIFE-IP 4 NATURA (LIFE16 IPE/GR/000002)\nΟλοκληρωμένες δράσεις για τη διατήρηση και διαχείριση των\nπεριοχών του δικτύου Natura 2000, των ειδών, των οικοτόπων και\nτων οικοσυστημάτων στην Ελλάδα\nΕθνικό Σχέδιο Δράσης για τον ενδημικό βάτραχο της Καρπάθου","1.1. Κατασκευή\n(διάνοιξη ή/και\nκατασκευή με μη\nμηχανικά μέσα) νέων\nμικρών υγρότοπων\nστο Αργώνι και στο\nΝάτι","Κατασκευή (διάνοιξη ή/και κατασκευή με μη μηχανικά μέσα) νέων μικρών υγρότοπων (ενδεικτικό μήκος περί τα δύο μέτρα και βάθος περί τα 80 εκατοστά) κατάλληλων για το είδος στο Αργώνι και στο Νάτι. Προτείνεται για το δεύτερο χρόνο του ΣΔ. Όσον αφορά την παρακολούθηση και αξιολόγηση του μέτρου μετά την κατασκευή τους, θα πραγματοποιούνται επισκέψεις ανά μήνα από το προσωπικό του ΦΔΠΠΔ/ ΟΦΥΠΕΚΑ, καθ’ όλη τη διάρκεια του προγράμματος, κατά τις οποίες θα πραγματοποιείται έλεγχος της κατάστασής τους, της παρουσίας βατράχων και καταμέτρηση των τελευταίων. Ετήσια, τα αποτελέσματα των παρατηρήσεων θα αναλύονται συγκεντρωτικά ώστε να χρησιμοποιηθούν για την ενδιάμεση αναθεώρηση του ΣΔ. ","Μέτρα που σχετίζονται με δραστηριότητες και ενδιαιτήματα γλυκών υδάτων",null,null,"Αμφίβια","Pelophylax cerigensis",null,"α_υγροτοπικά οικοσυστήματα (παράκτια και εσωτερικών υδάτων)",null,null,null,"Πτωτική τάση των πληθυσμών\nΑπώλεια και επιδείνωση της ποιότητας ενδιαιτημάτων\nΠεριορισμένη γονιδιακή ροή","Τοπικό","Κάλυμνος, Κάρπαθος – Ηρωική Νήσος Κάσος, Κως, Ρόδος",null,"Αργώνι, Νάτι / βόρεια Κάρπαθος \n","Εκτός_δικτύου_Natura_2000",null,"km^2",100,"Excel αρχείο (.xls)",null,"Σε εξέλιξη","Συγκεκριμένη περίοδος","2021-2026",15000,"LIFE IP, ΠΕΠ\nΝοτίου\nΑιγαίου, Διεύθυνση Δασών Δωδεκανήσου (ΔΔΔ)\nΜ.Δ. Προστατευόμενων Περιοχών Νοτιο-Ανατολικού Αιγαίου, ΟΦΥΠΕΚΑ","Μ.Δ. Προστατευόμενων Περιοχών Νοτιο-Ανατολικού Αιγαίου, ΟΦΥΠΕΚΑ\n"]
[2,"Μαρία ΧΧΧΧΧΧΧΧΧΧΧΧ","WWF Ελλάς","LIFE-IP 4 NATURA (LIFE16 IPE/GR/000002)\nΟλοκληρωμένες δράσεις για τη διατήρηση και διαχείριση των\nπεριοχών του δικτύου Natura 2000, των ειδών, των οικοτόπων και\nτων οικοσυστημάτων στην Ελλάδα\nΕθνικό Σχέδιο Δράσης για τον ενδημικό βάτραχο της Καρπάθου","2.2 Καθαρισμός των\nδύο βασικών\nενδιαιτημάτων","Καθαρισμός των δύο βασικών ενδιαιτημάτων, κυρίως του Αργωνίου, από απορρίμματα. Ο καθαρισμός θα πρέπει να γίνει άπαξ και να έχει ολοκληρωθεί πριν το πέρας του δεύτερου έτους, ούτως ώστε να αξιολογηθεί μεσοπρόθεσμα (τρία έτη) κατά πόσο το ενδιαίτημα παραμένει καθαρό. Όσον αφορά την παρακολούθηση το προσωπικό του ΦΔΠΠΔ/ ΟΦΥΠΕΚΑ θα ελέγχει ανά δίμηνο και καθ’ όλη τη διάρκεια του προγράμματος τη γενική κατάσταση των ρεμάτων. ","Μέτρα που σχετίζονται με την αποκατάσταση ενδιαιτημάτων ειδών των Οδηγιών για τη Φύση και άλλων αυτόχθονων ειδών ",null,null,"Αμφίβια","Pelophylax cerigensis",null,"α_υγροτοπικά οικοσυστήματα (παράκτια και εσωτερικών υδάτων)",null,null,null,"Υποβάθμιση της ποιότητας ενδιαιτημάτων","Τοπικό","Κάλυμνος, Κάρπαθος – Ηρωική Νήσος Κάσος, Κως, Ρόδος",null,"Αργώνι / βόρεια Κάρπαθος ","Εκτός_δικτύου_Natura_2000",null,"km^2","50-100","Shapefile αρχείο (.shp)","WGS84","Εγκεκριμένο","έως 30 Ιουνίου 2032",{"$f":"IF($AC$2:$AC$1001=\"\",\"\",VLOOKUP($AC$2:$AC$1001,Χρονοδιάγραμμα[],2,FALSE))","v":"έως 2032"},1500,"LIFE IP, Διεύθυνση\nΔασών Δωδεκανήσου (ΔΔΔ)","Μ.Δ. Προστατευόμενων Περιοχών Νοτιο-Ανατολικού Αιγαίου, ΟΦΥΠΕΚΑ\nΔιεύθυνση Δασών Δωδεκανήσου (ΔΔΔ)\nΔήμος Καρπάθου (ΔΚ)\nΕπαρχείο Καρπάθου-Ηρωικής νήσου Κάσου (ΕΚΚ)"]
[null,null,null,null,null,null,null,null,null,null,null,null,null,null,null,null,null,null,null,null,null,null,null,null,null,null,null,null,null,{"$f":"IF($AC$2:$AC$1001=\"\",\"\",VLOOKUP($AC$2:$AC$1001,Χρονοδιάγραμμα[],2,FALSE))","v":""}]
[null,null,null,null,null,null,null,null,null,null,null,null,null,null,null,null,null,null,null,null,null,null,null,null,null,null,null,null,null,{"$f":"IF($AC$2:$AC$1001=\"\",\"\",VLOOKUP($AC$2:$AC$1001,Χρονοδιάγραμμα[],2,FALSE))","v":""}]
[null,null,null,null,null,null,null,null,null,null,null,null,null,null,null,null,null,null,null,null,null,null,null,null,null,null,null,null,null,{"$f":"IF($AC$2:$AC$1001=\"\",\"\",VLOOKUP($AC$2:$AC$1001,Χρονοδιάγραμμα[],2,FALSE))","v":""}]
[null,null,null,null,null,null,null,null,null,null,null,null,null,null,null,null,null,null,null,null,null,null,null,null,null,null,null,null,null,{"$f":"IF($AC$2:$AC$1001=\"\",\"\",VLOOKUP($AC$2:$AC$1001,Χρονοδιάγραμμα[],2,FALSE))","v":""}]
[null,null,null,null,null,null,null,null,null,null,null,null,null,null,null,null,null,null,null,null,null,null,null,null,null,null,null,null,null,{"$f":"IF($AC$2:$AC$1001=\"\",\"\",VLOOKUP($AC$2:$AC$1001,Χρονοδιάγραμμα[],2,FALSE))","v":""}]
[null,null,null,null,null,null,null,null,null,null,null,null,null,null,null,null,null,null,null,null,null,null,null,null,null,null,null,null,null,{"$f":"IF($AC$2:$AC$1001=\"\",\"\",VLOOKUP($AC$2:$AC$1001,Χρονοδιάγραμμα[],2,FALSE))","v":""}]
[null,null,null,null,null,null,null,null,null,null,null,null,null,null,null,null,null,null,null,null,null,null,null,null,null,null,null,null,null,{"$f":"IF($AC$2:$AC$1001=\"\",\"\",VLOOKUP($AC$2:$AC$1001,Χρονοδιάγραμμα[],2,FALSE))","v":""}]
[null,null,null,null,null,null,null,null,null,null,null,null,null,null,null,null,null,null,null,null,null,null,null,null,null,null,null,null,null,{"$f":"IF($AC$2:$AC$1001=\"\",\"\",VLOOKUP($AC$2:$AC$1001,Χρονοδιάγραμμα[],2,FALSE))","v":""}]
[null,null,null,null,null,null,null,null,null,null,null,null,null,null,null,null,null,null,null,null,null,null,null,null,null,null,null,null,null,{"$f":"IF($AC$2:$AC$1001=\"\",\"\",VLOOKUP($AC$2:$AC$1001,Χρονοδιάγραμμα[],2,FALSE))","v":""}]
[null,null,null,null,null,null,null,null,null,null,null,null,null,null,null,null,null,null,null,null,null,null,null,null,null,null,null,null,null,{"$f":"IF($AC$2:$AC$1001=\"\",\"\",VLOOKUP($AC$2:$AC$1001,Χρονοδιάγραμμα[],2,FALSE))","v":""}]
[null,null,null,null,null,null,null,null,null,null,null,null,null,null,null,null,null,null,null,null,null,null,null,null,null,null,null,null,null,{"$f":"IF($AC$2:$AC$1001=\"\",\"\",VLOOKUP($AC$2:$AC$1001,Χρονοδιάγραμμα[],2,FALSE))","v":""}]
[null,null,null,null,null,null,null,null,null,null,null,null,null,null,null,null,null,null,null,null,null,null,null,null,null,null,null,null,null,{"$f":"IF($AC$2:$AC$1001=\"\",\"\",VLOOKUP($AC$2:$AC$1001,Χρονοδιάγραμμα[],2,FALSE))","v":""}]
[null,null,null,null,null,null,null,null,null,null,null,null,null,null,null,null,null,null,null,null,null,null,null,null,null,null,null,null,null,{"$f":"IF($AC$2:$AC$1001=\"\",\"\",VLOOKUP($AC$2:$AC$1001,Χρονοδιάγραμμα[],2,FALSE))","v":""}]
[null,null,null,null,null,null,null,null,null,null,null,null,null,null,null,null,null,null,null,null,null,null,null,null,null,null,null,null,null,{"$f":"IF($AC$2:$AC$1001=\"\",\"\",VLOOKUP($AC$2:$AC$1001,Χρονοδιάγραμμα[],2,FALSE))","v":""}]
[null,null,null,null,null,null,null,null,null,null,null,null,null,null,null,null,null,null,null,null,null,null,null,null,null,null,null,null,null,{"$f":"IF($AC$2:$AC$1001=\"\",\"\",VLOOKUP($AC$2:$AC$1001,Χρονοδιάγραμμα[],2,FALSE))","v":""}]
[null,null,null,null,null,null,null,null,null,null,null,null,null,null,null,null,null,null,null,null,null,null,null,null,null,null,null,null,null,{"$f":"IF($AC$2:$AC$1001=\"\",\"\",VLOOKUP($AC$2:$AC$1001,Χρονοδιάγραμμα[],2,FALSE))","v":""}]
[null,null,null,null,null,null,null,null,null,null,null,null,null,null,null,null,null,null,null,null,null,null,null,null,null,null,null,null,null,{"$f":"IF($AC$2:$AC$1001=\"\",\"\",VLOOKUP($AC$2:$AC$1001,Χρονοδιάγραμμα[],2,FALSE))","v":""}]
[null,null,null,null,null,null,null,null,null,null,null,null,null,null,null,null,null,null,null,null,null,null,null,null,null,null,null,null,null,{"$f":"IF($AC$2:$AC$1001=\"\",\"\",VLOOKUP($AC$2:$AC$1001,Χρονοδιάγραμμα[],2,FALSE))","v":""}]
[null,null,null,null,null,null,null,null,null,null,null,null,null,null,null,null,null,null,null,null,null,null,null,null,null,null,null,null,null,{"$f":"IF($AC$2:$AC$1001=\"\",\"\",VLOOKUP($AC$2:$AC$1001,Χρονοδιάγραμμα[],2,FALSE))","v":""}]
[null,null,null,null,null,null,null,null,null,null,null,null,null,null,null,null,null,null,null,null,null,null,null,null,null,null,null,null,null,{"$f":"IF($AC$2:$AC$1001=\"\",\"\",VLOOKUP($AC$2:$AC$1001,Χρονοδιάγραμμα[],2,FALSE))","v":""}]
[null,null,null,null,null,null,null,null,null,null,null,null,null,null,null,null,null,null,null,null,null,null,null,null,null,null,null,null,null,{"$f":"IF($AC$2:$AC$1001=\"\",\"\",VLOOKUP($AC$2:$AC$1001,Χρονοδιάγραμμα[],2,FALSE))","v":""}]
[null,null,null,null,null,null,null,null,null,null,null,null,null,null,null,null,null,null,null,null,null,null,null,null,null,null,null,null,null,{"$f":"IF($AC$2:$AC$1001=\"\",\"\",VLOOKUP($AC$2:$AC$1001,Χρονοδιάγραμμα[],2,FALSE))","v":""}]
[null,null,null,null,null,null,null,null,null,null,null,null,null,null,null,null,null,null,null,null,null,null,null,null,null,null,null,null,null,{"$f":"IF($AC$2:$AC$1001=\"\",\"\",VLOOKUP($AC$2:$AC$1001,Χρονοδιάγραμμα[],2,FALSE))","v":""}]
[null,null,null,null,null,null,null,null,null,null,null,null,null,null,null,null,null,null,null,null,null,null,null,null,null,null,null,null,null,{"$f":"IF($AC$2:$AC$1001=\"\",\"\",VLOOKUP($AC$2:$AC$1001,Χρονοδιάγραμμα[],2,FALSE))","v":""}]
[null,null,null,null,null,null,null,null,null,null,null,null,null,null,null,null,null,null,null,null,null,null,null,null,null,null,null,null,null,{"$f":"IF($AC$2:$AC$1001=\"\",\"\",VLOOKUP($AC$2:$AC$1001,Χρονοδιάγραμμα[],2,FALSE))","v":""}]
[null,null,null,null,null,null,null,null,null,null,null,null,null,null,null,null,null,null,null,null,null,null,null,null,null,null,null,null,null,{"$f":"IF($AC$2:$AC$1001=\"\",\"\",VLOOKUP($AC$2:$AC$1001,Χρονοδιάγραμμα[],2,FALSE))","v":""}]
[null,null,null,null,null,null,null,null,null,null,null,null,null,null,null,null,null,null,null,null,null,null,null,null,null,null,null,null,null,{"$f":"IF($AC$2:$AC$1001=\"\",\"\",VLOOKUP($AC$2:$AC$1001,Χρονοδιάγραμμα[],2,FALSE))","v":""}]
[null,null,null,null,null,null,null,null,null,null,null,null,null,null,null,null,null,null,null,null,null,null,null,null,null,null,null,null,null,{"$f":"IF($AC$2:$AC$1001=\"\",\"\",VLOOKUP($AC$2:$AC$1001,Χρονοδιάγραμμα[],2,FALSE))","v":""}]
[null,null,null,null,null,null,null,null,null,null,null,null,null,null,null,null,null,null,null,null,null,null,null,null,null,null,null,null,null,{"$f":"IF($AC$2:$AC$1001=\"\",\"\",VLOOKUP($AC$2:$AC$1001,Χρονοδιάγραμμα[],2,FALSE))","v":""}]
[null,null,null,null,null,null,null,null,null,null,null,null,null,null,null,null,null,null,null,null,null,null,null,null,null,null,null,null,null,{"$f":"IF($AC$2:$AC$1001=\"\",\"\",VLOOKUP($AC$2:$AC$1001,Χρονοδιάγραμμα[],2,FALSE))","v":""}]
[null,null,null,null,null,null,null,null,null,null,null,null,null,null,null,null,null,null,null,null,null,null,null,null,null,null,null,null,null,{"$f":"IF($AC$2:$AC$1001=\"\",\"\",VLOOKUP($AC$2:$AC$1001,Χρονοδιάγραμμα[],2,FALSE))","v":""}]
[null,null,null,null,null,null,null,null,null,null,null,null,null,null,null,null,null,null,null,null,null,null,null,null,null,null,null,null,null,{"$f":"IF($AC$2:$AC$1001=\"\",\"\",VLOOKUP($AC$2:$AC$1001,Χρονοδιάγραμμα[],2,FALSE))","v":""}]
[null,null,null,null,null,null,null,null,null,null,null,null,null,null,null,null,null,null,null,null,null,null,null,null,null,null,null,null,null,{"$f":"IF($AC$2:$AC$1001=\"\",\"\",VLOOKUP($AC$2:$AC$1001,Χρονοδιάγραμμα[],2,FALSE))","v":""}]
[null,null,null,null,null,null,null,null,null,null,null,null,null,null,null,null,null,null,null,null,null,null,null,null,null,null,null,null,null,{"$f":"IF($AC$2:$AC$1001=\"\",\"\",VLOOKUP($AC$2:$AC$1001,Χρονοδιάγραμμα[],2,FALSE))","v":""}]
[null,null,null,null,null,null,null,null,null,null,null,null,null,null,null,null,null,null,null,null,null,null,null,null,null,null,null,null,null,{"$f":"IF($AC$2:$AC$1001=\"\",\"\",VLOOKUP($AC$2:$AC$1001,Χρονοδιάγραμμα[],2,FALSE))","v":""}]
[null,null,null,null,null,null,null,null,null,null,null,null,null,null,null,null,null,null,null,null,null,null,null,null,null,null,null,null,null,{"$f":"IF($AC$2:$AC$1001=\"\",\"\",VLOOKUP($AC$2:$AC$1001,Χρονοδιάγραμμα[],2,FALSE))","v":""}]
[null,null,null,null,null,null,null,null,null,null,null,null,null,null,null,null,null,null,null,null,null,null,null,null,null,null,null,null,null,{"$f":"IF($AC$2:$AC$1001=\"\",\"\",VLOOKUP($AC$2:$AC$1001,Χρονοδιάγραμμα[],2,FALSE))","v":""}]
[null,null,null,null,null,null,null,null,null,null,null,null,null,null,null,null,null,null,null,null,null,null,null,null,null,null,null,null,null,{"$f":"IF($AC$2:$AC$1001=\"\",\"\",VLOOKUP($AC$2:$AC$1001,Χρονοδιάγραμμα[],2,FALSE))","v":""}]
[null,null,null,null,null,null,null,null,null,null,null,null,null,null,null,null,null,null,null,null,null,null,null,null,null,null,null,null,null,{"$f":"IF($AC$2:$AC$1001=\"\",\"\",VLOOKUP($AC$2:$AC$1001,Χρονοδιάγραμμα[],2,FALSE))","v":""}]
[null,null,null,null,null,null,null,null,null,null,null,null,null,null,null,null,null,null,null,null,null,null,null,null,null,null,null,null,null,{"$f":"IF($AC$2:$AC$1001=\"\",\"\",VLOOKUP($AC$2:$AC$1001,Χρονοδιάγραμμα[],2,FALSE))","v":""}]
[null,null,null,null,null,null,null,null,null,null,null,null,null,null,null,null,null,null,null,null,null,null,null,null,null,null,null,null,null,{"$f":"IF($AC$2:$AC$1001=\"\",\"\",VLOOKUP($AC$2:$AC$1001,Χρονοδιάγραμμα[],2,FALSE))","v":""}]
[null,null,null,null,null,null,null,null,null,null,null,null,null,null,null,null,null,null,null,null,null,null,null,null,null,null,null,null,null,{"$f":"IF($AC$2:$AC$1001=\"\",\"\",VLOOKUP($AC$2:$AC$1001,Χρονοδιάγραμμα[],2,FALSE))","v":""}]
[null,null,null,null,null,null,null,null,null,null,null,null,null,null,null,null,null,null,null,null,null,null,null,null,null,null,null,null,null,{"$f":"IF($AC$2:$AC$1001=\"\",\"\",VLOOKUP($AC$2:$AC$1001,Χρονοδιάγραμμα[],2,FALSE))","v":""}]
[null,null,null,null,null,null,null,null,null,null,null,null,null,null,null,null,null,null,null,null,null,null,null,null,null,null,null,null,null,{"$f":"IF($AC$2:$AC$1001=\"\",\"\",VLOOKUP($AC$2:$AC$1001,Χρονοδιάγραμμα[],2,FALSE))","v":""}]
[null,null,null,null,null,null,null,null,null,null,null,null,null,null,null,null,null,null,null,null,null,null,null,null,null,null,null,null,null,{"$f":"IF($AC$2:$AC$1001=\"\",\"\",VLOOKUP($AC$2:$AC$1001,Χρονοδιάγραμμα[],2,FALSE))","v":""}]
[null,null,null,null,null,null,null,null,null,null,null,null,null,null,null,null,null,null,null,null,null,null,null,null,null,null,null,null,null,{"$f":"IF($AC$2:$AC$1001=\"\",\"\",VLOOKUP($AC$2:$AC$1001,Χρονοδιάγραμμα[],2,FALSE))","v":""}]
[null,null,null,null,null,null,null,null,null,null,null,null,null,null,null,null,null,null,null,null,null,null,null,null,null,null,null,null,null,{"$f":"IF($AC$2:$AC$1001=\"\",\"\",VLOOKUP($AC$2:$AC$1001,Χρονοδιάγραμμα[],2,FALSE))","v":""}]
[null,null,null,null,null,null,null,null,null,null,null,null,null,null,null,null,null,null,null,null,null,null,null,null,null,null,null,null,null,{"$f":"IF($AC$2:$AC$1001=\"\",\"\",VLOOKUP($AC$2:$AC$1001,Χρονοδιάγραμμα[],2,FALSE))","v":""}]
[null,null,null,null,null,null,null,null,null,null,null,null,null,null,null,null,null,null,null,null,null,null,null,null,null,null,null,null,null,{"$f":"IF($AC$2:$AC$1001=\"\",\"\",VLOOKUP($AC$2:$AC$1001,Χρονοδιάγραμμα[],2,FALSE))","v":""}]
[null,null,null,null,null,null,null,null,null,null,null,null,null,null,null,null,null,null,null,null,null,null,null,null,null,null,null,null,null,{"$f":"IF($AC$2:$AC$1001=\"\",\"\",VLOOKUP($AC$2:$AC$1001,Χρονοδιάγραμμα[],2,FALSE))","v":""}]
[null,null,null,null,null,null,null,null,null,null,null,null,null,null,null,null,null,null,null,null,null,null,null,null,null,null,null,null,null,{"$f":"IF($AC$2:$AC$1001=\"\",\"\",VLOOKUP($AC$2:$AC$1001,Χρονοδιάγραμμα[],2,FALSE))","v":""}]
[null,null,null,null,null,null,null,null,null,null,null,null,null,null,null,null,null,null,null,null,null,null,null,null,null,null,null,null,null,{"$f":"IF($AC$2:$AC$1001=\"\",\"\",VLOOKUP($AC$2:$AC$1001,Χρονοδιάγραμμα[],2,FALSE))","v":""}]
[null,null,null,null,null,null,null,null,null,null,null,null,null,null,null,null,null,null,null,null,null,null,null,null,null,null,null,null,null,{"$f":"IF($AC$2:$AC$1001=\"\",\"\",VLOOKUP($AC$2:$AC$1001,Χρονοδιάγραμμα[],2,FALSE))","v":""}]
[null,null,null,null,null,null,null,null,null,null,null,null,null,null,null,null,null,null,null,null,null,null,null,null,null,null,null,null,null,{"$f":"IF($AC$2:$AC$1001=\"\",\"\",VLOOKUP($AC$2:$AC$1001,Χρονοδιάγραμμα[],2,FALSE))","v":""}]
[null,null,null,null,null,null,null,null,null,null,null,null,null,null,null,null,null,null,null,null,null,null,null,null,null,null,null,null,null,{"$f":"IF($AC$2:$AC$1001=\"\",\"\",VLOOKUP($AC$2:$AC$1001,Χρονοδιάγραμμα[],2,FALSE))","v":""}]
[null,null,null,null,null,null,null,null,null,null,null,null,null,null,null,null,null,null,null,null,null,null,null,null,null,null,null,null,null,{"$f":"IF($AC$2:$AC$1001=\"\",\"\",VLOOKUP($AC$2:$AC$1001,Χρονοδιάγραμμα[],2,FALSE))","v":""}]
[null,null,null,null,null,null,null,null,null,null,null,null,null,null,null,null,null,null,null,null,null,null,null,null,null,null,null,null,null,{"$f":"IF($AC$2:$AC$1001=\"\",\"\",VLOOKUP($AC$2:$AC$1001,Χρονοδιάγραμμα[],2,FALSE))","v":""}]
[null,null,null,null,null,null,null,null,null,null,null,null,null,null,null,null,null,null,null,null,null,null,null,null,null,null,null,null,null,{"$f":"IF($AC$2:$AC$1001=\"\",\"\",VLOOKUP($AC$2:$AC$1001,Χρονοδιάγραμμα[],2,FALSE))","v":""}]
[null,null,null,null,null,null,null,null,null,null,null,null,null,null,null,null,null,null,null,null,null,null,null,null,null,null,null,null,null,{"$f":"IF($AC$2:$AC$1001=\"\",\"\",VLOOKUP($AC$2:$AC$1001,Χρονοδιάγραμμα[],2,FALSE))","v":""}]
[null,null,null,null,null,null,null,null,null,null,null,null,null,null,null,null,null,null,null,null,null,null,null,null,null,null,null,null,null,{"$f":"IF($AC$2:$AC$1001=\"\",\"\",VLOOKUP($AC$2:$AC$1001,Χρονοδιάγραμμα[],2,FALSE))","v":""}]
[null,null,null,null,null,null,null,null,null,null,null,null,null,null,null,null,null,null,null,null,null,null,null,null,null,null,null,null,null,{"$f":"IF($AC$2:$AC$1001=\"\",\"\",VLOOKUP($AC$2:$AC$1001,Χρονοδιάγραμμα[],2,FALSE))","v":""}]
[null,null,null,null,null,null,null,null,null,null,null,null,null,null,null,null,null,null,null,null,null,null,null,null,null,null,null,null,null,{"$f":"IF($AC$2:$AC$1001=\"\",\"\",VLOOKUP($AC$2:$AC$1001,Χρονοδιάγραμμα[],2,FALSE))","v":""}]
[null,null,null,null,null,null,null,null,null,null,null,null,null,null,null,null,null,null,null,null,null,null,null,null,null,null,null,null,null,{"$f":"IF($AC$2:$AC$1001=\"\",\"\",VLOOKUP($AC$2:$AC$1001,Χρονοδιάγραμμα[],2,FALSE))","v":""}]
[null,null,null,null,null,null,null,null,null,null,null,null,null,null,null,null,null,null,null,null,null,null,null,null,null,null,null,null,null,{"$f":"IF($AC$2:$AC$1001=\"\",\"\",VLOOKUP($AC$2:$AC$1001,Χρονοδιάγραμμα[],2,FALSE))","v":""}]
[null,null,null,null,null,null,null,null,null,null,null,null,null,null,null,null,null,null,null,null,null,null,null,null,null,null,null,null,null,{"$f":"IF($AC$2:$AC$1001=\"\",\"\",VLOOKUP($AC$2:$AC$1001,Χρονοδιάγραμμα[],2,FALSE))","v":""}]
[null,null,null,null,null,null,null,null,null,null,null,null,null,null,null,null,null,null,null,null,null,null,null,null,null,null,null,null,null,{"$f":"IF($AC$2:$AC$1001=\"\",\"\",VLOOKUP($AC$2:$AC$1001,Χρονοδιάγραμμα[],2,FALSE))","v":""}]
[null,null,null,null,null,null,null,null,null,null,null,null,null,null,null,null,null,null,null,null,null,null,null,null,null,null,null,null,null,{"$f":"IF($AC$2:$AC$1001=\"\",\"\",VLOOKUP($AC$2:$AC$1001,Χρονοδιάγραμμα[],2,FALSE))","v":""}]
[null,null,null,null,null,null,null,null,null,null,null,null,null,null,null,null,null,null,null,null,null,null,null,null,null,null,null,null,null,{"$f":"IF($AC$2:$AC$1001=\"\",\"\",VLOOKUP($AC$2:$AC$1001,Χρονοδιάγραμμα[],2,FALSE))","v":""}]
[null,null,null,null,null,null,null,null,null,null,null,null,null,null,null,null,null,null,null,null,null,null,null,null,null,null,null,null,null,{"$f":"IF($AC$2:$AC$1001=\"\",\"\",VLOOKUP($AC$2:$AC$1001,Χρονοδιάγραμμα[],2,FALSE))","v":""}]
[null,null,null,null,null,null,null,null,null,null,null,null,null,null,null,null,null,null,null,null,null,null,null,null,null,null,null,null,null,{"$f":"IF($AC$2:$AC$1001=\"\",\"\",VLOOKUP($AC$2:$AC$1001,Χρονοδιάγραμμα[],2,FALSE))","v":""}]
[null,null,null,null,null,null,null,null,null,null,null,null,null,null,null,null,null,null,null,null,null,null,null,null,null,null,null,null,null,{"$f":"IF($AC$2:$AC$1001=\"\",\"\",VLOOKUP($AC$2:$AC$1001,Χρονοδιάγραμμα[],2,FALSE))","v":""}]
[null,null,null,null,null,null,null,null,null,null,null,null,null,null,null,null,null,null,null,null,null,null,null,null,null,null,null,null,null,{"$f":"IF($AC$2:$AC$1001=\"\",\"\",VLOOKUP($AC$2:$AC$1001,Χρονοδιάγραμμα[],2,FALSE))","v":""}]
[null,null,null,null,null,null,null,null,null,null,null,null,null,null,null,null,null,null,null,null,null,null,null,null,null,null,null,null,null,{"$f":"IF($AC$2:$AC$1001=\"\",\"\",VLOOKUP($AC$2:$AC$1001,Χρονοδιάγραμμα[],2,FALSE))","v":""}]
[null,null,null,null,null,null,null,null,null,null,null,null,null,null,null,null,null,null,null,null,null,null,null,null,null,null,null,null,null,{"$f":"IF($AC$2:$AC$1001=\"\",\"\",VLOOKUP($AC$2:$AC$1001,Χρονοδιάγραμμα[],2,FALSE))","v":""}]
[null,null,null,null,null,null,null,null,null,null,null,null,null,null,null,null,null,null,null,null,null,null,null,null,null,null,null,null,null,{"$f":"IF($AC$2:$AC$1001=\"\",\"\",VLOOKUP($AC$2:$AC$1001,Χρονοδιάγραμμα[],2,FALSE))","v":""}]
[null,null,null,null,null,null,null,null,null,null,null,null,null,null,null,null,null,null,null,null,null,null,null,null,null,null,null,null,null,{"$f":"IF($AC$2:$AC$1001=\"\",\"\",VLOOKUP($AC$2:$AC$1001,Χρονοδιάγραμμα[],2,FALSE))","v":""}]
[null,null,null,null,null,null,null,null,null,null,null,null,null,null,null,null,null,null,null,null,null,null,null,null,null,null,null,null,null,{"$f":"IF($AC$2:$AC$1001=\"\",\"\",VLOOKUP($AC$2:$AC$1001,Χρονοδιάγραμμα[],2,FALSE))","v":""}]
[null,null,null,null,null,null,null,null,null,null,null,null,null,null,null,null,null,null,null,null,null,null,null,null,null,null,null,null,null,{"$f":"IF($AC$2:$AC$1001=\"\",\"\",VLOOKUP($AC$2:$AC$1001,Χρονοδιάγραμμα[],2,FALSE))","v":""}]
[null,null,null,null,null,null,null,null,null,null,null,null,null,null,null,null,null,null,null,null,null,null,null,null,null,null,null,null,null,{"$f":"IF($AC$2:$AC$1001=\"\",\"\",VLOOKUP($AC$2:$AC$1001,Χρονοδιάγραμμα[],2,FALSE))","v":""}]
[null,null,null,null,null,null,null,null,null,null,null,null,null,null,null,null,null,null,null,null,null,null,null,null,null,null,null,null,null,{"$f":"IF($AC$2:$AC$1001=\"\",\"\",VLOOKUP($AC$2:$AC$1001,Χρονοδιάγραμμα[],2,FALSE))","v":""}]
[null,null,null,null,null,null,null,null,null,null,null,null,null,null,null,null,null,null,null,null,null,null,null,null,null,null,null,null,null,{"$f":"IF($AC$2:$AC$1001=\"\",\"\",VLOOKUP($AC$2:$AC$1001,Χρονοδιάγραμμα[],2,FALSE))","v":""}]
[null,null,null,null,null,null,null,null,null,null,null,null,null,null,null,null,null,null,null,null,null,null,null,null,null,null,null,null,null,{"$f":"IF($AC$2:$AC$1001=\"\",\"\",VLOOKUP($AC$2:$AC$1001,Χρονοδιάγραμμα[],2,FALSE))","v":""}]
[null,null,null,null,null,null,null,null,null,null,null,null,null,null,null,null,null,null,null,null,null,null,null,null,null,null,null,null,null,{"$f":"IF($AC$2:$AC$1001=\"\",\"\",VLOOKUP($AC$2:$AC$1001,Χρονοδιάγραμμα[],2,FALSE))","v":""}]
[null,null,null,null,null,null,null,null,null,null,null,null,null,null,null,null,null,null,null,null,null,null,null,null,null,null,null,null,null,{"$f":"IF($AC$2:$AC$1001=\"\",\"\",VLOOKUP($AC$2:$AC$1001,Χρονοδιάγραμμα[],2,FALSE))","v":""}]
[null,null,null,null,null,null,null,null,null,null,null,null,null,null,null,null,null,null,null,null,null,null,null,null,null,null,null,null,null,{"$f":"IF($AC$2:$AC$1001=\"\",\"\",VLOOKUP($AC$2:$AC$1001,Χρονοδιάγραμμα[],2,FALSE))","v":""}]
[null,null,null,null,null,null,null,null,null,null,null,null,null,null,null,null,null,null,null,null,null,null,null,null,null,null,null,null,null,{"$f":"IF($AC$2:$AC$1001=\"\",\"\",VLOOKUP($AC$2:$AC$1001,Χρονοδιάγραμμα[],2,FALSE))","v":""}]
[null,null,null,null,null,null,null,null,null,null,null,null,null,null,null,null,null,null,null,null,null,null,null,null,null,null,null,null,null,{"$f":"IF($AC$2:$AC$1001=\"\",\"\",VLOOKUP($AC$2:$AC$1001,Χρονοδιάγραμμα[],2,FALSE))","v":""}]
[null,null,null,null,null,null,null,null,null,null,null,null,null,null,null,null,null,null,null,null,null,null,null,null,null,null,null,null,null,{"$f":"IF($AC$2:$AC$1001=\"\",\"\",VLOOKUP($AC$2:$AC$1001,Χρονοδιάγραμμα[],2,FALSE))","v":""}]
[null,null,null,null,null,null,null,null,null,null,null,null,null,null,null,null,null,null,null,null,null,null,null,null,null,null,null,null,null,{"$f":"IF($AC$2:$AC$1001=\"\",\"\",VLOOKUP($AC$2:$AC$1001,Χρονοδιάγραμμα[],2,FALSE))","v":""}]
[null,null,null,null,null,null,null,null,null,null,null,null,null,null,null,null,null,null,null,null,null,null,null,null,null,null,null,null,null,{"$f":"IF($AC$2:$AC$1001=\"\",\"\",VLOOKUP($AC$2:$AC$1001,Χρονοδιάγραμμα[],2,FALSE))","v":""}]
[null,null,null,null,null,null,null,null,null,null,null,null,null,null,null,null,null,null,null,null,null,null,null,null,null,null,null,null,null,{"$f":"IF($AC$2:$AC$1001=\"\",\"\",VLOOKUP($AC$2:$AC$1001,Χρονοδιάγραμμα[],2,FALSE))","v":""}]
[null,null,null,null,null,null,null,null,null,null,null,null,null,null,null,null,null,null,null,null,null,null,null,null,null,null,null,null,null,{"$f":"IF($AC$2:$AC$1001=\"\",\"\",VLOOKUP($AC$2:$AC$1001,Χρονοδιάγραμμα[],2,FALSE))","v":""}]
[null,null,null,null,null,null,null,null,null,null,null,null,null,null,null,null,null,null,null,null,null,null,null,null,null,null,null,null,null,{"$f":"IF($AC$2:$AC$1001=\"\",\"\",VLOOKUP($AC$2:$AC$1001,Χρονοδιάγραμμα[],2,FALSE))","v":""}]
[null,null,null,null,null,null,null,null,null,null,null,null,null,null,null,null,null,null,null,null,null,null,null,null,null,null,null,null,null,{"$f":"IF($AC$2:$AC$1001=\"\",\"\",VLOOKUP($AC$2:$AC$1001,Χρονοδιάγραμμα[],2,FALSE))","v":""}]
[null,null,null,null,null,null,null,null,null,null,null,null,null,null,null,null,null,null,null,null,null,null,null,null,null,null,null,null,null,{"$f":"IF($AC$2:$AC$1001=\"\",\"\",VLOOKUP($AC$2:$AC$1001,Χρονοδιάγραμμα[],2,FALSE))","v":""}]
[null,null,null,null,null,null,null,null,null,null,null,null,null,null,null,null,null,null,null,null,null,null,null,null,null,null,null,null,null,{"$f":"IF($AC$2:$AC$1001=\"\",\"\",VLOOKUP($AC$2:$AC$1001,Χρονοδιάγραμμα[],2,FALSE))","v":""}]
[null,null,null,null,null,null,null,null,null,null,null,null,null,null,null,null,null,null,null,null,null,null,null,null,null,null,null,null,null,{"$f":"IF($AC$2:$AC$1001=\"\",\"\",VLOOKUP($AC$2:$AC$1001,Χρονοδιάγραμμα[],2,FALSE))","v":""}]
[null,null,null,null,null,null,null,null,null,null,null,null,null,null,null,null,null,null,null,null,null,null,null,null,null,null,null,null,null,{"$f":"IF($AC$2:$AC$1001=\"\",\"\",VLOOKUP($AC$2:$AC$1001,Χρονοδιάγραμμα[],2,FALSE))","v":""}]
[null,null,null,null,null,null,null,null,null,null,null,null,null,null,null,null,null,null,null,null,null,null,null,null,null,null,null,null,null,{"$f":"IF($AC$2:$AC$1001=\"\",\"\",VLOOKUP($AC$2:$AC$1001,Χρονοδιάγραμμα[],2,FALSE))","v":""}]
[null,null,null,null,null,null,null,null,null,null,null,null,null,null,null,null,null,null,null,null,null,null,null,null,null,null,null,null,null,{"$f":"IF($AC$2:$AC$1001=\"\",\"\",VLOOKUP($AC$2:$AC$1001,Χρονοδιάγραμμα[],2,FALSE))","v":""}]
[null,null,null,null,null,null,null,null,null,null,null,null,null,null,null,null,null,null,null,null,null,null,null,null,null,null,null,null,null,{"$f":"IF($AC$2:$AC$1001=\"\",\"\",VLOOKUP($AC$2:$AC$1001,Χρονοδιάγραμμα[],2,FALSE))","v":""}]
[null,null,null,null,null,null,null,null,null,null,null,null,null,null,null,null,null,null,null,null,null,null,null,null,null,null,null,null,null,{"$f":"IF($AC$2:$AC$1001=\"\",\"\",VLOOKUP($AC$2:$AC$1001,Χρονοδιάγραμμα[],2,FALSE))","v":""}]
[null,null,null,null,null,null,null,null,null,null,null,null,null,null,null,null,null,null,null,null,null,null,null,null,null,null,null,null,null,{"$f":"IF($AC$2:$AC$1001=\"\",\"\",VLOOKUP($AC$2:$AC$1001,Χρονοδιάγραμμα[],2,FALSE))","v":""}]
[null,null,null,null,null,null,null,null,null,null,null,null,null,null,null,null,null,null,null,null,null,null,null,null,null,null,null,null,null,{"$f":"IF($AC$2:$AC$1001=\"\",\"\",VLOOKUP($AC$2:$AC$1001,Χρονοδιάγραμμα[],2,FALSE))","v":""}]
[null,null,null,null,null,null,null,null,null,null,null,null,null,null,null,null,null,null,null,null,null,null,null,null,null,null,null,null,null,{"$f":"IF($AC$2:$AC$1001=\"\",\"\",VLOOKUP($AC$2:$AC$1001,Χρονοδιάγραμμα[],2,FALSE))","v":""}]
[null,null,null,null,null,null,null,null,null,null,null,null,null,null,null,null,null,null,null,null,null,null,null,null,null,null,null,null,null,{"$f":"IF($AC$2:$AC$1001=\"\",\"\",VLOOKUP($AC$2:$AC$1001,Χρονοδιάγραμμα[],2,FALSE))","v":""}]
[null,null,null,null,null,null,null,null,null,null,null,null,null,null,null,null,null,null,null,null,null,null,null,null,null,null,null,null,null,{"$f":"IF($AC$2:$AC$1001=\"\",\"\",VLOOKUP($AC$2:$AC$1001,Χρονοδιάγραμμα[],2,FALSE))","v":""}]
[null,null,null,null,null,null,null,null,null,null,null,null,null,null,null,null,null,null,null,null,null,null,null,null,null,null,null,null,null,{"$f":"IF($AC$2:$AC$1001=\"\",\"\",VLOOKUP($AC$2:$AC$1001,Χρονοδιάγραμμα[],2,FALSE))","v":""}]
[null,null,null,null,null,null,null,null,null,null,null,null,null,null,null,null,null,null,null,null,null,null,null,null,null,null,null,null,null,{"$f":"IF($AC$2:$AC$1001=\"\",\"\",VLOOKUP($AC$2:$AC$1001,Χρονοδιάγραμμα[],2,FALSE))","v":""}]
[null,null,null,null,null,null,null,null,null,null,null,null,null,null,null,null,null,null,null,null,null,null,null,null,null,null,null,null,null,{"$f":"IF($AC$2:$AC$1001=\"\",\"\",VLOOKUP($AC$2:$AC$1001,Χρονοδιάγραμμα[],2,FALSE))","v":""}]
[null,null,null,null,null,null,null,null,null,null,null,null,null,null,null,null,null,null,null,null,null,null,null,null,null,null,null,null,null,{"$f":"IF($AC$2:$AC$1001=\"\",\"\",VLOOKUP($AC$2:$AC$1001,Χρονοδιάγραμμα[],2,FALSE))","v":""}]
[null,null,null,null,null,null,null,null,null,null,null,null,null,null,null,null,null,null,null,null,null,null,null,null,null,null,null,null,null,{"$f":"IF($AC$2:$AC$1001=\"\",\"\",VLOOKUP($AC$2:$AC$1001,Χρονοδιάγραμμα[],2,FALSE))","v":""}]
[null,null,null,null,null,null,null,null,null,null,null,null,null,null,null,null,null,null,null,null,null,null,null,null,null,null,null,null,null,{"$f":"IF($AC$2:$AC$1001=\"\",\"\",VLOOKUP($AC$2:$AC$1001,Χρονοδιάγραμμα[],2,FALSE))","v":""}]
[null,null,null,null,null,null,null,null,null,null,null,null,null,null,null,null,null,null,null,null,null,null,null,null,null,null,null,null,null,{"$f":"IF($AC$2:$AC$1001=\"\",\"\",VLOOKUP($AC$2:$AC$1001,Χρονοδιάγραμμα[],2,FALSE))","v":""}]
[null,null,null,null,null,null,null,null,null,null,null,null,null,null,null,null,null,null,null,null,null,null,null,null,null,null,null,null,null,{"$f":"IF($AC$2:$AC$1001=\"\",\"\",VLOOKUP($AC$2:$AC$1001,Χρονοδιάγραμμα[],2,FALSE))","v":""}]
[null,null,null,null,null,null,null,null,null,null,null,null,null,null,null,null,null,null,null,null,null,null,null,null,null,null,null,null,null,{"$f":"IF($AC$2:$AC$1001=\"\",\"\",VLOOKUP($AC$2:$AC$1001,Χρονοδιάγραμμα[],2,FALSE))","v":""}]
[null,null,null,null,null,null,null,null,null,null,null,null,null,null,null,null,null,null,null,null,null,null,null,null,null,null,null,null,null,{"$f":"IF($AC$2:$AC$1001=\"\",\"\",VLOOKUP($AC$2:$AC$1001,Χρονοδιάγραμμα[],2,FALSE))","v":""}]
[null,null,null,null,null,null,null,null,null,null,null,null,null,null,null,null,null,null,null,null,null,null,null,null,null,null,null,null,null,{"$f":"IF($AC$2:$AC$1001=\"\",\"\",VLOOKUP($AC$2:$AC$1001,Χρονοδιάγραμμα[],2,FALSE))","v":""}]
[null,null,null,null,null,null,null,null,null,null,null,null,null,null,null,null,null,null,null,null,null,null,null,null,null,null,null,null,null,{"$f":"IF($AC$2:$AC$1001=\"\",\"\",VLOOKUP($AC$2:$AC$1001,Χρονοδιάγραμμα[],2,FALSE))","v":""}]
[null,null,null,null,null,null,null,null,null,null,null,null,null,null,null,null,null,null,null,null,null,null,null,null,null,null,null,null,null,{"$f":"IF($AC$2:$AC$1001=\"\",\"\",VLOOKUP($AC$2:$AC$1001,Χρονοδιάγραμμα[],2,FALSE))","v":""}]
[null,null,null,null,null,null,null,null,null,null,null,null,null,null,null,null,null,null,null,null,null,null,null,null,null,null,null,null,null,{"$f":"IF($AC$2:$AC$1001=\"\",\"\",VLOOKUP($AC$2:$AC$1001,Χρονοδιάγραμμα[],2,FALSE))","v":""}]
[null,null,null,null,null,null,null,null,null,null,null,null,null,null,null,null,null,null,null,null,null,null,null,null,null,null,null,null,null,{"$f":"IF($AC$2:$AC$1001=\"\",\"\",VLOOKUP($AC$2:$AC$1001,Χρονοδιάγραμμα[],2,FALSE))","v":""}]
[null,null,null,null,null,null,null,null,null,null,null,null,null,null,null,null,null,null,null,null,null,null,null,null,null,null,null,null,null,{"$f":"IF($AC$2:$AC$1001=\"\",\"\",VLOOKUP($AC$2:$AC$1001,Χρονοδιάγραμμα[],2,FALSE))","v":""}]
[null,null,null,null,null,null,null,null,null,null,null,null,null,null,null,null,null,null,null,null,null,null,null,null,null,null,null,null,null,{"$f":"IF($AC$2:$AC$1001=\"\",\"\",VLOOKUP($AC$2:$AC$1001,Χρονοδιάγραμμα[],2,FALSE))","v":""}]
[null,null,null,null,null,null,null,null,null,null,null,null,null,null,null,null,null,null,null,null,null,null,null,null,null,null,null,null,null,{"$f":"IF($AC$2:$AC$1001=\"\",\"\",VLOOKUP($AC$2:$AC$1001,Χρονοδιάγραμμα[],2,FALSE))","v":""}]
[null,null,null,null,null,null,null,null,null,null,null,null,null,null,null,null,null,null,null,null,null,null,null,null,null,null,null,null,null,{"$f":"IF($AC$2:$AC$1001=\"\",\"\",VLOOKUP($AC$2:$AC$1001,Χρονοδιάγραμμα[],2,FALSE))","v":""}]
[null,null,null,null,null,null,null,null,null,null,null,null,null,null,null,null,null,null,null,null,null,null,null,null,null,null,null,null,null,{"$f":"IF($AC$2:$AC$1001=\"\",\"\",VLOOKUP($AC$2:$AC$1001,Χρονοδιάγραμμα[],2,FALSE))","v":""}]
[null,null,null,null,null,null,null,null,null,null,null,null,null,null,null,null,null,null,null,null,null,null,null,null,null,null,null,null,null,{"$f":"IF($AC$2:$AC$1001=\"\",\"\",VLOOKUP($AC$2:$AC$1001,Χρονοδιάγραμμα[],2,FALSE))","v":""}]
[null,null,null,null,null,null,null,null,null,null,null,null,null,null,null,null,null,null,null,null,null,null,null,null,null,null,null,null,null,{"$f":"IF($AC$2:$AC$1001=\"\",\"\",VLOOKUP($AC$2:$AC$1001,Χρονοδιάγραμμα[],2,FALSE))","v":""}]
[null,null,null,null,null,null,null,null,null,null,null,null,null,null,null,null,null,null,null,null,null,null,null,null,null,null,null,null,null,{"$f":"IF($AC$2:$AC$1001=\"\",\"\",VLOOKUP($AC$2:$AC$1001,Χρονοδιάγραμμα[],2,FALSE))","v":""}]
[null,null,null,null,null,null,null,null,null,null,null,null,null,null,null,null,null,null,null,null,null,null,null,null,null,null,null,null,null,{"$f":"IF($AC$2:$AC$1001=\"\",\"\",VLOOKUP($AC$2:$AC$1001,Χρονοδιάγραμμα[],2,FALSE))","v":""}]
[null,null,null,null,null,null,null,null,null,null,null,null,null,null,null,null,null,null,null,null,null,null,null,null,null,null,null,null,null,{"$f":"IF($AC$2:$AC$1001=\"\",\"\",VLOOKUP($AC$2:$AC$1001,Χρονοδιάγραμμα[],2,FALSE))","v":""}]
[null,null,null,null,null,null,null,null,null,null,null,null,null,null,null,null,null,null,null,null,null,null,null,null,null,null,null,null,null,{"$f":"IF($AC$2:$AC$1001=\"\",\"\",VLOOKUP($AC$2:$AC$1001,Χρονοδιάγραμμα[],2,FALSE))","v":""}]
[null,null,null,null,null,null,null,null,null,null,null,null,null,null,null,null,null,null,null,null,null,null,null,null,null,null,null,null,null,{"$f":"IF($AC$2:$AC$1001=\"\",\"\",VLOOKUP($AC$2:$AC$1001,Χρονοδιάγραμμα[],2,FALSE))","v":""}]
[null,null,null,null,null,null,null,null,null,null,null,null,null,null,null,null,null,null,null,null,null,null,null,null,null,null,null,null,null,{"$f":"IF($AC$2:$AC$1001=\"\",\"\",VLOOKUP($AC$2:$AC$1001,Χρονοδιάγραμμα[],2,FALSE))","v":""}]
[null,null,null,null,null,null,null,null,null,null,null,null,null,null,null,null,null,null,null,null,null,null,null,null,null,null,null,null,null,{"$f":"IF($AC$2:$AC$1001=\"\",\"\",VLOOKUP($AC$2:$AC$1001,Χρονοδιάγραμμα[],2,FALSE))","v":""}]
[null,null,null,null,null,null,null,null,null,null,null,null,null,null,null,null,null,null,null,null,null,null,null,null,null,null,null,null,null,{"$f":"IF($AC$2:$AC$1001=\"\",\"\",VLOOKUP($AC$2:$AC$1001,Χρονοδιάγραμμα[],2,FALSE))","v":""}]
[null,null,null,null,null,null,null,null,null,null,null,null,null,null,null,null,null,null,null,null,null,null,null,null,null,null,null,null,null,{"$f":"IF($AC$2:$AC$1001=\"\",\"\",VLOOKUP($AC$2:$AC$1001,Χρονοδιάγραμμα[],2,FALSE))","v":""}]
[null,null,null,null,null,null,null,null,null,null,null,null,null,null,null,null,null,null,null,null,null,null,null,null,null,null,null,null,null,{"$f":"IF($AC$2:$AC$1001=\"\",\"\",VLOOKUP($AC$2:$AC$1001,Χρονοδιάγραμμα[],2,FALSE))","v":""}]
[null,null,null,null,null,null,null,null,null,null,null,null,null,null,null,null,null,null,null,null,null,null,null,null,null,null,null,null,null,{"$f":"IF($AC$2:$AC$1001=\"\",\"\",VLOOKUP($AC$2:$AC$1001,Χρονοδιάγραμμα[],2,FALSE))","v":""}]
[null,null,null,null,null,null,null,null,null,null,null,null,null,null,null,null,null,null,null,null,null,null,null,null,null,null,null,null,null,{"$f":"IF($AC$2:$AC$1001=\"\",\"\",VLOOKUP($AC$2:$AC$1001,Χρονοδιάγραμμα[],2,FALSE))","v":""}]
[null,null,null,null,null,null,null,null,null,null,null,null,null,null,null,null,null,null,null,null,null,null,null,null,null,null,null,null,null,{"$f":"IF($AC$2:$AC$1001=\"\",\"\",VLOOKUP($AC$2:$AC$1001,Χρονοδιάγραμμα[],2,FALSE))","v":""}]
[null,null,null,null,null,null,null,null,null,null,null,null,null,null,null,null,null,null,null,null,null,null,null,null,null,null,null,null,null,{"$f":"IF($AC$2:$AC$1001=\"\",\"\",VLOOKUP($AC$2:$AC$1001,Χρονοδιάγραμμα[],2,FALSE))","v":""}]
[null,null,null,null,null,null,null,null,null,null,null,null,null,null,null,null,null,null,null,null,null,null,null,null,null,null,null,null,null,{"$f":"IF($AC$2:$AC$1001=\"\",\"\",VLOOKUP($AC$2:$AC$1001,Χρονοδιάγραμμα[],2,FALSE))","v":""}]
[null,null,null,null,null,null,null,null,null,null,null,null,null,null,null,null,null,null,null,null,null,null,null,null,null,null,null,null,null,{"$f":"IF($AC$2:$AC$1001=\"\",\"\",VLOOKUP($AC$2:$AC$1001,Χρονοδιάγραμμα[],2,FALSE))","v":""}]
[null,null,null,null,null,null,null,null,null,null,null,null,null,null,null,null,null,null,null,null,null,null,null,null,null,null,null,null,null,{"$f":"IF($AC$2:$AC$1001=\"\",\"\",VLOOKUP($AC$2:$AC$1001,Χρονοδιάγραμμα[],2,FALSE))","v":""}]
[null,null,null,null,null,null,null,null,null,null,null,null,null,null,null,null,null,null,null,null,null,null,null,null,null,null,null,null,null,{"$f":"IF($AC$2:$AC$1001=\"\",\"\",VLOOKUP($AC$2:$AC$1001,Χρονοδιάγραμμα[],2,FALSE))","v":""}]
[null,null,null,null,null,null,null,null,null,null,null,null,null,null,null,null,null,null,null,null,null,null,null,null,null,null,null,null,null,{"$f":"IF($AC$2:$AC$1001=\"\",\"\",VLOOKUP($AC$2:$AC$1001,Χρονοδιάγραμμα[],2,FALSE))","v":""}]
[null,null,null,null,null,null,null,null,null,null,null,null,null,null,null,null,null,null,null,null,null,null,null,null,null,null,null,null,null,{"$f":"IF($AC$2:$AC$1001=\"\",\"\",VLOOKUP($AC$2:$AC$1001,Χρονοδιάγραμμα[],2,FALSE))","v":""}]
[null,null,null,null,null,null,null,null,null,null,null,null,null,null,null,null,null,null,null,null,null,null,null,null,null,null,null,null,null,{"$f":"IF($AC$2:$AC$1001=\"\",\"\",VLOOKUP($AC$2:$AC$1001,Χρονοδιάγραμμα[],2,FALSE))","v":""}]
[null,null,null,null,null,null,null,null,null,null,null,null,null,null,null,null,null,null,null,null,null,null,null,null,null,null,null,null,null,{"$f":"IF($AC$2:$AC$1001=\"\",\"\",VLOOKUP($AC$2:$AC$1001,Χρονοδιάγραμμα[],2,FALSE))","v":""}]
[null,null,null,null,null,null,null,null,null,null,null,null,null,null,null,null,null,null,null,null,null,null,null,null,null,null,null,null,null,{"$f":"IF($AC$2:$AC$1001=\"\",\"\",VLOOKUP($AC$2:$AC$1001,Χρονοδιάγραμμα[],2,FALSE))","v":""}]
[null,null,null,null,null,null,null,null,null,null,null,null,null,null,null,null,null,null,null,null,null,null,null,null,null,null,null,null,null,{"$f":"IF($AC$2:$AC$1001=\"\",\"\",VLOOKUP($AC$2:$AC$1001,Χρονοδιάγραμμα[],2,FALSE))","v":""}]
[null,null,null,null,null,null,null,null,null,null,null,null,null,null,null,null,null,null,null,null,null,null,null,null,null,null,null,null,null,{"$f":"IF($AC$2:$AC$1001=\"\",\"\",VLOOKUP($AC$2:$AC$1001,Χρονοδιάγραμμα[],2,FALSE))","v":""}]
[null,null,null,null,null,null,null,null,null,null,null,null,null,null,null,null,null,null,null,null,null,null,null,null,null,null,null,null,null,{"$f":"IF($AC$2:$AC$1001=\"\",\"\",VLOOKUP($AC$2:$AC$1001,Χρονοδιάγραμμα[],2,FALSE))","v":""}]
[null,null,null,null,null,null,null,null,null,null,null,null,null,null,null,null,null,null,null,null,null,null,null,null,null,null,null,null,null,{"$f":"IF($AC$2:$AC$1001=\"\",\"\",VLOOKUP($AC$2:$AC$1001,Χρονοδιάγραμμα[],2,FALSE))","v":""}]
[null,null,null,null,null,null,null,null,null,null,null,null,null,null,null,null,null,null,null,null,null,null,null,null,null,null,null,null,null,{"$f":"IF($AC$2:$AC$1001=\"\",\"\",VLOOKUP($AC$2:$AC$1001,Χρονοδιάγραμμα[],2,FALSE))","v":""}]
[null,null,null,null,null,null,null,null,null,null,null,null,null,null,null,null,null,null,null,null,null,null,null,null,null,null,null,null,null,{"$f":"IF($AC$2:$AC$1001=\"\",\"\",VLOOKUP($AC$2:$AC$1001,Χρονοδιάγραμμα[],2,FALSE))","v":""}]
[null,null,null,null,null,null,null,null,null,null,null,null,null,null,null,null,null,null,null,null,null,null,null,null,null,null,null,null,null,{"$f":"IF($AC$2:$AC$1001=\"\",\"\",VLOOKUP($AC$2:$AC$1001,Χρονοδιάγραμμα[],2,FALSE))","v":""}]
[null,null,null,null,null,null,null,null,null,null,null,null,null,null,null,null,null,null,null,null,null,null,null,null,null,null,null,null,null,{"$f":"IF($AC$2:$AC$1001=\"\",\"\",VLOOKUP($AC$2:$AC$1001,Χρονοδιάγραμμα[],2,FALSE))","v":""}]
[null,null,null,null,null,null,null,null,null,null,null,null,null,null,null,null,null,null,null,null,null,null,null,null,null,null,null,null,null,{"$f":"IF($AC$2:$AC$1001=\"\",\"\",VLOOKUP($AC$2:$AC$1001,Χρονοδιάγραμμα[],2,FALSE))","v":""}]
[null,null,null,null,null,null,null,null,null,null,null,null,null,null,null,null,null,null,null,null,null,null,null,null,null,null,null,null,null,{"$f":"IF($AC$2:$AC$1001=\"\",\"\",VLOOKUP($AC$2:$AC$1001,Χρονοδιάγραμμα[],2,FALSE))","v":""}]
[null,null,null,null,null,null,null,null,null,null,null,null,null,null,null,null,null,null,null,null,null,null,null,null,null,null,null,null,null,{"$f":"IF($AC$2:$AC$1001=\"\",\"\",VLOOKUP($AC$2:$AC$1001,Χρονοδιάγραμμα[],2,FALSE))","v":""}]
[null,null,null,null,null,null,null,null,null,null,null,null,null,null,null,null,null,null,null,null,null,null,null,null,null,null,null,null,null,{"$f":"IF($AC$2:$AC$1001=\"\",\"\",VLOOKUP($AC$2:$AC$1001,Χρονοδιάγραμμα[],2,FALSE))","v":""}]
[null,null,null,null,null,null,null,null,null,null,null,null,null,null,null,null,null,null,null,null,null,null,null,null,null,null,null,null,null,{"$f":"IF($AC$2:$AC$1001=\"\",\"\",VLOOKUP($AC$2:$AC$1001,Χρονοδιάγραμμα[],2,FALSE))","v":""}]
[null,null,null,null,null,null,null,null,null,null,null,null,null,null,null,null,null,null,null,null,null,null,null,null,null,null,null,null,null,{"$f":"IF($AC$2:$AC$1001=\"\",\"\",VLOOKUP($AC$2:$AC$1001,Χρονοδιάγραμμα[],2,FALSE))","v":""}]
[null,null,null,null,null,null,null,null,null,null,null,null,null,null,null,null,null,null,null,null,null,null,null,null,null,null,null,null,null,{"$f":"IF($AC$2:$AC$1001=\"\",\"\",VLOOKUP($AC$2:$AC$1001,Χρονοδιάγραμμα[],2,FALSE))","v":""}]
[null,null,null,null,null,null,null,null,null,null,null,null,null,null,null,null,null,null,null,null,null,null,null,null,null,null,null,null,null,{"$f":"IF($AC$2:$AC$1001=\"\",\"\",VLOOKUP($AC$2:$AC$1001,Χρονοδιάγραμμα[],2,FALSE))","v":""}]
[null,null,null,null,null,null,null,null,null,null,null,null,null,null,null,null,null,null,null,null,null,null,null,null,null,null,null,null,null,{"$f":"IF($AC$2:$AC$1001=\"\",\"\",VLOOKUP($AC$2:$AC$1001,Χρονοδιάγραμμα[],2,FALSE))","v":""}]
[null,null,null,null,null,null,null,null,null,null,null,null,null,null,null,null,null,null,null,null,null,null,null,null,null,null,null,null,null,{"$f":"IF($AC$2:$AC$1001=\"\",\"\",VLOOKUP($AC$2:$AC$1001,Χρονοδιάγραμμα[],2,FALSE))","v":""}]
[null,null,null,null,null,null,null,null,null,null,null,null,null,null,null,null,null,null,null,null,null,null,null,null,null,null,null,null,null,{"$f":"IF($AC$2:$AC$1001=\"\",\"\",VLOOKUP($AC$2:$AC$1001,Χρονοδιάγραμμα[],2,FALSE))","v":""}]
[null,null,null,null,null,null,null,null,null,null,null,null,null,null,null,null,null,null,null,null,null,null,null,null,null,null,null,null,null,{"$f":"IF($AC$2:$AC$1001=\"\",\"\",VLOOKUP($AC$2:$AC$1001,Χρονοδιάγραμμα[],2,FALSE))","v":""}]
[null,null,null,null,null,null,null,null,null,null,null,null,null,null,null,null,null,null,null,null,null,null,null,null,null,null,null,null,null,{"$f":"IF($AC$2:$AC$1001=\"\",\"\",VLOOKUP($AC$2:$AC$1001,Χρονοδιάγραμμα[],2,FALSE))","v":""}]
[null,null,null,null,null,null,null,null,null,null,null,null,null,null,null,null,null,null,null,null,null,null,null,null,null,null,null,null,null,{"$f":"IF($AC$2:$AC$1001=\"\",\"\",VLOOKUP($AC$2:$AC$1001,Χρονοδιάγραμμα[],2,FALSE))","v":""}]
[null,null,null,null,null,null,null,null,null,null,null,null,null,null,null,null,null,null,null,null,null,null,null,null,null,null,null,null,null,{"$f":"IF($AC$2:$AC$1001=\"\",\"\",VLOOKUP($AC$2:$AC$1001,Χρονοδιάγραμμα[],2,FALSE))","v":""}]
[null,null,null,null,null,null,null,null,null,null,null,null,null,null,null,null,null,null,null,null,null,null,null,null,null,null,null,null,null,{"$f":"IF($AC$2:$AC$1001=\"\",\"\",VLOOKUP($AC$2:$AC$1001,Χρονοδιάγραμμα[],2,FALSE))","v":""}]
[null,null,null,null,null,null,null,null,null,null,null,null,null,null,null,null,null,null,null,null,null,null,null,null,null,null,null,null,null,{"$f":"IF($AC$2:$AC$1001=\"\",\"\",VLOOKUP($AC$2:$AC$1001,Χρονοδιάγραμμα[],2,FALSE))","v":""}]
[null,null,null,null,null,null,null,null,null,null,null,null,null,null,null,null,null,null,null,null,null,null,null,null,null,null,null,null,null,{"$f":"IF($AC$2:$AC$1001=\"\",\"\",VLOOKUP($AC$2:$AC$1001,Χρονοδιάγραμμα[],2,FALSE))","v":""}]
[null,null,null,null,null,null,null,null,null,null,null,null,null,null,null,null,null,null,null,null,null,null,null,null,null,null,null,null,null,{"$f":"IF($AC$2:$AC$1001=\"\",\"\",VLOOKUP($AC$2:$AC$1001,Χρονοδιάγραμμα[],2,FALSE))","v":""}]
[null,null,null,null,null,null,null,null,null,null,null,null,null,null,null,null,null,null,null,null,null,null,null,null,null,null,null,null,null,{"$f":"IF($AC$2:$AC$1001=\"\",\"\",VLOOKUP($AC$2:$AC$1001,Χρονοδιάγραμμα[],2,FALSE))","v":""}]
[null,null,null,null,null,null,null,null,null,null,null,null,null,null,null,null,null,null,null,null,null,null,null,null,null,null,null,null,null,{"$f":"IF($AC$2:$AC$1001=\"\",\"\",VLOOKUP($AC$2:$AC$1001,Χρονοδιάγραμμα[],2,FALSE))","v":""}]
[null,null,null,null,null,null,null,null,null,null,null,null,null,null,null,null,null,null,null,null,null,null,null,null,null,null,null,null,null,{"$f":"IF($AC$2:$AC$1001=\"\",\"\",VLOOKUP($AC$2:$AC$1001,Χρονοδιάγραμμα[],2,FALSE))","v":""}]
[null,null,null,null,null,null,null,null,null,null,null,null,null,null,null,null,null,null,null,null,null,null,null,null,null,null,null,null,null,{"$f":"IF($AC$2:$AC$1001=\"\",\"\",VLOOKUP($AC$2:$AC$1001,Χρονοδιάγραμμα[],2,FALSE))","v":""}]
[null,null,null,null,null,null,null,null,null,null,null,null,null,null,null,null,null,null,null,null,null,null,null,null,null,null,null,null,null,{"$f":"IF($AC$2:$AC$1001=\"\",\"\",VLOOKUP($AC$2:$AC$1001,Χρονοδιάγραμμα[],2,FALSE))","v":""}]
[null,null,null,null,null,null,null,null,null,null,null,null,null,null,null,null,null,null,null,null,null,null,null,null,null,null,null,null,null,{"$f":"IF($AC$2:$AC$1001=\"\",\"\",VLOOKUP($AC$2:$AC$1001,Χρονοδιάγραμμα[],2,FALSE))","v":""}]
[null,null,null,null,null,null,null,null,null,null,null,null,null,null,null,null,null,null,null,null,null,null,null,null,null,null,null,null,null,{"$f":"IF($AC$2:$AC$1001=\"\",\"\",VLOOKUP($AC$2:$AC$1001,Χρονοδιάγραμμα[],2,FALSE))","v":""}]
[null,null,null,null,null,null,null,null,null,null,null,null,null,null,null,null,null,null,null,null,null,null,null,null,null,null,null,null,null,{"$f":"IF($AC$2:$AC$1001=\"\",\"\",VLOOKUP($AC$2:$AC$1001,Χρονοδιάγραμμα[],2,FALSE))","v":""}]
[null,null,null,null,null,null,null,null,null,null,null,null,null,null,null,null,null,null,null,null,null,null,null,null,null,null,null,null,null,{"$f":"IF($AC$2:$AC$1001=\"\",\"\",VLOOKUP($AC$2:$AC$1001,Χρονοδιάγραμμα[],2,FALSE))","v":""}]
[null,null,null,null,null,null,null,null,null,null,null,null,null,null,null,null,null,null,null,null,null,null,null,null,null,null,null,null,null,{"$f":"IF($AC$2:$AC$1001=\"\",\"\",VLOOKUP($AC$2:$AC$1001,Χρονοδιάγραμμα[],2,FALSE))","v":""}]
[null,null,null,null,null,null,null,null,null,null,null,null,null,null,null,null,null,null,null,null,null,null,null,null,null,null,null,null,null,{"$f":"IF($AC$2:$AC$1001=\"\",\"\",VLOOKUP($AC$2:$AC$1001,Χρονοδιάγραμμα[],2,FALSE))","v":""}]
[null,null,null,null,null,null,null,null,null,null,null,null,null,null,null,null,null,null,null,null,null,null,null,null,null,null,null,null,null,{"$f":"IF($AC$2:$AC$1001=\"\",\"\",VLOOKUP($AC$2:$AC$1001,Χρονοδιάγραμμα[],2,FALSE))","v":""}]
[null,null,null,null,null,null,null,null,null,null,null,null,null,null,null,null,null,null,null,null,null,null,null,null,null,null,null,null,null,{"$f":"IF($AC$2:$AC$1001=\"\",\"\",VLOOKUP($AC$2:$AC$1001,Χρονοδιάγραμμα[],2,FALSE))","v":""}]
[null,null,null,null,null,null,null,null,null,null,null,null,null,null,null,null,null,null,null,null,null,null,null,null,null,null,null,null,null,{"$f":"IF($AC$2:$AC$1001=\"\",\"\",VLOOKUP($AC$2:$AC$1001,Χρονοδιάγραμμα[],2,FALSE))","v":""}]
[null,null,null,null,null,null,null,null,null,null,null,null,null,null,null,null,null,null,null,null,null,null,null,null,null,null,null,null,null,{"$f":"IF($AC$2:$AC$1001=\"\",\"\",VLOOKUP($AC$2:$AC$1001,Χρονοδιάγραμμα[],2,FALSE))","v":""}]
[null,null,null,null,null,null,null,null,null,null,null,null,null,null,null,null,null,null,null,null,null,null,null,null,null,null,null,null,null,{"$f":"IF($AC$2:$AC$1001=\"\",\"\",VLOOKUP($AC$2:$AC$1001,Χρονοδιάγραμμα[],2,FALSE))","v":""}]
[null,null,null,null,null,null,null,null,null,null,null,null,null,null,null,null,null,null,null,null,null,null,null,null,null,null,null,null,null,{"$f":"IF($AC$2:$AC$1001=\"\",\"\",VLOOKUP($AC$2:$AC$1001,Χρονοδιάγραμμα[],2,FALSE))","v":""}]
[null,null,null,null,null,null,null,null,null,null,null,null,null,null,null,null,null,null,null,null,null,null,null,null,null,null,null,null,null,{"$f":"IF($AC$2:$AC$1001=\"\",\"\",VLOOKUP($AC$2:$AC$1001,Χρονοδιάγραμμα[],2,FALSE))","v":""}]
[null,null,null,null,null,null,null,null,null,null,null,null,null,null,null,null,null,null,null,null,null,null,null,null,null,null,null,null,null,{"$f":"IF($AC$2:$AC$1001=\"\",\"\",VLOOKUP($AC$2:$AC$1001,Χρονοδιάγραμμα[],2,FALSE))","v":""}]
[null,null,null,null,null,null,null,null,null,null,null,null,null,null,null,null,null,null,null,null,null,null,null,null,null,null,null,null,null,{"$f":"IF($AC$2:$AC$1001=\"\",\"\",VLOOKUP($AC$2:$AC$1001,Χρονοδιάγραμμα[],2,FALSE))","v":""}]
[null,null,null,null,null,null,null,null,null,null,null,null,null,null,null,null,null,null,null,null,null,null,null,null,null,null,null,null,null,{"$f":"IF($AC$2:$AC$1001=\"\",\"\",VLOOKUP($AC$2:$AC$1001,Χρονοδιάγραμμα[],2,FALSE))","v":""}]
[null,null,null,null,null,null,null,null,null,null,null,null,null,null,null,null,null,null,null,null,null,null,null,null,null,null,null,null,null,{"$f":"IF($AC$2:$AC$1001=\"\",\"\",VLOOKUP($AC$2:$AC$1001,Χρονοδιάγραμμα[],2,FALSE))","v":""}]
[null,null,null,null,null,null,null,null,null,null,null,null,null,null,null,null,null,null,null,null,null,null,null,null,null,null,null,null,null,{"$f":"IF($AC$2:$AC$1001=\"\",\"\",VLOOKUP($AC$2:$AC$1001,Χρονοδιάγραμμα[],2,FALSE))","v":""}]
[null,null,null,null,null,null,null,null,null,null,null,null,null,null,null,null,null,null,null,null,null,null,null,null,null,null,null,null,null,{"$f":"IF($AC$2:$AC$1001=\"\",\"\",VLOOKUP($AC$2:$AC$1001,Χρονοδιάγραμμα[],2,FALSE))","v":""}]
[null,null,null,null,null,null,null,null,null,null,null,null,null,null,null,null,null,null,null,null,null,null,null,null,null,null,null,null,null,{"$f":"IF($AC$2:$AC$1001=\"\",\"\",VLOOKUP($AC$2:$AC$1001,Χρονοδιάγραμμα[],2,FALSE))","v":""}]
[null,null,null,null,null,null,null,null,null,null,null,null,null,null,null,null,null,null,null,null,null,null,null,null,null,null,null,null,null,{"$f":"IF($AC$2:$AC$1001=\"\",\"\",VLOOKUP($AC$2:$AC$1001,Χρονοδιάγραμμα[],2,FALSE))","v":""}]
[null,null,null,null,null,null,null,null,null,null,null,null,null,null,null,null,null,null,null,null,null,null,null,null,null,null,null,null,null,{"$f":"IF($AC$2:$AC$1001=\"\",\"\",VLOOKUP($AC$2:$AC$1001,Χρονοδιάγραμμα[],2,FALSE))","v":""}]
[null,null,null,null,null,null,null,null,null,null,null,null,null,null,null,null,null,null,null,null,null,null,null,null,null,null,null,null,null,{"$f":"IF($AC$2:$AC$1001=\"\",\"\",VLOOKUP($AC$2:$AC$1001,Χρονοδιάγραμμα[],2,FALSE))","v":""}]
[null,null,null,null,null,null,null,null,null,null,null,null,null,null,null,null,null,null,null,null,null,null,null,null,null,null,null,null,null,{"$f":"IF($AC$2:$AC$1001=\"\",\"\",VLOOKUP($AC$2:$AC$1001,Χρονοδιάγραμμα[],2,FALSE))","v":""}]
[null,null,null,null,null,null,null,null,null,null,null,null,null,null,null,null,null,null,null,null,null,null,null,null,null,null,null,null,null,{"$f":"IF($AC$2:$AC$1001=\"\",\"\",VLOOKUP($AC$2:$AC$1001,Χρονοδιάγραμμα[],2,FALSE))","v":""}]
[null,null,null,null,null,null,null,null,null,null,null,null,null,null,null,null,null,null,null,null,null,null,null,null,null,null,null,null,null,{"$f":"IF($AC$2:$AC$1001=\"\",\"\",VLOOKUP($AC$2:$AC$1001,Χρονοδιάγραμμα[],2,FALSE))","v":""}]
[null,null,null,null,null,null,null,null,null,null,null,null,null,null,null,null,null,null,null,null,null,null,null,null,null,null,null,null,null,{"$f":"IF($AC$2:$AC$1001=\"\",\"\",VLOOKUP($AC$2:$AC$1001,Χρονοδιάγραμμα[],2,FALSE))","v":""}]
[null,null,null,null,null,null,null,null,null,null,null,null,null,null,null,null,null,null,null,null,null,null,null,null,null,null,null,null,null,{"$f":"IF($AC$2:$AC$1001=\"\",\"\",VLOOKUP($AC$2:$AC$1001,Χρονοδιάγραμμα[],2,FALSE))","v":""}]
[null,null,null,null,null,null,null,null,null,null,null,null,null,null,null,null,null,null,null,null,null,null,null,null,null,null,null,null,null,{"$f":"IF($AC$2:$AC$1001=\"\",\"\",VLOOKUP($AC$2:$AC$1001,Χρονοδιάγραμμα[],2,FALSE))","v":""}]
[null,null,null,null,null,null,null,null,null,null,null,null,null,null,null,null,null,null,null,null,null,null,null,null,null,null,null,null,null,{"$f":"IF($AC$2:$AC$1001=\"\",\"\",VLOOKUP($AC$2:$AC$1001,Χρονοδιάγραμμα[],2,FALSE))","v":""}]
[null,null,null,null,null,null,null,null,null,null,null,null,null,null,null,null,null,null,null,null,null,null,null,null,null,null,null,null,null,{"$f":"IF($AC$2:$AC$1001=\"\",\"\",VLOOKUP($AC$2:$AC$1001,Χρονοδιάγραμμα[],2,FALSE))","v":""}]
[null,null,null,null,null,null,null,null,null,null,null,null,null,null,null,null,null,null,null,null,null,null,null,null,null,null,null,null,null,{"$f":"IF($AC$2:$AC$1001=\"\",\"\",VLOOKUP($AC$2:$AC$1001,Χρονοδιάγραμμα[],2,FALSE))","v":""}]
[null,null,null,null,null,null,null,null,null,null,null,null,null,null,null,null,null,null,null,null,null,null,null,null,null,null,null,null,null,{"$f":"IF($AC$2:$AC$1001=\"\",\"\",VLOOKUP($AC$2:$AC$1001,Χρονοδιάγραμμα[],2,FALSE))","v":""}]
[null,null,null,null,null,null,null,null,null,null,null,null,null,null,null,null,null,null,null,null,null,null,null,null,null,null,null,null,null,{"$f":"IF($AC$2:$AC$1001=\"\",\"\",VLOOKUP($AC$2:$AC$1001,Χρονοδιάγραμμα[],2,FALSE))","v":""}]
[null,null,null,null,null,null,null,null,null,null,null,null,null,null,null,null,null,null,null,null,null,null,null,null,null,null,null,null,null,{"$f":"IF($AC$2:$AC$1001=\"\",\"\",VLOOKUP($AC$2:$AC$1001,Χρονοδιάγραμμα[],2,FALSE))","v":""}]
[null,null,null,null,null,null,null,null,null,null,null,null,null,null,null,null,null,null,null,null,null,null,null,null,null,null,null,null,null,{"$f":"IF($AC$2:$AC$1001=\"\",\"\",VLOOKUP($AC$2:$AC$1001,Χρονοδιάγραμμα[],2,FALSE))","v":""}]
[null,null,null,null,null,null,null,null,null,null,null,null,null,null,null,null,null,null,null,null,null,null,null,null,null,null,null,null,null,{"$f":"IF($AC$2:$AC$1001=\"\",\"\",VLOOKUP($AC$2:$AC$1001,Χρονοδιάγραμμα[],2,FALSE))","v":""}]
[null,null,null,null,null,null,null,null,null,null,null,null,null,null,null,null,null,null,null,null,null,null,null,null,null,null,null,null,null,{"$f":"IF($AC$2:$AC$1001=\"\",\"\",VLOOKUP($AC$2:$AC$1001,Χρονοδιάγραμμα[],2,FALSE))","v":""}]
[null,null,null,null,null,null,null,null,null,null,null,null,null,null,null,null,null,null,null,null,null,null,null,null,null,null,null,null,null,{"$f":"IF($AC$2:$AC$1001=\"\",\"\",VLOOKUP($AC$2:$AC$1001,Χρονοδιάγραμμα[],2,FALSE))","v":""}]
[null,null,null,null,null,null,null,null,null,null,null,null,null,null,null,null,null,null,null,null,null,null,null,null,null,null,null,null,null,{"$f":"IF($AC$2:$AC$1001=\"\",\"\",VLOOKUP($AC$2:$AC$1001,Χρονοδιάγραμμα[],2,FALSE))","v":""}]
[null,null,null,null,null,null,null,null,null,null,null,null,null,null,null,null,null,null,null,null,null,null,null,null,null,null,null,null,null,{"$f":"IF($AC$2:$AC$1001=\"\",\"\",VLOOKUP($AC$2:$AC$1001,Χρονοδιάγραμμα[],2,FALSE))","v":""}]
[null,null,null,null,null,null,null,null,null,null,null,null,null,null,null,null,null,null,null,null,null,null,null,null,null,null,null,null,null,{"$f":"IF($AC$2:$AC$1001=\"\",\"\",VLOOKUP($AC$2:$AC$1001,Χρονοδιάγραμμα[],2,FALSE))","v":""}]
[null,null,null,null,null,null,null,null,null,null,null,null,null,null,null,null,null,null,null,null,null,null,null,null,null,null,null,null,null,{"$f":"IF($AC$2:$AC$1001=\"\",\"\",VLOOKUP($AC$2:$AC$1001,Χρονοδιάγραμμα[],2,FALSE))","v":""}]
[null,null,null,null,null,null,null,null,null,null,null,null,null,null,null,null,null,null,null,null,null,null,null,null,null,null,null,null,null,{"$f":"IF($AC$2:$AC$1001=\"\",\"\",VLOOKUP($AC$2:$AC$1001,Χρονοδιάγραμμα[],2,FALSE))","v":""}]
[null,null,null,null,null,null,null,null,null,null,null,null,null,null,null,null,null,null,null,null,null,null,null,null,null,null,null,null,null,{"$f":"IF($AC$2:$AC$1001=\"\",\"\",VLOOKUP($AC$2:$AC$1001,Χρονοδιάγραμμα[],2,FALSE))","v":""}]
[null,null,null,null,null,null,null,null,null,null,null,null,null,null,null,null,null,null,null,null,null,null,null,null,null,null,null,null,null,{"$f":"IF($AC$2:$AC$1001=\"\",\"\",VLOOKUP($AC$2:$AC$1001,Χρονοδιάγραμμα[],2,FALSE))","v":""}]
[null,null,null,null,null,null,null,null,null,null,null,null,null,null,null,null,null,null,null,null,null,null,null,null,null,null,null,null,null,{"$f":"IF($AC$2:$AC$1001=\"\",\"\",VLOOKUP($AC$2:$AC$1001,Χρονοδιάγραμμα[],2,FALSE))","v":""}]
[null,null,null,null,null,null,null,null,null,null,null,null,null,null,null,null,null,null,null,null,null,null,null,null,null,null,null,null,null,{"$f":"IF($AC$2:$AC$1001=\"\",\"\",VLOOKUP($AC$2:$AC$1001,Χρονοδιάγραμμα[],2,FALSE))","v":""}]
[null,null,null,null,null,null,null,null,null,null,null,null,null,null,null,null,null,null,null,null,null,null,null,null,null,null,null,null,null,{"$f":"IF($AC$2:$AC$1001=\"\",\"\",VLOOKUP($AC$2:$AC$1001,Χρονοδιάγραμμα[],2,FALSE))","v":""}]
[null,null,null,null,null,null,null,null,null,null,null,null,null,null,null,null,null,null,null,null,null,null,null,null,null,null,null,null,null,{"$f":"IF($AC$2:$AC$1001=\"\",\"\",VLOOKUP($AC$2:$AC$1001,Χρονοδιάγραμμα[],2,FALSE))","v":""}]
[null,null,null,null,null,null,null,null,null,null,null,null,null,null,null,null,null,null,null,null,null,null,null,null,null,null,null,null,null,{"$f":"IF($AC$2:$AC$1001=\"\",\"\",VLOOKUP($AC$2:$AC$1001,Χρονοδιάγραμμα[],2,FALSE))","v":""}]
[null,null,null,null,null,null,null,null,null,null,null,null,null,null,null,null,null,null,null,null,null,null,null,null,null,null,null,null,null,{"$f":"IF($AC$2:$AC$1001=\"\",\"\",VLOOKUP($AC$2:$AC$1001,Χρονοδιάγραμμα[],2,FALSE))","v":""}]
[null,null,null,null,null,null,null,null,null,null,null,null,null,null,null,null,null,null,null,null,null,null,null,null,null,null,null,null,null,{"$f":"IF($AC$2:$AC$1001=\"\",\"\",VLOOKUP($AC$2:$AC$1001,Χρονοδιάγραμμα[],2,FALSE))","v":""}]
[null,null,null,null,null,null,null,null,null,null,null,null,null,null,null,null,null,null,null,null,null,null,null,null,null,null,null,null,null,{"$f":"IF($AC$2:$AC$1001=\"\",\"\",VLOOKUP($AC$2:$AC$1001,Χρονοδιάγραμμα[],2,FALSE))","v":""}]
[null,null,null,null,null,null,null,null,null,null,null,null,null,null,null,null,null,null,null,null,null,null,null,null,null,null,null,null,null,{"$f":"IF($AC$2:$AC$1001=\"\",\"\",VLOOKUP($AC$2:$AC$1001,Χρονοδιάγραμμα[],2,FALSE))","v":""}]
[null,null,null,null,null,null,null,null,null,null,null,null,null,null,null,null,null,null,null,null,null,null,null,null,null,null,null,null,null,{"$f":"IF($AC$2:$AC$1001=\"\",\"\",VLOOKUP($AC$2:$AC$1001,Χρονοδιάγραμμα[],2,FALSE))","v":""}]
[null,null,null,null,null,null,null,null,null,null,null,null,null,null,null,null,null,null,null,null,null,null,null,null,null,null,null,null,null,{"$f":"IF($AC$2:$AC$1001=\"\",\"\",VLOOKUP($AC$2:$AC$1001,Χρονοδιάγραμμα[],2,FALSE))","v":""}]
[null,null,null,null,null,null,null,null,null,null,null,null,null,null,null,null,null,null,null,null,null,null,null,null,null,null,null,null,null,{"$f":"IF($AC$2:$AC$1001=\"\",\"\",VLOOKUP($AC$2:$AC$1001,Χρονοδιάγραμμα[],2,FALSE))","v":""}]
[null,null,null,null,null,null,null,null,null,null,null,null,null,null,null,null,null,null,null,null,null,null,null,null,null,null,null,null,null,{"$f":"IF($AC$2:$AC$1001=\"\",\"\",VLOOKUP($AC$2:$AC$1001,Χρονοδιάγραμμα[],2,FALSE))","v":""}]
[null,null,null,null,null,null,null,null,null,null,null,null,null,null,null,null,null,null,null,null,null,null,null,null,null,null,null,null,null,{"$f":"IF($AC$2:$AC$1001=\"\",\"\",VLOOKUP($AC$2:$AC$1001,Χρονοδιάγραμμα[],2,FALSE))","v":""}]
[null,null,null,null,null,null,null,null,null,null,null,null,null,null,null,null,null,null,null,null,null,null,null,null,null,null,null,null,null,{"$f":"IF($AC$2:$AC$1001=\"\",\"\",VLOOKUP($AC$2:$AC$1001,Χρονοδιάγραμμα[],2,FALSE))","v":""}]
[null,null,null,null,null,null,null,null,null,null,null,null,null,null,null,null,null,null,null,null,null,null,null,null,null,null,null,null,null,{"$f":"IF($AC$2:$AC$1001=\"\",\"\",VLOOKUP($AC$2:$AC$1001,Χρονοδιάγραμμα[],2,FALSE))","v":""}]
[null,null,null,null,null,null,null,null,null,null,null,null,null,null,null,null,null,null,null,null,null,null,null,null,null,null,null,null,null,{"$f":"IF($AC$2:$AC$1001=\"\",\"\",VLOOKUP($AC$2:$AC$1001,Χρονοδιάγραμμα[],2,FALSE))","v":""}]
[null,null,null,null,null,null,null,null,null,null,null,null,null,null,null,null,null,null,null,null,null,null,null,null,null,null,null,null,null,{"$f":"IF($AC$2:$AC$1001=\"\",\"\",VLOOKUP($AC$2:$AC$1001,Χρονοδιάγραμμα[],2,FALSE))","v":""}]
[null,null,null,null,null,null,null,null,null,null,null,null,null,null,null,null,null,null,null,null,null,null,null,null,null,null,null,null,null,{"$f":"IF($AC$2:$AC$1001=\"\",\"\",VLOOKUP($AC$2:$AC$1001,Χρονοδιάγραμμα[],2,FALSE))","v":""}]
[null,null,null,null,null,null,null,null,null,null,null,null,null,null,null,null,null,null,null,null,null,null,null,null,null,null,null,null,null,{"$f":"IF($AC$2:$AC$1001=\"\",\"\",VLOOKUP($AC$2:$AC$1001,Χρονοδιάγραμμα[],2,FALSE))","v":""}]
[null,null,null,null,null,null,null,null,null,null,null,null,null,null,null,null,null,null,null,null,null,null,null,null,null,null,null,null,null,{"$f":"IF($AC$2:$AC$1001=\"\",\"\",VLOOKUP($AC$2:$AC$1001,Χρονοδιάγραμμα[],2,FALSE))","v":""}]
[null,null,null,null,null,null,null,null,null,null,null,null,null,null,null,null,null,null,null,null,null,null,null,null,null,null,null,null,null,{"$f":"IF($AC$2:$AC$1001=\"\",\"\",VLOOKUP($AC$2:$AC$1001,Χρονοδιάγραμμα[],2,FALSE))","v":""}]
[null,null,null,null,null,null,null,null,null,null,null,null,null,null,null,null,null,null,null,null,null,null,null,null,null,null,null,null,null,{"$f":"IF($AC$2:$AC$1001=\"\",\"\",VLOOKUP($AC$2:$AC$1001,Χρονοδιάγραμμα[],2,FALSE))","v":""}]
[null,null,null,null,null,null,null,null,null,null,null,null,null,null,null,null,null,null,null,null,null,null,null,null,null,null,null,null,null,{"$f":"IF($AC$2:$AC$1001=\"\",\"\",VLOOKUP($AC$2:$AC$1001,Χρονοδιάγραμμα[],2,FALSE))","v":""}]
[null,null,null,null,null,null,null,null,null,null,null,null,null,null,null,null,null,null,null,null,null,null,null,null,null,null,null,null,null,{"$f":"IF($AC$2:$AC$1001=\"\",\"\",VLOOKUP($AC$2:$AC$1001,Χρονοδιάγραμμα[],2,FALSE))","v":""}]
[null,null,null,null,null,null,null,null,null,null,null,null,null,null,null,null,null,null,null,null,null,null,null,null,null,null,null,null,null,{"$f":"IF($AC$2:$AC$1001=\"\",\"\",VLOOKUP($AC$2:$AC$1001,Χρονοδιάγραμμα[],2,FALSE))","v":""}]
[null,null,null,null,null,null,null,null,null,null,null,null,null,null,null,null,null,null,null,null,null,null,null,null,null,null,null,null,null,{"$f":"IF($AC$2:$AC$1001=\"\",\"\",VLOOKUP($AC$2:$AC$1001,Χρονοδιάγραμμα[],2,FALSE))","v":""}]
[null,null,null,null,null,null,null,null,null,null,null,null,null,null,null,null,null,null,null,null,null,null,null,null,null,null,null,null,null,{"$f":"IF($AC$2:$AC$1001=\"\",\"\",VLOOKUP($AC$2:$AC$1001,Χρονοδιάγραμμα[],2,FALSE))","v":""}]
[null,null,null,null,null,null,null,null,null,null,null,null,null,null,null,null,null,null,null,null,null,null,null,null,null,null,null,null,null,{"$f":"IF($AC$2:$AC$1001=\"\",\"\",VLOOKUP($AC$2:$AC$1001,Χρονοδιάγραμμα[],2,FALSE))","v":""}]
[null,null,null,null,null,null,null,null,null,null,null,null,null,null,null,null,null,null,null,null,null,null,null,null,null,null,null,null,null,{"$f":"IF($AC$2:$AC$1001=\"\",\"\",VLOOKUP($AC$2:$AC$1001,Χρονοδιάγραμμα[],2,FALSE))","v":""}]
[null,null,null,null,null,null,null,null,null,null,null,null,null,null,null,null,null,null,null,null,null,null,null,null,null,null,null,null,null,{"$f":"IF($AC$2:$AC$1001=\"\",\"\",VLOOKUP($AC$2:$AC$1001,Χρονοδιάγραμμα[],2,FALSE))","v":""}]
[null,null,null,null,null,null,null,null,null,null,null,null,null,null,null,null,null,null,null,null,null,null,null,null,null,null,null,null,null,{"$f":"IF($AC$2:$AC$1001=\"\",\"\",VLOOKUP($AC$2:$AC$1001,Χρονοδιάγραμμα[],2,FALSE))","v":""}]
[null,null,null,null,null,null,null,null,null,null,null,null,null,null,null,null,null,null,null,null,null,null,null,null,null,null,null,null,null,{"$f":"IF($AC$2:$AC$1001=\"\",\"\",VLOOKUP($AC$2:$AC$1001,Χρονοδιάγραμμα[],2,FALSE))","v":""}]
[null,null,null,null,null,null,null,null,null,null,null,null,null,null,null,null,null,null,null,null,null,null,null,null,null,null,null,null,null,{"$f":"IF($AC$2:$AC$1001=\"\",\"\",VLOOKUP($AC$2:$AC$1001,Χρονοδιάγραμμα[],2,FALSE))","v":""}]
[null,null,null,null,null,null,null,null,null,null,null,null,null,null,null,null,null,null,null,null,null,null,null,null,null,null,null,null,null,{"$f":"IF($AC$2:$AC$1001=\"\",\"\",VLOOKUP($AC$2:$AC$1001,Χρονοδιάγραμμα[],2,FALSE))","v":""}]
[null,null,null,null,null,null,null,null,null,null,null,null,null,null,null,null,null,null,null,null,null,null,null,null,null,null,null,null,null,{"$f":"IF($AC$2:$AC$1001=\"\",\"\",VLOOKUP($AC$2:$AC$1001,Χρονοδιάγραμμα[],2,FALSE))","v":""}]
[null,null,null,null,null,null,null,null,null,null,null,null,null,null,null,null,null,null,null,null,null,null,null,null,null,null,null,null,null,{"$f":"IF($AC$2:$AC$1001=\"\",\"\",VLOOKUP($AC$2:$AC$1001,Χρονοδιάγραμμα[],2,FALSE))","v":""}]
[null,null,null,null,null,null,null,null,null,null,null,null,null,null,null,null,null,null,null,null,null,null,null,null,null,null,null,null,null,{"$f":"IF($AC$2:$AC$1001=\"\",\"\",VLOOKUP($AC$2:$AC$1001,Χρονοδιάγραμμα[],2,FALSE))","v":""}]
[null,null,null,null,null,null,null,null,null,null,null,null,null,null,null,null,null,null,null,null,null,null,null,null,null,null,null,null,null,{"$f":"IF($AC$2:$AC$1001=\"\",\"\",VLOOKUP($AC$2:$AC$1001,Χρονοδιάγραμμα[],2,FALSE))","v":""}]
[null,null,null,null,null,null,null,null,null,null,null,null,null,null,null,null,null,null,null,null,null,null,null,null,null,null,null,null,null,{"$f":"IF($AC$2:$AC$1001=\"\",\"\",VLOOKUP($AC$2:$AC$1001,Χρονοδιάγραμμα[],2,FALSE))","v":""}]
[null,null,null,null,null,null,null,null,null,null,null,null,null,null,null,null,null,null,null,null,null,null,null,null,null,null,null,null,null,{"$f":"IF($AC$2:$AC$1001=\"\",\"\",VLOOKUP($AC$2:$AC$1001,Χρονοδιάγραμμα[],2,FALSE))","v":""}]
[null,null,null,null,null,null,null,null,null,null,null,null,null,null,null,null,null,null,null,null,null,null,null,null,null,null,null,null,null,{"$f":"IF($AC$2:$AC$1001=\"\",\"\",VLOOKUP($AC$2:$AC$1001,Χρονοδιάγραμμα[],2,FALSE))","v":""}]
[null,null,null,null,null,null,null,null,null,null,null,null,null,null,null,null,null,null,null,null,null,null,null,null,null,null,null,null,null,{"$f":"IF($AC$2:$AC$1001=\"\",\"\",VLOOKUP($AC$2:$AC$1001,Χρονοδιάγραμμα[],2,FALSE))","v":""}]
[null,null,null,null,null,null,null,null,null,null,null,null,null,null,null,null,null,null,null,null,null,null,null,null,null,null,null,null,null,{"$f":"IF($AC$2:$AC$1001=\"\",\"\",VLOOKUP($AC$2:$AC$1001,Χρονοδιάγραμμα[],2,FALSE))","v":""}]
[null,null,null,null,null,null,null,null,null,null,null,null,null,null,null,null,null,null,null,null,null,null,null,null,null,null,null,null,null,{"$f":"IF($AC$2:$AC$1001=\"\",\"\",VLOOKUP($AC$2:$AC$1001,Χρονοδιάγραμμα[],2,FALSE))","v":""}]
[null,null,null,null,null,null,null,null,null,null,null,null,null,null,null,null,null,null,null,null,null,null,null,null,null,null,null,null,null,{"$f":"IF($AC$2:$AC$1001=\"\",\"\",VLOOKUP($AC$2:$AC$1001,Χρονοδιάγραμμα[],2,FALSE))","v":""}]
[null,null,null,null,null,null,null,null,null,null,null,null,null,null,null,null,null,null,null,null,null,null,null,null,null,null,null,null,null,{"$f":"IF($AC$2:$AC$1001=\"\",\"\",VLOOKUP($AC$2:$AC$1001,Χρονοδιάγραμμα[],2,FALSE))","v":""}]
[null,null,null,null,null,null,null,null,null,null,null,null,null,null,null,null,null,null,null,null,null,null,null,null,null,null,null,null,null,{"$f":"IF($AC$2:$AC$1001=\"\",\"\",VLOOKUP($AC$2:$AC$1001,Χρονοδιάγραμμα[],2,FALSE))","v":""}]
[null,null,null,null,null,null,null,null,null,null,null,null,null,null,null,null,null,null,null,null,null,null,null,null,null,null,null,null,null,{"$f":"IF($AC$2:$AC$1001=\"\",\"\",VLOOKUP($AC$2:$AC$1001,Χρονοδιάγραμμα[],2,FALSE))","v":""}]
[null,null,null,null,null,null,null,null,null,null,null,null,null,null,null,null,null,null,null,null,null,null,null,null,null,null,null,null,null,{"$f":"IF($AC$2:$AC$1001=\"\",\"\",VLOOKUP($AC$2:$AC$1001,Χρονοδιάγραμμα[],2,FALSE))","v":""}]
[null,null,null,null,null,null,null,null,null,null,null,null,null,null,null,null,null,null,null,null,null,null,null,null,null,null,null,null,null,{"$f":"IF($AC$2:$AC$1001=\"\",\"\",VLOOKUP($AC$2:$AC$1001,Χρονοδιάγραμμα[],2,FALSE))","v":""}]
[null,null,null,null,null,null,null,null,null,null,null,null,null,null,null,null,null,null,null,null,null,null,null,null,null,null,null,null,null,{"$f":"IF($AC$2:$AC$1001=\"\",\"\",VLOOKUP($AC$2:$AC$1001,Χρονοδιάγραμμα[],2,FALSE))","v":""}]
[null,null,null,null,null,null,null,null,null,null,null,null,null,null,null,null,null,null,null,null,null,null,null,null,null,null,null,null,null,{"$f":"IF($AC$2:$AC$1001=\"\",\"\",VLOOKUP($AC$2:$AC$1001,Χρονοδιάγραμμα[],2,FALSE))","v":""}]
[null,null,null,null,null,null,null,null,null,null,null,null,null,null,null,null,null,null,null,null,null,null,null,null,null,null,null,null,null,{"$f":"IF($AC$2:$AC$1001=\"\",\"\",VLOOKUP($AC$2:$AC$1001,Χρονοδιάγραμμα[],2,FALSE))","v":""}]
[null,null,null,null,null,null,null,null,null,null,null,null,null,null,null,null,null,null,null,null,null,null,null,null,null,null,null,null,null,{"$f":"IF($AC$2:$AC$1001=\"\",\"\",VLOOKUP($AC$2:$AC$1001,Χρονοδιάγραμμα[],2,FALSE))","v":""}]
[null,null,null,null,null,null,null,null,null,null,null,null,null,null,null,null,null,null,null,null,null,null,null,null,null,null,null,null,null,{"$f":"IF($AC$2:$AC$1001=\"\",\"\",VLOOKUP($AC$2:$AC$1001,Χρονοδιάγραμμα[],2,FALSE))","v":""}]
[null,null,null,null,null,null,null,null,null,null,null,null,null,null,null,null,null,null,null,null,null,null,null,null,null,null,null,null,null,{"$f":"IF($AC$2:$AC$1001=\"\",\"\",VLOOKUP($AC$2:$AC$1001,Χρονοδιάγραμμα[],2,FALSE))","v":""}]
[null,null,null,null,null,null,null,null,null,null,null,null,null,null,null,null,null,null,null,null,null,null,null,null,null,null,null,null,null,{"$f":"IF($AC$2:$AC$1001=\"\",\"\",VLOOKUP($AC$2:$AC$1001,Χρονοδιάγραμμα[],2,FALSE))","v":""}]
[null,null,null,null,null,null,null,null,null,null,null,null,null,null,null,null,null,null,null,null,null,null,null,null,null,null,null,null,null,{"$f":"IF($AC$2:$AC$1001=\"\",\"\",VLOOKUP($AC$2:$AC$1001,Χρονοδιάγραμμα[],2,FALSE))","v":""}]
[null,null,null,null,null,null,null,null,null,null,null,null,null,null,null,null,null,null,null,null,null,null,null,null,null,null,null,null,null,{"$f":"IF($AC$2:$AC$1001=\"\",\"\",VLOOKUP($AC$2:$AC$1001,Χρονοδιάγραμμα[],2,FALSE))","v":""}]
[null,null,null,null,null,null,null,null,null,null,null,null,null,null,null,null,null,null,null,null,null,null,null,null,null,null,null,null,null,{"$f":"IF($AC$2:$AC$1001=\"\",\"\",VLOOKUP($AC$2:$AC$1001,Χρονοδιάγραμμα[],2,FALSE))","v":""}]
[null,null,null,null,null,null,null,null,null,null,null,null,null,null,null,null,null,null,null,null,null,null,null,null,null,null,null,null,null,{"$f":"IF($AC$2:$AC$1001=\"\",\"\",VLOOKUP($AC$2:$AC$1001,Χρονοδιάγραμμα[],2,FALSE))","v":""}]
[null,null,null,null,null,null,null,null,null,null,null,null,null,null,null,null,null,null,null,null,null,null,null,null,null,null,null,null,null,{"$f":"IF($AC$2:$AC$1001=\"\",\"\",VLOOKUP($AC$2:$AC$1001,Χρονοδιάγραμμα[],2,FALSE))","v":""}]
[null,null,null,null,null,null,null,null,null,null,null,null,null,null,null,null,null,null,null,null,null,null,null,null,null,null,null,null,null,{"$f":"IF($AC$2:$AC$1001=\"\",\"\",VLOOKUP($AC$2:$AC$1001,Χρονοδιάγραμμα[],2,FALSE))","v":""}]
[null,null,null,null,null,null,null,null,null,null,null,null,null,null,null,null,null,null,null,null,null,null,null,null,null,null,null,null,null,{"$f":"IF($AC$2:$AC$1001=\"\",\"\",VLOOKUP($AC$2:$AC$1001,Χρονοδιάγραμμα[],2,FALSE))","v":""}]
[null,null,null,null,null,null,null,null,null,null,null,null,null,null,null,null,null,null,null,null,null,null,null,null,null,null,null,null,null,{"$f":"IF($AC$2:$AC$1001=\"\",\"\",VLOOKUP($AC$2:$AC$1001,Χρονοδιάγραμμα[],2,FALSE))","v":""}]
[null,null,null,null,null,null,null,null,null,null,null,null,null,null,null,null,null,null,null,null,null,null,null,null,null,null,null,null,null,{"$f":"IF($AC$2:$AC$1001=\"\",\"\",VLOOKUP($AC$2:$AC$1001,Χρονοδιάγραμμα[],2,FALSE))","v":""}]
[null,null,null,null,null,null,null,null,null,null,null,null,null,null,null,null,null,null,null,null,null,null,null,null,null,null,null,null,null,{"$f":"IF($AC$2:$AC$1001=\"\",\"\",VLOOKUP($AC$2:$AC$1001,Χρονοδιάγραμμα[],2,FALSE))","v":""}]
[null,null,null,null,null,null,null,null,null,null,null,null,null,null,null,null,null,null,null,null,null,null,null,null,null,null,null,null,null,{"$f":"IF($AC$2:$AC$1001=\"\",\"\",VLOOKUP($AC$2:$AC$1001,Χρονοδιάγραμμα[],2,FALSE))","v":""}]
[null,null,null,null,null,null,null,null,null,null,null,null,null,null,null,null,null,null,null,null,null,null,null,null,null,null,null,null,null,{"$f":"IF($AC$2:$AC$1001=\"\",\"\",VLOOKUP($AC$2:$AC$1001,Χρονοδιάγραμμα[],2,FALSE))","v":""}]
[null,null,null,null,null,null,null,null,null,null,null,null,null,null,null,null,null,null,null,null,null,null,null,null,null,null,null,null,null,{"$f":"IF($AC$2:$AC$1001=\"\",\"\",VLOOKUP($AC$2:$AC$1001,Χρονοδιάγραμμα[],2,FALSE))","v":""}]
[null,null,null,null,null,null,null,null,null,null,null,null,null,null,null,null,null,null,null,null,null,null,null,null,null,null,null,null,null,{"$f":"IF($AC$2:$AC$1001=\"\",\"\",VLOOKUP($AC$2:$AC$1001,Χρονοδιάγραμμα[],2,FALSE))","v":""}]
[null,null,null,null,null,null,null,null,null,null,null,null,null,null,null,null,null,null,null,null,null,null,null,null,null,null,null,null,null,{"$f":"IF($AC$2:$AC$1001=\"\",\"\",VLOOKUP($AC$2:$AC$1001,Χρονοδιάγραμμα[],2,FALSE))","v":""}]
[null,null,null,null,null,null,null,null,null,null,null,null,null,null,null,null,null,null,null,null,null,null,null,null,null,null,null,null,null,{"$f":"IF($AC$2:$AC$1001=\"\",\"\",VLOOKUP($AC$2:$AC$1001,Χρονοδιάγραμμα[],2,FALSE))","v":""}]
[null,null,null,null,null,null,null,null,null,null,null,null,null,null,null,null,null,null,null,null,null,null,null,null,null,null,null,null,null,{"$f":"IF($AC$2:$AC$1001=\"\",\"\",VLOOKUP($AC$2:$AC$1001,Χρονοδιάγραμμα[],2,FALSE))","v":""}]
[null,null,null,null,null,null,null,null,null,null,null,null,null,null,null,null,null,null,null,null,null,null,null,null,null,null,null,null,null,{"$f":"IF($AC$2:$AC$1001=\"\",\"\",VLOOKUP($AC$2:$AC$1001,Χρονοδιάγραμμα[],2,FALSE))","v":""}]
[null,null,null,null,null,null,null,null,null,null,null,null,null,null,null,null,null,null,null,null,null,null,null,null,null,null,null,null,null,{"$f":"IF($AC$2:$AC$1001=\"\",\"\",VLOOKUP($AC$2:$AC$1001,Χρονοδιάγραμμα[],2,FALSE))","v":""}]
[null,null,null,null,null,null,null,null,null,null,null,null,null,null,null,null,null,null,null,null,null,null,null,null,null,null,null,null,null,{"$f":"IF($AC$2:$AC$1001=\"\",\"\",VLOOKUP($AC$2:$AC$1001,Χρονοδιάγραμμα[],2,FALSE))","v":""}]
[null,null,null,null,null,null,null,null,null,null,null,null,null,null,null,null,null,null,null,null,null,null,null,null,null,null,null,null,null,{"$f":"IF($AC$2:$AC$1001=\"\",\"\",VLOOKUP($AC$2:$AC$1001,Χρονοδιάγραμμα[],2,FALSE))","v":""}]
[null,null,null,null,null,null,null,null,null,null,null,null,null,null,null,null,null,null,null,null,null,null,null,null,null,null,null,null,null,{"$f":"IF($AC$2:$AC$1001=\"\",\"\",VLOOKUP($AC$2:$AC$1001,Χρονοδιάγραμμα[],2,FALSE))","v":""}]
[null,null,null,null,null,null,null,null,null,null,null,null,null,null,null,null,null,null,null,null,null,null,null,null,null,null,null,null,null,{"$f":"IF($AC$2:$AC$1001=\"\",\"\",VLOOKUP($AC$2:$AC$1001,Χρονοδιάγραμμα[],2,FALSE))","v":""}]
[null,null,null,null,null,null,null,null,null,null,null,null,null,null,null,null,null,null,null,null,null,null,null,null,null,null,null,null,null,{"$f":"IF($AC$2:$AC$1001=\"\",\"\",VLOOKUP($AC$2:$AC$1001,Χρονοδιάγραμμα[],2,FALSE))","v":""}]
[null,null,null,null,null,null,null,null,null,null,null,null,null,null,null,null,null,null,null,null,null,null,null,null,null,null,null,null,null,{"$f":"IF($AC$2:$AC$1001=\"\",\"\",VLOOKUP($AC$2:$AC$1001,Χρονοδιάγραμμα[],2,FALSE))","v":""}]
[null,null,null,null,null,null,null,null,null,null,null,null,null,null,null,null,null,null,null,null,null,null,null,null,null,null,null,null,null,{"$f":"IF($AC$2:$AC$1001=\"\",\"\",VLOOKUP($AC$2:$AC$1001,Χρονοδιάγραμμα[],2,FALSE))","v":""}]
[null,null,null,null,null,null,null,null,null,null,null,null,null,null,null,null,null,null,null,null,null,null,null,null,null,null,null,null,null,{"$f":"IF($AC$2:$AC$1001=\"\",\"\",VLOOKUP($AC$2:$AC$1001,Χρονοδιάγραμμα[],2,FALSE))","v":""}]
[null,null,null,null,null,null,null,null,null,null,null,null,null,null,null,null,null,null,null,null,null,null,null,null,null,null,null,null,null,{"$f":"IF($AC$2:$AC$1001=\"\",\"\",VLOOKUP($AC$2:$AC$1001,Χρονοδιάγραμμα[],2,FALSE))","v":""}]
[null,null,null,null,null,null,null,null,null,null,null,null,null,null,null,null,null,null,null,null,null,null,null,null,null,null,null,null,null,{"$f":"IF($AC$2:$AC$1001=\"\",\"\",VLOOKUP($AC$2:$AC$1001,Χρονοδιάγραμμα[],2,FALSE))","v":""}]
[null,null,null,null,null,null,null,null,null,null,null,null,null,null,null,null,null,null,null,null,null,null,null,null,null,null,null,null,null,{"$f":"IF($AC$2:$AC$1001=\"\",\"\",VLOOKUP($AC$2:$AC$1001,Χρονοδιάγραμμα[],2,FALSE))","v":""}]
[null,null,null,null,null,null,null,null,null,null,null,null,null,null,null,null,null,null,null,null,null,null,null,null,null,null,null,null,null,{"$f":"IF($AC$2:$AC$1001=\"\",\"\",VLOOKUP($AC$2:$AC$1001,Χρονοδιάγραμμα[],2,FALSE))","v":""}]
[null,null,null,null,null,null,null,null,null,null,null,null,null,null,null,null,null,null,null,null,null,null,null,null,null,null,null,null,null,{"$f":"IF($AC$2:$AC$1001=\"\",\"\",VLOOKUP($AC$2:$AC$1001,Χρονοδιάγραμμα[],2,FALSE))","v":""}]
[null,null,null,null,null,null,null,null,null,null,null,null,null,null,null,null,null,null,null,null,null,null,null,null,null,null,null,null,null,{"$f":"IF($AC$2:$AC$1001=\"\",\"\",VLOOKUP($AC$2:$AC$1001,Χρονοδιάγραμμα[],2,FALSE))","v":""}]
[null,null,null,null,null,null,null,null,null,null,null,null,null,null,null,null,null,null,null,null,null,null,null,null,null,null,null,null,null,{"$f":"IF($AC$2:$AC$1001=\"\",\"\",VLOOKUP($AC$2:$AC$1001,Χρονοδιάγραμμα[],2,FALSE))","v":""}]
[null,null,null,null,null,null,null,null,null,null,null,null,null,null,null,null,null,null,null,null,null,null,null,null,null,null,null,null,null,{"$f":"IF($AC$2:$AC$1001=\"\",\"\",VLOOKUP($AC$2:$AC$1001,Χρονοδιάγραμμα[],2,FALSE))","v":""}]
[null,null,null,null,null,null,null,null,null,null,null,null,null,null,null,null,null,null,null,null,null,null,null,null,null,null,null,null,null,{"$f":"IF($AC$2:$AC$1001=\"\",\"\",VLOOKUP($AC$2:$AC$1001,Χρονοδιάγραμμα[],2,FALSE))","v":""}]
[null,null,null,null,null,null,null,null,null,null,null,null,null,null,null,null,null,null,null,null,null,null,null,null,null,null,null,null,null,{"$f":"IF($AC$2:$AC$1001=\"\",\"\",VLOOKUP($AC$2:$AC$1001,Χρονοδιάγραμμα[],2,FALSE))","v":""}]
[null,null,null,null,null,null,null,null,null,null,null,null,null,null,null,null,null,null,null,null,null,null,null,null,null,null,null,null,null,{"$f":"IF($AC$2:$AC$1001=\"\",\"\",VLOOKUP($AC$2:$AC$1001,Χρονοδιάγραμμα[],2,FALSE))","v":""}]
[null,null,null,null,null,null,null,null,null,null,null,null,null,null,null,null,null,null,null,null,null,null,null,null,null,null,null,null,null,{"$f":"IF($AC$2:$AC$1001=\"\",\"\",VLOOKUP($AC$2:$AC$1001,Χρονοδιάγραμμα[],2,FALSE))","v":""}]
[null,null,null,null,null,null,null,null,null,null,null,null,null,null,null,null,null,null,null,null,null,null,null,null,null,null,null,null,null,{"$f":"IF($AC$2:$AC$1001=\"\",\"\",VLOOKUP($AC$2:$AC$1001,Χρονοδιάγραμμα[],2,FALSE))","v":""}]
[null,null,null,null,null,null,null,null,null,null,null,null,null,null,null,null,null,null,null,null,null,null,null,null,null,null,null,null,null,{"$f":"IF($AC$2:$AC$1001=\"\",\"\",VLOOKUP($AC$2:$AC$1001,Χρονοδιάγραμμα[],2,FALSE))","v":""}]
[null,null,null,null,null,null,null,null,null,null,null,null,null,null,null,null,null,null,null,null,null,null,null,null,null,null,null,null,null,{"$f":"IF($AC$2:$AC$1001=\"\",\"\",VLOOKUP($AC$2:$AC$1001,Χρονοδιάγραμμα[],2,FALSE))","v":""}]
[null,null,null,null,null,null,null,null,null,null,null,null,null,null,null,null,null,null,null,null,null,null,null,null,null,null,null,null,null,{"$f":"IF($AC$2:$AC$1001=\"\",\"\",VLOOKUP($AC$2:$AC$1001,Χρονοδιάγραμμα[],2,FALSE))","v":""}]
[null,null,null,null,null,null,null,null,null,null,null,null,null,null,null,null,null,null,null,null,null,null,null,null,null,null,null,null,null,{"$f":"IF($AC$2:$AC$1001=\"\",\"\",VLOOKUP($AC$2:$AC$1001,Χρονοδιάγραμμα[],2,FALSE))","v":""}]
[null,null,null,null,null,null,null,null,null,null,null,null,null,null,null,null,null,null,null,null,null,null,null,null,null,null,null,null,null,{"$f":"IF($AC$2:$AC$1001=\"\",\"\",VLOOKUP($AC$2:$AC$1001,Χρονοδιάγραμμα[],2,FALSE))","v":""}]
[null,null,null,null,null,null,null,null,null,null,null,null,null,null,null,null,null,null,null,null,null,null,null,null,null,null,null,null,null,{"$f":"IF($AC$2:$AC$1001=\"\",\"\",VLOOKUP($AC$2:$AC$1001,Χρονοδιάγραμμα[],2,FALSE))","v":""}]
[null,null,null,null,null,null,null,null,null,null,null,null,null,null,null,null,null,null,null,null,null,null,null,null,null,null,null,null,null,{"$f":"IF($AC$2:$AC$1001=\"\",\"\",VLOOKUP($AC$2:$AC$1001,Χρονοδιάγραμμα[],2,FALSE))","v":""}]
[null,null,null,null,null,null,null,null,null,null,null,null,null,null,null,null,null,null,null,null,null,null,null,null,null,null,null,null,null,{"$f":"IF($AC$2:$AC$1001=\"\",\"\",VLOOKUP($AC$2:$AC$1001,Χρονοδιάγραμμα[],2,FALSE))","v":""}]
[null,null,null,null,null,null,null,null,null,null,null,null,null,null,null,null,null,null,null,null,null,null,null,null,null,null,null,null,null,{"$f":"IF($AC$2:$AC$1001=\"\",\"\",VLOOKUP($AC$2:$AC$1001,Χρονοδιάγραμμα[],2,FALSE))","v":""}]
[null,null,null,null,null,null,null,null,null,null,null,null,null,null,null,null,null,null,null,null,null,null,null,null,null,null,null,null,null,{"$f":"IF($AC$2:$AC$1001=\"\",\"\",VLOOKUP($AC$2:$AC$1001,Χρονοδιάγραμμα[],2,FALSE))","v":""}]
[null,null,null,null,null,null,null,null,null,null,null,null,null,null,null,null,null,null,null,null,null,null,null,null,null,null,null,null,null,{"$f":"IF($AC$2:$AC$1001=\"\",\"\",VLOOKUP($AC$2:$AC$1001,Χρονοδιάγραμμα[],2,FALSE))","v":""}]
[null,null,null,null,null,null,null,null,null,null,null,null,null,null,null,null,null,null,null,null,null,null,null,null,null,null,null,null,null,{"$f":"IF($AC$2:$AC$1001=\"\",\"\",VLOOKUP($AC$2:$AC$1001,Χρονοδιάγραμμα[],2,FALSE))","v":""}]
[null,null,null,null,null,null,null,null,null,null,null,null,null,null,null,null,null,null,null,null,null,null,null,null,null,null,null,null,null,{"$f":"IF($AC$2:$AC$1001=\"\",\"\",VLOOKUP($AC$2:$AC$1001,Χρονοδιάγραμμα[],2,FALSE))","v":""}]
[null,null,null,null,null,null,null,null,null,null,null,null,null,null,null,null,null,null,null,null,null,null,null,null,null,null,null,null,null,{"$f":"IF($AC$2:$AC$1001=\"\",\"\",VLOOKUP($AC$2:$AC$1001,Χρονοδιάγραμμα[],2,FALSE))","v":""}]
[null,null,null,null,null,null,null,null,null,null,null,null,null,null,null,null,null,null,null,null,null,null,null,null,null,null,null,null,null,{"$f":"IF($AC$2:$AC$1001=\"\",\"\",VLOOKUP($AC$2:$AC$1001,Χρονοδιάγραμμα[],2,FALSE))","v":""}]
[null,null,null,null,null,null,null,null,null,null,null,null,null,null,null,null,null,null,null,null,null,null,null,null,null,null,null,null,null,{"$f":"IF($AC$2:$AC$1001=\"\",\"\",VLOOKUP($AC$2:$AC$1001,Χρονοδιάγραμμα[],2,FALSE))","v":""}]
[null,null,null,null,null,null,null,null,null,null,null,null,null,null,null,null,null,null,null,null,null,null,null,null,null,null,null,null,null,{"$f":"IF($AC$2:$AC$1001=\"\",\"\",VLOOKUP($AC$2:$AC$1001,Χρονοδιάγραμμα[],2,FALSE))","v":""}]
[null,null,null,null,null,null,null,null,null,null,null,null,null,null,null,null,null,null,null,null,null,null,null,null,null,null,null,null,null,{"$f":"IF($AC$2:$AC$1001=\"\",\"\",VLOOKUP($AC$2:$AC$1001,Χρονοδιάγραμμα[],2,FALSE))","v":""}]
[null,null,null,null,null,null,null,null,null,null,null,null,null,null,null,null,null,null,null,null,null,null,null,null,null,null,null,null,null,{"$f":"IF($AC$2:$AC$1001=\"\",\"\",VLOOKUP($AC$2:$AC$1001,Χρονοδιάγραμμα[],2,FALSE))","v":""}]
[null,null,null,null,null,null,null,null,null,null,null,null,null,null,null,null,null,null,null,null,null,null,null,null,null,null,null,null,null,{"$f":"IF($AC$2:$AC$1001=\"\",\"\",VLOOKUP($AC$2:$AC$1001,Χρονοδιάγραμμα[],2,FALSE))","v":""}]
[null,null,null,null,null,null,null,null,null,null,null,null,null,null,null,null,null,null,null,null,null,null,null,null,null,null,null,null,null,{"$f":"IF($AC$2:$AC$1001=\"\",\"\",VLOOKUP($AC$2:$AC$1001,Χρονοδιάγραμμα[],2,FALSE))","v":""}]
[null,null,null,null,null,null,null,null,null,null,null,null,null,null,null,null,null,null,null,null,null,null,null,null,null,null,null,null,null,{"$f":"IF($AC$2:$AC$1001=\"\",\"\",VLOOKUP($AC$2:$AC$1001,Χρονοδιάγραμμα[],2,FALSE))","v":""}]
[null,null,null,null,null,null,null,null,null,null,null,null,null,null,null,null,null,null,null,null,null,null,null,null,null,null,null,null,null,{"$f":"IF($AC$2:$AC$1001=\"\",\"\",VLOOKUP($AC$2:$AC$1001,Χρονοδιάγραμμα[],2,FALSE))","v":""}]
[null,null,null,null,null,null,null,null,null,null,null,null,null,null,null,null,null,null,null,null,null,null,null,null,null,null,null,null,null,{"$f":"IF($AC$2:$AC$1001=\"\",\"\",VLOOKUP($AC$2:$AC$1001,Χρονοδιάγραμμα[],2,FALSE))","v":""}]
[null,null,null,null,null,null,null,null,null,null,null,null,null,null,null,null,null,null,null,null,null,null,null,null,null,null,null,null,null,{"$f":"IF($AC$2:$AC$1001=\"\",\"\",VLOOKUP($AC$2:$AC$1001,Χρονοδιάγραμμα[],2,FALSE))","v":""}]
[null,null,null,null,null,null,null,null,null,null,null,null,null,null,null,null,null,null,null,null,null,null,null,null,null,null,null,null,null,{"$f":"IF($AC$2:$AC$1001=\"\",\"\",VLOOKUP($AC$2:$AC$1001,Χρονοδιάγραμμα[],2,FALSE))","v":""}]
[null,null,null,null,null,null,null,null,null,null,null,null,null,null,null,null,null,null,null,null,null,null,null,null,null,null,null,null,null,{"$f":"IF($AC$2:$AC$1001=\"\",\"\",VLOOKUP($AC$2:$AC$1001,Χρονοδιάγραμμα[],2,FALSE))","v":""}]
[null,null,null,null,null,null,null,null,null,null,null,null,null,null,null,null,null,null,null,null,null,null,null,null,null,null,null,null,null,{"$f":"IF($AC$2:$AC$1001=\"\",\"\",VLOOKUP($AC$2:$AC$1001,Χρονοδιάγραμμα[],2,FALSE))","v":""}]
[null,null,null,null,null,null,null,null,null,null,null,null,null,null,null,null,null,null,null,null,null,null,null,null,null,null,null,null,null,{"$f":"IF($AC$2:$AC$1001=\"\",\"\",VLOOKUP($AC$2:$AC$1001,Χρονοδιάγραμμα[],2,FALSE))","v":""}]
[null,null,null,null,null,null,null,null,null,null,null,null,null,null,null,null,null,null,null,null,null,null,null,null,null,null,null,null,null,{"$f":"IF($AC$2:$AC$1001=\"\",\"\",VLOOKUP($AC$2:$AC$1001,Χρονοδιάγραμμα[],2,FALSE))","v":""}]
[null,null,null,null,null,null,null,null,null,null,null,null,null,null,null,null,null,null,null,null,null,null,null,null,null,null,null,null,null,{"$f":"IF($AC$2:$AC$1001=\"\",\"\",VLOOKUP($AC$2:$AC$1001,Χρονοδιάγραμμα[],2,FALSE))","v":""}]
[null,null,null,null,null,null,null,null,null,null,null,null,null,null,null,null,null,null,null,null,null,null,null,null,null,null,null,null,null,{"$f":"IF($AC$2:$AC$1001=\"\",\"\",VLOOKUP($AC$2:$AC$1001,Χρονοδιάγραμμα[],2,FALSE))","v":""}]
[null,null,null,null,null,null,null,null,null,null,null,null,null,null,null,null,null,null,null,null,null,null,null,null,null,null,null,null,null,{"$f":"IF($AC$2:$AC$1001=\"\",\"\",VLOOKUP($AC$2:$AC$1001,Χρονοδιάγραμμα[],2,FALSE))","v":""}]
[null,null,null,null,null,null,null,null,null,null,null,null,null,null,null,null,null,null,null,null,null,null,null,null,null,null,null,null,null,{"$f":"IF($AC$2:$AC$1001=\"\",\"\",VLOOKUP($AC$2:$AC$1001,Χρονοδιάγραμμα[],2,FALSE))","v":""}]
[null,null,null,null,null,null,null,null,null,null,null,null,null,null,null,null,null,null,null,null,null,null,null,null,null,null,null,null,null,{"$f":"IF($AC$2:$AC$1001=\"\",\"\",VLOOKUP($AC$2:$AC$1001,Χρονοδιάγραμμα[],2,FALSE))","v":""}]
[null,null,null,null,null,null,null,null,null,null,null,null,null,null,null,null,null,null,null,null,null,null,null,null,null,null,null,null,null,{"$f":"IF($AC$2:$AC$1001=\"\",\"\",VLOOKUP($AC$2:$AC$1001,Χρονοδιάγραμμα[],2,FALSE))","v":""}]
[null,null,null,null,null,null,null,null,null,null,null,null,null,null,null,null,null,null,null,null,null,null,null,null,null,null,null,null,null,{"$f":"IF($AC$2:$AC$1001=\"\",\"\",VLOOKUP($AC$2:$AC$1001,Χρονοδιάγραμμα[],2,FALSE))","v":""}]
[null,null,null,null,null,null,null,null,null,null,null,null,null,null,null,null,null,null,null,null,null,null,null,null,null,null,null,null,null,{"$f":"IF($AC$2:$AC$1001=\"\",\"\",VLOOKUP($AC$2:$AC$1001,Χρονοδιάγραμμα[],2,FALSE))","v":""}]
[null,null,null,null,null,null,null,null,null,null,null,null,null,null,null,null,null,null,null,null,null,null,null,null,null,null,null,null,null,{"$f":"IF($AC$2:$AC$1001=\"\",\"\",VLOOKUP($AC$2:$AC$1001,Χρονοδιάγραμμα[],2,FALSE))","v":""}]
[null,null,null,null,null,null,null,null,null,null,null,null,null,null,null,null,null,null,null,null,null,null,null,null,null,null,null,null,null,{"$f":"IF($AC$2:$AC$1001=\"\",\"\",VLOOKUP($AC$2:$AC$1001,Χρονοδιάγραμμα[],2,FALSE))","v":""}]
[null,null,null,null,null,null,null,null,null,null,null,null,null,null,null,null,null,null,null,null,null,null,null,null,null,null,null,null,null,{"$f":"IF($AC$2:$AC$1001=\"\",\"\",VLOOKUP($AC$2:$AC$1001,Χρονοδιάγραμμα[],2,FALSE))","v":""}]
[null,null,null,null,null,null,null,null,null,null,null,null,null,null,null,null,null,null,null,null,null,null,null,null,null,null,null,null,null,{"$f":"IF($AC$2:$AC$1001=\"\",\"\",VLOOKUP($AC$2:$AC$1001,Χρονοδιάγραμμα[],2,FALSE))","v":""}]
[null,null,null,null,null,null,null,null,null,null,null,null,null,null,null,null,null,null,null,null,null,null,null,null,null,null,null,null,null,{"$f":"IF($AC$2:$AC$1001=\"\",\"\",VLOOKUP($AC$2:$AC$1001,Χρονοδιάγραμμα[],2,FALSE))","v":""}]
[null,null,null,null,null,null,null,null,null,null,null,null,null,null,null,null,null,null,null,null,null,null,null,null,null,null,null,null,null,{"$f":"IF($AC$2:$AC$1001=\"\",\"\",VLOOKUP($AC$2:$AC$1001,Χρονοδιάγραμμα[],2,FALSE))","v":""}]
[null,null,null,null,null,null,null,null,null,null,null,null,null,null,null,null,null,null,null,null,null,null,null,null,null,null,null,null,null,{"$f":"IF($AC$2:$AC$1001=\"\",\"\",VLOOKUP($AC$2:$AC$1001,Χρονοδιάγραμμα[],2,FALSE))","v":""}]
[null,null,null,null,null,null,null,null,null,null,null,null,null,null,null,null,null,null,null,null,null,null,null,null,null,null,null,null,null,{"$f":"IF($AC$2:$AC$1001=\"\",\"\",VLOOKUP($AC$2:$AC$1001,Χρονοδιάγραμμα[],2,FALSE))","v":""}]
[null,null,null,null,null,null,null,null,null,null,null,null,null,null,null,null,null,null,null,null,null,null,null,null,null,null,null,null,null,{"$f":"IF($AC$2:$AC$1001=\"\",\"\",VLOOKUP($AC$2:$AC$1001,Χρονοδιάγραμμα[],2,FALSE))","v":""}]
[null,null,null,null,null,null,null,null,null,null,null,null,null,null,null,null,null,null,null,null,null,null,null,null,null,null,null,null,null,{"$f":"IF($AC$2:$AC$1001=\"\",\"\",VLOOKUP($AC$2:$AC$1001,Χρονοδιάγραμμα[],2,FALSE))","v":""}]
[null,null,null,null,null,null,null,null,null,null,null,null,null,null,null,null,null,null,null,null,null,null,null,null,null,null,null,null,null,{"$f":"IF($AC$2:$AC$1001=\"\",\"\",VLOOKUP($AC$2:$AC$1001,Χρονοδιάγραμμα[],2,FALSE))","v":""}]
[null,null,null,null,null,null,null,null,null,null,null,null,null,null,null,null,null,null,null,null,null,null,null,null,null,null,null,null,null,{"$f":"IF($AC$2:$AC$1001=\"\",\"\",VLOOKUP($AC$2:$AC$1001,Χρονοδιάγραμμα[],2,FALSE))","v":""}]
[null,null,null,null,null,null,null,null,null,null,null,null,null,null,null,null,null,null,null,null,null,null,null,null,null,null,null,null,null,{"$f":"IF($AC$2:$AC$1001=\"\",\"\",VLOOKUP($AC$2:$AC$1001,Χρονοδιάγραμμα[],2,FALSE))","v":""}]
[null,null,null,null,null,null,null,null,null,null,null,null,null,null,null,null,null,null,null,null,null,null,null,null,null,null,null,null,null,{"$f":"IF($AC$2:$AC$1001=\"\",\"\",VLOOKUP($AC$2:$AC$1001,Χρονοδιάγραμμα[],2,FALSE))","v":""}]
[null,null,null,null,null,null,null,null,null,null,null,null,null,null,null,null,null,null,null,null,null,null,null,null,null,null,null,null,null,{"$f":"IF($AC$2:$AC$1001=\"\",\"\",VLOOKUP($AC$2:$AC$1001,Χρονοδιάγραμμα[],2,FALSE))","v":""}]
[null,null,null,null,null,null,null,null,null,null,null,null,null,null,null,null,null,null,null,null,null,null,null,null,null,null,null,null,null,{"$f":"IF($AC$2:$AC$1001=\"\",\"\",VLOOKUP($AC$2:$AC$1001,Χρονοδιάγραμμα[],2,FALSE))","v":""}]
[null,null,null,null,null,null,null,null,null,null,null,null,null,null,null,null,null,null,null,null,null,null,null,null,null,null,null,null,null,{"$f":"IF($AC$2:$AC$1001=\"\",\"\",VLOOKUP($AC$2:$AC$1001,Χρονοδιάγραμμα[],2,FALSE))","v":""}]
[null,null,null,null,null,null,null,null,null,null,null,null,null,null,null,null,null,null,null,null,null,null,null,null,null,null,null,null,null,{"$f":"IF($AC$2:$AC$1001=\"\",\"\",VLOOKUP($AC$2:$AC$1001,Χρονοδιάγραμμα[],2,FALSE))","v":""}]
[null,null,null,null,null,null,null,null,null,null,null,null,null,null,null,null,null,null,null,null,null,null,null,null,null,null,null,null,null,{"$f":"IF($AC$2:$AC$1001=\"\",\"\",VLOOKUP($AC$2:$AC$1001,Χρονοδιάγραμμα[],2,FALSE))","v":""}]
[null,null,null,null,null,null,null,null,null,null,null,null,null,null,null,null,null,null,null,null,null,null,null,null,null,null,null,null,null,{"$f":"IF($AC$2:$AC$1001=\"\",\"\",VLOOKUP($AC$2:$AC$1001,Χρονοδιάγραμμα[],2,FALSE))","v":""}]
[null,null,null,null,null,null,null,null,null,null,null,null,null,null,null,null,null,null,null,null,null,null,null,null,null,null,null,null,null,{"$f":"IF($AC$2:$AC$1001=\"\",\"\",VLOOKUP($AC$2:$AC$1001,Χρονοδιάγραμμα[],2,FALSE))","v":""}]
[null,null,null,null,null,null,null,null,null,null,null,null,null,null,null,null,null,null,null,null,null,null,null,null,null,null,null,null,null,{"$f":"IF($AC$2:$AC$1001=\"\",\"\",VLOOKUP($AC$2:$AC$1001,Χρονοδιάγραμμα[],2,FALSE))","v":""}]
[null,null,null,null,null,null,null,null,null,null,null,null,null,null,null,null,null,null,null,null,null,null,null,null,null,null,null,null,null,{"$f":"IF($AC$2:$AC$1001=\"\",\"\",VLOOKUP($AC$2:$AC$1001,Χρονοδιάγραμμα[],2,FALSE))","v":""}]
[null,null,null,null,null,null,null,null,null,null,null,null,null,null,null,null,null,null,null,null,null,null,null,null,null,null,null,null,null,{"$f":"IF($AC$2:$AC$1001=\"\",\"\",VLOOKUP($AC$2:$AC$1001,Χρονοδιάγραμμα[],2,FALSE))","v":""}]
[null,null,null,null,null,null,null,null,null,null,null,null,null,null,null,null,null,null,null,null,null,null,null,null,null,null,null,null,null,{"$f":"IF($AC$2:$AC$1001=\"\",\"\",VLOOKUP($AC$2:$AC$1001,Χρονοδιάγραμμα[],2,FALSE))","v":""}]
[null,null,null,null,null,null,null,null,null,null,null,null,null,null,null,null,null,null,null,null,null,null,null,null,null,null,null,null,null,{"$f":"IF($AC$2:$AC$1001=\"\",\"\",VLOOKUP($AC$2:$AC$1001,Χρονοδιάγραμμα[],2,FALSE))","v":""}]
[null,null,null,null,null,null,null,null,null,null,null,null,null,null,null,null,null,null,null,null,null,null,null,null,null,null,null,null,null,{"$f":"IF($AC$2:$AC$1001=\"\",\"\",VLOOKUP($AC$2:$AC$1001,Χρονοδιάγραμμα[],2,FALSE))","v":""}]
[null,null,null,null,null,null,null,null,null,null,null,null,null,null,null,null,null,null,null,null,null,null,null,null,null,null,null,null,null,{"$f":"IF($AC$2:$AC$1001=\"\",\"\",VLOOKUP($AC$2:$AC$1001,Χρονοδιάγραμμα[],2,FALSE))","v":""}]
[null,null,null,null,null,null,null,null,null,null,null,null,null,null,null,null,null,null,null,null,null,null,null,null,null,null,null,null,null,{"$f":"IF($AC$2:$AC$1001=\"\",\"\",VLOOKUP($AC$2:$AC$1001,Χρονοδιάγραμμα[],2,FALSE))","v":""}]
[null,null,null,null,null,null,null,null,null,null,null,null,null,null,null,null,null,null,null,null,null,null,null,null,null,null,null,null,null,{"$f":"IF($AC$2:$AC$1001=\"\",\"\",VLOOKUP($AC$2:$AC$1001,Χρονοδιάγραμμα[],2,FALSE))","v":""}]
[null,null,null,null,null,null,null,null,null,null,null,null,null,null,null,null,null,null,null,null,null,null,null,null,null,null,null,null,null,{"$f":"IF($AC$2:$AC$1001=\"\",\"\",VLOOKUP($AC$2:$AC$1001,Χρονοδιάγραμμα[],2,FALSE))","v":""}]
[null,null,null,null,null,null,null,null,null,null,null,null,null,null,null,null,null,null,null,null,null,null,null,null,null,null,null,null,null,{"$f":"IF($AC$2:$AC$1001=\"\",\"\",VLOOKUP($AC$2:$AC$1001,Χρονοδιάγραμμα[],2,FALSE))","v":""}]
[null,null,null,null,null,null,null,null,null,null,null,null,null,null,null,null,null,null,null,null,null,null,null,null,null,null,null,null,null,{"$f":"IF($AC$2:$AC$1001=\"\",\"\",VLOOKUP($AC$2:$AC$1001,Χρονοδιάγραμμα[],2,FALSE))","v":""}]
[null,null,null,null,null,null,null,null,null,null,null,null,null,null,null,null,null,null,null,null,null,null,null,null,null,null,null,null,null,{"$f":"IF($AC$2:$AC$1001=\"\",\"\",VLOOKUP($AC$2:$AC$1001,Χρονοδιάγραμμα[],2,FALSE))","v":""}]
[null,null,null,null,null,null,null,null,null,null,null,null,null,null,null,null,null,null,null,null,null,null,null,null,null,null,null,null,null,{"$f":"IF($AC$2:$AC$1001=\"\",\"\",VLOOKUP($AC$2:$AC$1001,Χρονοδιάγραμμα[],2,FALSE))","v":""}]
[null,null,null,null,null,null,null,null,null,null,null,null,null,null,null,null,null,null,null,null,null,null,null,null,null,null,null,null,null,{"$f":"IF($AC$2:$AC$1001=\"\",\"\",VLOOKUP($AC$2:$AC$1001,Χρονοδιάγραμμα[],2,FALSE))","v":""}]
[null,null,null,null,null,null,null,null,null,null,null,null,null,null,null,null,null,null,null,null,null,null,null,null,null,null,null,null,null,{"$f":"IF($AC$2:$AC$1001=\"\",\"\",VLOOKUP($AC$2:$AC$1001,Χρονοδιάγραμμα[],2,FALSE))","v":""}]
[null,null,null,null,null,null,null,null,null,null,null,null,null,null,null,null,null,null,null,null,null,null,null,null,null,null,null,null,null,{"$f":"IF($AC$2:$AC$1001=\"\",\"\",VLOOKUP($AC$2:$AC$1001,Χρονοδιάγραμμα[],2,FALSE))","v":""}]
[null,null,null,null,null,null,null,null,null,null,null,null,null,null,null,null,null,null,null,null,null,null,null,null,null,null,null,null,null,{"$f":"IF($AC$2:$AC$1001=\"\",\"\",VLOOKUP($AC$2:$AC$1001,Χρονοδιάγραμμα[],2,FALSE))","v":""}]
[null,null,null,null,null,null,null,null,null,null,null,null,null,null,null,null,null,null,null,null,null,null,null,null,null,null,null,null,null,{"$f":"IF($AC$2:$AC$1001=\"\",\"\",VLOOKUP($AC$2:$AC$1001,Χρονοδιάγραμμα[],2,FALSE))","v":""}]
[null,null,null,null,null,null,null,null,null,null,null,null,null,null,null,null,null,null,null,null,null,null,null,null,null,null,null,null,null,{"$f":"IF($AC$2:$AC$1001=\"\",\"\",VLOOKUP($AC$2:$AC$1001,Χρονοδιάγραμμα[],2,FALSE))","v":""}]
[null,null,null,null,null,null,null,null,null,null,null,null,null,null,null,null,null,null,null,null,null,null,null,null,null,null,null,null,null,{"$f":"IF($AC$2:$AC$1001=\"\",\"\",VLOOKUP($AC$2:$AC$1001,Χρονοδιάγραμμα[],2,FALSE))","v":""}]
[null,null,null,null,null,null,null,null,null,null,null,null,null,null,null,null,null,null,null,null,null,null,null,null,null,null,null,null,null,{"$f":"IF($AC$2:$AC$1001=\"\",\"\",VLOOKUP($AC$2:$AC$1001,Χρονοδιάγραμμα[],2,FALSE))","v":""}]
[null,null,null,null,null,null,null,null,null,null,null,null,null,null,null,null,null,null,null,null,null,null,null,null,null,null,null,null,null,{"$f":"IF($AC$2:$AC$1001=\"\",\"\",VLOOKUP($AC$2:$AC$1001,Χρονοδιάγραμμα[],2,FALSE))","v":""}]
[null,null,null,null,null,null,null,null,null,null,null,null,null,null,null,null,null,null,null,null,null,null,null,null,null,null,null,null,null,{"$f":"IF($AC$2:$AC$1001=\"\",\"\",VLOOKUP($AC$2:$AC$1001,Χρονοδιάγραμμα[],2,FALSE))","v":""}]
[null,null,null,null,null,null,null,null,null,null,null,null,null,null,null,null,null,null,null,null,null,null,null,null,null,null,null,null,null,{"$f":"IF($AC$2:$AC$1001=\"\",\"\",VLOOKUP($AC$2:$AC$1001,Χρονοδιάγραμμα[],2,FALSE))","v":""}]
[null,null,null,null,null,null,null,null,null,null,null,null,null,null,null,null,null,null,null,null,null,null,null,null,null,null,null,null,null,{"$f":"IF($AC$2:$AC$1001=\"\",\"\",VLOOKUP($AC$2:$AC$1001,Χρονοδιάγραμμα[],2,FALSE))","v":""}]
[null,null,null,null,null,null,null,null,null,null,null,null,null,null,null,null,null,null,null,null,null,null,null,null,null,null,null,null,null,{"$f":"IF($AC$2:$AC$1001=\"\",\"\",VLOOKUP($AC$2:$AC$1001,Χρονοδιάγραμμα[],2,FALSE))","v":""}]
[null,null,null,null,null,null,null,null,null,null,null,null,null,null,null,null,null,null,null,null,null,null,null,null,null,null,null,null,null,{"$f":"IF($AC$2:$AC$1001=\"\",\"\",VLOOKUP($AC$2:$AC$1001,Χρονοδιάγραμμα[],2,FALSE))","v":""}]
[null,null,null,null,null,null,null,null,null,null,null,null,null,null,null,null,null,null,null,null,null,null,null,null,null,null,null,null,null,{"$f":"IF($AC$2:$AC$1001=\"\",\"\",VLOOKUP($AC$2:$AC$1001,Χρονοδιάγραμμα[],2,FALSE))","v":""}]
[null,null,null,null,null,null,null,null,null,null,null,null,null,null,null,null,null,null,null,null,null,null,null,null,null,null,null,null,null,{"$f":"IF($AC$2:$AC$1001=\"\",\"\",VLOOKUP($AC$2:$AC$1001,Χρονοδιάγραμμα[],2,FALSE))","v":""}]
[null,null,null,null,null,null,null,null,null,null,null,null,null,null,null,null,null,null,null,null,null,null,null,null,null,null,null,null,null,{"$f":"IF($AC$2:$AC$1001=\"\",\"\",VLOOKUP($AC$2:$AC$1001,Χρονοδιάγραμμα[],2,FALSE))","v":""}]
[null,null,null,null,null,null,null,null,null,null,null,null,null,null,null,null,null,null,null,null,null,null,null,null,null,null,null,null,null,{"$f":"IF($AC$2:$AC$1001=\"\",\"\",VLOOKUP($AC$2:$AC$1001,Χρονοδιάγραμμα[],2,FALSE))","v":""}]
[null,null,null,null,null,null,null,null,null,null,null,null,null,null,null,null,null,null,null,null,null,null,null,null,null,null,null,null,null,{"$f":"IF($AC$2:$AC$1001=\"\",\"\",VLOOKUP($AC$2:$AC$1001,Χρονοδιάγραμμα[],2,FALSE))","v":""}]
[null,null,null,null,null,null,null,null,null,null,null,null,null,null,null,null,null,null,null,null,null,null,null,null,null,null,null,null,null,{"$f":"IF($AC$2:$AC$1001=\"\",\"\",VLOOKUP($AC$2:$AC$1001,Χρονοδιάγραμμα[],2,FALSE))","v":""}]
[null,null,null,null,null,null,null,null,null,null,null,null,null,null,null,null,null,null,null,null,null,null,null,null,null,null,null,null,null,{"$f":"IF($AC$2:$AC$1001=\"\",\"\",VLOOKUP($AC$2:$AC$1001,Χρονοδιάγραμμα[],2,FALSE))","v":""}]
[null,null,null,null,null,null,null,null,null,null,null,null,null,null,null,null,null,null,null,null,null,null,null,null,null,null,null,null,null,{"$f":"IF($AC$2:$AC$1001=\"\",\"\",VLOOKUP($AC$2:$AC$1001,Χρονοδιάγραμμα[],2,FALSE))","v":""}]
[null,null,null,null,null,null,null,null,null,null,null,null,null,null,null,null,null,null,null,null,null,null,null,null,null,null,null,null,null,{"$f":"IF($AC$2:$AC$1001=\"\",\"\",VLOOKUP($AC$2:$AC$1001,Χρονοδιάγραμμα[],2,FALSE))","v":""}]
[null,null,null,null,null,null,null,null,null,null,null,null,null,null,null,null,null,null,null,null,null,null,null,null,null,null,null,null,null,{"$f":"IF($AC$2:$AC$1001=\"\",\"\",VLOOKUP($AC$2:$AC$1001,Χρονοδιάγραμμα[],2,FALSE))","v":""}]
[null,null,null,null,null,null,null,null,null,null,null,null,null,null,null,null,null,null,null,null,null,null,null,null,null,null,null,null,null,{"$f":"IF($AC$2:$AC$1001=\"\",\"\",VLOOKUP($AC$2:$AC$1001,Χρονοδιάγραμμα[],2,FALSE))","v":""}]
[null,null,null,null,null,null,null,null,null,null,null,null,null,null,null,null,null,null,null,null,null,null,null,null,null,null,null,null,null,{"$f":"IF($AC$2:$AC$1001=\"\",\"\",VLOOKUP($AC$2:$AC$1001,Χρονοδιάγραμμα[],2,FALSE))","v":""}]
[null,null,null,null,null,null,null,null,null,null,null,null,null,null,null,null,null,null,null,null,null,null,null,null,null,null,null,null,null,{"$f":"IF($AC$2:$AC$1001=\"\",\"\",VLOOKUP($AC$2:$AC$1001,Χρονοδιάγραμμα[],2,FALSE))","v":""}]
[null,null,null,null,null,null,null,null,null,null,null,null,null,null,null,null,null,null,null,null,null,null,null,null,null,null,null,null,null,{"$f":"IF($AC$2:$AC$1001=\"\",\"\",VLOOKUP($AC$2:$AC$1001,Χρονοδιάγραμμα[],2,FALSE))","v":""}]
[null,null,null,null,null,null,null,null,null,null,null,null,null,null,null,null,null,null,null,null,null,null,null,null,null,null,null,null,null,{"$f":"IF($AC$2:$AC$1001=\"\",\"\",VLOOKUP($AC$2:$AC$1001,Χρονοδιάγραμμα[],2,FALSE))","v":""}]
[null,null,null,null,null,null,null,null,null,null,null,null,null,null,null,null,null,null,null,null,null,null,null,null,null,null,null,null,null,{"$f":"IF($AC$2:$AC$1001=\"\",\"\",VLOOKUP($AC$2:$AC$1001,Χρονοδιάγραμμα[],2,FALSE))","v":""}]
[null,null,null,null,null,null,null,null,null,null,null,null,null,null,null,null,null,null,null,null,null,null,null,null,null,null,null,null,null,{"$f":"IF($AC$2:$AC$1001=\"\",\"\",VLOOKUP($AC$2:$AC$1001,Χρονοδιάγραμμα[],2,FALSE))","v":""}]
[null,null,null,null,null,null,null,null,null,null,null,null,null,null,null,null,null,null,null,null,null,null,null,null,null,null,null,null,null,{"$f":"IF($AC$2:$AC$1001=\"\",\"\",VLOOKUP($AC$2:$AC$1001,Χρονοδιάγραμμα[],2,FALSE))","v":""}]
[null,null,null,null,null,null,null,null,null,null,null,null,null,null,null,null,null,null,null,null,null,null,null,null,null,null,null,null,null,{"$f":"IF($AC$2:$AC$1001=\"\",\"\",VLOOKUP($AC$2:$AC$1001,Χρονοδιάγραμμα[],2,FALSE))","v":""}]
[null,null,null,null,null,null,null,null,null,null,null,null,null,null,null,null,null,null,null,null,null,null,null,null,null,null,null,null,null,{"$f":"IF($AC$2:$AC$1001=\"\",\"\",VLOOKUP($AC$2:$AC$1001,Χρονοδιάγραμμα[],2,FALSE))","v":""}]
[null,null,null,null,null,null,null,null,null,null,null,null,null,null,null,null,null,null,null,null,null,null,null,null,null,null,null,null,null,{"$f":"IF($AC$2:$AC$1001=\"\",\"\",VLOOKUP($AC$2:$AC$1001,Χρονοδιάγραμμα[],2,FALSE))","v":""}]
[null,null,null,null,null,null,null,null,null,null,null,null,null,null,null,null,null,null,null,null,null,null,null,null,null,null,null,null,null,{"$f":"IF($AC$2:$AC$1001=\"\",\"\",VLOOKUP($AC$2:$AC$1001,Χρονοδιάγραμμα[],2,FALSE))","v":""}]
[null,null,null,null,null,null,null,null,null,null,null,null,null,null,null,null,null,null,null,null,null,null,null,null,null,null,null,null,null,{"$f":"IF($AC$2:$AC$1001=\"\",\"\",VLOOKUP($AC$2:$AC$1001,Χρονοδιάγραμμα[],2,FALSE))","v":""}]
[null,null,null,null,null,null,null,null,null,null,null,null,null,null,null,null,null,null,null,null,null,null,null,null,null,null,null,null,null,{"$f":"IF($AC$2:$AC$1001=\"\",\"\",VLOOKUP($AC$2:$AC$1001,Χρονοδιάγραμμα[],2,FALSE))","v":""}]
[null,null,null,null,null,null,null,null,null,null,null,null,null,null,null,null,null,null,null,null,null,null,null,null,null,null,null,null,null,{"$f":"IF($AC$2:$AC$1001=\"\",\"\",VLOOKUP($AC$2:$AC$1001,Χρονοδιάγραμμα[],2,FALSE))","v":""}]
[null,null,null,null,null,null,null,null,null,null,null,null,null,null,null,null,null,null,null,null,null,null,null,null,null,null,null,null,null,{"$f":"IF($AC$2:$AC$1001=\"\",\"\",VLOOKUP($AC$2:$AC$1001,Χρονοδιάγραμμα[],2,FALSE))","v":""}]
[null,null,null,null,null,null,null,null,null,null,null,null,null,null,null,null,null,null,null,null,null,null,null,null,null,null,null,null,null,{"$f":"IF($AC$2:$AC$1001=\"\",\"\",VLOOKUP($AC$2:$AC$1001,Χρονοδιάγραμμα[],2,FALSE))","v":""}]
[null,null,null,null,null,null,null,null,null,null,null,null,null,null,null,null,null,null,null,null,null,null,null,null,null,null,null,null,null,{"$f":"IF($AC$2:$AC$1001=\"\",\"\",VLOOKUP($AC$2:$AC$1001,Χρονοδιάγραμμα[],2,FALSE))","v":""}]
[null,null,null,null,null,null,null,null,null,null,null,null,null,null,null,null,null,null,null,null,null,null,null,null,null,null,null,null,null,{"$f":"IF($AC$2:$AC$1001=\"\",\"\",VLOOKUP($AC$2:$AC$1001,Χρονοδιάγραμμα[],2,FALSE))","v":""}]
[null,null,null,null,null,null,null,null,null,null,null,null,null,null,null,null,null,null,null,null,null,null,null,null,null,null,null,null,null,{"$f":"IF($AC$2:$AC$1001=\"\",\"\",VLOOKUP($AC$2:$AC$1001,Χρονοδιάγραμμα[],2,FALSE))","v":""}]
[null,null,null,null,null,null,null,null,null,null,null,null,null,null,null,null,null,null,null,null,null,null,null,null,null,null,null,null,null,{"$f":"IF($AC$2:$AC$1001=\"\",\"\",VLOOKUP($AC$2:$AC$1001,Χρονοδιάγραμμα[],2,FALSE))","v":""}]
[null,null,null,null,null,null,null,null,null,null,null,null,null,null,null,null,null,null,null,null,null,null,null,null,null,null,null,null,null,{"$f":"IF($AC$2:$AC$1001=\"\",\"\",VLOOKUP($AC$2:$AC$1001,Χρονοδιάγραμμα[],2,FALSE))","v":""}]
[null,null,null,null,null,null,null,null,null,null,null,null,null,null,null,null,null,null,null,null,null,null,null,null,null,null,null,null,null,{"$f":"IF($AC$2:$AC$1001=\"\",\"\",VLOOKUP($AC$2:$AC$1001,Χρονοδιάγραμμα[],2,FALSE))","v":""}]
[null,null,null,null,null,null,null,null,null,null,null,null,null,null,null,null,null,null,null,null,null,null,null,null,null,null,null,null,null,{"$f":"IF($AC$2:$AC$1001=\"\",\"\",VLOOKUP($AC$2:$AC$1001,Χρονοδιάγραμμα[],2,FALSE))","v":""}]
[null,null,null,null,null,null,null,null,null,null,null,null,null,null,null,null,null,null,null,null,null,null,null,null,null,null,null,null,null,{"$f":"IF($AC$2:$AC$1001=\"\",\"\",VLOOKUP($AC$2:$AC$1001,Χρονοδιάγραμμα[],2,FALSE))","v":""}]
[null,null,null,null,null,null,null,null,null,null,null,null,null,null,null,null,null,null,null,null,null,null,null,null,null,null,null,null,null,{"$f":"IF($AC$2:$AC$1001=\"\",\"\",VLOOKUP($AC$2:$AC$1001,Χρονοδιάγραμμα[],2,FALSE))","v":""}]
[null,null,null,null,null,null,null,null,null,null,null,null,null,null,null,null,null,null,null,null,null,null,null,null,null,null,null,null,null,{"$f":"IF($AC$2:$AC$1001=\"\",\"\",VLOOKUP($AC$2:$AC$1001,Χρονοδιάγραμμα[],2,FALSE))","v":""}]
[null,null,null,null,null,null,null,null,null,null,null,null,null,null,null,null,null,null,null,null,null,null,null,null,null,null,null,null,null,{"$f":"IF($AC$2:$AC$1001=\"\",\"\",VLOOKUP($AC$2:$AC$1001,Χρονοδιάγραμμα[],2,FALSE))","v":""}]
[null,null,null,null,null,null,null,null,null,null,null,null,null,null,null,null,null,null,null,null,null,null,null,null,null,null,null,null,null,{"$f":"IF($AC$2:$AC$1001=\"\",\"\",VLOOKUP($AC$2:$AC$1001,Χρονοδιάγραμμα[],2,FALSE))","v":""}]
[null,null,null,null,null,null,null,null,null,null,null,null,null,null,null,null,null,null,null,null,null,null,null,null,null,null,null,null,null,{"$f":"IF($AC$2:$AC$1001=\"\",\"\",VLOOKUP($AC$2:$AC$1001,Χρονοδιάγραμμα[],2,FALSE))","v":""}]
[null,null,null,null,null,null,null,null,null,null,null,null,null,null,null,null,null,null,null,null,null,null,null,null,null,null,null,null,null,{"$f":"IF($AC$2:$AC$1001=\"\",\"\",VLOOKUP($AC$2:$AC$1001,Χρονοδιάγραμμα[],2,FALSE))","v":""}]
[null,null,null,null,null,null,null,null,null,null,null,null,null,null,null,null,null,null,null,null,null,null,null,null,null,null,null,null,null,{"$f":"IF($AC$2:$AC$1001=\"\",\"\",VLOOKUP($AC$2:$AC$1001,Χρονοδιάγραμμα[],2,FALSE))","v":""}]
[null,null,null,null,null,null,null,null,null,null,null,null,null,null,null,null,null,null,null,null,null,null,null,null,null,null,null,null,null,{"$f":"IF($AC$2:$AC$1001=\"\",\"\",VLOOKUP($AC$2:$AC$1001,Χρονοδιάγραμμα[],2,FALSE))","v":""}]
[null,null,null,null,null,null,null,null,null,null,null,null,null,null,null,null,null,null,null,null,null,null,null,null,null,null,null,null,null,{"$f":"IF($AC$2:$AC$1001=\"\",\"\",VLOOKUP($AC$2:$AC$1001,Χρονοδιάγραμμα[],2,FALSE))","v":""}]
[null,null,null,null,null,null,null,null,null,null,null,null,null,null,null,null,null,null,null,null,null,null,null,null,null,null,null,null,null,{"$f":"IF($AC$2:$AC$1001=\"\",\"\",VLOOKUP($AC$2:$AC$1001,Χρονοδιάγραμμα[],2,FALSE))","v":""}]
[null,null,null,null,null,null,null,null,null,null,null,null,null,null,null,null,null,null,null,null,null,null,null,null,null,null,null,null,null,{"$f":"IF($AC$2:$AC$1001=\"\",\"\",VLOOKUP($AC$2:$AC$1001,Χρονοδιάγραμμα[],2,FALSE))","v":""}]
[null,null,null,null,null,null,null,null,null,null,null,null,null,null,null,null,null,null,null,null,null,null,null,null,null,null,null,null,null,{"$f":"IF($AC$2:$AC$1001=\"\",\"\",VLOOKUP($AC$2:$AC$1001,Χρονοδιάγραμμα[],2,FALSE))","v":""}]
[null,null,null,null,null,null,null,null,null,null,null,null,null,null,null,null,null,null,null,null,null,null,null,null,null,null,null,null,null,{"$f":"IF($AC$2:$AC$1001=\"\",\"\",VLOOKUP($AC$2:$AC$1001,Χρονοδιάγραμμα[],2,FALSE))","v":""}]
[null,null,null,null,null,null,null,null,null,null,null,null,null,null,null,null,null,null,null,null,null,null,null,null,null,null,null,null,null,{"$f":"IF($AC$2:$AC$1001=\"\",\"\",VLOOKUP($AC$2:$AC$1001,Χρονοδιάγραμμα[],2,FALSE))","v":""}]
[null,null,null,null,null,null,null,null,null,null,null,null,null,null,null,null,null,null,null,null,null,null,null,null,null,null,null,null,null,{"$f":"IF($AC$2:$AC$1001=\"\",\"\",VLOOKUP($AC$2:$AC$1001,Χρονοδιάγραμμα[],2,FALSE))","v":""}]
[null,null,null,null,null,null,null,null,null,null,null,null,null,null,null,null,null,null,null,null,null,null,null,null,null,null,null,null,null,{"$f":"IF($AC$2:$AC$1001=\"\",\"\",VLOOKUP($AC$2:$AC$1001,Χρονοδιάγραμμα[],2,FALSE))","v":""}]
[null,null,null,null,null,null,null,null,null,null,null,null,null,null,null,null,null,null,null,null,null,null,null,null,null,null,null,null,null,{"$f":"IF($AC$2:$AC$1001=\"\",\"\",VLOOKUP($AC$2:$AC$1001,Χρονοδιάγραμμα[],2,FALSE))","v":""}]
[null,null,null,null,null,null,null,null,null,null,null,null,null,null,null,null,null,null,null,null,null,null,null,null,null,null,null,null,null,{"$f":"IF($AC$2:$AC$1001=\"\",\"\",VLOOKUP($AC$2:$AC$1001,Χρονοδιάγραμμα[],2,FALSE))","v":""}]
[null,null,null,null,null,null,null,null,null,null,null,null,null,null,null,null,null,null,null,null,null,null,null,null,null,null,null,null,null,{"$f":"IF($AC$2:$AC$1001=\"\",\"\",VLOOKUP($AC$2:$AC$1001,Χρονοδιάγραμμα[],2,FALSE))","v":""}]
[null,null,null,null,null,null,null,null,null,null,null,null,null,null,null,null,null,null,null,null,null,null,null,null,null,null,null,null,null,{"$f":"IF($AC$2:$AC$1001=\"\",\"\",VLOOKUP($AC$2:$AC$1001,Χρονοδιάγραμμα[],2,FALSE))","v":""}]
[null,null,null,null,null,null,null,null,null,null,null,null,null,null,null,null,null,null,null,null,null,null,null,null,null,null,null,null,null,{"$f":"IF($AC$2:$AC$1001=\"\",\"\",VLOOKUP($AC$2:$AC$1001,Χρονοδιάγραμμα[],2,FALSE))","v":""}]
[null,null,null,null,null,null,null,null,null,null,null,null,null,null,null,null,null,null,null,null,null,null,null,null,null,null,null,null,null,{"$f":"IF($AC$2:$AC$1001=\"\",\"\",VLOOKUP($AC$2:$AC$1001,Χρονοδιάγραμμα[],2,FALSE))","v":""}]
[null,null,null,null,null,null,null,null,null,null,null,null,null,null,null,null,null,null,null,null,null,null,null,null,null,null,null,null,null,{"$f":"IF($AC$2:$AC$1001=\"\",\"\",VLOOKUP($AC$2:$AC$1001,Χρονοδιάγραμμα[],2,FALSE))","v":""}]
[null,null,null,null,null,null,null,null,null,null,null,null,null,null,null,null,null,null,null,null,null,null,null,null,null,null,null,null,null,{"$f":"IF($AC$2:$AC$1001=\"\",\"\",VLOOKUP($AC$2:$AC$1001,Χρονοδιάγραμμα[],2,FALSE))","v":""}]
[null,null,null,null,null,null,null,null,null,null,null,null,null,null,null,null,null,null,null,null,null,null,null,null,null,null,null,null,null,{"$f":"IF($AC$2:$AC$1001=\"\",\"\",VLOOKUP($AC$2:$AC$1001,Χρονοδιάγραμμα[],2,FALSE))","v":""}]
[null,null,null,null,null,null,null,null,null,null,null,null,null,null,null,null,null,null,null,null,null,null,null,null,null,null,null,null,null,{"$f":"IF($AC$2:$AC$1001=\"\",\"\",VLOOKUP($AC$2:$AC$1001,Χρονοδιάγραμμα[],2,FALSE))","v":""}]
[null,null,null,null,null,null,null,null,null,null,null,null,null,null,null,null,null,null,null,null,null,null,null,null,null,null,null,null,null,{"$f":"IF($AC$2:$AC$1001=\"\",\"\",VLOOKUP($AC$2:$AC$1001,Χρονοδιάγραμμα[],2,FALSE))","v":""}]
[null,null,null,null,null,null,null,null,null,null,null,null,null,null,null,null,null,null,null,null,null,null,null,null,null,null,null,null,null,{"$f":"IF($AC$2:$AC$1001=\"\",\"\",VLOOKUP($AC$2:$AC$1001,Χρονοδιάγραμμα[],2,FALSE))","v":""}]
[null,null,null,null,null,null,null,null,null,null,null,null,null,null,null,null,null,null,null,null,null,null,null,null,null,null,null,null,null,{"$f":"IF($AC$2:$AC$1001=\"\",\"\",VLOOKUP($AC$2:$AC$1001,Χρονοδιάγραμμα[],2,FALSE))","v":""}]
[null,null,null,null,null,null,null,null,null,null,null,null,null,null,null,null,null,null,null,null,null,null,null,null,null,null,null,null,null,{"$f":"IF($AC$2:$AC$1001=\"\",\"\",VLOOKUP($AC$2:$AC$1001,Χρονοδιάγραμμα[],2,FALSE))","v":""}]
[null,null,null,null,null,null,null,null,null,null,null,null,null,null,null,null,null,null,null,null,null,null,null,null,null,null,null,null,null,{"$f":"IF($AC$2:$AC$1001=\"\",\"\",VLOOKUP($AC$2:$AC$1001,Χρονοδιάγραμμα[],2,FALSE))","v":""}]
[null,null,null,null,null,null,null,null,null,null,null,null,null,null,null,null,null,null,null,null,null,null,null,null,null,null,null,null,null,{"$f":"IF($AC$2:$AC$1001=\"\",\"\",VLOOKUP($AC$2:$AC$1001,Χρονοδιάγραμμα[],2,FALSE))","v":""}]
[null,null,null,null,null,null,null,null,null,null,null,null,null,null,null,null,null,null,null,null,null,null,null,null,null,null,null,null,null,{"$f":"IF($AC$2:$AC$1001=\"\",\"\",VLOOKUP($AC$2:$AC$1001,Χρονοδιάγραμμα[],2,FALSE))","v":""}]
[null,null,null,null,null,null,null,null,null,null,null,null,null,null,null,null,null,null,null,null,null,null,null,null,null,null,null,null,null,{"$f":"IF($AC$2:$AC$1001=\"\",\"\",VLOOKUP($AC$2:$AC$1001,Χρονοδιάγραμμα[],2,FALSE))","v":""}]
[null,null,null,null,null,null,null,null,null,null,null,null,null,null,null,null,null,null,null,null,null,null,null,null,null,null,null,null,null,{"$f":"IF($AC$2:$AC$1001=\"\",\"\",VLOOKUP($AC$2:$AC$1001,Χρονοδιάγραμμα[],2,FALSE))","v":""}]
[null,null,null,null,null,null,null,null,null,null,null,null,null,null,null,null,null,null,null,null,null,null,null,null,null,null,null,null,null,{"$f":"IF($AC$2:$AC$1001=\"\",\"\",VLOOKUP($AC$2:$AC$1001,Χρονοδιάγραμμα[],2,FALSE))","v":""}]
[null,null,null,null,null,null,null,null,null,null,null,null,null,null,null,null,null,null,null,null,null,null,null,null,null,null,null,null,null,{"$f":"IF($AC$2:$AC$1001=\"\",\"\",VLOOKUP($AC$2:$AC$1001,Χρονοδιάγραμμα[],2,FALSE))","v":""}]
[null,null,null,null,null,null,null,null,null,null,null,null,null,null,null,null,null,null,null,null,null,null,null,null,null,null,null,null,null,{"$f":"IF($AC$2:$AC$1001=\"\",\"\",VLOOKUP($AC$2:$AC$1001,Χρονοδιάγραμμα[],2,FALSE))","v":""}]
[null,null,null,null,null,null,null,null,null,null,null,null,null,null,null,null,null,null,null,null,null,null,null,null,null,null,null,null,null,{"$f":"IF($AC$2:$AC$1001=\"\",\"\",VLOOKUP($AC$2:$AC$1001,Χρονοδιάγραμμα[],2,FALSE))","v":""}]
[null,null,null,null,null,null,null,null,null,null,null,null,null,null,null,null,null,null,null,null,null,null,null,null,null,null,null,null,null,{"$f":"IF($AC$2:$AC$1001=\"\",\"\",VLOOKUP($AC$2:$AC$1001,Χρονοδιάγραμμα[],2,FALSE))","v":""}]
[null,null,null,null,null,null,null,null,null,null,null,null,null,null,null,null,null,null,null,null,null,null,null,null,null,null,null,null,null,{"$f":"IF($AC$2:$AC$1001=\"\",\"\",VLOOKUP($AC$2:$AC$1001,Χρονοδιάγραμμα[],2,FALSE))","v":""}]
[null,null,null,null,null,null,null,null,null,null,null,null,null,null,null,null,null,null,null,null,null,null,null,null,null,null,null,null,null,{"$f":"IF($AC$2:$AC$1001=\"\",\"\",VLOOKUP($AC$2:$AC$1001,Χρονοδιάγραμμα[],2,FALSE))","v":""}]
[null,null,null,null,null,null,null,null,null,null,null,null,null,null,null,null,null,null,null,null,null,null,null,null,null,null,null,null,null,{"$f":"IF($AC$2:$AC$1001=\"\",\"\",VLOOKUP($AC$2:$AC$1001,Χρονοδιάγραμμα[],2,FALSE))","v":""}]
[null,null,null,null,null,null,null,null,null,null,null,null,null,null,null,null,null,null,null,null,null,null,null,null,null,null,null,null,null,{"$f":"IF($AC$2:$AC$1001=\"\",\"\",VLOOKUP($AC$2:$AC$1001,Χρονοδιάγραμμα[],2,FALSE))","v":""}]
[null,null,null,null,null,null,null,null,null,null,null,null,null,null,null,null,null,null,null,null,null,null,null,null,null,null,null,null,null,{"$f":"IF($AC$2:$AC$1001=\"\",\"\",VLOOKUP($AC$2:$AC$1001,Χρονοδιάγραμμα[],2,FALSE))","v":""}]
[null,null,null,null,null,null,null,null,null,null,null,null,null,null,null,null,null,null,null,null,null,null,null,null,null,null,null,null,null,{"$f":"IF($AC$2:$AC$1001=\"\",\"\",VLOOKUP($AC$2:$AC$1001,Χρονοδιάγραμμα[],2,FALSE))","v":""}]
[null,null,null,null,null,null,null,null,null,null,null,null,null,null,null,null,null,null,null,null,null,null,null,null,null,null,null,null,null,{"$f":"IF($AC$2:$AC$1001=\"\",\"\",VLOOKUP($AC$2:$AC$1001,Χρονοδιάγραμμα[],2,FALSE))","v":""}]
[null,null,null,null,null,null,null,null,null,null,null,null,null,null,null,null,null,null,null,null,null,null,null,null,null,null,null,null,null,{"$f":"IF($AC$2:$AC$1001=\"\",\"\",VLOOKUP($AC$2:$AC$1001,Χρονοδιάγραμμα[],2,FALSE))","v":""}]
[null,null,null,null,null,null,null,null,null,null,null,null,null,null,null,null,null,null,null,null,null,null,null,null,null,null,null,null,null,{"$f":"IF($AC$2:$AC$1001=\"\",\"\",VLOOKUP($AC$2:$AC$1001,Χρονοδιάγραμμα[],2,FALSE))","v":""}]
[null,null,null,null,null,null,null,null,null,null,null,null,null,null,null,null,null,null,null,null,null,null,null,null,null,null,null,null,null,{"$f":"IF($AC$2:$AC$1001=\"\",\"\",VLOOKUP($AC$2:$AC$1001,Χρονοδιάγραμμα[],2,FALSE))","v":""}]
[null,null,null,null,null,null,null,null,null,null,null,null,null,null,null,null,null,null,null,null,null,null,null,null,null,null,null,null,null,{"$f":"IF($AC$2:$AC$1001=\"\",\"\",VLOOKUP($AC$2:$AC$1001,Χρονοδιάγραμμα[],2,FALSE))","v":""}]
[null,null,null,null,null,null,null,null,null,null,null,null,null,null,null,null,null,null,null,null,null,null,null,null,null,null,null,null,null,{"$f":"IF($AC$2:$AC$1001=\"\",\"\",VLOOKUP($AC$2:$AC$1001,Χρονοδιάγραμμα[],2,FALSE))","v":""}]
[null,null,null,null,null,null,null,null,null,null,null,null,null,null,null,null,null,null,null,null,null,null,null,null,null,null,null,null,null,{"$f":"IF($AC$2:$AC$1001=\"\",\"\",VLOOKUP($AC$2:$AC$1001,Χρονοδιάγραμμα[],2,FALSE))","v":""}]
[null,null,null,null,null,null,null,null,null,null,null,null,null,null,null,null,null,null,null,null,null,null,null,null,null,null,null,null,null,{"$f":"IF($AC$2:$AC$1001=\"\",\"\",VLOOKUP($AC$2:$AC$1001,Χρονοδιάγραμμα[],2,FALSE))","v":""}]
[null,null,null,null,null,null,null,null,null,null,null,null,null,null,null,null,null,null,null,null,null,null,null,null,null,null,null,null,null,{"$f":"IF($AC$2:$AC$1001=\"\",\"\",VLOOKUP($AC$2:$AC$1001,Χρονοδιάγραμμα[],2,FALSE))","v":""}]
[null,null,null,null,null,null,null,null,null,null,null,null,null,null,null,null,null,null,null,null,null,null,null,null,null,null,null,null,null,{"$f":"IF($AC$2:$AC$1001=\"\",\"\",VLOOKUP($AC$2:$AC$1001,Χρονοδιάγραμμα[],2,FALSE))","v":""}]
[null,null,null,null,null,null,null,null,null,null,null,null,null,null,null,null,null,null,null,null,null,null,null,null,null,null,null,null,null,{"$f":"IF($AC$2:$AC$1001=\"\",\"\",VLOOKUP($AC$2:$AC$1001,Χρονοδιάγραμμα[],2,FALSE))","v":""}]
[null,null,null,null,null,null,null,null,null,null,null,null,null,null,null,null,null,null,null,null,null,null,null,null,null,null,null,null,null,{"$f":"IF($AC$2:$AC$1001=\"\",\"\",VLOOKUP($AC$2:$AC$1001,Χρονοδιάγραμμα[],2,FALSE))","v":""}]
[null,null,null,null,null,null,null,null,null,null,null,null,null,null,null,null,null,null,null,null,null,null,null,null,null,null,null,null,null,{"$f":"IF($AC$2:$AC$1001=\"\",\"\",VLOOKUP($AC$2:$AC$1001,Χρονοδιάγραμμα[],2,FALSE))","v":""}]
[null,null,null,null,null,null,null,null,null,null,null,null,null,null,null,null,null,null,null,null,null,null,null,null,null,null,null,null,null,{"$f":"IF($AC$2:$AC$1001=\"\",\"\",VLOOKUP($AC$2:$AC$1001,Χρονοδιάγραμμα[],2,FALSE))","v":""}]
[null,null,null,null,null,null,null,null,null,null,null,null,null,null,null,null,null,null,null,null,null,null,null,null,null,null,null,null,null,{"$f":"IF($AC$2:$AC$1001=\"\",\"\",VLOOKUP($AC$2:$AC$1001,Χρονοδιάγραμμα[],2,FALSE))","v":""}]
[null,null,null,null,null,null,null,null,null,null,null,null,null,null,null,null,null,null,null,null,null,null,null,null,null,null,null,null,null,{"$f":"IF($AC$2:$AC$1001=\"\",\"\",VLOOKUP($AC$2:$AC$1001,Χρονοδιάγραμμα[],2,FALSE))","v":""}]
[null,null,null,null,null,null,null,null,null,null,null,null,null,null,null,null,null,null,null,null,null,null,null,null,null,null,null,null,null,{"$f":"IF($AC$2:$AC$1001=\"\",\"\",VLOOKUP($AC$2:$AC$1001,Χρονοδιάγραμμα[],2,FALSE))","v":""}]
[null,null,null,null,null,null,null,null,null,null,null,null,null,null,null,null,null,null,null,null,null,null,null,null,null,null,null,null,null,{"$f":"IF($AC$2:$AC$1001=\"\",\"\",VLOOKUP($AC$2:$AC$1001,Χρονοδιάγραμμα[],2,FALSE))","v":""}]
[null,null,null,null,null,null,null,null,null,null,null,null,null,null,null,null,null,null,null,null,null,null,null,null,null,null,null,null,null,{"$f":"IF($AC$2:$AC$1001=\"\",\"\",VLOOKUP($AC$2:$AC$1001,Χρονοδιάγραμμα[],2,FALSE))","v":""}]
[null,null,null,null,null,null,null,null,null,null,null,null,null,null,null,null,null,null,null,null,null,null,null,null,null,null,null,null,null,{"$f":"IF($AC$2:$AC$1001=\"\",\"\",VLOOKUP($AC$2:$AC$1001,Χρονοδιάγραμμα[],2,FALSE))","v":""}]
[null,null,null,null,null,null,null,null,null,null,null,null,null,null,null,null,null,null,null,null,null,null,null,null,null,null,null,null,null,{"$f":"IF($AC$2:$AC$1001=\"\",\"\",VLOOKUP($AC$2:$AC$1001,Χρονοδιάγραμμα[],2,FALSE))","v":""}]
[null,null,null,null,null,null,null,null,null,null,null,null,null,null,null,null,null,null,null,null,null,null,null,null,null,null,null,null,null,{"$f":"IF($AC$2:$AC$1001=\"\",\"\",VLOOKUP($AC$2:$AC$1001,Χρονοδιάγραμμα[],2,FALSE))","v":""}]
[null,null,null,null,null,null,null,null,null,null,null,null,null,null,null,null,null,null,null,null,null,null,null,null,null,null,null,null,null,{"$f":"IF($AC$2:$AC$1001=\"\",\"\",VLOOKUP($AC$2:$AC$1001,Χρονοδιάγραμμα[],2,FALSE))","v":""}]
[null,null,null,null,null,null,null,null,null,null,null,null,null,null,null,null,null,null,null,null,null,null,null,null,null,null,null,null,null,{"$f":"IF($AC$2:$AC$1001=\"\",\"\",VLOOKUP($AC$2:$AC$1001,Χρονοδιάγραμμα[],2,FALSE))","v":""}]
[null,null,null,null,null,null,null,null,null,null,null,null,null,null,null,null,null,null,null,null,null,null,null,null,null,null,null,null,null,{"$f":"IF($AC$2:$AC$1001=\"\",\"\",VLOOKUP($AC$2:$AC$1001,Χρονοδιάγραμμα[],2,FALSE))","v":""}]
[null,null,null,null,null,null,null,null,null,null,null,null,null,null,null,null,null,null,null,null,null,null,null,null,null,null,null,null,null,{"$f":"IF($AC$2:$AC$1001=\"\",\"\",VLOOKUP($AC$2:$AC$1001,Χρονοδιάγραμμα[],2,FALSE))","v":""}]
[null,null,null,null,null,null,null,null,null,null,null,null,null,null,null,null,null,null,null,null,null,null,null,null,null,null,null,null,null,{"$f":"IF($AC$2:$AC$1001=\"\",\"\",VLOOKUP($AC$2:$AC$1001,Χρονοδιάγραμμα[],2,FALSE))","v":""}]
[null,null,null,null,null,null,null,null,null,null,null,null,null,null,null,null,null,null,null,null,null,null,null,null,null,null,null,null,null,{"$f":"IF($AC$2:$AC$1001=\"\",\"\",VLOOKUP($AC$2:$AC$1001,Χρονοδιάγραμμα[],2,FALSE))","v":""}]
[null,null,null,null,null,null,null,null,null,null,null,null,null,null,null,null,null,null,null,null,null,null,null,null,null,null,null,null,null,{"$f":"IF($AC$2:$AC$1001=\"\",\"\",VLOOKUP($AC$2:$AC$1001,Χρονοδιάγραμμα[],2,FALSE))","v":""}]
[null,null,null,null,null,null,null,null,null,null,null,null,null,null,null,null,null,null,null,null,null,null,null,null,null,null,null,null,null,{"$f":"IF($AC$2:$AC$1001=\"\",\"\",VLOOKUP($AC$2:$AC$1001,Χρονοδιάγραμμα[],2,FALSE))","v":""}]
[null,null,null,null,null,null,null,null,null,null,null,null,null,null,null,null,null,null,null,null,null,null,null,null,null,null,null,null,null,{"$f":"IF($AC$2:$AC$1001=\"\",\"\",VLOOKUP($AC$2:$AC$1001,Χρονοδιάγραμμα[],2,FALSE))","v":""}]
[null,null,null,null,null,null,null,null,null,null,null,null,null,null,null,null,null,null,null,null,null,null,null,null,null,null,null,null,null,{"$f":"IF($AC$2:$AC$1001=\"\",\"\",VLOOKUP($AC$2:$AC$1001,Χρονοδιάγραμμα[],2,FALSE))","v":""}]
[null,null,null,null,null,null,null,null,null,null,null,null,null,null,null,null,null,null,null,null,null,null,null,null,null,null,null,null,null,{"$f":"IF($AC$2:$AC$1001=\"\",\"\",VLOOKUP($AC$2:$AC$1001,Χρονοδιάγραμμα[],2,FALSE))","v":""}]
[null,null,null,null,null,null,null,null,null,null,null,null,null,null,null,null,null,null,null,null,null,null,null,null,null,null,null,null,null,{"$f":"IF($AC$2:$AC$1001=\"\",\"\",VLOOKUP($AC$2:$AC$1001,Χρονοδιάγραμμα[],2,FALSE))","v":""}]
[null,null,null,null,null,null,null,null,null,null,null,null,null,null,null,null,null,null,null,null,null,null,null,null,null,null,null,null,null,{"$f":"IF($AC$2:$AC$1001=\"\",\"\",VLOOKUP($AC$2:$AC$1001,Χρονοδιάγραμμα[],2,FALSE))","v":""}]
[null,null,null,null,null,null,null,null,null,null,null,null,null,null,null,null,null,null,null,null,null,null,null,null,null,null,null,null,null,{"$f":"IF($AC$2:$AC$1001=\"\",\"\",VLOOKUP($AC$2:$AC$1001,Χρονοδιάγραμμα[],2,FALSE))","v":""}]
[null,null,null,null,null,null,null,null,null,null,null,null,null,null,null,null,null,null,null,null,null,null,null,null,null,null,null,null,null,{"$f":"IF($AC$2:$AC$1001=\"\",\"\",VLOOKUP($AC$2:$AC$1001,Χρονοδιάγραμμα[],2,FALSE))","v":""}]
[null,null,null,null,null,null,null,null,null,null,null,null,null,null,null,null,null,null,null,null,null,null,null,null,null,null,null,null,null,{"$f":"IF($AC$2:$AC$1001=\"\",\"\",VLOOKUP($AC$2:$AC$1001,Χρονοδιάγραμμα[],2,FALSE))","v":""}]
[null,null,null,null,null,null,null,null,null,null,null,null,null,null,null,null,null,null,null,null,null,null,null,null,null,null,null,null,null,{"$f":"IF($AC$2:$AC$1001=\"\",\"\",VLOOKUP($AC$2:$AC$1001,Χρονοδιάγραμμα[],2,FALSE))","v":""}]
[null,null,null,null,null,null,null,null,null,null,null,null,null,null,null,null,null,null,null,null,null,null,null,null,null,null,null,null,null,{"$f":"IF($AC$2:$AC$1001=\"\",\"\",VLOOKUP($AC$2:$AC$1001,Χρονοδιάγραμμα[],2,FALSE))","v":""}]
[null,null,null,null,null,null,null,null,null,null,null,null,null,null,null,null,null,null,null,null,null,null,null,null,null,null,null,null,null,{"$f":"IF($AC$2:$AC$1001=\"\",\"\",VLOOKUP($AC$2:$AC$1001,Χρονοδιάγραμμα[],2,FALSE))","v":""}]
[null,null,null,null,null,null,null,null,null,null,null,null,null,null,null,null,null,null,null,null,null,null,null,null,null,null,null,null,null,{"$f":"IF($AC$2:$AC$1001=\"\",\"\",VLOOKUP($AC$2:$AC$1001,Χρονοδιάγραμμα[],2,FALSE))","v":""}]
[null,null,null,null,null,null,null,null,null,null,null,null,null,null,null,null,null,null,null,null,null,null,null,null,null,null,null,null,null,{"$f":"IF($AC$2:$AC$1001=\"\",\"\",VLOOKUP($AC$2:$AC$1001,Χρονοδιάγραμμα[],2,FALSE))","v":""}]
[null,null,null,null,null,null,null,null,null,null,null,null,null,null,null,null,null,null,null,null,null,null,null,null,null,null,null,null,null,{"$f":"IF($AC$2:$AC$1001=\"\",\"\",VLOOKUP($AC$2:$AC$1001,Χρονοδιάγραμμα[],2,FALSE))","v":""}]
[null,null,null,null,null,null,null,null,null,null,null,null,null,null,null,null,null,null,null,null,null,null,null,null,null,null,null,null,null,{"$f":"IF($AC$2:$AC$1001=\"\",\"\",VLOOKUP($AC$2:$AC$1001,Χρονοδιάγραμμα[],2,FALSE))","v":""}]
[null,null,null,null,null,null,null,null,null,null,null,null,null,null,null,null,null,null,null,null,null,null,null,null,null,null,null,null,null,{"$f":"IF($AC$2:$AC$1001=\"\",\"\",VLOOKUP($AC$2:$AC$1001,Χρονοδιάγραμμα[],2,FALSE))","v":""}]
[null,null,null,null,null,null,null,null,null,null,null,null,null,null,null,null,null,null,null,null,null,null,null,null,null,null,null,null,null,{"$f":"IF($AC$2:$AC$1001=\"\",\"\",VLOOKUP($AC$2:$AC$1001,Χρονοδιάγραμμα[],2,FALSE))","v":""}]
[null,null,null,null,null,null,null,null,null,null,null,null,null,null,null,null,null,null,null,null,null,null,null,null,null,null,null,null,null,{"$f":"IF($AC$2:$AC$1001=\"\",\"\",VLOOKUP($AC$2:$AC$1001,Χρονοδιάγραμμα[],2,FALSE))","v":""}]
[null,null,null,null,null,null,null,null,null,null,null,null,null,null,null,null,null,null,null,null,null,null,null,null,null,null,null,null,null,{"$f":"IF($AC$2:$AC$1001=\"\",\"\",VLOOKUP($AC$2:$AC$1001,Χρονοδιάγραμμα[],2,FALSE))","v":""}]
[null,null,null,null,null,null,null,null,null,null,null,null,null,null,null,null,null,null,null,null,null,null,null,null,null,null,null,null,null,{"$f":"IF($AC$2:$AC$1001=\"\",\"\",VLOOKUP($AC$2:$AC$1001,Χρονοδιάγραμμα[],2,FALSE))","v":""}]
[null,null,null,null,null,null,null,null,null,null,null,null,null,null,null,null,null,null,null,null,null,null,null,null,null,null,null,null,null,{"$f":"IF($AC$2:$AC$1001=\"\",\"\",VLOOKUP($AC$2:$AC$1001,Χρονοδιάγραμμα[],2,FALSE))","v":""}]
[null,null,null,null,null,null,null,null,null,null,null,null,null,null,null,null,null,null,null,null,null,null,null,null,null,null,null,null,null,{"$f":"IF($AC$2:$AC$1001=\"\",\"\",VLOOKUP($AC$2:$AC$1001,Χρονοδιάγραμμα[],2,FALSE))","v":""}]
[null,null,null,null,null,null,null,null,null,null,null,null,null,null,null,null,null,null,null,null,null,null,null,null,null,null,null,null,null,{"$f":"IF($AC$2:$AC$1001=\"\",\"\",VLOOKUP($AC$2:$AC$1001,Χρονοδιάγραμμα[],2,FALSE))","v":""}]
[null,null,null,null,null,null,null,null,null,null,null,null,null,null,null,null,null,null,null,null,null,null,null,null,null,null,null,null,null,{"$f":"IF($AC$2:$AC$1001=\"\",\"\",VLOOKUP($AC$2:$AC$1001,Χρονοδιάγραμμα[],2,FALSE))","v":""}]
[null,null,null,null,null,null,null,null,null,null,null,null,null,null,null,null,null,null,null,null,null,null,null,null,null,null,null,null,null,{"$f":"IF($AC$2:$AC$1001=\"\",\"\",VLOOKUP($AC$2:$AC$1001,Χρονοδιάγραμμα[],2,FALSE))","v":""}]
[null,null,null,null,null,null,null,null,null,null,null,null,null,null,null,null,null,null,null,null,null,null,null,null,null,null,null,null,null,{"$f":"IF($AC$2:$AC$1001=\"\",\"\",VLOOKUP($AC$2:$AC$1001,Χρονοδιάγραμμα[],2,FALSE))","v":""}]
[null,null,null,null,null,null,null,null,null,null,null,null,null,null,null,null,null,null,null,null,null,null,null,null,null,null,null,null,null,{"$f":"IF($AC$2:$AC$1001=\"\",\"\",VLOOKUP($AC$2:$AC$1001,Χρονοδιάγραμμα[],2,FALSE))","v":""}]
[null,null,null,null,null,null,null,null,null,null,null,null,null,null,null,null,null,null,null,null,null,null,null,null,null,null,null,null,null,{"$f":"IF($AC$2:$AC$1001=\"\",\"\",VLOOKUP($AC$2:$AC$1001,Χρονοδιάγραμμα[],2,FALSE))","v":""}]
[null,null,null,null,null,null,null,null,null,null,null,null,null,null,null,null,null,null,null,null,null,null,null,null,null,null,null,null,null,{"$f":"IF($AC$2:$AC$1001=\"\",\"\",VLOOKUP($AC$2:$AC$1001,Χρονοδιάγραμμα[],2,FALSE))","v":""}]
[null,null,null,null,null,null,null,null,null,null,null,null,null,null,null,null,null,null,null,null,null,null,null,null,null,null,null,null,null,{"$f":"IF($AC$2:$AC$1001=\"\",\"\",VLOOKUP($AC$2:$AC$1001,Χρονοδιάγραμμα[],2,FALSE))","v":""}]
[null,null,null,null,null,null,null,null,null,null,null,null,null,null,null,null,null,null,null,null,null,null,null,null,null,null,null,null,null,{"$f":"IF($AC$2:$AC$1001=\"\",\"\",VLOOKUP($AC$2:$AC$1001,Χρονοδιάγραμμα[],2,FALSE))","v":""}]
[null,null,null,null,null,null,null,null,null,null,null,null,null,null,null,null,null,null,null,null,null,null,null,null,null,null,null,null,null,{"$f":"IF($AC$2:$AC$1001=\"\",\"\",VLOOKUP($AC$2:$AC$1001,Χρονοδιάγραμμα[],2,FALSE))","v":""}]
[null,null,null,null,null,null,null,null,null,null,null,null,null,null,null,null,null,null,null,null,null,null,null,null,null,null,null,null,null,{"$f":"IF($AC$2:$AC$1001=\"\",\"\",VLOOKUP($AC$2:$AC$1001,Χρονοδιάγραμμα[],2,FALSE))","v":""}]
[null,null,null,null,null,null,null,null,null,null,null,null,null,null,null,null,null,null,null,null,null,null,null,null,null,null,null,null,null,{"$f":"IF($AC$2:$AC$1001=\"\",\"\",VLOOKUP($AC$2:$AC$1001,Χρονοδιάγραμμα[],2,FALSE))","v":""}]
[null,null,null,null,null,null,null,null,null,null,null,null,null,null,null,null,null,null,null,null,null,null,null,null,null,null,null,null,null,{"$f":"IF($AC$2:$AC$1001=\"\",\"\",VLOOKUP($AC$2:$AC$1001,Χρονοδιάγραμμα[],2,FALSE))","v":""}]
[null,null,null,null,null,null,null,null,null,null,null,null,null,null,null,null,null,null,null,null,null,null,null,null,null,null,null,null,null,{"$f":"IF($AC$2:$AC$1001=\"\",\"\",VLOOKUP($AC$2:$AC$1001,Χρονοδιάγραμμα[],2,FALSE))","v":""}]
[null,null,null,null,null,null,null,null,null,null,null,null,null,null,null,null,null,null,null,null,null,null,null,null,null,null,null,null,null,{"$f":"IF($AC$2:$AC$1001=\"\",\"\",VLOOKUP($AC$2:$AC$1001,Χρονοδιάγραμμα[],2,FALSE))","v":""}]
[null,null,null,null,null,null,null,null,null,null,null,null,null,null,null,null,null,null,null,null,null,null,null,null,null,null,null,null,null,{"$f":"IF($AC$2:$AC$1001=\"\",\"\",VLOOKUP($AC$2:$AC$1001,Χρονοδιάγραμμα[],2,FALSE))","v":""}]
[null,null,null,null,null,null,null,null,null,null,null,null,null,null,null,null,null,null,null,null,null,null,null,null,null,null,null,null,null,{"$f":"IF($AC$2:$AC$1001=\"\",\"\",VLOOKUP($AC$2:$AC$1001,Χρονοδιάγραμμα[],2,FALSE))","v":""}]
[null,null,null,null,null,null,null,null,null,null,null,null,null,null,null,null,null,null,null,null,null,null,null,null,null,null,null,null,null,{"$f":"IF($AC$2:$AC$1001=\"\",\"\",VLOOKUP($AC$2:$AC$1001,Χρονοδιάγραμμα[],2,FALSE))","v":""}]
[null,null,null,null,null,null,null,null,null,null,null,null,null,null,null,null,null,null,null,null,null,null,null,null,null,null,null,null,null,{"$f":"IF($AC$2:$AC$1001=\"\",\"\",VLOOKUP($AC$2:$AC$1001,Χρονοδιάγραμμα[],2,FALSE))","v":""}]
[null,null,null,null,null,null,null,null,null,null,null,null,null,null,null,null,null,null,null,null,null,null,null,null,null,null,null,null,null,{"$f":"IF($AC$2:$AC$1001=\"\",\"\",VLOOKUP($AC$2:$AC$1001,Χρονοδιάγραμμα[],2,FALSE))","v":""}]
[null,null,null,null,null,null,null,null,null,null,null,null,null,null,null,null,null,null,null,null,null,null,null,null,null,null,null,null,null,{"$f":"IF($AC$2:$AC$1001=\"\",\"\",VLOOKUP($AC$2:$AC$1001,Χρονοδιάγραμμα[],2,FALSE))","v":""}]
[null,null,null,null,null,null,null,null,null,null,null,null,null,null,null,null,null,null,null,null,null,null,null,null,null,null,null,null,null,{"$f":"IF($AC$2:$AC$1001=\"\",\"\",VLOOKUP($AC$2:$AC$1001,Χρονοδιάγραμμα[],2,FALSE))","v":""}]
[null,null,null,null,null,null,null,null,null,null,null,null,null,null,null,null,null,null,null,null,null,null,null,null,null,null,null,null,null,{"$f":"IF($AC$2:$AC$1001=\"\",\"\",VLOOKUP($AC$2:$AC$1001,Χρονοδιάγραμμα[],2,FALSE))","v":""}]
[null,null,null,null,null,null,null,null,null,null,null,null,null,null,null,null,null,null,null,null,null,null,null,null,null,null,null,null,null,{"$f":"IF($AC$2:$AC$1001=\"\",\"\",VLOOKUP($AC$2:$AC$1001,Χρονοδιάγραμμα[],2,FALSE))","v":""}]
[null,null,null,null,null,null,null,null,null,null,null,null,null,null,null,null,null,null,null,null,null,null,null,null,null,null,null,null,null,{"$f":"IF($AC$2:$AC$1001=\"\",\"\",VLOOKUP($AC$2:$AC$1001,Χρονοδιάγραμμα[],2,FALSE))","v":""}]
[null,null,null,null,null,null,null,null,null,null,null,null,null,null,null,null,null,null,null,null,null,null,null,null,null,null,null,null,null,{"$f":"IF($AC$2:$AC$1001=\"\",\"\",VLOOKUP($AC$2:$AC$1001,Χρονοδιάγραμμα[],2,FALSE))","v":""}]
[null,null,null,null,null,null,null,null,null,null,null,null,null,null,null,null,null,null,null,null,null,null,null,null,null,null,null,null,null,{"$f":"IF($AC$2:$AC$1001=\"\",\"\",VLOOKUP($AC$2:$AC$1001,Χρονοδιάγραμμα[],2,FALSE))","v":""}]
[null,null,null,null,null,null,null,null,null,null,null,null,null,null,null,null,null,null,null,null,null,null,null,null,null,null,null,null,null,{"$f":"IF($AC$2:$AC$1001=\"\",\"\",VLOOKUP($AC$2:$AC$1001,Χρονοδιάγραμμα[],2,FALSE))","v":""}]
[null,null,null,null,null,null,null,null,null,null,null,null,null,null,null,null,null,null,null,null,null,null,null,null,null,null,null,null,null,{"$f":"IF($AC$2:$AC$1001=\"\",\"\",VLOOKUP($AC$2:$AC$1001,Χρονοδιάγραμμα[],2,FALSE))","v":""}]
[null,null,null,null,null,null,null,null,null,null,null,null,null,null,null,null,null,null,null,null,null,null,null,null,null,null,null,null,null,{"$f":"IF($AC$2:$AC$1001=\"\",\"\",VLOOKUP($AC$2:$AC$1001,Χρονοδιάγραμμα[],2,FALSE))","v":""}]
[null,null,null,null,null,null,null,null,null,null,null,null,null,null,null,null,null,null,null,null,null,null,null,null,null,null,null,null,null,{"$f":"IF($AC$2:$AC$1001=\"\",\"\",VLOOKUP($AC$2:$AC$1001,Χρονοδιάγραμμα[],2,FALSE))","v":""}]
[null,null,null,null,null,null,null,null,null,null,null,null,null,null,null,null,null,null,null,null,null,null,null,null,null,null,null,null,null,{"$f":"IF($AC$2:$AC$1001=\"\",\"\",VLOOKUP($AC$2:$AC$1001,Χρονοδιάγραμμα[],2,FALSE))","v":""}]
[null,null,null,null,null,null,null,null,null,null,null,null,null,null,null,null,null,null,null,null,null,null,null,null,null,null,null,null,null,{"$f":"IF($AC$2:$AC$1001=\"\",\"\",VLOOKUP($AC$2:$AC$1001,Χρονοδιάγραμμα[],2,FALSE))","v":""}]
[null,null,null,null,null,null,null,null,null,null,null,null,null,null,null,null,null,null,null,null,null,null,null,null,null,null,null,null,null,{"$f":"IF($AC$2:$AC$1001=\"\",\"\",VLOOKUP($AC$2:$AC$1001,Χρονοδιάγραμμα[],2,FALSE))","v":""}]
[null,null,null,null,null,null,null,null,null,null,null,null,null,null,null,null,null,null,null,null,null,null,null,null,null,null,null,null,null,{"$f":"IF($AC$2:$AC$1001=\"\",\"\",VLOOKUP($AC$2:$AC$1001,Χρονοδιάγραμμα[],2,FALSE))","v":""}]
[null,null,null,null,null,null,null,null,null,null,null,null,null,null,null,null,null,null,null,null,null,null,null,null,null,null,null,null,null,{"$f":"IF($AC$2:$AC$1001=\"\",\"\",VLOOKUP($AC$2:$AC$1001,Χρονοδιάγραμμα[],2,FALSE))","v":""}]
[null,null,null,null,null,null,null,null,null,null,null,null,null,null,null,null,null,null,null,null,null,null,null,null,null,null,null,null,null,{"$f":"IF($AC$2:$AC$1001=\"\",\"\",VLOOKUP($AC$2:$AC$1001,Χρονοδιάγραμμα[],2,FALSE))","v":""}]
[null,null,null,null,null,null,null,null,null,null,null,null,null,null,null,null,null,null,null,null,null,null,null,null,null,null,null,null,null,{"$f":"IF($AC$2:$AC$1001=\"\",\"\",VLOOKUP($AC$2:$AC$1001,Χρονοδιάγραμμα[],2,FALSE))","v":""}]
[null,null,null,null,null,null,null,null,null,null,null,null,null,null,null,null,null,null,null,null,null,null,null,null,null,null,null,null,null,{"$f":"IF($AC$2:$AC$1001=\"\",\"\",VLOOKUP($AC$2:$AC$1001,Χρονοδιάγραμμα[],2,FALSE))","v":""}]
[null,null,null,null,null,null,null,null,null,null,null,null,null,null,null,null,null,null,null,null,null,null,null,null,null,null,null,null,null,{"$f":"IF($AC$2:$AC$1001=\"\",\"\",VLOOKUP($AC$2:$AC$1001,Χρονοδιάγραμμα[],2,FALSE))","v":""}]
[null,null,null,null,null,null,null,null,null,null,null,null,null,null,null,null,null,null,null,null,null,null,null,null,null,null,null,null,null,{"$f":"IF($AC$2:$AC$1001=\"\",\"\",VLOOKUP($AC$2:$AC$1001,Χρονοδιάγραμμα[],2,FALSE))","v":""}]
[null,null,null,null,null,null,null,null,null,null,null,null,null,null,null,null,null,null,null,null,null,null,null,null,null,null,null,null,null,{"$f":"IF($AC$2:$AC$1001=\"\",\"\",VLOOKUP($AC$2:$AC$1001,Χρονοδιάγραμμα[],2,FALSE))","v":""}]
[null,null,null,null,null,null,null,null,null,null,null,null,null,null,null,null,null,null,null,null,null,null,null,null,null,null,null,null,null,{"$f":"IF($AC$2:$AC$1001=\"\",\"\",VLOOKUP($AC$2:$AC$1001,Χρονοδιάγραμμα[],2,FALSE))","v":""}]
[null,null,null,null,null,null,null,null,null,null,null,null,null,null,null,null,null,null,null,null,null,null,null,null,null,null,null,null,null,{"$f":"IF($AC$2:$AC$1001=\"\",\"\",VLOOKUP($AC$2:$AC$1001,Χρονοδιάγραμμα[],2,FALSE))","v":""}]
[null,null,null,null,null,null,null,null,null,null,null,null,null,null,null,null,null,null,null,null,null,null,null,null,null,null,null,null,null,{"$f":"IF($AC$2:$AC$1001=\"\",\"\",VLOOKUP($AC$2:$AC$1001,Χρονοδιάγραμμα[],2,FALSE))","v":""}]
[null,null,null,null,null,null,null,null,null,null,null,null,null,null,null,null,null,null,null,null,null,null,null,null,null,null,null,null,null,{"$f":"IF($AC$2:$AC$1001=\"\",\"\",VLOOKUP($AC$2:$AC$1001,Χρονοδιάγραμμα[],2,FALSE))","v":""}]
[null,null,null,null,null,null,null,null,null,null,null,null,null,null,null,null,null,null,null,null,null,null,null,null,null,null,null,null,null,{"$f":"IF($AC$2:$AC$1001=\"\",\"\",VLOOKUP($AC$2:$AC$1001,Χρονοδιάγραμμα[],2,FALSE))","v":""}]
[null,null,null,null,null,null,null,null,null,null,null,null,null,null,null,null,null,null,null,null,null,null,null,null,null,null,null,null,null,{"$f":"IF($AC$2:$AC$1001=\"\",\"\",VLOOKUP($AC$2:$AC$1001,Χρονοδιάγραμμα[],2,FALSE))","v":""}]
[null,null,null,null,null,null,null,null,null,null,null,null,null,null,null,null,null,null,null,null,null,null,null,null,null,null,null,null,null,{"$f":"IF($AC$2:$AC$1001=\"\",\"\",VLOOKUP($AC$2:$AC$1001,Χρονοδιάγραμμα[],2,FALSE))","v":""}]
[null,null,null,null,null,null,null,null,null,null,null,null,null,null,null,null,null,null,null,null,null,null,null,null,null,null,null,null,null,{"$f":"IF($AC$2:$AC$1001=\"\",\"\",VLOOKUP($AC$2:$AC$1001,Χρονοδιάγραμμα[],2,FALSE))","v":""}]
[null,null,null,null,null,null,null,null,null,null,null,null,null,null,null,null,null,null,null,null,null,null,null,null,null,null,null,null,null,{"$f":"IF($AC$2:$AC$1001=\"\",\"\",VLOOKUP($AC$2:$AC$1001,Χρονοδιάγραμμα[],2,FALSE))","v":""}]
[null,null,null,null,null,null,null,null,null,null,null,null,null,null,null,null,null,null,null,null,null,null,null,null,null,null,null,null,null,{"$f":"IF($AC$2:$AC$1001=\"\",\"\",VLOOKUP($AC$2:$AC$1001,Χρονοδιάγραμμα[],2,FALSE))","v":""}]
[null,null,null,null,null,null,null,null,null,null,null,null,null,null,null,null,null,null,null,null,null,null,null,null,null,null,null,null,null,{"$f":"IF($AC$2:$AC$1001=\"\",\"\",VLOOKUP($AC$2:$AC$1001,Χρονοδιάγραμμα[],2,FALSE))","v":""}]
[null,null,null,null,null,null,null,null,null,null,null,null,null,null,null,null,null,null,null,null,null,null,null,null,null,null,null,null,null,{"$f":"IF($AC$2:$AC$1001=\"\",\"\",VLOOKUP($AC$2:$AC$1001,Χρονοδιάγραμμα[],2,FALSE))","v":""}]
[null,null,null,null,null,null,null,null,null,null,null,null,null,null,null,null,null,null,null,null,null,null,null,null,null,null,null,null,null,{"$f":"IF($AC$2:$AC$1001=\"\",\"\",VLOOKUP($AC$2:$AC$1001,Χρονοδιάγραμμα[],2,FALSE))","v":""}]
[null,null,null,null,null,null,null,null,null,null,null,null,null,null,null,null,null,null,null,null,null,null,null,null,null,null,null,null,null,{"$f":"IF($AC$2:$AC$1001=\"\",\"\",VLOOKUP($AC$2:$AC$1001,Χρονοδιάγραμμα[],2,FALSE))","v":""}]
[null,null,null,null,null,null,null,null,null,null,null,null,null,null,null,null,null,null,null,null,null,null,null,null,null,null,null,null,null,{"$f":"IF($AC$2:$AC$1001=\"\",\"\",VLOOKUP($AC$2:$AC$1001,Χρονοδιάγραμμα[],2,FALSE))","v":""}]
[null,null,null,null,null,null,null,null,null,null,null,null,null,null,null,null,null,null,null,null,null,null,null,null,null,null,null,null,null,{"$f":"IF($AC$2:$AC$1001=\"\",\"\",VLOOKUP($AC$2:$AC$1001,Χρονοδιάγραμμα[],2,FALSE))","v":""}]
[null,null,null,null,null,null,null,null,null,null,null,null,null,null,null,null,null,null,null,null,null,null,null,null,null,null,null,null,null,{"$f":"IF($AC$2:$AC$1001=\"\",\"\",VLOOKUP($AC$2:$AC$1001,Χρονοδιάγραμμα[],2,FALSE))","v":""}]
[null,null,null,null,null,null,null,null,null,null,null,null,null,null,null,null,null,null,null,null,null,null,null,null,null,null,null,null,null,{"$f":"IF($AC$2:$AC$1001=\"\",\"\",VLOOKUP($AC$2:$AC$1001,Χρονοδιάγραμμα[],2,FALSE))","v":""}]
[null,null,null,null,null,null,null,null,null,null,null,null,null,null,null,null,null,null,null,null,null,null,null,null,null,null,null,null,null,{"$f":"IF($AC$2:$AC$1001=\"\",\"\",VLOOKUP($AC$2:$AC$1001,Χρονοδιάγραμμα[],2,FALSE))","v":""}]
[null,null,null,null,null,null,null,null,null,null,null,null,null,null,null,null,null,null,null,null,null,null,null,null,null,null,null,null,null,{"$f":"IF($AC$2:$AC$1001=\"\",\"\",VLOOKUP($AC$2:$AC$1001,Χρονοδιάγραμμα[],2,FALSE))","v":""}]
[null,null,null,null,null,null,null,null,null,null,null,null,null,null,null,null,null,null,null,null,null,null,null,null,null,null,null,null,null,{"$f":"IF($AC$2:$AC$1001=\"\",\"\",VLOOKUP($AC$2:$AC$1001,Χρονοδιάγραμμα[],2,FALSE))","v":""}]
[null,null,null,null,null,null,null,null,null,null,null,null,null,null,null,null,null,null,null,null,null,null,null,null,null,null,null,null,null,{"$f":"IF($AC$2:$AC$1001=\"\",\"\",VLOOKUP($AC$2:$AC$1001,Χρονοδιάγραμμα[],2,FALSE))","v":""}]
[null,null,null,null,null,null,null,null,null,null,null,null,null,null,null,null,null,null,null,null,null,null,null,null,null,null,null,null,null,{"$f":"IF($AC$2:$AC$1001=\"\",\"\",VLOOKUP($AC$2:$AC$1001,Χρονοδιάγραμμα[],2,FALSE))","v":""}]
[null,null,null,null,null,null,null,null,null,null,null,null,null,null,null,null,null,null,null,null,null,null,null,null,null,null,null,null,null,{"$f":"IF($AC$2:$AC$1001=\"\",\"\",VLOOKUP($AC$2:$AC$1001,Χρονοδιάγραμμα[],2,FALSE))","v":""}]
[null,null,null,null,null,null,null,null,null,null,null,null,null,null,null,null,null,null,null,null,null,null,null,null,null,null,null,null,null,{"$f":"IF($AC$2:$AC$1001=\"\",\"\",VLOOKUP($AC$2:$AC$1001,Χρονοδιάγραμμα[],2,FALSE))","v":""}]
[null,null,null,null,null,null,null,null,null,null,null,null,null,null,null,null,null,null,null,null,null,null,null,null,null,null,null,null,null,{"$f":"IF($AC$2:$AC$1001=\"\",\"\",VLOOKUP($AC$2:$AC$1001,Χρονοδιάγραμμα[],2,FALSE))","v":""}]
[null,null,null,null,null,null,null,null,null,null,null,null,null,null,null,null,null,null,null,null,null,null,null,null,null,null,null,null,null,{"$f":"IF($AC$2:$AC$1001=\"\",\"\",VLOOKUP($AC$2:$AC$1001,Χρονοδιάγραμμα[],2,FALSE))","v":""}]
[null,null,null,null,null,null,null,null,null,null,null,null,null,null,null,null,null,null,null,null,null,null,null,null,null,null,null,null,null,{"$f":"IF($AC$2:$AC$1001=\"\",\"\",VLOOKUP($AC$2:$AC$1001,Χρονοδιάγραμμα[],2,FALSE))","v":""}]
[null,null,null,null,null,null,null,null,null,null,null,null,null,null,null,null,null,null,null,null,null,null,null,null,null,null,null,null,null,{"$f":"IF($AC$2:$AC$1001=\"\",\"\",VLOOKUP($AC$2:$AC$1001,Χρονοδιάγραμμα[],2,FALSE))","v":""}]
[null,null,null,null,null,null,null,null,null,null,null,null,null,null,null,null,null,null,null,null,null,null,null,null,null,null,null,null,null,{"$f":"IF($AC$2:$AC$1001=\"\",\"\",VLOOKUP($AC$2:$AC$1001,Χρονοδιάγραμμα[],2,FALSE))","v":""}]
[null,null,null,null,null,null,null,null,null,null,null,null,null,null,null,null,null,null,null,null,null,null,null,null,null,null,null,null,null,{"$f":"IF($AC$2:$AC$1001=\"\",\"\",VLOOKUP($AC$2:$AC$1001,Χρονοδιάγραμμα[],2,FALSE))","v":""}]
[null,null,null,null,null,null,null,null,null,null,null,null,null,null,null,null,null,null,null,null,null,null,null,null,null,null,null,null,null,{"$f":"IF($AC$2:$AC$1001=\"\",\"\",VLOOKUP($AC$2:$AC$1001,Χρονοδιάγραμμα[],2,FALSE))","v":""}]
[null,null,null,null,null,null,null,null,null,null,null,null,null,null,null,null,null,null,null,null,null,null,null,null,null,null,null,null,null,{"$f":"IF($AC$2:$AC$1001=\"\",\"\",VLOOKUP($AC$2:$AC$1001,Χρονοδιάγραμμα[],2,FALSE))","v":""}]
[null,null,null,null,null,null,null,null,null,null,null,null,null,null,null,null,null,null,null,null,null,null,null,null,null,null,null,null,null,{"$f":"IF($AC$2:$AC$1001=\"\",\"\",VLOOKUP($AC$2:$AC$1001,Χρονοδιάγραμμα[],2,FALSE))","v":""}]
[null,null,null,null,null,null,null,null,null,null,null,null,null,null,null,null,null,null,null,null,null,null,null,null,null,null,null,null,null,{"$f":"IF($AC$2:$AC$1001=\"\",\"\",VLOOKUP($AC$2:$AC$1001,Χρονοδιάγραμμα[],2,FALSE))","v":""}]
[null,null,null,null,null,null,null,null,null,null,null,null,null,null,null,null,null,null,null,null,null,null,null,null,null,null,null,null,null,{"$f":"IF($AC$2:$AC$1001=\"\",\"\",VLOOKUP($AC$2:$AC$1001,Χρονοδιάγραμμα[],2,FALSE))","v":""}]
[null,null,null,null,null,null,null,null,null,null,null,null,null,null,null,null,null,null,null,null,null,null,null,null,null,null,null,null,null,{"$f":"IF($AC$2:$AC$1001=\"\",\"\",VLOOKUP($AC$2:$AC$1001,Χρονοδιάγραμμα[],2,FALSE))","v":""}]
[null,null,null,null,null,null,null,null,null,null,null,null,null,null,null,null,null,null,null,null,null,null,null,null,null,null,null,null,null,{"$f":"IF($AC$2:$AC$1001=\"\",\"\",VLOOKUP($AC$2:$AC$1001,Χρονοδιάγραμμα[],2,FALSE))","v":""}]
[null,null,null,null,null,null,null,null,null,null,null,null,null,null,null,null,null,null,null,null,null,null,null,null,null,null,null,null,null,{"$f":"IF($AC$2:$AC$1001=\"\",\"\",VLOOKUP($AC$2:$AC$1001,Χρονοδιάγραμμα[],2,FALSE))","v":""}]
[null,null,null,null,null,null,null,null,null,null,null,null,null,null,null,null,null,null,null,null,null,null,null,null,null,null,null,null,null,{"$f":"IF($AC$2:$AC$1001=\"\",\"\",VLOOKUP($AC$2:$AC$1001,Χρονοδιάγραμμα[],2,FALSE))","v":""}]
[null,null,null,null,null,null,null,null,null,null,null,null,null,null,null,null,null,null,null,null,null,null,null,null,null,null,null,null,null,{"$f":"IF($AC$2:$AC$1001=\"\",\"\",VLOOKUP($AC$2:$AC$1001,Χρονοδιάγραμμα[],2,FALSE))","v":""}]
[null,null,null,null,null,null,null,null,null,null,null,null,null,null,null,null,null,null,null,null,null,null,null,null,null,null,null,null,null,{"$f":"IF($AC$2:$AC$1001=\"\",\"\",VLOOKUP($AC$2:$AC$1001,Χρονοδιάγραμμα[],2,FALSE))","v":""}]
[null,null,null,null,null,null,null,null,null,null,null,null,null,null,null,null,null,null,null,null,null,null,null,null,null,null,null,null,null,{"$f":"IF($AC$2:$AC$1001=\"\",\"\",VLOOKUP($AC$2:$AC$1001,Χρονοδιάγραμμα[],2,FALSE))","v":""}]
[null,null,null,null,null,null,null,null,null,null,null,null,null,null,null,null,null,null,null,null,null,null,null,null,null,null,null,null,null,{"$f":"IF($AC$2:$AC$1001=\"\",\"\",VLOOKUP($AC$2:$AC$1001,Χρονοδιάγραμμα[],2,FALSE))","v":""}]
[null,null,null,null,null,null,null,null,null,null,null,null,null,null,null,null,null,null,null,null,null,null,null,null,null,null,null,null,null,{"$f":"IF($AC$2:$AC$1001=\"\",\"\",VLOOKUP($AC$2:$AC$1001,Χρονοδιάγραμμα[],2,FALSE))","v":""}]
[null,null,null,null,null,null,null,null,null,null,null,null,null,null,null,null,null,null,null,null,null,null,null,null,null,null,null,null,null,{"$f":"IF($AC$2:$AC$1001=\"\",\"\",VLOOKUP($AC$2:$AC$1001,Χρονοδιάγραμμα[],2,FALSE))","v":""}]
[null,null,null,null,null,null,null,null,null,null,null,null,null,null,null,null,null,null,null,null,null,null,null,null,null,null,null,null,null,{"$f":"IF($AC$2:$AC$1001=\"\",\"\",VLOOKUP($AC$2:$AC$1001,Χρονοδιάγραμμα[],2,FALSE))","v":""}]
[null,null,null,null,null,null,null,null,null,null,null,null,null,null,null,null,null,null,null,null,null,null,null,null,null,null,null,null,null,{"$f":"IF($AC$2:$AC$1001=\"\",\"\",VLOOKUP($AC$2:$AC$1001,Χρονοδιάγραμμα[],2,FALSE))","v":""}]
[null,null,null,null,null,null,null,null,null,null,null,null,null,null,null,null,null,null,null,null,null,null,null,null,null,null,null,null,null,{"$f":"IF($AC$2:$AC$1001=\"\",\"\",VLOOKUP($AC$2:$AC$1001,Χρονοδιάγραμμα[],2,FALSE))","v":""}]
[null,null,null,null,null,null,null,null,null,null,null,null,null,null,null,null,null,null,null,null,null,null,null,null,null,null,null,null,null,{"$f":"IF($AC$2:$AC$1001=\"\",\"\",VLOOKUP($AC$2:$AC$1001,Χρονοδιάγραμμα[],2,FALSE))","v":""}]
[null,null,null,null,null,null,null,null,null,null,null,null,null,null,null,null,null,null,null,null,null,null,null,null,null,null,null,null,null,{"$f":"IF($AC$2:$AC$1001=\"\",\"\",VLOOKUP($AC$2:$AC$1001,Χρονοδιάγραμμα[],2,FALSE))","v":""}]
[null,null,null,null,null,null,null,null,null,null,null,null,null,null,null,null,null,null,null,null,null,null,null,null,null,null,null,null,null,{"$f":"IF($AC$2:$AC$1001=\"\",\"\",VLOOKUP($AC$2:$AC$1001,Χρονοδιάγραμμα[],2,FALSE))","v":""}]
[null,null,null,null,null,null,null,null,null,null,null,null,null,null,null,null,null,null,null,null,null,null,null,null,null,null,null,null,null,{"$f":"IF($AC$2:$AC$1001=\"\",\"\",VLOOKUP($AC$2:$AC$1001,Χρονοδιάγραμμα[],2,FALSE))","v":""}]
[null,null,null,null,null,null,null,null,null,null,null,null,null,null,null,null,null,null,null,null,null,null,null,null,null,null,null,null,null,{"$f":"IF($AC$2:$AC$1001=\"\",\"\",VLOOKUP($AC$2:$AC$1001,Χρονοδιάγραμμα[],2,FALSE))","v":""}]
[null,null,null,null,null,null,null,null,null,null,null,null,null,null,null,null,null,null,null,null,null,null,null,null,null,null,null,null,null,{"$f":"IF($AC$2:$AC$1001=\"\",\"\",VLOOKUP($AC$2:$AC$1001,Χρονοδιάγραμμα[],2,FALSE))","v":""}]
[null,null,null,null,null,null,null,null,null,null,null,null,null,null,null,null,null,null,null,null,null,null,null,null,null,null,null,null,null,{"$f":"IF($AC$2:$AC$1001=\"\",\"\",VLOOKUP($AC$2:$AC$1001,Χρονοδιάγραμμα[],2,FALSE))","v":""}]
[null,null,null,null,null,null,null,null,null,null,null,null,null,null,null,null,null,null,null,null,null,null,null,null,null,null,null,null,null,{"$f":"IF($AC$2:$AC$1001=\"\",\"\",VLOOKUP($AC$2:$AC$1001,Χρονοδιάγραμμα[],2,FALSE))","v":""}]
[null,null,null,null,null,null,null,null,null,null,null,null,null,null,null,null,null,null,null,null,null,null,null,null,null,null,null,null,null,{"$f":"IF($AC$2:$AC$1001=\"\",\"\",VLOOKUP($AC$2:$AC$1001,Χρονοδιάγραμμα[],2,FALSE))","v":""}]
[null,null,null,null,null,null,null,null,null,null,null,null,null,null,null,null,null,null,null,null,null,null,null,null,null,null,null,null,null,{"$f":"IF($AC$2:$AC$1001=\"\",\"\",VLOOKUP($AC$2:$AC$1001,Χρονοδιάγραμμα[],2,FALSE))","v":""}]
[null,null,null,null,null,null,null,null,null,null,null,null,null,null,null,null,null,null,null,null,null,null,null,null,null,null,null,null,null,{"$f":"IF($AC$2:$AC$1001=\"\",\"\",VLOOKUP($AC$2:$AC$1001,Χρονοδιάγραμμα[],2,FALSE))","v":""}]
[null,null,null,null,null,null,null,null,null,null,null,null,null,null,null,null,null,null,null,null,null,null,null,null,null,null,null,null,null,{"$f":"IF($AC$2:$AC$1001=\"\",\"\",VLOOKUP($AC$2:$AC$1001,Χρονοδιάγραμμα[],2,FALSE))","v":""}]
[null,null,null,null,null,null,null,null,null,null,null,null,null,null,null,null,null,null,null,null,null,null,null,null,null,null,null,null,null,{"$f":"IF($AC$2:$AC$1001=\"\",\"\",VLOOKUP($AC$2:$AC$1001,Χρονοδιάγραμμα[],2,FALSE))","v":""}]
[null,null,null,null,null,null,null,null,null,null,null,null,null,null,null,null,null,null,null,null,null,null,null,null,null,null,null,null,null,{"$f":"IF($AC$2:$AC$1001=\"\",\"\",VLOOKUP($AC$2:$AC$1001,Χρονοδιάγραμμα[],2,FALSE))","v":""}]
[null,null,null,null,null,null,null,null,null,null,null,null,null,null,null,null,null,null,null,null,null,null,null,null,null,null,null,null,null,{"$f":"IF($AC$2:$AC$1001=\"\",\"\",VLOOKUP($AC$2:$AC$1001,Χρονοδιάγραμμα[],2,FALSE))","v":""}]
[null,null,null,null,null,null,null,null,null,null,null,null,null,null,null,null,null,null,null,null,null,null,null,null,null,null,null,null,null,{"$f":"IF($AC$2:$AC$1001=\"\",\"\",VLOOKUP($AC$2:$AC$1001,Χρονοδιάγραμμα[],2,FALSE))","v":""}]
[null,null,null,null,null,null,null,null,null,null,null,null,null,null,null,null,null,null,null,null,null,null,null,null,null,null,null,null,null,{"$f":"IF($AC$2:$AC$1001=\"\",\"\",VLOOKUP($AC$2:$AC$1001,Χρονοδιάγραμμα[],2,FALSE))","v":""}]
[null,null,null,null,null,null,null,null,null,null,null,null,null,null,null,null,null,null,null,null,null,null,null,null,null,null,null,null,null,{"$f":"IF($AC$2:$AC$1001=\"\",\"\",VLOOKUP($AC$2:$AC$1001,Χρονοδιάγραμμα[],2,FALSE))","v":""}]
[null,null,null,null,null,null,null,null,null,null,null,null,null,null,null,null,null,null,null,null,null,null,null,null,null,null,null,null,null,{"$f":"IF($AC$2:$AC$1001=\"\",\"\",VLOOKUP($AC$2:$AC$1001,Χρονοδιάγραμμα[],2,FALSE))","v":""}]
[null,null,null,null,null,null,null,null,null,null,null,null,null,null,null,null,null,null,null,null,null,null,null,null,null,null,null,null,null,{"$f":"IF($AC$2:$AC$1001=\"\",\"\",VLOOKUP($AC$2:$AC$1001,Χρονοδιάγραμμα[],2,FALSE))","v":""}]
[null,null,null,null,null,null,null,null,null,null,null,null,null,null,null,null,null,null,null,null,null,null,null,null,null,null,null,null,null,{"$f":"IF($AC$2:$AC$1001=\"\",\"\",VLOOKUP($AC$2:$AC$1001,Χρονοδιάγραμμα[],2,FALSE))","v":""}]
[null,null,null,null,null,null,null,null,null,null,null,null,null,null,null,null,null,null,null,null,null,null,null,null,null,null,null,null,null,{"$f":"IF($AC$2:$AC$1001=\"\",\"\",VLOOKUP($AC$2:$AC$1001,Χρονοδιάγραμμα[],2,FALSE))","v":""}]
[null,null,null,null,null,null,null,null,null,null,null,null,null,null,null,null,null,null,null,null,null,null,null,null,null,null,null,null,null,{"$f":"IF($AC$2:$AC$1001=\"\",\"\",VLOOKUP($AC$2:$AC$1001,Χρονοδιάγραμμα[],2,FALSE))","v":""}]
[null,null,null,null,null,null,null,null,null,null,null,null,null,null,null,null,null,null,null,null,null,null,null,null,null,null,null,null,null,{"$f":"IF($AC$2:$AC$1001=\"\",\"\",VLOOKUP($AC$2:$AC$1001,Χρονοδιάγραμμα[],2,FALSE))","v":""}]
[null,null,null,null,null,null,null,null,null,null,null,null,null,null,null,null,null,null,null,null,null,null,null,null,null,null,null,null,null,{"$f":"IF($AC$2:$AC$1001=\"\",\"\",VLOOKUP($AC$2:$AC$1001,Χρονοδιάγραμμα[],2,FALSE))","v":""}]
[null,null,null,null,null,null,null,null,null,null,null,null,null,null,null,null,null,null,null,null,null,null,null,null,null,null,null,null,null,{"$f":"IF($AC$2:$AC$1001=\"\",\"\",VLOOKUP($AC$2:$AC$1001,Χρονοδιάγραμμα[],2,FALSE))","v":""}]
[null,null,null,null,null,null,null,null,null,null,null,null,null,null,null,null,null,null,null,null,null,null,null,null,null,null,null,null,null,{"$f":"IF($AC$2:$AC$1001=\"\",\"\",VLOOKUP($AC$2:$AC$1001,Χρονοδιάγραμμα[],2,FALSE))","v":""}]
[null,null,null,null,null,null,null,null,null,null,null,null,null,null,null,null,null,null,null,null,null,null,null,null,null,null,null,null,null,{"$f":"IF($AC$2:$AC$1001=\"\",\"\",VLOOKUP($AC$2:$AC$1001,Χρονοδιάγραμμα[],2,FALSE))","v":""}]
[null,null,null,null,null,null,null,null,null,null,null,null,null,null,null,null,null,null,null,null,null,null,null,null,null,null,null,null,null,{"$f":"IF($AC$2:$AC$1001=\"\",\"\",VLOOKUP($AC$2:$AC$1001,Χρονοδιάγραμμα[],2,FALSE))","v":""}]
[null,null,null,null,null,null,null,null,null,null,null,null,null,null,null,null,null,null,null,null,null,null,null,null,null,null,null,null,null,{"$f":"IF($AC$2:$AC$1001=\"\",\"\",VLOOKUP($AC$2:$AC$1001,Χρονοδιάγραμμα[],2,FALSE))","v":""}]
[null,null,null,null,null,null,null,null,null,null,null,null,null,null,null,null,null,null,null,null,null,null,null,null,null,null,null,null,null,{"$f":"IF($AC$2:$AC$1001=\"\",\"\",VLOOKUP($AC$2:$AC$1001,Χρονοδιάγραμμα[],2,FALSE))","v":""}]
[null,null,null,null,null,null,null,null,null,null,null,null,null,null,null,null,null,null,null,null,null,null,null,null,null,null,null,null,null,{"$f":"IF($AC$2:$AC$1001=\"\",\"\",VLOOKUP($AC$2:$AC$1001,Χρονοδιάγραμμα[],2,FALSE))","v":""}]
[null,null,null,null,null,null,null,null,null,null,null,null,null,null,null,null,null,null,null,null,null,null,null,null,null,null,null,null,null,{"$f":"IF($AC$2:$AC$1001=\"\",\"\",VLOOKUP($AC$2:$AC$1001,Χρονοδιάγραμμα[],2,FALSE))","v":""}]
[null,null,null,null,null,null,null,null,null,null,null,null,null,null,null,null,null,null,null,null,null,null,null,null,null,null,null,null,null,{"$f":"IF($AC$2:$AC$1001=\"\",\"\",VLOOKUP($AC$2:$AC$1001,Χρονοδιάγραμμα[],2,FALSE))","v":""}]
[null,null,null,null,null,null,null,null,null,null,null,null,null,null,null,null,null,null,null,null,null,null,null,null,null,null,null,null,null,{"$f":"IF($AC$2:$AC$1001=\"\",\"\",VLOOKUP($AC$2:$AC$1001,Χρονοδιάγραμμα[],2,FALSE))","v":""}]
[null,null,null,null,null,null,null,null,null,null,null,null,null,null,null,null,null,null,null,null,null,null,null,null,null,null,null,null,null,{"$f":"IF($AC$2:$AC$1001=\"\",\"\",VLOOKUP($AC$2:$AC$1001,Χρονοδιάγραμμα[],2,FALSE))","v":""}]
[null,null,null,null,null,null,null,null,null,null,null,null,null,null,null,null,null,null,null,null,null,null,null,null,null,null,null,null,null,{"$f":"IF($AC$2:$AC$1001=\"\",\"\",VLOOKUP($AC$2:$AC$1001,Χρονοδιάγραμμα[],2,FALSE))","v":""}]
[null,null,null,null,null,null,null,null,null,null,null,null,null,null,null,null,null,null,null,null,null,null,null,null,null,null,null,null,null,{"$f":"IF($AC$2:$AC$1001=\"\",\"\",VLOOKUP($AC$2:$AC$1001,Χρονοδιάγραμμα[],2,FALSE))","v":""}]
[null,null,null,null,null,null,null,null,null,null,null,null,null,null,null,null,null,null,null,null,null,null,null,null,null,null,null,null,null,{"$f":"IF($AC$2:$AC$1001=\"\",\"\",VLOOKUP($AC$2:$AC$1001,Χρονοδιάγραμμα[],2,FALSE))","v":""}]
[null,null,null,null,null,null,null,null,null,null,null,null,null,null,null,null,null,null,null,null,null,null,null,null,null,null,null,null,null,{"$f":"IF($AC$2:$AC$1001=\"\",\"\",VLOOKUP($AC$2:$AC$1001,Χρονοδιάγραμμα[],2,FALSE))","v":""}]
[null,null,null,null,null,null,null,null,null,null,null,null,null,null,null,null,null,null,null,null,null,null,null,null,null,null,null,null,null,{"$f":"IF($AC$2:$AC$1001=\"\",\"\",VLOOKUP($AC$2:$AC$1001,Χρονοδιάγραμμα[],2,FALSE))","v":""}]
[null,null,null,null,null,null,null,null,null,null,null,null,null,null,null,null,null,null,null,null,null,null,null,null,null,null,null,null,null,{"$f":"IF($AC$2:$AC$1001=\"\",\"\",VLOOKUP($AC$2:$AC$1001,Χρονοδιάγραμμα[],2,FALSE))","v":""}]
[null,null,null,null,null,null,null,null,null,null,null,null,null,null,null,null,null,null,null,null,null,null,null,null,null,null,null,null,null,{"$f":"IF($AC$2:$AC$1001=\"\",\"\",VLOOKUP($AC$2:$AC$1001,Χρονοδιάγραμμα[],2,FALSE))","v":""}]
[null,null,null,null,null,null,null,null,null,null,null,null,null,null,null,null,null,null,null,null,null,null,null,null,null,null,null,null,null,{"$f":"IF($AC$2:$AC$1001=\"\",\"\",VLOOKUP($AC$2:$AC$1001,Χρονοδιάγραμμα[],2,FALSE))","v":""}]
[null,null,null,null,null,null,null,null,null,null,null,null,null,null,null,null,null,null,null,null,null,null,null,null,null,null,null,null,null,{"$f":"IF($AC$2:$AC$1001=\"\",\"\",VLOOKUP($AC$2:$AC$1001,Χρονοδιάγραμμα[],2,FALSE))","v":""}]
[null,null,null,null,null,null,null,null,null,null,null,null,null,null,null,null,null,null,null,null,null,null,null,null,null,null,null,null,null,{"$f":"IF($AC$2:$AC$1001=\"\",\"\",VLOOKUP($AC$2:$AC$1001,Χρονοδιάγραμμα[],2,FALSE))","v":""}]
[null,null,null,null,null,null,null,null,null,null,null,null,null,null,null,null,null,null,null,null,null,null,null,null,null,null,null,null,null,{"$f":"IF($AC$2:$AC$1001=\"\",\"\",VLOOKUP($AC$2:$AC$1001,Χρονοδιάγραμμα[],2,FALSE))","v":""}]
[null,null,null,null,null,null,null,null,null,null,null,null,null,null,null,null,null,null,null,null,null,null,null,null,null,null,null,null,null,{"$f":"IF($AC$2:$AC$1001=\"\",\"\",VLOOKUP($AC$2:$AC$1001,Χρονοδιάγραμμα[],2,FALSE))","v":""}]
[null,null,null,null,null,null,null,null,null,null,null,null,null,null,null,null,null,null,null,null,null,null,null,null,null,null,null,null,null,{"$f":"IF($AC$2:$AC$1001=\"\",\"\",VLOOKUP($AC$2:$AC$1001,Χρονοδιάγραμμα[],2,FALSE))","v":""}]
[null,null,null,null,null,null,null,null,null,null,null,null,null,null,null,null,null,null,null,null,null,null,null,null,null,null,null,null,null,{"$f":"IF($AC$2:$AC$1001=\"\",\"\",VLOOKUP($AC$2:$AC$1001,Χρονοδιάγραμμα[],2,FALSE))","v":""}]
[null,null,null,null,null,null,null,null,null,null,null,null,null,null,null,null,null,null,null,null,null,null,null,null,null,null,null,null,null,{"$f":"IF($AC$2:$AC$1001=\"\",\"\",VLOOKUP($AC$2:$AC$1001,Χρονοδιάγραμμα[],2,FALSE))","v":""}]
[null,null,null,null,null,null,null,null,null,null,null,null,null,null,null,null,null,null,null,null,null,null,null,null,null,null,null,null,null,{"$f":"IF($AC$2:$AC$1001=\"\",\"\",VLOOKUP($AC$2:$AC$1001,Χρονοδιάγραμμα[],2,FALSE))","v":""}]
[null,null,null,null,null,null,null,null,null,null,null,null,null,null,null,null,null,null,null,null,null,null,null,null,null,null,null,null,null,{"$f":"IF($AC$2:$AC$1001=\"\",\"\",VLOOKUP($AC$2:$AC$1001,Χρονοδιάγραμμα[],2,FALSE))","v":""}]
[null,null,null,null,null,null,null,null,null,null,null,null,null,null,null,null,null,null,null,null,null,null,null,null,null,null,null,null,null,{"$f":"IF($AC$2:$AC$1001=\"\",\"\",VLOOKUP($AC$2:$AC$1001,Χρονοδιάγραμμα[],2,FALSE))","v":""}]
[null,null,null,null,null,null,null,null,null,null,null,null,null,null,null,null,null,null,null,null,null,null,null,null,null,null,null,null,null,{"$f":"IF($AC$2:$AC$1001=\"\",\"\",VLOOKUP($AC$2:$AC$1001,Χρονοδιάγραμμα[],2,FALSE))","v":""}]
[null,null,null,null,null,null,null,null,null,null,null,null,null,null,null,null,null,null,null,null,null,null,null,null,null,null,null,null,null,{"$f":"IF($AC$2:$AC$1001=\"\",\"\",VLOOKUP($AC$2:$AC$1001,Χρονοδιάγραμμα[],2,FALSE))","v":""}]
[null,null,null,null,null,null,null,null,null,null,null,null,null,null,null,null,null,null,null,null,null,null,null,null,null,null,null,null,null,{"$f":"IF($AC$2:$AC$1001=\"\",\"\",VLOOKUP($AC$2:$AC$1001,Χρονοδιάγραμμα[],2,FALSE))","v":""}]
[null,null,null,null,null,null,null,null,null,null,null,null,null,null,null,null,null,null,null,null,null,null,null,null,null,null,null,null,null,{"$f":"IF($AC$2:$AC$1001=\"\",\"\",VLOOKUP($AC$2:$AC$1001,Χρονοδιάγραμμα[],2,FALSE))","v":""}]
[null,null,null,null,null,null,null,null,null,null,null,null,null,null,null,null,null,null,null,null,null,null,null,null,null,null,null,null,null,{"$f":"IF($AC$2:$AC$1001=\"\",\"\",VLOOKUP($AC$2:$AC$1001,Χρονοδιάγραμμα[],2,FALSE))","v":""}]
[null,null,null,null,null,null,null,null,null,null,null,null,null,null,null,null,null,null,null,null,null,null,null,null,null,null,null,null,null,{"$f":"IF($AC$2:$AC$1001=\"\",\"\",VLOOKUP($AC$2:$AC$1001,Χρονοδιάγραμμα[],2,FALSE))","v":""}]
[null,null,null,null,null,null,null,null,null,null,null,null,null,null,null,null,null,null,null,null,null,null,null,null,null,null,null,null,null,{"$f":"IF($AC$2:$AC$1001=\"\",\"\",VLOOKUP($AC$2:$AC$1001,Χρονοδιάγραμμα[],2,FALSE))","v":""}]
[null,null,null,null,null,null,null,null,null,null,null,null,null,null,null,null,null,null,null,null,null,null,null,null,null,null,null,null,null,{"$f":"IF($AC$2:$AC$1001=\"\",\"\",VLOOKUP($AC$2:$AC$1001,Χρονοδιάγραμμα[],2,FALSE))","v":""}]
[null,null,null,null,null,null,null,null,null,null,null,null,null,null,null,null,null,null,null,null,null,null,null,null,null,null,null,null,null,{"$f":"IF($AC$2:$AC$1001=\"\",\"\",VLOOKUP($AC$2:$AC$1001,Χρονοδιάγραμμα[],2,FALSE))","v":""}]
[null,null,null,null,null,null,null,null,null,null,null,null,null,null,null,null,null,null,null,null,null,null,null,null,null,null,null,null,null,{"$f":"IF($AC$2:$AC$1001=\"\",\"\",VLOOKUP($AC$2:$AC$1001,Χρονοδιάγραμμα[],2,FALSE))","v":""}]
[null,null,null,null,null,null,null,null,null,null,null,null,null,null,null,null,null,null,null,null,null,null,null,null,null,null,null,null,null,{"$f":"IF($AC$2:$AC$1001=\"\",\"\",VLOOKUP($AC$2:$AC$1001,Χρονοδιάγραμμα[],2,FALSE))","v":""}]
[null,null,null,null,null,null,null,null,null,null,null,null,null,null,null,null,null,null,null,null,null,null,null,null,null,null,null,null,null,{"$f":"IF($AC$2:$AC$1001=\"\",\"\",VLOOKUP($AC$2:$AC$1001,Χρονοδιάγραμμα[],2,FALSE))","v":""}]
[null,null,null,null,null,null,null,null,null,null,null,null,null,null,null,null,null,null,null,null,null,null,null,null,null,null,null,null,null,{"$f":"IF($AC$2:$AC$1001=\"\",\"\",VLOOKUP($AC$2:$AC$1001,Χρονοδιάγραμμα[],2,FALSE))","v":""}]
[null,null,null,null,null,null,null,null,null,null,null,null,null,null,null,null,null,null,null,null,null,null,null,null,null,null,null,null,null,{"$f":"IF($AC$2:$AC$1001=\"\",\"\",VLOOKUP($AC$2:$AC$1001,Χρονοδιάγραμμα[],2,FALSE))","v":""}]
[null,null,null,null,null,null,null,null,null,null,null,null,null,null,null,null,null,null,null,null,null,null,null,null,null,null,null,null,null,{"$f":"IF($AC$2:$AC$1001=\"\",\"\",VLOOKUP($AC$2:$AC$1001,Χρονοδιάγραμμα[],2,FALSE))","v":""}]
[null,null,null,null,null,null,null,null,null,null,null,null,null,null,null,null,null,null,null,null,null,null,null,null,null,null,null,null,null,{"$f":"IF($AC$2:$AC$1001=\"\",\"\",VLOOKUP($AC$2:$AC$1001,Χρονοδιάγραμμα[],2,FALSE))","v":""}]
[null,null,null,null,null,null,null,null,null,null,null,null,null,null,null,null,null,null,null,null,null,null,null,null,null,null,null,null,null,{"$f":"IF($AC$2:$AC$1001=\"\",\"\",VLOOKUP($AC$2:$AC$1001,Χρονοδιάγραμμα[],2,FALSE))","v":""}]
[null,null,null,null,null,null,null,null,null,null,null,null,null,null,null,null,null,null,null,null,null,null,null,null,null,null,null,null,null,{"$f":"IF($AC$2:$AC$1001=\"\",\"\",VLOOKUP($AC$2:$AC$1001,Χρονοδιάγραμμα[],2,FALSE))","v":""}]
[null,null,null,null,null,null,null,null,null,null,null,null,null,null,null,null,null,null,null,null,null,null,null,null,null,null,null,null,null,{"$f":"IF($AC$2:$AC$1001=\"\",\"\",VLOOKUP($AC$2:$AC$1001,Χρονοδιάγραμμα[],2,FALSE))","v":""}]
[null,null,null,null,null,null,null,null,null,null,null,null,null,null,null,null,null,null,null,null,null,null,null,null,null,null,null,null,null,{"$f":"IF($AC$2:$AC$1001=\"\",\"\",VLOOKUP($AC$2:$AC$1001,Χρονοδιάγραμμα[],2,FALSE))","v":""}]
[null,null,null,null,null,null,null,null,null,null,null,null,null,null,null,null,null,null,null,null,null,null,null,null,null,null,null,null,null,{"$f":"IF($AC$2:$AC$1001=\"\",\"\",VLOOKUP($AC$2:$AC$1001,Χρονοδιάγραμμα[],2,FALSE))","v":""}]
[null,null,null,null,null,null,null,null,null,null,null,null,null,null,null,null,null,null,null,null,null,null,null,null,null,null,null,null,null,{"$f":"IF($AC$2:$AC$1001=\"\",\"\",VLOOKUP($AC$2:$AC$1001,Χρονοδιάγραμμα[],2,FALSE))","v":""}]
[null,null,null,null,null,null,null,null,null,null,null,null,null,null,null,null,null,null,null,null,null,null,null,null,null,null,null,null,null,{"$f":"IF($AC$2:$AC$1001=\"\",\"\",VLOOKUP($AC$2:$AC$1001,Χρονοδιάγραμμα[],2,FALSE))","v":""}]
[null,null,null,null,null,null,null,null,null,null,null,null,null,null,null,null,null,null,null,null,null,null,null,null,null,null,null,null,null,{"$f":"IF($AC$2:$AC$1001=\"\",\"\",VLOOKUP($AC$2:$AC$1001,Χρονοδιάγραμμα[],2,FALSE))","v":""}]
[null,null,null,null,null,null,null,null,null,null,null,null,null,null,null,null,null,null,null,null,null,null,null,null,null,null,null,null,null,{"$f":"IF($AC$2:$AC$1001=\"\",\"\",VLOOKUP($AC$2:$AC$1001,Χρονοδιάγραμμα[],2,FALSE))","v":""}]
[null,null,null,null,null,null,null,null,null,null,null,null,null,null,null,null,null,null,null,null,null,null,null,null,null,null,null,null,null,{"$f":"IF($AC$2:$AC$1001=\"\",\"\",VLOOKUP($AC$2:$AC$1001,Χρονοδιάγραμμα[],2,FALSE))","v":""}]
[null,null,null,null,null,null,null,null,null,null,null,null,null,null,null,null,null,null,null,null,null,null,null,null,null,null,null,null,null,{"$f":"IF($AC$2:$AC$1001=\"\",\"\",VLOOKUP($AC$2:$AC$1001,Χρονοδιάγραμμα[],2,FALSE))","v":""}]
[null,null,null,null,null,null,null,null,null,null,null,null,null,null,null,null,null,null,null,null,null,null,null,null,null,null,null,null,null,{"$f":"IF($AC$2:$AC$1001=\"\",\"\",VLOOKUP($AC$2:$AC$1001,Χρονοδιάγραμμα[],2,FALSE))","v":""}]
[null,null,null,null,null,null,null,null,null,null,null,null,null,null,null,null,null,null,null,null,null,null,null,null,null,null,null,null,null,{"$f":"IF($AC$2:$AC$1001=\"\",\"\",VLOOKUP($AC$2:$AC$1001,Χρονοδιάγραμμα[],2,FALSE))","v":""}]
[null,null,null,null,null,null,null,null,null,null,null,null,null,null,null,null,null,null,null,null,null,null,null,null,null,null,null,null,null,{"$f":"IF($AC$2:$AC$1001=\"\",\"\",VLOOKUP($AC$2:$AC$1001,Χρονοδιάγραμμα[],2,FALSE))","v":""}]
[null,null,null,null,null,null,null,null,null,null,null,null,null,null,null,null,null,null,null,null,null,null,null,null,null,null,null,null,null,{"$f":"IF($AC$2:$AC$1001=\"\",\"\",VLOOKUP($AC$2:$AC$1001,Χρονοδιάγραμμα[],2,FALSE))","v":""}]
[null,null,null,null,null,null,null,null,null,null,null,null,null,null,null,null,null,null,null,null,null,null,null,null,null,null,null,null,null,{"$f":"IF($AC$2:$AC$1001=\"\",\"\",VLOOKUP($AC$2:$AC$1001,Χρονοδιάγραμμα[],2,FALSE))","v":""}]
[null,null,null,null,null,null,null,null,null,null,null,null,null,null,null,null,null,null,null,null,null,null,null,null,null,null,null,null,null,{"$f":"IF($AC$2:$AC$1001=\"\",\"\",VLOOKUP($AC$2:$AC$1001,Χρονοδιάγραμμα[],2,FALSE))","v":""}]
[null,null,null,null,null,null,null,null,null,null,null,null,null,null,null,null,null,null,null,null,null,null,null,null,null,null,null,null,null,{"$f":"IF($AC$2:$AC$1001=\"\",\"\",VLOOKUP($AC$2:$AC$1001,Χρονοδιάγραμμα[],2,FALSE))","v":""}]
[null,null,null,null,null,null,null,null,null,null,null,null,null,null,null,null,null,null,null,null,null,null,null,null,null,null,null,null,null,{"$f":"IF($AC$2:$AC$1001=\"\",\"\",VLOOKUP($AC$2:$AC$1001,Χρονοδιάγραμμα[],2,FALSE))","v":""}]
[null,null,null,null,null,null,null,null,null,null,null,null,null,null,null,null,null,null,null,null,null,null,null,null,null,null,null,null,null,{"$f":"IF($AC$2:$AC$1001=\"\",\"\",VLOOKUP($AC$2:$AC$1001,Χρονοδιάγραμμα[],2,FALSE))","v":""}]
[null,null,null,null,null,null,null,null,null,null,null,null,null,null,null,null,null,null,null,null,null,null,null,null,null,null,null,null,null,{"$f":"IF($AC$2:$AC$1001=\"\",\"\",VLOOKUP($AC$2:$AC$1001,Χρονοδιάγραμμα[],2,FALSE))","v":""}]
[null,null,null,null,null,null,null,null,null,null,null,null,null,null,null,null,null,null,null,null,null,null,null,null,null,null,null,null,null,{"$f":"IF($AC$2:$AC$1001=\"\",\"\",VLOOKUP($AC$2:$AC$1001,Χρονοδιάγραμμα[],2,FALSE))","v":""}]
[null,null,null,null,null,null,null,null,null,null,null,null,null,null,null,null,null,null,null,null,null,null,null,null,null,null,null,null,null,{"$f":"IF($AC$2:$AC$1001=\"\",\"\",VLOOKUP($AC$2:$AC$1001,Χρονοδιάγραμμα[],2,FALSE))","v":""}]
[null,null,null,null,null,null,null,null,null,null,null,null,null,null,null,null,null,null,null,null,null,null,null,null,null,null,null,null,null,{"$f":"IF($AC$2:$AC$1001=\"\",\"\",VLOOKUP($AC$2:$AC$1001,Χρονοδιάγραμμα[],2,FALSE))","v":""}]
[null,null,null,null,null,null,null,null,null,null,null,null,null,null,null,null,null,null,null,null,null,null,null,null,null,null,null,null,null,{"$f":"IF($AC$2:$AC$1001=\"\",\"\",VLOOKUP($AC$2:$AC$1001,Χρονοδιάγραμμα[],2,FALSE))","v":""}]
[null,null,null,null,null,null,null,null,null,null,null,null,null,null,null,null,null,null,null,null,null,null,null,null,null,null,null,null,null,{"$f":"IF($AC$2:$AC$1001=\"\",\"\",VLOOKUP($AC$2:$AC$1001,Χρονοδιάγραμμα[],2,FALSE))","v":""}]
[null,null,null,null,null,null,null,null,null,null,null,null,null,null,null,null,null,null,null,null,null,null,null,null,null,null,null,null,null,{"$f":"IF($AC$2:$AC$1001=\"\",\"\",VLOOKUP($AC$2:$AC$1001,Χρονοδιάγραμμα[],2,FALSE))","v":""}]
[null,null,null,null,null,null,null,null,null,null,null,null,null,null,null,null,null,null,null,null,null,null,null,null,null,null,null,null,null,{"$f":"IF($AC$2:$AC$1001=\"\",\"\",VLOOKUP($AC$2:$AC$1001,Χρονοδιάγραμμα[],2,FALSE))","v":""}]
[null,null,null,null,null,null,null,null,null,null,null,null,null,null,null,null,null,null,null,null,null,null,null,null,null,null,null,null,null,{"$f":"IF($AC$2:$AC$1001=\"\",\"\",VLOOKUP($AC$2:$AC$1001,Χρονοδιάγραμμα[],2,FALSE))","v":""}]
[null,null,null,null,null,null,null,null,null,null,null,null,null,null,null,null,null,null,null,null,null,null,null,null,null,null,null,null,null,{"$f":"IF($AC$2:$AC$1001=\"\",\"\",VLOOKUP($AC$2:$AC$1001,Χρονοδιάγραμμα[],2,FALSE))","v":""}]
[null,null,null,null,null,null,null,null,null,null,null,null,null,null,null,null,null,null,null,null,null,null,null,null,null,null,null,null,null,{"$f":"IF($AC$2:$AC$1001=\"\",\"\",VLOOKUP($AC$2:$AC$1001,Χρονοδιάγραμμα[],2,FALSE))","v":""}]
[null,null,null,null,null,null,null,null,null,null,null,null,null,null,null,null,null,null,null,null,null,null,null,null,null,null,null,null,null,{"$f":"IF($AC$2:$AC$1001=\"\",\"\",VLOOKUP($AC$2:$AC$1001,Χρονοδιάγραμμα[],2,FALSE))","v":""}]
[null,null,null,null,null,null,null,null,null,null,null,null,null,null,null,null,null,null,null,null,null,null,null,null,null,null,null,null,null,{"$f":"IF($AC$2:$AC$1001=\"\",\"\",VLOOKUP($AC$2:$AC$1001,Χρονοδιάγραμμα[],2,FALSE))","v":""}]
[null,null,null,null,null,null,null,null,null,null,null,null,null,null,null,null,null,null,null,null,null,null,null,null,null,null,null,null,null,{"$f":"IF($AC$2:$AC$1001=\"\",\"\",VLOOKUP($AC$2:$AC$1001,Χρονοδιάγραμμα[],2,FALSE))","v":""}]
[null,null,null,null,null,null,null,null,null,null,null,null,null,null,null,null,null,null,null,null,null,null,null,null,null,null,null,null,null,{"$f":"IF($AC$2:$AC$1001=\"\",\"\",VLOOKUP($AC$2:$AC$1001,Χρονοδιάγραμμα[],2,FALSE))","v":""}]
[null,null,null,null,null,null,null,null,null,null,null,null,null,null,null,null,null,null,null,null,null,null,null,null,null,null,null,null,null,{"$f":"IF($AC$2:$AC$1001=\"\",\"\",VLOOKUP($AC$2:$AC$1001,Χρονοδιάγραμμα[],2,FALSE))","v":""}]
[null,null,null,null,null,null,null,null,null,null,null,null,null,null,null,null,null,null,null,null,null,null,null,null,null,null,null,null,null,{"$f":"IF($AC$2:$AC$1001=\"\",\"\",VLOOKUP($AC$2:$AC$1001,Χρονοδιάγραμμα[],2,FALSE))","v":""}]
[null,null,null,null,null,null,null,null,null,null,null,null,null,null,null,null,null,null,null,null,null,null,null,null,null,null,null,null,null,{"$f":"IF($AC$2:$AC$1001=\"\",\"\",VLOOKUP($AC$2:$AC$1001,Χρονοδιάγραμμα[],2,FALSE))","v":""}]
[null,null,null,null,null,null,null,null,null,null,null,null,null,null,null,null,null,null,null,null,null,null,null,null,null,null,null,null,null,{"$f":"IF($AC$2:$AC$1001=\"\",\"\",VLOOKUP($AC$2:$AC$1001,Χρονοδιάγραμμα[],2,FALSE))","v":""}]
[null,null,null,null,null,null,null,null,null,null,null,null,null,null,null,null,null,null,null,null,null,null,null,null,null,null,null,null,null,{"$f":"IF($AC$2:$AC$1001=\"\",\"\",VLOOKUP($AC$2:$AC$1001,Χρονοδιάγραμμα[],2,FALSE))","v":""}]
[null,null,null,null,null,null,null,null,null,null,null,null,null,null,null,null,null,null,null,null,null,null,null,null,null,null,null,null,null,{"$f":"IF($AC$2:$AC$1001=\"\",\"\",VLOOKUP($AC$2:$AC$1001,Χρονοδιάγραμμα[],2,FALSE))","v":""}]
[null,null,null,null,null,null,null,null,null,null,null,null,null,null,null,null,null,null,null,null,null,null,null,null,null,null,null,null,null,{"$f":"IF($AC$2:$AC$1001=\"\",\"\",VLOOKUP($AC$2:$AC$1001,Χρονοδιάγραμμα[],2,FALSE))","v":""}]
[null,null,null,null,null,null,null,null,null,null,null,null,null,null,null,null,null,null,null,null,null,null,null,null,null,null,null,null,null,{"$f":"IF($AC$2:$AC$1001=\"\",\"\",VLOOKUP($AC$2:$AC$1001,Χρονοδιάγραμμα[],2,FALSE))","v":""}]
[null,null,null,null,null,null,null,null,null,null,null,null,null,null,null,null,null,null,null,null,null,null,null,null,null,null,null,null,null,{"$f":"IF($AC$2:$AC$1001=\"\",\"\",VLOOKUP($AC$2:$AC$1001,Χρονοδιάγραμμα[],2,FALSE))","v":""}]
[null,null,null,null,null,null,null,null,null,null,null,null,null,null,null,null,null,null,null,null,null,null,null,null,null,null,null,null,null,{"$f":"IF($AC$2:$AC$1001=\"\",\"\",VLOOKUP($AC$2:$AC$1001,Χρονοδιάγραμμα[],2,FALSE))","v":""}]
[null,null,null,null,null,null,null,null,null,null,null,null,null,null,null,null,null,null,null,null,null,null,null,null,null,null,null,null,null,{"$f":"IF($AC$2:$AC$1001=\"\",\"\",VLOOKUP($AC$2:$AC$1001,Χρονοδιάγραμμα[],2,FALSE))","v":""}]
[null,null,null,null,null,null,null,null,null,null,null,null,null,null,null,null,null,null,null,null,null,null,null,null,null,null,null,null,null,{"$f":"IF($AC$2:$AC$1001=\"\",\"\",VLOOKUP($AC$2:$AC$1001,Χρονοδιάγραμμα[],2,FALSE))","v":""}]
[null,null,null,null,null,null,null,null,null,null,null,null,null,null,null,null,null,null,null,null,null,null,null,null,null,null,null,null,null,{"$f":"IF($AC$2:$AC$1001=\"\",\"\",VLOOKUP($AC$2:$AC$1001,Χρονοδιάγραμμα[],2,FALSE))","v":""}]
[null,null,null,null,null,null,null,null,null,null,null,null,null,null,null,null,null,null,null,null,null,null,null,null,null,null,null,null,null,{"$f":"IF($AC$2:$AC$1001=\"\",\"\",VLOOKUP($AC$2:$AC$1001,Χρονοδιάγραμμα[],2,FALSE))","v":""}]
[null,null,null,null,null,null,null,null,null,null,null,null,null,null,null,null,null,null,null,null,null,null,null,null,null,null,null,null,null,{"$f":"IF($AC$2:$AC$1001=\"\",\"\",VLOOKUP($AC$2:$AC$1001,Χρονοδιάγραμμα[],2,FALSE))","v":""}]
[null,null,null,null,null,null,null,null,null,null,null,null,null,null,null,null,null,null,null,null,null,null,null,null,null,null,null,null,null,{"$f":"IF($AC$2:$AC$1001=\"\",\"\",VLOOKUP($AC$2:$AC$1001,Χρονοδιάγραμμα[],2,FALSE))","v":""}]
[null,null,null,null,null,null,null,null,null,null,null,null,null,null,null,null,null,null,null,null,null,null,null,null,null,null,null,null,null,{"$f":"IF($AC$2:$AC$1001=\"\",\"\",VLOOKUP($AC$2:$AC$1001,Χρονοδιάγραμμα[],2,FALSE))","v":""}]
[null,null,null,null,null,null,null,null,null,null,null,null,null,null,null,null,null,null,null,null,null,null,null,null,null,null,null,null,null,{"$f":"IF($AC$2:$AC$1001=\"\",\"\",VLOOKUP($AC$2:$AC$1001,Χρονοδιάγραμμα[],2,FALSE))","v":""}]
[null,null,null,null,null,null,null,null,null,null,null,null,null,null,null,null,null,null,null,null,null,null,null,null,null,null,null,null,null,{"$f":"IF($AC$2:$AC$1001=\"\",\"\",VLOOKUP($AC$2:$AC$1001,Χρονοδιάγραμμα[],2,FALSE))","v":""}]
[null,null,null,null,null,null,null,null,null,null,null,null,null,null,null,null,null,null,null,null,null,null,null,null,null,null,null,null,null,{"$f":"IF($AC$2:$AC$1001=\"\",\"\",VLOOKUP($AC$2:$AC$1001,Χρονοδιάγραμμα[],2,FALSE))","v":""}]
[null,null,null,null,null,null,null,null,null,null,null,null,null,null,null,null,null,null,null,null,null,null,null,null,null,null,null,null,null,{"$f":"IF($AC$2:$AC$1001=\"\",\"\",VLOOKUP($AC$2:$AC$1001,Χρονοδιάγραμμα[],2,FALSE))","v":""}]
[null,null,null,null,null,null,null,null,null,null,null,null,null,null,null,null,null,null,null,null,null,null,null,null,null,null,null,null,null,{"$f":"IF($AC$2:$AC$1001=\"\",\"\",VLOOKUP($AC$2:$AC$1001,Χρονοδιάγραμμα[],2,FALSE))","v":""}]
[null,null,null,null,null,null,null,null,null,null,null,null,null,null,null,null,null,null,null,null,null,null,null,null,null,null,null,null,null,{"$f":"IF($AC$2:$AC$1001=\"\",\"\",VLOOKUP($AC$2:$AC$1001,Χρονοδιάγραμμα[],2,FALSE))","v":""}]
[null,null,null,null,null,null,null,null,null,null,null,null,null,null,null,null,null,null,null,null,null,null,null,null,null,null,null,null,null,{"$f":"IF($AC$2:$AC$1001=\"\",\"\",VLOOKUP($AC$2:$AC$1001,Χρονοδιάγραμμα[],2,FALSE))","v":""}]
[null,null,null,null,null,null,null,null,null,null,null,null,null,null,null,null,null,null,null,null,null,null,null,null,null,null,null,null,null,{"$f":"IF($AC$2:$AC$1001=\"\",\"\",VLOOKUP($AC$2:$AC$1001,Χρονοδιάγραμμα[],2,FALSE))","v":""}]
[null,null,null,null,null,null,null,null,null,null,null,null,null,null,null,null,null,null,null,null,null,null,null,null,null,null,null,null,null,{"$f":"IF($AC$2:$AC$1001=\"\",\"\",VLOOKUP($AC$2:$AC$1001,Χρονοδιάγραμμα[],2,FALSE))","v":""}]
[null,null,null,null,null,null,null,null,null,null,null,null,null,null,null,null,null,null,null,null,null,null,null,null,null,null,null,null,null,{"$f":"IF($AC$2:$AC$1001=\"\",\"\",VLOOKUP($AC$2:$AC$1001,Χρονοδιάγραμμα[],2,FALSE))","v":""}]
[null,null,null,null,null,null,null,null,null,null,null,null,null,null,null,null,null,null,null,null,null,null,null,null,null,null,null,null,null,{"$f":"IF($AC$2:$AC$1001=\"\",\"\",VLOOKUP($AC$2:$AC$1001,Χρονοδιάγραμμα[],2,FALSE))","v":""}]
[null,null,null,null,null,null,null,null,null,null,null,null,null,null,null,null,null,null,null,null,null,null,null,null,null,null,null,null,null,{"$f":"IF($AC$2:$AC$1001=\"\",\"\",VLOOKUP($AC$2:$AC$1001,Χρονοδιάγραμμα[],2,FALSE))","v":""}]
[null,null,null,null,null,null,null,null,null,null,null,null,null,null,null,null,null,null,null,null,null,null,null,null,null,null,null,null,null,{"$f":"IF($AC$2:$AC$1001=\"\",\"\",VLOOKUP($AC$2:$AC$1001,Χρονοδιάγραμμα[],2,FALSE))","v":""}]
[null,null,null,null,null,null,null,null,null,null,null,null,null,null,null,null,null,null,null,null,null,null,null,null,null,null,null,null,null,{"$f":"IF($AC$2:$AC$1001=\"\",\"\",VLOOKUP($AC$2:$AC$1001,Χρονοδιάγραμμα[],2,FALSE))","v":""}]
[null,null,null,null,null,null,null,null,null,null,null,null,null,null,null,null,null,null,null,null,null,null,null,null,null,null,null,null,null,{"$f":"IF($AC$2:$AC$1001=\"\",\"\",VLOOKUP($AC$2:$AC$1001,Χρονοδιάγραμμα[],2,FALSE))","v":""}]
[null,null,null,null,null,null,null,null,null,null,null,null,null,null,null,null,null,null,null,null,null,null,null,null,null,null,null,null,null,{"$f":"IF($AC$2:$AC$1001=\"\",\"\",VLOOKUP($AC$2:$AC$1001,Χρονοδιάγραμμα[],2,FALSE))","v":""}]
[null,null,null,null,null,null,null,null,null,null,null,null,null,null,null,null,null,null,null,null,null,null,null,null,null,null,null,null,null,{"$f":"IF($AC$2:$AC$1001=\"\",\"\",VLOOKUP($AC$2:$AC$1001,Χρονοδιάγραμμα[],2,FALSE))","v":""}]
[null,null,null,null,null,null,null,null,null,null,null,null,null,null,null,null,null,null,null,null,null,null,null,null,null,null,null,null,null,{"$f":"IF($AC$2:$AC$1001=\"\",\"\",VLOOKUP($AC$2:$AC$1001,Χρονοδιάγραμμα[],2,FALSE))","v":""}]
[null,null,null,null,null,null,null,null,null,null,null,null,null,null,null,null,null,null,null,null,null,null,null,null,null,null,null,null,null,{"$f":"IF($AC$2:$AC$1001=\"\",\"\",VLOOKUP($AC$2:$AC$1001,Χρονοδιάγραμμα[],2,FALSE))","v":""}]
[null,null,null,null,null,null,null,null,null,null,null,null,null,null,null,null,null,null,null,null,null,null,null,null,null,null,null,null,null,{"$f":"IF($AC$2:$AC$1001=\"\",\"\",VLOOKUP($AC$2:$AC$1001,Χρονοδιάγραμμα[],2,FALSE))","v":""}]
[null,null,null,null,null,null,null,null,null,null,null,null,null,null,null,null,null,null,null,null,null,null,null,null,null,null,null,null,null,{"$f":"IF($AC$2:$AC$1001=\"\",\"\",VLOOKUP($AC$2:$AC$1001,Χρονοδιάγραμμα[],2,FALSE))","v":""}]
[null,null,null,null,null,null,null,null,null,null,null,null,null,null,null,null,null,null,null,null,null,null,null,null,null,null,null,null,null,{"$f":"IF($AC$2:$AC$1001=\"\",\"\",VLOOKUP($AC$2:$AC$1001,Χρονοδιάγραμμα[],2,FALSE))","v":""}]
[null,null,null,null,null,null,null,null,null,null,null,null,null,null,null,null,null,null,null,null,null,null,null,null,null,null,null,null,null,{"$f":"IF($AC$2:$AC$1001=\"\",\"\",VLOOKUP($AC$2:$AC$1001,Χρονοδιάγραμμα[],2,FALSE))","v":""}]
[null,null,null,null,null,null,null,null,null,null,null,null,null,null,null,null,null,null,null,null,null,null,null,null,null,null,null,null,null,{"$f":"IF($AC$2:$AC$1001=\"\",\"\",VLOOKUP($AC$2:$AC$1001,Χρονοδιάγραμμα[],2,FALSE))","v":""}]
[null,null,null,null,null,null,null,null,null,null,null,null,null,null,null,null,null,null,null,null,null,null,null,null,null,null,null,null,null,{"$f":"IF($AC$2:$AC$1001=\"\",\"\",VLOOKUP($AC$2:$AC$1001,Χρονοδιάγραμμα[],2,FALSE))","v":""}]
[null,null,null,null,null,null,null,null,null,null,null,null,null,null,null,null,null,null,null,null,null,null,null,null,null,null,null,null,null,{"$f":"IF($AC$2:$AC$1001=\"\",\"\",VLOOKUP($AC$2:$AC$1001,Χρονοδιάγραμμα[],2,FALSE))","v":""}]
[null,null,null,null,null,null,null,null,null,null,null,null,null,null,null,null,null,null,null,null,null,null,null,null,null,null,null,null,null,{"$f":"IF($AC$2:$AC$1001=\"\",\"\",VLOOKUP($AC$2:$AC$1001,Χρονοδιάγραμμα[],2,FALSE))","v":""}]
[null,null,null,null,null,null,null,null,null,null,null,null,null,null,null,null,null,null,null,null,null,null,null,null,null,null,null,null,null,{"$f":"IF($AC$2:$AC$1001=\"\",\"\",VLOOKUP($AC$2:$AC$1001,Χρονοδιάγραμμα[],2,FALSE))","v":""}]
[null,null,null,null,null,null,null,null,null,null,null,null,null,null,null,null,null,null,null,null,null,null,null,null,null,null,null,null,null,{"$f":"IF($AC$2:$AC$1001=\"\",\"\",VLOOKUP($AC$2:$AC$1001,Χρονοδιάγραμμα[],2,FALSE))","v":""}]
[null,null,null,null,null,null,null,null,null,null,null,null,null,null,null,null,null,null,null,null,null,null,null,null,null,null,null,null,null,{"$f":"IF($AC$2:$AC$1001=\"\",\"\",VLOOKUP($AC$2:$AC$1001,Χρονοδιάγραμμα[],2,FALSE))","v":""}]
[null,null,null,null,null,null,null,null,null,null,null,null,null,null,null,null,null,null,null,null,null,null,null,null,null,null,null,null,null,{"$f":"IF($AC$2:$AC$1001=\"\",\"\",VLOOKUP($AC$2:$AC$1001,Χρονοδιάγραμμα[],2,FALSE))","v":""}]
[null,null,null,null,null,null,null,null,null,null,null,null,null,null,null,null,null,null,null,null,null,null,null,null,null,null,null,null,null,{"$f":"IF($AC$2:$AC$1001=\"\",\"\",VLOOKUP($AC$2:$AC$1001,Χρονοδιάγραμμα[],2,FALSE))","v":""}]
[null,null,null,null,null,null,null,null,null,null,null,null,null,null,null,null,null,null,null,null,null,null,null,null,null,null,null,null,null,{"$f":"IF($AC$2:$AC$1001=\"\",\"\",VLOOKUP($AC$2:$AC$1001,Χρονοδιάγραμμα[],2,FALSE))","v":""}]
[null,null,null,null,null,null,null,null,null,null,null,null,null,null,null,null,null,null,null,null,null,null,null,null,null,null,null,null,null,{"$f":"IF($AC$2:$AC$1001=\"\",\"\",VLOOKUP($AC$2:$AC$1001,Χρονοδιάγραμμα[],2,FALSE))","v":""}]
[null,null,null,null,null,null,null,null,null,null,null,null,null,null,null,null,null,null,null,null,null,null,null,null,null,null,null,null,null,{"$f":"IF($AC$2:$AC$1001=\"\",\"\",VLOOKUP($AC$2:$AC$1001,Χρονοδιάγραμμα[],2,FALSE))","v":""}]
[null,null,null,null,null,null,null,null,null,null,null,null,null,null,null,null,null,null,null,null,null,null,null,null,null,null,null,null,null,{"$f":"IF($AC$2:$AC$1001=\"\",\"\",VLOOKUP($AC$2:$AC$1001,Χρονοδιάγραμμα[],2,FALSE))","v":""}]
[null,null,null,null,null,null,null,null,null,null,null,null,null,null,null,null,null,null,null,null,null,null,null,null,null,null,null,null,null,{"$f":"IF($AC$2:$AC$1001=\"\",\"\",VLOOKUP($AC$2:$AC$1001,Χρονοδιάγραμμα[],2,FALSE))","v":""}]
[null,null,null,null,null,null,null,null,null,null,null,null,null,null,null,null,null,null,null,null,null,null,null,null,null,null,null,null,null,{"$f":"IF($AC$2:$AC$1001=\"\",\"\",VLOOKUP($AC$2:$AC$1001,Χρονοδιάγραμμα[],2,FALSE))","v":""}]
[null,null,null,null,null,null,null,null,null,null,null,null,null,null,null,null,null,null,null,null,null,null,null,null,null,null,null,null,null,{"$f":"IF($AC$2:$AC$1001=\"\",\"\",VLOOKUP($AC$2:$AC$1001,Χρονοδιάγραμμα[],2,FALSE))","v":""}]
[null,null,null,null,null,null,null,null,null,null,null,null,null,null,null,null,null,null,null,null,null,null,null,null,null,null,null,null,null,{"$f":"IF($AC$2:$AC$1001=\"\",\"\",VLOOKUP($AC$2:$AC$1001,Χρονοδιάγραμμα[],2,FALSE))","v":""}]
[null,null,null,null,null,null,null,null,null,null,null,null,null,null,null,null,null,null,null,null,null,null,null,null,null,null,null,null,null,{"$f":"IF($AC$2:$AC$1001=\"\",\"\",VLOOKUP($AC$2:$AC$1001,Χρονοδιάγραμμα[],2,FALSE))","v":""}]
[null,null,null,null,null,null,null,null,null,null,null,null,null,null,null,null,null,null,null,null,null,null,null,null,null,null,null,null,null,{"$f":"IF($AC$2:$AC$1001=\"\",\"\",VLOOKUP($AC$2:$AC$1001,Χρονοδιάγραμμα[],2,FALSE))","v":""}]
[null,null,null,null,null,null,null,null,null,null,null,null,null,null,null,null,null,null,null,null,null,null,null,null,null,null,null,null,null,{"$f":"IF($AC$2:$AC$1001=\"\",\"\",VLOOKUP($AC$2:$AC$1001,Χρονοδιάγραμμα[],2,FALSE))","v":""}]
[null,null,null,null,null,null,null,null,null,null,null,null,null,null,null,null,null,null,null,null,null,null,null,null,null,null,null,null,null,{"$f":"IF($AC$2:$AC$1001=\"\",\"\",VLOOKUP($AC$2:$AC$1001,Χρονοδιάγραμμα[],2,FALSE))","v":""}]
[null,null,null,null,null,null,null,null,null,null,null,null,null,null,null,null,null,null,null,null,null,null,null,null,null,null,null,null,null,{"$f":"IF($AC$2:$AC$1001=\"\",\"\",VLOOKUP($AC$2:$AC$1001,Χρονοδιάγραμμα[],2,FALSE))","v":""}]
[null,null,null,null,null,null,null,null,null,null,null,null,null,null,null,null,null,null,null,null,null,null,null,null,null,null,null,null,null,{"$f":"IF($AC$2:$AC$1001=\"\",\"\",VLOOKUP($AC$2:$AC$1001,Χρονοδιάγραμμα[],2,FALSE))","v":""}]
[null,null,null,null,null,null,null,null,null,null,null,null,null,null,null,null,null,null,null,null,null,null,null,null,null,null,null,null,null,{"$f":"IF($AC$2:$AC$1001=\"\",\"\",VLOOKUP($AC$2:$AC$1001,Χρονοδιάγραμμα[],2,FALSE))","v":""}]
[null,null,null,null,null,null,null,null,null,null,null,null,null,null,null,null,null,null,null,null,null,null,null,null,null,null,null,null,null,{"$f":"IF($AC$2:$AC$1001=\"\",\"\",VLOOKUP($AC$2:$AC$1001,Χρονοδιάγραμμα[],2,FALSE))","v":""}]
[null,null,null,null,null,null,null,null,null,null,null,null,null,null,null,null,null,null,null,null,null,null,null,null,null,null,null,null,null,{"$f":"IF($AC$2:$AC$1001=\"\",\"\",VLOOKUP($AC$2:$AC$1001,Χρονοδιάγραμμα[],2,FALSE))","v":""}]
[null,null,null,null,null,null,null,null,null,null,null,null,null,null,null,null,null,null,null,null,null,null,null,null,null,null,null,null,null,{"$f":"IF($AC$2:$AC$1001=\"\",\"\",VLOOKUP($AC$2:$AC$1001,Χρονοδιάγραμμα[],2,FALSE))","v":""}]
[null,null,null,null,null,null,null,null,null,null,null,null,null,null,null,null,null,null,null,null,null,null,null,null,null,null,null,null,null,{"$f":"IF($AC$2:$AC$1001=\"\",\"\",VLOOKUP($AC$2:$AC$1001,Χρονοδιάγραμμα[],2,FALSE))","v":""}]
[null,null,null,null,null,null,null,null,null,null,null,null,null,null,null,null,null,null,null,null,null,null,null,null,null,null,null,null,null,{"$f":"IF($AC$2:$AC$1001=\"\",\"\",VLOOKUP($AC$2:$AC$1001,Χρονοδιάγραμμα[],2,FALSE))","v":""}]
[null,null,null,null,null,null,null,null,null,null,null,null,null,null,null,null,null,null,null,null,null,null,null,null,null,null,null,null,null,{"$f":"IF($AC$2:$AC$1001=\"\",\"\",VLOOKUP($AC$2:$AC$1001,Χρονοδιάγραμμα[],2,FALSE))","v":""}]
[null,null,null,null,null,null,null,null,null,null,null,null,null,null,null,null,null,null,null,null,null,null,null,null,null,null,null,null,null,{"$f":"IF($AC$2:$AC$1001=\"\",\"\",VLOOKUP($AC$2:$AC$1001,Χρονοδιάγραμμα[],2,FALSE))","v":""}]
[null,null,null,null,null,null,null,null,null,null,null,null,null,null,null,null,null,null,null,null,null,null,null,null,null,null,null,null,null,{"$f":"IF($AC$2:$AC$1001=\"\",\"\",VLOOKUP($AC$2:$AC$1001,Χρονοδιάγραμμα[],2,FALSE))","v":""}]
[null,null,null,null,null,null,null,null,null,null,null,null,null,null,null,null,null,null,null,null,null,null,null,null,null,null,null,null,null,{"$f":"IF($AC$2:$AC$1001=\"\",\"\",VLOOKUP($AC$2:$AC$1001,Χρονοδιάγραμμα[],2,FALSE))","v":""}]
[null,null,null,null,null,null,null,null,null,null,null,null,null,null,null,null,null,null,null,null,null,null,null,null,null,null,null,null,null,{"$f":"IF($AC$2:$AC$1001=\"\",\"\",VLOOKUP($AC$2:$AC$1001,Χρονοδιάγραμμα[],2,FALSE))","v":""}]
[null,null,null,null,null,null,null,null,null,null,null,null,null,null,null,null,null,null,null,null,null,null,null,null,null,null,null,null,null,{"$f":"IF($AC$2:$AC$1001=\"\",\"\",VLOOKUP($AC$2:$AC$1001,Χρονοδιάγραμμα[],2,FALSE))","v":""}]
[null,null,null,null,null,null,null,null,null,null,null,null,null,null,null,null,null,null,null,null,null,null,null,null,null,null,null,null,null,{"$f":"IF($AC$2:$AC$1001=\"\",\"\",VLOOKUP($AC$2:$AC$1001,Χρονοδιάγραμμα[],2,FALSE))","v":""}]
[null,null,null,null,null,null,null,null,null,null,null,null,null,null,null,null,null,null,null,null,null,null,null,null,null,null,null,null,null,{"$f":"IF($AC$2:$AC$1001=\"\",\"\",VLOOKUP($AC$2:$AC$1001,Χρονοδιάγραμμα[],2,FALSE))","v":""}]
[null,null,null,null,null,null,null,null,null,null,null,null,null,null,null,null,null,null,null,null,null,null,null,null,null,null,null,null,null,{"$f":"IF($AC$2:$AC$1001=\"\",\"\",VLOOKUP($AC$2:$AC$1001,Χρονοδιάγραμμα[],2,FALSE))","v":""}]
[null,null,null,null,null,null,null,null,null,null,null,null,null,null,null,null,null,null,null,null,null,null,null,null,null,null,null,null,null,{"$f":"IF($AC$2:$AC$1001=\"\",\"\",VLOOKUP($AC$2:$AC$1001,Χρονοδιάγραμμα[],2,FALSE))","v":""}]
[null,null,null,null,null,null,null,null,null,null,null,null,null,null,null,null,null,null,null,null,null,null,null,null,null,null,null,null,null,{"$f":"IF($AC$2:$AC$1001=\"\",\"\",VLOOKUP($AC$2:$AC$1001,Χρονοδιάγραμμα[],2,FALSE))","v":""}]
[null,null,null,null,null,null,null,null,null,null,null,null,null,null,null,null,null,null,null,null,null,null,null,null,null,null,null,null,null,{"$f":"IF($AC$2:$AC$1001=\"\",\"\",VLOOKUP($AC$2:$AC$1001,Χρονοδιάγραμμα[],2,FALSE))","v":""}]
[null,null,null,null,null,null,null,null,null,null,null,null,null,null,null,null,null,null,null,null,null,null,null,null,null,null,null,null,null,{"$f":"IF($AC$2:$AC$1001=\"\",\"\",VLOOKUP($AC$2:$AC$1001,Χρονοδιάγραμμα[],2,FALSE))","v":""}]
[null,null,null,null,null,null,null,null,null,null,null,null,null,null,null,null,null,null,null,null,null,null,null,null,null,null,null,null,null,{"$f":"IF($AC$2:$AC$1001=\"\",\"\",VLOOKUP($AC$2:$AC$1001,Χρονοδιάγραμμα[],2,FALSE))","v":""}]
[null,null,null,null,null,null,null,null,null,null,null,null,null,null,null,null,null,null,null,null,null,null,null,null,null,null,null,null,null,{"$f":"IF($AC$2:$AC$1001=\"\",\"\",VLOOKUP($AC$2:$AC$1001,Χρονοδιάγραμμα[],2,FALSE))","v":""}]
[null,null,null,null,null,null,null,null,null,null,null,null,null,null,null,null,null,null,null,null,null,null,null,null,null,null,null,null,null,{"$f":"IF($AC$2:$AC$1001=\"\",\"\",VLOOKUP($AC$2:$AC$1001,Χρονοδιάγραμμα[],2,FALSE))","v":""}]
[null,null,null,null,null,null,null,null,null,null,null,null,null,null,null,null,null,null,null,null,null,null,null,null,null,null,null,null,null,{"$f":"IF($AC$2:$AC$1001=\"\",\"\",VLOOKUP($AC$2:$AC$1001,Χρονοδιάγραμμα[],2,FALSE))","v":""}]
[null,null,null,null,null,null,null,null,null,null,null,null,null,null,null,null,null,null,null,null,null,null,null,null,null,null,null,null,null,{"$f":"IF($AC$2:$AC$1001=\"\",\"\",VLOOKUP($AC$2:$AC$1001,Χρονοδιάγραμμα[],2,FALSE))","v":""}]
[null,null,null,null,null,null,null,null,null,null,null,null,null,null,null,null,null,null,null,null,null,null,null,null,null,null,null,null,null,{"$f":"IF($AC$2:$AC$1001=\"\",\"\",VLOOKUP($AC$2:$AC$1001,Χρονοδιάγραμμα[],2,FALSE))","v":""}]
[null,null,null,null,null,null,null,null,null,null,null,null,null,null,null,null,null,null,null,null,null,null,null,null,null,null,null,null,null,{"$f":"IF($AC$2:$AC$1001=\"\",\"\",VLOOKUP($AC$2:$AC$1001,Χρονοδιάγραμμα[],2,FALSE))","v":""}]
[null,null,null,null,null,null,null,null,null,null,null,null,null,null,null,null,null,null,null,null,null,null,null,null,null,null,null,null,null,{"$f":"IF($AC$2:$AC$1001=\"\",\"\",VLOOKUP($AC$2:$AC$1001,Χρονοδιάγραμμα[],2,FALSE))","v":""}]
[null,null,null,null,null,null,null,null,null,null,null,null,null,null,null,null,null,null,null,null,null,null,null,null,null,null,null,null,null,{"$f":"IF($AC$2:$AC$1001=\"\",\"\",VLOOKUP($AC$2:$AC$1001,Χρονοδιάγραμμα[],2,FALSE))","v":""}]
[null,null,null,null,null,null,null,null,null,null,null,null,null,null,null,null,null,null,null,null,null,null,null,null,null,null,null,null,null,{"$f":"IF($AC$2:$AC$1001=\"\",\"\",VLOOKUP($AC$2:$AC$1001,Χρονοδιάγραμμα[],2,FALSE))","v":""}]
[null,null,null,null,null,null,null,null,null,null,null,null,null,null,null,null,null,null,null,null,null,null,null,null,null,null,null,null,null,{"$f":"IF($AC$2:$AC$1001=\"\",\"\",VLOOKUP($AC$2:$AC$1001,Χρονοδιάγραμμα[],2,FALSE))","v":""}]
[null,null,null,null,null,null,null,null,null,null,null,null,null,null,null,null,null,null,null,null,null,null,null,null,null,null,null,null,null,{"$f":"IF($AC$2:$AC$1001=\"\",\"\",VLOOKUP($AC$2:$AC$1001,Χρονοδιάγραμμα[],2,FALSE))","v":""}]
[null,null,null,null,null,null,null,null,null,null,null,null,null,null,null,null,null,null,null,null,null,null,null,null,null,null,null,null,null,{"$f":"IF($AC$2:$AC$1001=\"\",\"\",VLOOKUP($AC$2:$AC$1001,Χρονοδιάγραμμα[],2,FALSE))","v":""}]
[null,null,null,null,null,null,null,null,null,null,null,null,null,null,null,null,null,null,null,null,null,null,null,null,null,null,null,null,null,{"$f":"IF($AC$2:$AC$1001=\"\",\"\",VLOOKUP($AC$2:$AC$1001,Χρονοδιάγραμμα[],2,FALSE))","v":""}]
[null,null,null,null,null,null,null,null,null,null,null,null,null,null,null,null,null,null,null,null,null,null,null,null,null,null,null,null,null,{"$f":"IF($AC$2:$AC$1001=\"\",\"\",VLOOKUP($AC$2:$AC$1001,Χρονοδιάγραμμα[],2,FALSE))","v":""}]
[null,null,null,null,null,null,null,null,null,null,null,null,null,null,null,null,null,null,null,null,null,null,null,null,null,null,null,null,null,{"$f":"IF($AC$2:$AC$1001=\"\",\"\",VLOOKUP($AC$2:$AC$1001,Χρονοδιάγραμμα[],2,FALSE))","v":""}]
[null,null,null,null,null,null,null,null,null,null,null,null,null,null,null,null,null,null,null,null,null,null,null,null,null,null,null,null,null,{"$f":"IF($AC$2:$AC$1001=\"\",\"\",VLOOKUP($AC$2:$AC$1001,Χρονοδιάγραμμα[],2,FALSE))","v":""}]
[null,null,null,null,null,null,null,null,null,null,null,null,null,null,null,null,null,null,null,null,null,null,null,null,null,null,null,null,null,{"$f":"IF($AC$2:$AC$1001=\"\",\"\",VLOOKUP($AC$2:$AC$1001,Χρονοδιάγραμμα[],2,FALSE))","v":""}]
[null,null,null,null,null,null,null,null,null,null,null,null,null,null,null,null,null,null,null,null,null,null,null,null,null,null,null,null,null,{"$f":"IF($AC$2:$AC$1001=\"\",\"\",VLOOKUP($AC$2:$AC$1001,Χρονοδιάγραμμα[],2,FALSE))","v":""}]
[null,null,null,null,null,null,null,null,null,null,null,null,null,null,null,null,null,null,null,null,null,null,null,null,null,null,null,null,null,{"$f":"IF($AC$2:$AC$1001=\"\",\"\",VLOOKUP($AC$2:$AC$1001,Χρονοδιάγραμμα[],2,FALSE))","v":""}]
[null,null,null,null,null,null,null,null,null,null,null,null,null,null,null,null,null,null,null,null,null,null,null,null,null,null,null,null,null,{"$f":"IF($AC$2:$AC$1001=\"\",\"\",VLOOKUP($AC$2:$AC$1001,Χρονοδιάγραμμα[],2,FALSE))","v":""}]
[null,null,null,null,null,null,null,null,null,null,null,null,null,null,null,null,null,null,null,null,null,null,null,null,null,null,null,null,null,{"$f":"IF($AC$2:$AC$1001=\"\",\"\",VLOOKUP($AC$2:$AC$1001,Χρονοδιάγραμμα[],2,FALSE))","v":""}]
[null,null,null,null,null,null,null,null,null,null,null,null,null,null,null,null,null,null,null,null,null,null,null,null,null,null,null,null,null,{"$f":"IF($AC$2:$AC$1001=\"\",\"\",VLOOKUP($AC$2:$AC$1001,Χρονοδιάγραμμα[],2,FALSE))","v":""}]
[null,null,null,null,null,null,null,null,null,null,null,null,null,null,null,null,null,null,null,null,null,null,null,null,null,null,null,null,null,{"$f":"IF($AC$2:$AC$1001=\"\",\"\",VLOOKUP($AC$2:$AC$1001,Χρονοδιάγραμμα[],2,FALSE))","v":""}]
[null,null,null,null,null,null,null,null,null,null,null,null,null,null,null,null,null,null,null,null,null,null,null,null,null,null,null,null,null,{"$f":"IF($AC$2:$AC$1001=\"\",\"\",VLOOKUP($AC$2:$AC$1001,Χρονοδιάγραμμα[],2,FALSE))","v":""}]
[null,null,null,null,null,null,null,null,null,null,null,null,null,null,null,null,null,null,null,null,null,null,null,null,null,null,null,null,null,{"$f":"IF($AC$2:$AC$1001=\"\",\"\",VLOOKUP($AC$2:$AC$1001,Χρονοδιάγραμμα[],2,FALSE))","v":""}]
[null,null,null,null,null,null,null,null,null,null,null,null,null,null,null,null,null,null,null,null,null,null,null,null,null,null,null,null,null,{"$f":"IF($AC$2:$AC$1001=\"\",\"\",VLOOKUP($AC$2:$AC$1001,Χρονοδιάγραμμα[],2,FALSE))","v":""}]
[null,null,null,null,null,null,null,null,null,null,null,null,null,null,null,null,null,null,null,null,null,null,null,null,null,null,null,null,null,{"$f":"IF($AC$2:$AC$1001=\"\",\"\",VLOOKUP($AC$2:$AC$1001,Χρονοδιάγραμμα[],2,FALSE))","v":""}]
[null,null,null,null,null,null,null,null,null,null,null,null,null,null,null,null,null,null,null,null,null,null,null,null,null,null,null,null,null,{"$f":"IF($AC$2:$AC$1001=\"\",\"\",VLOOKUP($AC$2:$AC$1001,Χρονοδιάγραμμα[],2,FALSE))","v":""}]
[null,null,null,null,null,null,null,null,null,null,null,null,null,null,null,null,null,null,null,null,null,null,null,null,null,null,null,null,null,{"$f":"IF($AC$2:$AC$1001=\"\",\"\",VLOOKUP($AC$2:$AC$1001,Χρονοδιάγραμμα[],2,FALSE))","v":""}]
[null,null,null,null,null,null,null,null,null,null,null,null,null,null,null,null,null,null,null,null,null,null,null,null,null,null,null,null,null,{"$f":"IF($AC$2:$AC$1001=\"\",\"\",VLOOKUP($AC$2:$AC$1001,Χρονοδιάγραμμα[],2,FALSE))","v":""}]
[null,null,null,null,null,null,null,null,null,null,null,null,null,null,null,null,null,null,null,null,null,null,null,null,null,null,null,null,null,{"$f":"IF($AC$2:$AC$1001=\"\",\"\",VLOOKUP($AC$2:$AC$1001,Χρονοδιάγραμμα[],2,FALSE))","v":""}]
[null,null,null,null,null,null,null,null,null,null,null,null,null,null,null,null,null,null,null,null,null,null,null,null,null,null,null,null,null,{"$f":"IF($AC$2:$AC$1001=\"\",\"\",VLOOKUP($AC$2:$AC$1001,Χρονοδιάγραμμα[],2,FALSE))","v":""}]
[null,null,null,null,null,null,null,null,null,null,null,null,null,null,null,null,null,null,null,null,null,null,null,null,null,null,null,null,null,{"$f":"IF($AC$2:$AC$1001=\"\",\"\",VLOOKUP($AC$2:$AC$1001,Χρονοδιάγραμμα[],2,FALSE))","v":""}]
[null,null,null,null,null,null,null,null,null,null,null,null,null,null,null,null,null,null,null,null,null,null,null,null,null,null,null,null,null,{"$f":"IF($AC$2:$AC$1001=\"\",\"\",VLOOKUP($AC$2:$AC$1001,Χρονοδιάγραμμα[],2,FALSE))","v":""}]
[null,null,null,null,null,null,null,null,null,null,null,null,null,null,null,null,null,null,null,null,null,null,null,null,null,null,null,null,null,{"$f":"IF($AC$2:$AC$1001=\"\",\"\",VLOOKUP($AC$2:$AC$1001,Χρονοδιάγραμμα[],2,FALSE))","v":""}]
[null,null,null,null,null,null,null,null,null,null,null,null,null,null,null,null,null,null,null,null,null,null,null,null,null,null,null,null,null,{"$f":"IF($AC$2:$AC$1001=\"\",\"\",VLOOKUP($AC$2:$AC$1001,Χρονοδιάγραμμα[],2,FALSE))","v":""}]
[null,null,null,null,null,null,null,null,null,null,null,null,null,null,null,null,null,null,null,null,null,null,null,null,null,null,null,null,null,{"$f":"IF($AC$2:$AC$1001=\"\",\"\",VLOOKUP($AC$2:$AC$1001,Χρονοδιάγραμμα[],2,FALSE))","v":""}]
[null,null,null,null,null,null,null,null,null,null,null,null,null,null,null,null,null,null,null,null,null,null,null,null,null,null,null,null,null,{"$f":"IF($AC$2:$AC$1001=\"\",\"\",VLOOKUP($AC$2:$AC$1001,Χρονοδιάγραμμα[],2,FALSE))","v":""}]
[null,null,null,null,null,null,null,null,null,null,null,null,null,null,null,null,null,null,null,null,null,null,null,null,null,null,null,null,null,{"$f":"IF($AC$2:$AC$1001=\"\",\"\",VLOOKUP($AC$2:$AC$1001,Χρονοδιάγραμμα[],2,FALSE))","v":""}]
[null,null,null,null,null,null,null,null,null,null,null,null,null,null,null,null,null,null,null,null,null,null,null,null,null,null,null,null,null,{"$f":"IF($AC$2:$AC$1001=\"\",\"\",VLOOKUP($AC$2:$AC$1001,Χρονοδιάγραμμα[],2,FALSE))","v":""}]
[null,null,null,null,null,null,null,null,null,null,null,null,null,null,null,null,null,null,null,null,null,null,null,null,null,null,null,null,null,{"$f":"IF($AC$2:$AC$1001=\"\",\"\",VLOOKUP($AC$2:$AC$1001,Χρονοδιάγραμμα[],2,FALSE))","v":""}]
[null,null,null,null,null,null,null,null,null,null,null,null,null,null,null,null,null,null,null,null,null,null,null,null,null,null,null,null,null,{"$f":"IF($AC$2:$AC$1001=\"\",\"\",VLOOKUP($AC$2:$AC$1001,Χρονοδιάγραμμα[],2,FALSE))","v":""}]
[null,null,null,null,null,null,null,null,null,null,null,null,null,null,null,null,null,null,null,null,null,null,null,null,null,null,null,null,null,{"$f":"IF($AC$2:$AC$1001=\"\",\"\",VLOOKUP($AC$2:$AC$1001,Χρονοδιάγραμμα[],2,FALSE))","v":""}]
[null,null,null,null,null,null,null,null,null,null,null,null,null,null,null,null,null,null,null,null,null,null,null,null,null,null,null,null,null,{"$f":"IF($AC$2:$AC$1001=\"\",\"\",VLOOKUP($AC$2:$AC$1001,Χρονοδιάγραμμα[],2,FALSE))","v":""}]
[null,null,null,null,null,null,null,null,null,null,null,null,null,null,null,null,null,null,null,null,null,null,null,null,null,null,null,null,null,{"$f":"IF($AC$2:$AC$1001=\"\",\"\",VLOOKUP($AC$2:$AC$1001,Χρονοδιάγραμμα[],2,FALSE))","v":""}]
[null,null,null,null,null,null,null,null,null,null,null,null,null,null,null,null,null,null,null,null,null,null,null,null,null,null,null,null,null,{"$f":"IF($AC$2:$AC$1001=\"\",\"\",VLOOKUP($AC$2:$AC$1001,Χρονοδιάγραμμα[],2,FALSE))","v":""}]
[null,null,null,null,null,null,null,null,null,null,null,null,null,null,null,null,null,null,null,null,null,null,null,null,null,null,null,null,null,{"$f":"IF($AC$2:$AC$1001=\"\",\"\",VLOOKUP($AC$2:$AC$1001,Χρονοδιάγραμμα[],2,FALSE))","v":""}]
[null,null,null,null,null,null,null,null,null,null,null,null,null,null,null,null,null,null,null,null,null,null,null,null,null,null,null,null,null,{"$f":"IF($AC$2:$AC$1001=\"\",\"\",VLOOKUP($AC$2:$AC$1001,Χρονοδιάγραμμα[],2,FALSE))","v":""}]
[null,null,null,null,null,null,null,null,null,null,null,null,null,null,null,null,null,null,null,null,null,null,null,null,null,null,null,null,null,{"$f":"IF($AC$2:$AC$1001=\"\",\"\",VLOOKUP($AC$2:$AC$1001,Χρονοδιάγραμμα[],2,FALSE))","v":""}]
[null,null,null,null,null,null,null,null,null,null,null,null,null,null,null,null,null,null,null,null,null,null,null,null,null,null,null,null,null,{"$f":"IF($AC$2:$AC$1001=\"\",\"\",VLOOKUP($AC$2:$AC$1001,Χρονοδιάγραμμα[],2,FALSE))","v":""}]
[null,null,null,null,null,null,null,null,null,null,null,null,null,null,null,null,null,null,null,null,null,null,null,null,null,null,null,null,null,{"$f":"IF($AC$2:$AC$1001=\"\",\"\",VLOOKUP($AC$2:$AC$1001,Χρονοδιάγραμμα[],2,FALSE))","v":""}]
[null,null,null,null,null,null,null,null,null,null,null,null,null,null,null,null,null,null,null,null,null,null,null,null,null,null,null,null,null,{"$f":"IF($AC$2:$AC$1001=\"\",\"\",VLOOKUP($AC$2:$AC$1001,Χρονοδιάγραμμα[],2,FALSE))","v":""}]
[null,null,null,null,null,null,null,null,null,null,null,null,null,null,null,null,null,null,null,null,null,null,null,null,null,null,null,null,null,{"$f":"IF($AC$2:$AC$1001=\"\",\"\",VLOOKUP($AC$2:$AC$1001,Χρονοδιάγραμμα[],2,FALSE))","v":""}]
[null,null,null,null,null,null,null,null,null,null,null,null,null,null,null,null,null,null,null,null,null,null,null,null,null,null,null,null,null,{"$f":"IF($AC$2:$AC$1001=\"\",\"\",VLOOKUP($AC$2:$AC$1001,Χρονοδιάγραμμα[],2,FALSE))","v":""}]
[null,null,null,null,null,null,null,null,null,null,null,null,null,null,null,null,null,null,null,null,null,null,null,null,null,null,null,null,null,{"$f":"IF($AC$2:$AC$1001=\"\",\"\",VLOOKUP($AC$2:$AC$1001,Χρονοδιάγραμμα[],2,FALSE))","v":""}]
[null,null,null,null,null,null,null,null,null,null,null,null,null,null,null,null,null,null,null,null,null,null,null,null,null,null,null,null,null,{"$f":"IF($AC$2:$AC$1001=\"\",\"\",VLOOKUP($AC$2:$AC$1001,Χρονοδιάγραμμα[],2,FALSE))","v":""}]
[null,null,null,null,null,null,null,null,null,null,null,null,null,null,null,null,null,null,null,null,null,null,null,null,null,null,null,null,null,{"$f":"IF($AC$2:$AC$1001=\"\",\"\",VLOOKUP($AC$2:$AC$1001,Χρονοδιάγραμμα[],2,FALSE))","v":""}]
[null,null,null,null,null,null,null,null,null,null,null,null,null,null,null,null,null,null,null,null,null,null,null,null,null,null,null,null,null,{"$f":"IF($AC$2:$AC$1001=\"\",\"\",VLOOKUP($AC$2:$AC$1001,Χρονοδιάγραμμα[],2,FALSE))","v":""}]
[null,null,null,null,null,null,null,null,null,null,null,null,null,null,null,null,null,null,null,null,null,null,null,null,null,null,null,null,null,{"$f":"IF($AC$2:$AC$1001=\"\",\"\",VLOOKUP($AC$2:$AC$1001,Χρονοδιάγραμμα[],2,FALSE))","v":""}]
[null,null,null,null,null,null,null,null,null,null,null,null,null,null,null,null,null,null,null,null,null,null,null,null,null,null,null,null,null,{"$f":"IF($AC$2:$AC$1001=\"\",\"\",VLOOKUP($AC$2:$AC$1001,Χρονοδιάγραμμα[],2,FALSE))","v":""}]
[null,null,null,null,null,null,null,null,null,null,null,null,null,null,null,null,null,null,null,null,null,null,null,null,null,null,null,null,null,{"$f":"IF($AC$2:$AC$1001=\"\",\"\",VLOOKUP($AC$2:$AC$1001,Χρονοδιάγραμμα[],2,FALSE))","v":""}]
[null,null,null,null,null,null,null,null,null,null,null,null,null,null,null,null,null,null,null,null,null,null,null,null,null,null,null,null,null,{"$f":"IF($AC$2:$AC$1001=\"\",\"\",VLOOKUP($AC$2:$AC$1001,Χρονοδιάγραμμα[],2,FALSE))","v":""}]
[null,null,null,null,null,null,null,null,null,null,null,null,null,null,null,null,null,null,null,null,null,null,null,null,null,null,null,null,null,{"$f":"IF($AC$2:$AC$1001=\"\",\"\",VLOOKUP($AC$2:$AC$1001,Χρονοδιάγραμμα[],2,FALSE))","v":""}]
[null,null,null,null,null,null,null,null,null,null,null,null,null,null,null,null,null,null,null,null,null,null,null,null,null,null,null,null,null,{"$f":"IF($AC$2:$AC$1001=\"\",\"\",VLOOKUP($AC$2:$AC$1001,Χρονοδιάγραμμα[],2,FALSE))","v":""}]
[null,null,null,null,null,null,null,null,null,null,null,null,null,null,null,null,null,null,null,null,null,null,null,null,null,null,null,null,null,{"$f":"IF($AC$2:$AC$1001=\"\",\"\",VLOOKUP($AC$2:$AC$1001,Χρονοδιάγραμμα[],2,FALSE))","v":""}]
[null,null,null,null,null,null,null,null,null,null,null,null,null,null,null,null,null,null,null,null,null,null,null,null,null,null,null,null,null,{"$f":"IF($AC$2:$AC$1001=\"\",\"\",VLOOKUP($AC$2:$AC$1001,Χρονοδιάγραμμα[],2,FALSE))","v":""}]
[null,null,null,null,null,null,null,null,null,null,null,null,null,null,null,null,null,null,null,null,null,null,null,null,null,null,null,null,null,{"$f":"IF($AC$2:$AC$1001=\"\",\"\",VLOOKUP($AC$2:$AC$1001,Χρονοδιάγραμμα[],2,FALSE))","v":""}]
[null,null,null,null,null,null,null,null,null,null,null,null,null,null,null,null,null,null,null,null,null,null,null,null,null,null,null,null,null,{"$f":"IF($AC$2:$AC$1001=\"\",\"\",VLOOKUP($AC$2:$AC$1001,Χρονοδιάγραμμα[],2,FALSE))","v":""}]
[null,null,null,null,null,null,null,null,null,null,null,null,null,null,null,null,null,null,null,null,null,null,null,null,null,null,null,null,null,{"$f":"IF($AC$2:$AC$1001=\"\",\"\",VLOOKUP($AC$2:$AC$1001,Χρονοδιάγραμμα[],2,FALSE))","v":""}]
[null,null,null,null,null,null,null,null,null,null,null,null,null,null,null,null,null,null,null,null,null,null,null,null,null,null,null,null,null,{"$f":"IF($AC$2:$AC$1001=\"\",\"\",VLOOKUP($AC$2:$AC$1001,Χρονοδιάγραμμα[],2,FALSE))","v":""}]
[null,null,null,null,null,null,null,null,null,null,null,null,null,null,null,null,null,null,null,null,null,null,null,null,null,null,null,null,null,{"$f":"IF($AC$2:$AC$1001=\"\",\"\",VLOOKUP($AC$2:$AC$1001,Χρονοδιάγραμμα[],2,FALSE))","v":""}]
[null,null,null,null,null,null,null,null,null,null,null,null,null,null,null,null,null,null,null,null,null,null,null,null,null,null,null,null,null,{"$f":"IF($AC$2:$AC$1001=\"\",\"\",VLOOKUP($AC$2:$AC$1001,Χρονοδιάγραμμα[],2,FALSE))","v":""}]
[null,null,null,null,null,null,null,null,null,null,null,null,null,null,null,null,null,null,null,null,null,null,null,null,null,null,null,null,null,{"$f":"IF($AC$2:$AC$1001=\"\",\"\",VLOOKUP($AC$2:$AC$1001,Χρονοδιάγραμμα[],2,FALSE))","v":""}]
[null,null,null,null,null,null,null,null,null,null,null,null,null,null,null,null,null,null,null,null,null,null,null,null,null,null,null,null,null,{"$f":"IF($AC$2:$AC$1001=\"\",\"\",VLOOKUP($AC$2:$AC$1001,Χρονοδιάγραμμα[],2,FALSE))","v":""}]
[null,null,null,null,null,null,null,null,null,null,null,null,null,null,null,null,null,null,null,null,null,null,null,null,null,null,null,null,null,{"$f":"IF($AC$2:$AC$1001=\"\",\"\",VLOOKUP($AC$2:$AC$1001,Χρονοδιάγραμμα[],2,FALSE))","v":""}]
[null,null,null,null,null,null,null,null,null,null,null,null,null,null,null,null,null,null,null,null,null,null,null,null,null,null,null,null,null,{"$f":"IF($AC$2:$AC$1001=\"\",\"\",VLOOKUP($AC$2:$AC$1001,Χρονοδιάγραμμα[],2,FALSE))","v":""}]
[null,null,null,null,null,null,null,null,null,null,null,null,null,null,null,null,null,null,null,null,null,null,null,null,null,null,null,null,null,{"$f":"IF($AC$2:$AC$1001=\"\",\"\",VLOOKUP($AC$2:$AC$1001,Χρονοδιάγραμμα[],2,FALSE))","v":""}]
[null,null,null,null,null,null,null,null,null,null,null,null,null,null,null,null,null,null,null,null,null,null,null,null,null,null,null,null,null,{"$f":"IF($AC$2:$AC$1001=\"\",\"\",VLOOKUP($AC$2:$AC$1001,Χρονοδιάγραμμα[],2,FALSE))","v":""}]
[null,null,null,null,null,null,null,null,null,null,null,null,null,null,null,null,null,null,null,null,null,null,null,null,null,null,null,null,null,{"$f":"IF($AC$2:$AC$1001=\"\",\"\",VLOOKUP($AC$2:$AC$1001,Χρονοδιάγραμμα[],2,FALSE))","v":""}]
[null,null,null,null,null,null,null,null,null,null,null,null,null,null,null,null,null,null,null,null,null,null,null,null,null,null,null,null,null,{"$f":"IF($AC$2:$AC$1001=\"\",\"\",VLOOKUP($AC$2:$AC$1001,Χρονοδιάγραμμα[],2,FALSE))","v":""}]
[null,null,null,null,null,null,null,null,null,null,null,null,null,null,null,null,null,null,null,null,null,null,null,null,null,null,null,null,null,{"$f":"IF($AC$2:$AC$1001=\"\",\"\",VLOOKUP($AC$2:$AC$1001,Χρονοδιάγραμμα[],2,FALSE))","v":""}]
[null,null,null,null,null,null,null,null,null,null,null,null,null,null,null,null,null,null,null,null,null,null,null,null,null,null,null,null,null,{"$f":"IF($AC$2:$AC$1001=\"\",\"\",VLOOKUP($AC$2:$AC$1001,Χρονοδιάγραμμα[],2,FALSE))","v":""}]
[null,null,null,null,null,null,null,null,null,null,null,null,null,null,null,null,null,null,null,null,null,null,null,null,null,null,null,null,null,{"$f":"IF($AC$2:$AC$1001=\"\",\"\",VLOOKUP($AC$2:$AC$1001,Χρονοδιάγραμμα[],2,FALSE))","v":""}]
[null,null,null,null,null,null,null,null,null,null,null,null,null,null,null,null,null,null,null,null,null,null,null,null,null,null,null,null,null,{"$f":"IF($AC$2:$AC$1001=\"\",\"\",VLOOKUP($AC$2:$AC$1001,Χρονοδιάγραμμα[],2,FALSE))","v":""}]
[null,null,null,null,null,null,null,null,null,null,null,null,null,null,null,null,null,null,null,null,null,null,null,null,null,null,null,null,null,{"$f":"IF($AC$2:$AC$1001=\"\",\"\",VLOOKUP($AC$2:$AC$1001,Χρονοδιάγραμμα[],2,FALSE))","v":""}]
[null,null,null,null,null,null,null,null,null,null,null,null,null,null,null,null,null,null,null,null,null,null,null,null,null,null,null,null,null,{"$f":"IF($AC$2:$AC$1001=\"\",\"\",VLOOKUP($AC$2:$AC$1001,Χρονοδιάγραμμα[],2,FALSE))","v":""}]
[null,null,null,null,null,null,null,null,null,null,null,null,null,null,null,null,null,null,null,null,null,null,null,null,null,null,null,null,null,{"$f":"IF($AC$2:$AC$1001=\"\",\"\",VLOOKUP($AC$2:$AC$1001,Χρονοδιάγραμμα[],2,FALSE))","v":""}]
[null,null,null,null,null,null,null,null,null,null,null,null,null,null,null,null,null,null,null,null,null,null,null,null,null,null,null,null,null,{"$f":"IF($AC$2:$AC$1001=\"\",\"\",VLOOKUP($AC$2:$AC$1001,Χρονοδιάγραμμα[],2,FALSE))","v":""}]
[null,null,null,null,null,null,null,null,null,null,null,null,null,null,null,null,null,null,null,null,null,null,null,null,null,null,null,null,null,{"$f":"IF($AC$2:$AC$1001=\"\",\"\",VLOOKUP($AC$2:$AC$1001,Χρονοδιάγραμμα[],2,FALSE))","v":""}]
[null,null,null,null,null,null,null,null,null,null,null,null,null,null,null,null,null,null,null,null,null,null,null,null,null,null,null,null,null,{"$f":"IF($AC$2:$AC$1001=\"\",\"\",VLOOKUP($AC$2:$AC$1001,Χρονοδιάγραμμα[],2,FALSE))","v":""}]
[null,null,null,null,null,null,null,null,null,null,null,null,null,null,null,null,null,null,null,null,null,null,null,null,null,null,null,null,null,{"$f":"IF($AC$2:$AC$1001=\"\",\"\",VLOOKUP($AC$2:$AC$1001,Χρονοδιάγραμμα[],2,FALSE))","v":""}]
[null,null,null,null,null,null,null,null,null,null,null,null,null,null,null,null,null,null,null,null,null,null,null,null,null,null,null,null,null,{"$f":"IF($AC$2:$AC$1001=\"\",\"\",VLOOKUP($AC$2:$AC$1001,Χρονοδιάγραμμα[],2,FALSE))","v":""}]
[null,null,null,null,null,null,null,null,null,null,null,null,null,null,null,null,null,null,null,null,null,null,null,null,null,null,null,null,null,{"$f":"IF($AC$2:$AC$1001=\"\",\"\",VLOOKUP($AC$2:$AC$1001,Χρονοδιάγραμμα[],2,FALSE))","v":""}]
[null,null,null,null,null,null,null,null,null,null,null,null,null,null,null,null,null,null,null,null,null,null,null,null,null,null,null,null,null,{"$f":"IF($AC$2:$AC$1001=\"\",\"\",VLOOKUP($AC$2:$AC$1001,Χρονοδιάγραμμα[],2,FALSE))","v":""}]
[null,null,null,null,null,null,null,null,null,null,null,null,null,null,null,null,null,null,null,null,null,null,null,null,null,null,null,null,null,{"$f":"IF($AC$2:$AC$1001=\"\",\"\",VLOOKUP($AC$2:$AC$1001,Χρονοδιάγραμμα[],2,FALSE))","v":""}]
[null,null,null,null,null,null,null,null,null,null,null,null,null,null,null,null,null,null,null,null,null,null,null,null,null,null,null,null,null,{"$f":"IF($AC$2:$AC$1001=\"\",\"\",VLOOKUP($AC$2:$AC$1001,Χρονοδιάγραμμα[],2,FALSE))","v":""}]
[null,null,null,null,null,null,null,null,null,null,null,null,null,null,null,null,null,null,null,null,null,null,null,null,null,null,null,null,null,{"$f":"IF($AC$2:$AC$1001=\"\",\"\",VLOOKUP($AC$2:$AC$1001,Χρονοδιάγραμμα[],2,FALSE))","v":""}]
[null,null,null,null,null,null,null,null,null,null,null,null,null,null,null,null,null,null,null,null,null,null,null,null,null,null,null,null,null,{"$f":"IF($AC$2:$AC$1001=\"\",\"\",VLOOKUP($AC$2:$AC$1001,Χρονοδιάγραμμα[],2,FALSE))","v":""}]
[null,null,null,null,null,null,null,null,null,null,null,null,null,null,null,null,null,null,null,null,null,null,null,null,null,null,null,null,null,{"$f":"IF($AC$2:$AC$1001=\"\",\"\",VLOOKUP($AC$2:$AC$1001,Χρονοδιάγραμμα[],2,FALSE))","v":""}]
[null,null,null,null,null,null,null,null,null,null,null,null,null,null,null,null,null,null,null,null,null,null,null,null,null,null,null,null,null,{"$f":"IF($AC$2:$AC$1001=\"\",\"\",VLOOKUP($AC$2:$AC$1001,Χρονοδιάγραμμα[],2,FALSE))","v":""}]
[null,null,null,null,null,null,null,null,null,null,null,null,null,null,null,null,null,null,null,null,null,null,null,null,null,null,null,null,null,{"$f":"IF($AC$2:$AC$1001=\"\",\"\",VLOOKUP($AC$2:$AC$1001,Χρονοδιάγραμμα[],2,FALSE))","v":""}]
[null,null,null,null,null,null,null,null,null,null,null,null,null,null,null,null,null,null,null,null,null,null,null,null,null,null,null,null,null,{"$f":"IF($AC$2:$AC$1001=\"\",\"\",VLOOKUP($AC$2:$AC$1001,Χρονοδιάγραμμα[],2,FALSE))","v":""}]
[null,null,null,null,null,null,null,null,null,null,null,null,null,null,null,null,null,null,null,null,null,null,null,null,null,null,null,null,null,{"$f":"IF($AC$2:$AC$1001=\"\",\"\",VLOOKUP($AC$2:$AC$1001,Χρονοδιάγραμμα[],2,FALSE))","v":""}]
[null,null,null,null,null,null,null,null,null,null,null,null,null,null,null,null,null,null,null,null,null,null,null,null,null,null,null,null,null,{"$f":"IF($AC$2:$AC$1001=\"\",\"\",VLOOKUP($AC$2:$AC$1001,Χρονοδιάγραμμα[],2,FALSE))","v":""}]
[null,null,null,null,null,null,null,null,null,null,null,null,null,null,null,null,null,null,null,null,null,null,null,null,null,null,null,null,null,{"$f":"IF($AC$2:$AC$1001=\"\",\"\",VLOOKUP($AC$2:$AC$1001,Χρονοδιάγραμμα[],2,FALSE))","v":""}]
[null,null,null,null,null,null,null,null,null,null,null,null,null,null,null,null,null,null,null,null,null,null,null,null,null,null,null,null,null,{"$f":"IF($AC$2:$AC$1001=\"\",\"\",VLOOKUP($AC$2:$AC$1001,Χρονοδιάγραμμα[],2,FALSE))","v":""}]
[null,null,null,null,null,null,null,null,null,null,null,null,null,null,null,null,null,null,null,null,null,null,null,null,null,null,null,null,null,{"$f":"IF($AC$2:$AC$1001=\"\",\"\",VLOOKUP($AC$2:$AC$1001,Χρονοδιάγραμμα[],2,FALSE))","v":""}]
[null,null,null,null,null,null,null,null,null,null,null,null,null,null,null,null,null,null,null,null,null,null,null,null,null,null,null,null,null,{"$f":"IF($AC$2:$AC$1001=\"\",\"\",VLOOKUP($AC$2:$AC$1001,Χρονοδιάγραμμα[],2,FALSE))","v":""}]
[null,null,null,null,null,null,null,null,null,null,null,null,null,null,null,null,null,null,null,null,null,null,null,null,null,null,null,null,null,{"$f":"IF($AC$2:$AC$1001=\"\",\"\",VLOOKUP($AC$2:$AC$1001,Χρονοδιάγραμμα[],2,FALSE))","v":""}]
[null,null,null,null,null,null,null,null,null,null,null,null,null,null,null,null,null,null,null,null,null,null,null,null,null,null,null,null,null,{"$f":"IF($AC$2:$AC$1001=\"\",\"\",VLOOKUP($AC$2:$AC$1001,Χρονοδιάγραμμα[],2,FALSE))","v":""}]
[null,null,null,null,null,null,null,null,null,null,null,null,null,null,null,null,null,null,null,null,null,null,null,null,null,null,null,null,null,{"$f":"IF($AC$2:$AC$1001=\"\",\"\",VLOOKUP($AC$2:$AC$1001,Χρονοδιάγραμμα[],2,FALSE))","v":""}]
[null,null,null,null,null,null,null,null,null,null,null,null,null,null,null,null,null,null,null,null,null,null,null,null,null,null,null,null,null,{"$f":"IF($AC$2:$AC$1001=\"\",\"\",VLOOKUP($AC$2:$AC$1001,Χρονοδιάγραμμα[],2,FALSE))","v":""}]
[null,null,null,null,null,null,null,null,null,null,null,null,null,null,null,null,null,null,null,null,null,null,null,null,null,null,null,null,null,{"$f":"IF($AC$2:$AC$1001=\"\",\"\",VLOOKUP($AC$2:$AC$1001,Χρονοδιάγραμμα[],2,FALSE))","v":""}]
[null,null,null,null,null,null,null,null,null,null,null,null,null,null,null,null,null,null,null,null,null,null,null,null,null,null,null,null,null,{"$f":"IF($AC$2:$AC$1001=\"\",\"\",VLOOKUP($AC$2:$AC$1001,Χρονοδιάγραμμα[],2,FALSE))","v":""}]
[null,null,null,null,null,null,null,null,null,null,null,null,null,null,null,null,null,null,null,null,null,null,null,null,null,null,null,null,null,{"$f":"IF($AC$2:$AC$1001=\"\",\"\",VLOOKUP($AC$2:$AC$1001,Χρονοδιάγραμμα[],2,FALSE))","v":""}]
[null,null,null,null,null,null,null,null,null,null,null,null,null,null,null,null,null,null,null,null,null,null,null,null,null,null,null,null,null,{"$f":"IF($AC$2:$AC$1001=\"\",\"\",VLOOKUP($AC$2:$AC$1001,Χρονοδιάγραμμα[],2,FALSE))","v":""}]
[null,null,null,null,null,null,null,null,null,null,null,null,null,null,null,null,null,null,null,null,null,null,null,null,null,null,null,null,null,{"$f":"IF($AC$2:$AC$1001=\"\",\"\",VLOOKUP($AC$2:$AC$1001,Χρονοδιάγραμμα[],2,FALSE))","v":""}]
[null,null,null,null,null,null,null,null,null,null,null,null,null,null,null,null,null,null,null,null,null,null,null,null,null,null,null,null,null,{"$f":"IF($AC$2:$AC$1001=\"\",\"\",VLOOKUP($AC$2:$AC$1001,Χρονοδιάγραμμα[],2,FALSE))","v":""}]
[null,null,null,null,null,null,null,null,null,null,null,null,null,null,null,null,null,null,null,null,null,null,null,null,null,null,null,null,null,{"$f":"IF($AC$2:$AC$1001=\"\",\"\",VLOOKUP($AC$2:$AC$1001,Χρονοδιάγραμμα[],2,FALSE))","v":""}]
[null,null,null,null,null,null,null,null,null,null,null,null,null,null,null,null,null,null,null,null,null,null,null,null,null,null,null,null,null,{"$f":"IF($AC$2:$AC$1001=\"\",\"\",VLOOKUP($AC$2:$AC$1001,Χρονοδιάγραμμα[],2,FALSE))","v":""}]
[null,null,null,null,null,null,null,null,null,null,null,null,null,null,null,null,null,null,null,null,null,null,null,null,null,null,null,null,null,{"$f":"IF($AC$2:$AC$1001=\"\",\"\",VLOOKUP($AC$2:$AC$1001,Χρονοδιάγραμμα[],2,FALSE))","v":""}]
[null,null,null,null,null,null,null,null,null,null,null,null,null,null,null,null,null,null,null,null,null,null,null,null,null,null,null,null,null,{"$f":"IF($AC$2:$AC$1001=\"\",\"\",VLOOKUP($AC$2:$AC$1001,Χρονοδιάγραμμα[],2,FALSE))","v":""}]
[null,null,null,null,null,null,null,null,null,null,null,null,null,null,null,null,null,null,null,null,null,null,null,null,null,null,null,null,null,{"$f":"IF($AC$2:$AC$1001=\"\",\"\",VLOOKUP($AC$2:$AC$1001,Χρονοδιάγραμμα[],2,FALSE))","v":""}]
[null,null,null,null,null,null,null,null,null,null,null,null,null,null,null,null,null,null,null,null,null,null,null,null,null,null,null,null,null,{"$f":"IF($AC$2:$AC$1001=\"\",\"\",VLOOKUP($AC$2:$AC$1001,Χρονοδιάγραμμα[],2,FALSE))","v":""}]
[null,null,null,null,null,null,null,null,null,null,null,null,null,null,null,null,null,null,null,null,null,null,null,null,null,null,null,null,null,{"$f":"IF($AC$2:$AC$1001=\"\",\"\",VLOOKUP($AC$2:$AC$1001,Χρονοδιάγραμμα[],2,FALSE))","v":""}]
[null,null,null,null,null,null,null,null,null,null,null,null,null,null,null,null,null,null,null,null,null,null,null,null,null,null,null,null,null,{"$f":"IF($AC$2:$AC$1001=\"\",\"\",VLOOKUP($AC$2:$AC$1001,Χρονοδιάγραμμα[],2,FALSE))","v":""}]
[null,null,null,null,null,null,null,null,null,null,null,null,null,null,null,null,null,null,null,null,null,null,null,null,null,null,null,null,null,{"$f":"IF($AC$2:$AC$1001=\"\",\"\",VLOOKUP($AC$2:$AC$1001,Χρονοδιάγραμμα[],2,FALSE))","v":""}]
[null,null,null,null,null,null,null,null,null,null,null,null,null,null,null,null,null,null,null,null,null,null,null,null,null,null,null,null,null,{"$f":"IF($AC$2:$AC$1001=\"\",\"\",VLOOKUP($AC$2:$AC$1001,Χρονοδιάγραμμα[],2,FALSE))","v":""}]
[null,null,null,null,null,null,null,null,null,null,null,null,null,null,null,null,null,null,null,null,null,null,null,null,null,null,null,null,null,{"$f":"IF($AC$2:$AC$1001=\"\",\"\",VLOOKUP($AC$2:$AC$1001,Χρονοδιάγραμμα[],2,FALSE))","v":""}]
[null,null,null,null,null,null,null,null,null,null,null,null,null,null,null,null,null,null,null,null,null,null,null,null,null,null,null,null,null,{"$f":"IF($AC$2:$AC$1001=\"\",\"\",VLOOKUP($AC$2:$AC$1001,Χρονοδιάγραμμα[],2,FALSE))","v":""}]
[null,null,null,null,null,null,null,null,null,null,null,null,null,null,null,null,null,null,null,null,null,null,null,null,null,null,null,null,null,{"$f":"IF($AC$2:$AC$1001=\"\",\"\",VLOOKUP($AC$2:$AC$1001,Χρονοδιάγραμμα[],2,FALSE))","v":""}]
[null,null,null,null,null,null,null,null,null,null,null,null,null,null,null,null,null,null,null,null,null,null,null,null,null,null,null,null,null,{"$f":"IF($AC$2:$AC$1001=\"\",\"\",VLOOKUP($AC$2:$AC$1001,Χρονοδιάγραμμα[],2,FALSE))","v":""}]
[null,null,null,null,null,null,null,null,null,null,null,null,null,null,null,null,null,null,null,null,null,null,null,null,null,null,null,null,null,{"$f":"IF($AC$2:$AC$1001=\"\",\"\",VLOOKUP($AC$2:$AC$1001,Χρονοδιάγραμμα[],2,FALSE))","v":""}]
[null,null,null,null,null,null,null,null,null,null,null,null,null,null,null,null,null,null,null,null,null,null,null,null,null,null,null,null,null,{"$f":"IF($AC$2:$AC$1001=\"\",\"\",VLOOKUP($AC$2:$AC$1001,Χρονοδιάγραμμα[],2,FALSE))","v":""}]
[null,null,null,null,null,null,null,null,null,null,null,null,null,null,null,null,null,null,null,null,null,null,null,null,null,null,null,null,null,{"$f":"IF($AC$2:$AC$1001=\"\",\"\",VLOOKUP($AC$2:$AC$1001,Χρονοδιάγραμμα[],2,FALSE))","v":""}]
[null,null,null,null,null,null,null,null,null,null,null,null,null,null,null,null,null,null,null,null,null,null,null,null,null,null,null,null,null,{"$f":"IF($AC$2:$AC$1001=\"\",\"\",VLOOKUP($AC$2:$AC$1001,Χρονοδιάγραμμα[],2,FALSE))","v":""}]
[null,null,null,null,null,null,null,null,null,null,null,null,null,null,null,null,null,null,null,null,null,null,null,null,null,null,null,null,null,{"$f":"IF($AC$2:$AC$1001=\"\",\"\",VLOOKUP($AC$2:$AC$1001,Χρονοδιάγραμμα[],2,FALSE))","v":""}]
[null,null,null,null,null,null,null,null,null,null,null,null,null,null,null,null,null,null,null,null,null,null,null,null,null,null,null,null,null,{"$f":"IF($AC$2:$AC$1001=\"\",\"\",VLOOKUP($AC$2:$AC$1001,Χρονοδιάγραμμα[],2,FALSE))","v":""}]
[null,null,null,null,null,null,null,null,null,null,null,null,null,null,null,null,null,null,null,null,null,null,null,null,null,null,null,null,null,{"$f":"IF($AC$2:$AC$1001=\"\",\"\",VLOOKUP($AC$2:$AC$1001,Χρονοδιάγραμμα[],2,FALSE))","v":""}]
[null,null,null,null,null,null,null,null,null,null,null,null,null,null,null,null,null,null,null,null,null,null,null,null,null,null,null,null,null,{"$f":"IF($AC$2:$AC$1001=\"\",\"\",VLOOKUP($AC$2:$AC$1001,Χρονοδιάγραμμα[],2,FALSE))","v":""}]
[null,null,null,null,null,null,null,null,null,null,null,null,null,null,null,null,null,null,null,null,null,null,null,null,null,null,null,null,null,{"$f":"IF($AC$2:$AC$1001=\"\",\"\",VLOOKUP($AC$2:$AC$1001,Χρονοδιάγραμμα[],2,FALSE))","v":""}]
[null,null,null,null,null,null,null,null,null,null,null,null,null,null,null,null,null,null,null,null,null,null,null,null,null,null,null,null,null,{"$f":"IF($AC$2:$AC$1001=\"\",\"\",VLOOKUP($AC$2:$AC$1001,Χρονοδιάγραμμα[],2,FALSE))","v":""}]
[null,null,null,null,null,null,null,null,null,null,null,null,null,null,null,null,null,null,null,null,null,null,null,null,null,null,null,null,null,{"$f":"IF($AC$2:$AC$1001=\"\",\"\",VLOOKUP($AC$2:$AC$1001,Χρονοδιάγραμμα[],2,FALSE))","v":""}]
[null,null,null,null,null,null,null,null,null,null,null,null,null,null,null,null,null,null,null,null,null,null,null,null,null,null,null,null,null,{"$f":"IF($AC$2:$AC$1001=\"\",\"\",VLOOKUP($AC$2:$AC$1001,Χρονοδιάγραμμα[],2,FALSE))","v":""}]
[null,null,null,null,null,null,null,null,null,null,null,null,null,null,null,null,null,null,null,null,null,null,null,null,null,null,null,null,null,{"$f":"IF($AC$2:$AC$1001=\"\",\"\",VLOOKUP($AC$2:$AC$1001,Χρονοδιάγραμμα[],2,FALSE))","v":""}]
[null,null,null,null,null,null,null,null,null,null,null,null,null,null,null,null,null,null,null,null,null,null,null,null,null,null,null,null,null,{"$f":"IF($AC$2:$AC$1001=\"\",\"\",VLOOKUP($AC$2:$AC$1001,Χρονοδιάγραμμα[],2,FALSE))","v":""}]
[null,null,null,null,null,null,null,null,null,null,null,null,null,null,null,null,null,null,null,null,null,null,null,null,null,null,null,null,null,{"$f":"IF($AC$2:$AC$1001=\"\",\"\",VLOOKUP($AC$2:$AC$1001,Χρονοδιάγραμμα[],2,FALSE))","v":""}]
[null,null,null,null,null,null,null,null,null,null,null,null,null,null,null,null,null,null,null,null,null,null,null,null,null,null,null,null,null,{"$f":"IF($AC$2:$AC$1001=\"\",\"\",VLOOKUP($AC$2:$AC$1001,Χρονοδιάγραμμα[],2,FALSE))","v":""}]
[null,null,null,null,null,null,null,null,null,null,null,null,null,null,null,null,null,null,null,null,null,null,null,null,null,null,null,null,null,{"$f":"IF($AC$2:$AC$1001=\"\",\"\",VLOOKUP($AC$2:$AC$1001,Χρονοδιάγραμμα[],2,FALSE))","v":""}]
[null,null,null,null,null,null,null,null,null,null,null,null,null,null,null,null,null,null,null,null,null,null,null,null,null,null,null,null,null,{"$f":"IF($AC$2:$AC$1001=\"\",\"\",VLOOKUP($AC$2:$AC$1001,Χρονοδιάγραμμα[],2,FALSE))","v":""}]
[null,null,null,null,null,null,null,null,null,null,null,null,null,null,null,null,null,null,null,null,null,null,null,null,null,null,null,null,null,{"$f":"IF($AC$2:$AC$1001=\"\",\"\",VLOOKUP($AC$2:$AC$1001,Χρονοδιάγραμμα[],2,FALSE))","v":""}]
[null,null,null,null,null,null,null,null,null,null,null,null,null,null,null,null,null,null,null,null,null,null,null,null,null,null,null,null,null,{"$f":"IF($AC$2:$AC$1001=\"\",\"\",VLOOKUP($AC$2:$AC$1001,Χρονοδιάγραμμα[],2,FALSE))","v":""}]
[null,null,null,null,null,null,null,null,null,null,null,null,null,null,null,null,null,null,null,null,null,null,null,null,null,null,null,null,null,{"$f":"IF($AC$2:$AC$1001=\"\",\"\",VLOOKUP($AC$2:$AC$1001,Χρονοδιάγραμμα[],2,FALSE))","v":""}]
[null,null,null,null,null,null,null,null,null,null,null,null,null,null,null,null,null,null,null,null,null,null,null,null,null,null,null,null,null,{"$f":"IF($AC$2:$AC$1001=\"\",\"\",VLOOKUP($AC$2:$AC$1001,Χρονοδιάγραμμα[],2,FALSE))","v":""}]
[null,null,null,null,null,null,null,null,null,null,null,null,null,null,null,null,null,null,null,null,null,null,null,null,null,null,null,null,null,{"$f":"IF($AC$2:$AC$1001=\"\",\"\",VLOOKUP($AC$2:$AC$1001,Χρονοδιάγραμμα[],2,FALSE))","v":""}]
[null,null,null,null,null,null,null,null,null,null,null,null,null,null,null,null,null,null,null,null,null,null,null,null,null,null,null,null,null,{"$f":"IF($AC$2:$AC$1001=\"\",\"\",VLOOKUP($AC$2:$AC$1001,Χρονοδιάγραμμα[],2,FALSE))","v":""}]
[null,null,null,null,null,null,null,null,null,null,null,null,null,null,null,null,null,null,null,null,null,null,null,null,null,null,null,null,null,{"$f":"IF($AC$2:$AC$1001=\"\",\"\",VLOOKUP($AC$2:$AC$1001,Χρονοδιάγραμμα[],2,FALSE))","v":""}]
[null,null,null,null,null,null,null,null,null,null,null,null,null,null,null,null,null,null,null,null,null,null,null,null,null,null,null,null,null,{"$f":"IF($AC$2:$AC$1001=\"\",\"\",VLOOKUP($AC$2:$AC$1001,Χρονοδιάγραμμα[],2,FALSE))","v":""}]
[null,null,null,null,null,null,null,null,null,null,null,null,null,null,null,null,null,null,null,null,null,null,null,null,null,null,null,null,null,{"$f":"IF($AC$2:$AC$1001=\"\",\"\",VLOOKUP($AC$2:$AC$1001,Χρονοδιάγραμμα[],2,FALSE))","v":""}]
[null,null,null,null,null,null,null,null,null,null,null,null,null,null,null,null,null,null,null,null,null,null,null,null,null,null,null,null,null,{"$f":"IF($AC$2:$AC$1001=\"\",\"\",VLOOKUP($AC$2:$AC$1001,Χρονοδιάγραμμα[],2,FALSE))","v":""}]
[null,null,null,null,null,null,null,null,null,null,null,null,null,null,null,null,null,null,null,null,null,null,null,null,null,null,null,null,null,{"$f":"IF($AC$2:$AC$1001=\"\",\"\",VLOOKUP($AC$2:$AC$1001,Χρονοδιάγραμμα[],2,FALSE))","v":""}]
[null,null,null,null,null,null,null,null,null,null,null,null,null,null,null,null,null,null,null,null,null,null,null,null,null,null,null,null,null,{"$f":"IF($AC$2:$AC$1001=\"\",\"\",VLOOKUP($AC$2:$AC$1001,Χρονοδιάγραμμα[],2,FALSE))","v":""}]
[null,null,null,null,null,null,null,null,null,null,null,null,null,null,null,null,null,null,null,null,null,null,null,null,null,null,null,null,null,{"$f":"IF($AC$2:$AC$1001=\"\",\"\",VLOOKUP($AC$2:$AC$1001,Χρονοδιάγραμμα[],2,FALSE))","v":""}]
[null,null,null,null,null,null,null,null,null,null,null,null,null,null,null,null,null,null,null,null,null,null,null,null,null,null,null,null,null,{"$f":"IF($AC$2:$AC$1001=\"\",\"\",VLOOKUP($AC$2:$AC$1001,Χρονοδιάγραμμα[],2,FALSE))","v":""}]
[null,null,null,null,null,null,null,null,null,null,null,null,null,null,null,null,null,null,null,null,null,null,null,null,null,null,null,null,null,{"$f":"IF($AC$2:$AC$1001=\"\",\"\",VLOOKUP($AC$2:$AC$1001,Χρονοδιάγραμμα[],2,FALSE))","v":""}]
[null,null,null,null,null,null,null,null,null,null,null,null,null,null,null,null,null,null,null,null,null,null,null,null,null,null,null,null,null,{"$f":"IF($AC$2:$AC$1001=\"\",\"\",VLOOKUP($AC$2:$AC$1001,Χρονοδιάγραμμα[],2,FALSE))","v":""}]
[null,null,null,null,null,null,null,null,null,null,null,null,null,null,null,null,null,null,null,null,null,null,null,null,null,null,null,null,null,{"$f":"IF($AC$2:$AC$1001=\"\",\"\",VLOOKUP($AC$2:$AC$1001,Χρονοδιάγραμμα[],2,FALSE))","v":""}]
[null,null,null,null,null,null,null,null,null,null,null,null,null,null,null,null,null,null,null,null,null,null,null,null,null,null,null,null,null,{"$f":"IF($AC$2:$AC$1001=\"\",\"\",VLOOKUP($AC$2:$AC$1001,Χρονοδιάγραμμα[],2,FALSE))","v":""}]
[null,null,null,null,null,null,null,null,null,null,null,null,null,null,null,null,null,null,null,null,null,null,null,null,null,null,null,null,null,{"$f":"IF($AC$2:$AC$1001=\"\",\"\",VLOOKUP($AC$2:$AC$1001,Χρονοδιάγραμμα[],2,FALSE))","v":""}]
[null,null,null,null,null,null,null,null,null,null,null,null,null,null,null,null,null,null,null,null,null,null,null,null,null,null,null,null,null,{"$f":"IF($AC$2:$AC$1001=\"\",\"\",VLOOKUP($AC$2:$AC$1001,Χρονοδιάγραμμα[],2,FALSE))","v":""}]
[null,null,null,null,null,null,null,null,null,null,null,null,null,null,null,null,null,null,null,null,null,null,null,null,null,null,null,null,null,{"$f":"IF($AC$2:$AC$1001=\"\",\"\",VLOOKUP($AC$2:$AC$1001,Χρονοδιάγραμμα[],2,FALSE))","v":""}]
[null,"test","test","test","test","test","test","test","test","test","test","test","test","test","test",null,"test","test","test","test","test","test","test","test","test","test","test","test","test","test","test","test","test"]

{"sheet":"Πίνακες","index":2,"n_rows":653,"n_cols":31,"rows_kept":653,"cut":false,"hidden":false,"merged":[[0,19,0,20]]}
["Μέτρα_Κατηγορίες",null,"Οικότοποι",null,"Groups",null,"Species",null,"οικοσυστήματα",null,"Κλίμακα σχεδιασμού",null,"Τοπικό (NUTS3)",null,null,"ΕΕ ",null,"Natura 2000",null,"NATURA2000 GR Cites",null,"Χωρικές πληροφορίες",null,"Τύπος αρχείου",null,"Προβολικό Σύστημα",null,"Τρέχουσα Κατάσταση Εφαρμογής",null,"Χρονοδιάγραμμα"]
["Κατηγορίες",null,"habitat_code_label2",null,"Επιλογή",null,"Αμφίβια",null,"Τύπος_οικοσυστήματος",null,"Επίπεδο",null,"NUTS Code","Νομός",null,"Κράτη Μέλη",null,"Κατηγορίες",null,"Code_and_Label",null,"Επιλογή",null,"Τύπος",null,"Κατηγορίες",null,"Επιλογές",null,"Επιλογές","Έτος"]
["Μέτρα που σχετίζονται με γεωργικές πρακτικές και αγροτικά οικοσυστήματα",null,"1110 Sandbanks which are slightly covered by sea water all the time",null,"Αμφίβια",null,"species_code_refLabel",null,"α_υγροτοπικά οικοσυστήματα (παράκτια και εσωτερικών υδάτων)",null,"Εθνικό",null,"EL301","Βόρειος Τομέας Αθηνών",null,"Αυστρία",null,"Εντός_δικτύου_Natura_2000",null,"GR1110002 DASOS DADIAS - SOUFLI",null,"Βέλτιστη εκτίμηση",null,"Shapefile αρχείο (.shp)",null,"LAEA - ETRS89",null,"Προγραμματισμένο",null,"έως 30 Ιουνίου 2032","έως 2032"]
["Μέτρα που σχετίζονται με δασικές πρακτικές και δασικά οικοσυστήματα",null,"1120 Posidonia beds (Posidonion oceanicae)",null,"Ασπόνδυλα",null,"Bombina bombina",null,"β_λειμώνες",null,"Τοπικό",null,"EL302","Δυτικός Τομέας Αθηνών",null,"Βέλγιο",null,"Εκτός_δικτύου_Natura_2000",null,"GR1110003 TREIS VRYSES",null,"Εύρος τιμών",null,"Excel αρχείο (.xls)",null,"WGS84",null,"Εγκεκριμένο",null,"έως το 2040 ή το 2050","έως 2040 ή 2050"]
["Μέτρα που σχετίζονται με δραστηριότητες και ενδιαιτήματα γλυκών υδάτων",null,"1130 Estuaries",null,"Ερπετά",null,"Bombina variegata",null,"γ_ποτάμια, λιμναία, αλλουβιακά και παρόχθια οικοσυστήματα",null,null,null,"EL303","Κεντρικός Τομέας Αθηνών",null,"Βουλγαρία",null,"Εντός_και_εκτός_δικτύου_Natura_2000",null,"GR1110004 FENGARI SAMOTHRAKIS, ANATOLIKES AKTES, VRACHONISSIDA ZOURAFA KAI THALASSIA ZONI",null,null,null,null,null,"ΕΓΣΑ87",null,"Σε εξέλιξη",null,"Συγκεκριμένη περίοδος","Διαγράψτε το παρόν περιεχόμενο του κελιού και εισάγετε τα έτη"]
["Μέτρα που σχετίζονται με θαλάσσιες δραστηριότητες και θαλάσσια οικοσυστήματα",null,"1140 Mudflats and sandflats not covered by seawater at low tide",null,"Θηλαστικά",null,"Bufotes viridis",null,"δ_δάση και δασικές εκτάσεις",null,null,null,"EL304","Νότιος Τομέας Αθηνών",null,"Γαλλία",null,null,null,"GR1110005 VOUNA EVROU- POTAMOS LYRAS- SPILAIA DIDYMOTEICHOU KAI KEFALOVOUNOU",null,"Μονάδα μέτρησης",null,null,null,null,null,"Εφαρμοσμένο στο παρελθόν"]
["Μέτρα που σχετίζονται με τα αστικά οικοσυστήματα",null,"1150 Coastal lagoons",null,"Πτηνά",null,"Hyla arborea/Hyla orientalis complex",null,"ε_χέρσα εδάφη, θαμνώνες και λόχμες",null,null,null,"EL305","Ανατολική Αττική",null,"Γερμανία",null,null,null,"GR1110006 DELTA EVROU",null,"Επιλογή",null,null,null,null,null,"Νέα πρόταση"]
["Μέτρα που σχετίζονται με την εξόρυξη πόρων και την παραγωγή ενέργειας",null,"1160 Large shallow inlets and bays",null,"Φυτά",null,"Lyciasalamandra helverseni",null,"στ_βραχώδη οικοσυστήματα, θίνες και αραιή βλάστηση",null,null,null,"EL306","Δυτική Αττική",null,"Δανία",null,null,null,"GR1110007 DELTA EVROU KAI DYTIKOS VRACHIONAS",null,"km"]
["Μέτρα που σχετίζονται με την ανάπτυξη και λειτουργία συστημάτων μεταφορών",null,"1170 Reefs",null,"Ψάρια",null,"Lyciasalamandra luschani",null,"ζ_αγροτικά οικοσυστήματα (συμπ. καλλιεργήσιμων εκτάσεων)",null,null,null,"EL307","Πειραιάς, Νήσοι",null,"Ελλάδα",null,null,null,"GR1110008 PARAPOTAMIO DASOS VOREIOU EVROU KAI ARDA",null,"km^2"]
["Μέτρα που σχετίζονται με οικιστικές, εμπορικές, βιομηχανικές και αναψυχικές υποδομές, δραστηριότητες και λειτουργίες",null,"1180 Submarine structures made by leaking gases",null,"Other",null,"Pelobates syriacus",null,"η_αστικά οικοσυστήματα",null,null,null,"EL411","Λέσβος, Λήμνος",null,"Εσθονία",null,null,null,"GR1110009 NOTIO DASIKO SYMPLEGMA EVROU"]
["Μέτρα που σχετίζονται με τις επιπτώσεις της απόσπασης και καλλιέργειας βιολογικών ζωντανών πόρων ",null,"8330 Submerged or partially submerged sea caves",null,null,null,"Pelophylax bedriagae",null,"θ_θαλάσσια οικοσυστήματα",null,null,null,"EL412","Ικαρία, Σάμος",null,"Ιρλανδία",null,null,null,"GR1110010 OREINOS EVROS - KOILADA DEREIOU"]
["Μέτρα που σχετίζονται με στρατιωτικές εγκαταστάσεις και δραστηριότητες, και άλλες ειδικές ανθρώπινες δραστηριότητες",null,"1210 Annual vegetation of drift lines",null,null,null,"Pelophylax cerigensis",null,"ι_άλλα",null,null,null,"EL413","Χίος",null,"Ισπανία",null,null,null,"GR1110011 KOILADA ERYTHROPOTAMOU: ASVESTADES, KOUFOVOUNO, VRYSIKA"]
["Μέτρα που σχετίζονται με ξενικά και προβληματικά αυτόχθονα είδη",null,"1240 Vegetated sea cliffs of the Mediterranean coasts with endemic Limonium spp.",null,null,null,"Pelophylax cretensis",null,null,null,null,null,"EL421","Κάλυμνος, Κάρπαθος – Ηρωική Νήσος Κάσος, Κως, Ρόδος",null,"Ιταλία",null,null,null,"GR1110012 SAMOTHRAKI: OROS FENGARI KAI PARAKTIA ZONI"]
["Μέτρα που σχετίζονται με την κλιματική αλλαγή",null,"1310 Salicornia and other annuals colonizing mud and sand",null,null,null,"Pelophylax kurtmuelleri",null,null,null,null,null,"EL422","Άνδρος, Θήρα, Κέα, Μήλος, Μύκονος, Νάξος, Πάρος, Σύρος, Τήνος",null,"Κάτω Χώρες / Ολλανδία",null,null,null,"GR1110013 THALASSIA PERIOCHI THRAKIS"]
["Μέτρα που σχετίζονται με ρύπανση από μικτές πηγές και ανθρωπογενείς μεταβολές των υδραυλικών συνθηκών για διάφορες χρήσεις",null,"1410 Mediterranean salt meadows (Juncetalia maritimi)",null,null,null,"Pelophylax ridibundus",null,null,null,null,null,"EL431","Ηράκλειο",null,"Κροατία",null,null,null,"GR1120003 OROS CHAINTOU - KOULA KAI GYRO KORYFES"]
["Μέτρα που σχετίζονται με φυσικές διεργασίες, γεωλογικά φαινόμενα και φυσικές καταστροφές",null,"1420 Mediterranean and thermo-Atlantic halophilous scrubs (Sarcocornetea fruticosi)",null,null,null,"Rana dalmatina",null,null,null,null,null,"EL432","Λασίθι",null,"Κύπρος",null,null,null,"GR1120004 STENA NESTOU"]
["Μέτρα που σχετίζονται με την αποκατάσταση ενδιαιτημάτων ειδών των Οδηγιών για τη Φύση και άλλων αυτόχθονων ειδών ",null,"1430 Halo-nitrophilous scrubs (Pegano-Salsoletea)",null,null,null,"Rana graeca",null,null,null,null,null,"EL433","Ρέθυμνο",null,"Λετονία",null,null,null,"GR1120005 AISTHITIKO DASOS NESTOU"]
["Μέτρα που υλοποιούνται εκτός Ελλάδας (εντός ή εκτός ΕΕ)",null,"1510 Mediterranean salt steppes (Limonietalia)",null,null,null,"Rana temporaria",null,null,null,null,null,"EL434","Χανιά",null,"Λιθουανία",null,null,null,"GR1130006 POTAMOS FILIOURIS"]
["Yποστηρικτικά μέτρα (θεσμικά, συμμόρφωσης και επιβολής, εκπαίδευσης/ευαισθητοποίησης, οικονομικά κ.ά.)",null,"2110 Embryonic shifting dunes",null,null,null,"Triturus karelinii/Triturus ivanbureschi complex",null,null,null,null,null,"EL511","Έβρος",null,"Λουξεμβούργο",null,null,null,"GR1130007 POTAMOS KOMPSATOS (NEA KOITI)"]
["Άλλα μέτρα (που δεν ανήκουν στις παραπάνω κατηγορίες)",null,"2120 Shifting dunes along the shoreline with Ammophila arenaria (‘white dunes’)",null,null,null,"Triturus macedonicus",null,null,null,null,null,"EL512","Ξάνθη",null,"Μάλτα",null,null,null,"GR1130008 MARONEIA - SPILAION"]
[null,null,"2190 Humid dune slacks",null,null,null,"Other",null,null,null,null,null,"EL513","Ροδόπη",null,"Ουγγαρία",null,null,null,"GR1130009 LIMNES KAI LIMNOTHALASSES TIS THRAKIS - EVRYTERI PERIOCHI KAI PARAKTIA ZONI"]
[null,null,"2210 Crucianellion maritimae fixed beach dunes",null,null,null,"Πτηνά",null,null,null,null,null,"EL514","Δράμα",null,"Πολωνία",null,null,null,"GR1130010 LIMNES VISTONIS, ISMARIS - LIMNOTHALASSES PORTO LAGOS, ALYKI PTELEA, XIROLIMNI, KARATZA"]
[null,null,"2220 Dunes with Euphorbia terracina",null,null,null,"species_code_refLabel",null,null,null,null,null,"EL515","Θάσος, Καβάλα",null,"Πορτογαλία",null,null,null,"GR1130011 KOILADA FILIOURI"]
[null,null,"2230 Malcolmietalia dune grasslands",null,null,null,"Accipiter brevipes",null,null,null,null,null,"EL521","Ημαθία",null,"Ρουμανία",null,null,null,"GR1130012 KOILADA KOMPSATOU"]
[null,null,"2240 Brachypodietalia dune grasslands with annuals",null,null,null,"Accipiter gentilis all others",null,null,null,null,null,"EL522","Θεσσαλονίκη",null,"Σλοβακία",null,null,null,"GR1140001 DASOS FRAKTOU"]
[null,null,"2250 Coastal dunes with Juniperus spp.",null,null,null,"Accipiter nisus all others",null,null,null,null,null,"EL523","Κιλκίς",null,"Σλοβενία",null,null,null,"GR1140002 RODOPI (SIMYDA)"]
[null,null,"2260 Cisto-Lavenduletalia dune sclerophyllous scrubs",null,null,null,"Acrocephalus arundinaceus",null,null,null,null,null,"EL524","Πέλλα",null,"Σουηδία",null,null,null,"GR1140003 PERIOCHI ELATIA, PYRAMIS KOUTRA"]
[null,null,"2270 Wooded dunes with Pinus pinea and/or Pinus pinaster",null,null,null,"Acrocephalus melanopogon",null,null,null,null,null,"EL525","Πιερία",null,"Τσεχία",null,null,null,"GR1140004 KORYFES OROUS FALAKRO"]
[null,null,"3130 Oligotrophic to mesotrophic standing waters with vegetation of the Littorelletea uniflorae and/or of the Isoëto-Nanojuncetea",null,null,null,"Acrocephalus palustris",null,null,null,null,null,"EL526","Σέρρες",null,"Φινλανδία",null,null,null,"GR1140008 KENTRIKI RODOPI KAI KOILADA NESTOU"]
[null,null,"3140 Hard oligo-mesotrophic waters with benthic vegetation of Chara spp.",null,null,null,"Acrocephalus schoenobaenus",null,null,null,null,null,"EL527","Χαλκιδική",null,null,null,null,null,"GR1140009 OROS FALAKRO"]
[null,null,"3150 Natural eutrophic lakes with Magnopotamion or Hydrocharition — type vegetation",null,null,null,"Acrocephalus scirpaceus",null,null,null,null,null,"EL531","Γρεβενά, Κοζάνη",null,null,null,null,null,"GR1150001 DELTA NESTOU KAI LIMNOTHALASSES KERAMOTIS KAI NISOS THASOPOULA"]
[null,null,"3170 Mediterranean temporary ponds",null,null,null,"Actitis hypoleucos",null,null,null,null,null,"EL532","Καστοριά",null,null,null,null,null,"GR1150005 KORYFES OROUS PANGAIO – PIGAIA NERA KEFALARIOU FILIPPON- SPILAIO ARKOUDOSPILIA"]
[null,null,"3240 Alpine rivers and their ligneous vegetation with Salix elaeagnos",null,null,null,"Aegithalos caudatus",null,null,null,null,null,"EL533","Φλώρινα",null,null,null,null,null,"GR1150008 ORMOS POTAMIAS - AKR. PYRGOS EOS N. GRAMVOUSSA"]
[null,null,"3250 Constantly flowing Mediterranean rivers with Glaucium flavum",null,null,null,"Aegolius funereus",null,null,null,null,null,"EL541","Άρτα, Πρέβεζα",null,null,null,null,null,"GR1150009 KOLPOS PALAIOU - ORMOS ELEFTHERON"]
[null,null,"3260 Water courses of plain to montane levels with the Ranunculion fluitantis and Callitricho-Batrachion vegetation",null,null,null,"Aegypius monachus",null,null,null,null,null,"EL542","Θεσπρωτία",null,null,null,null,null,"GR1150010 DELTA NESTOU KAI LIMNOTHALASSES KERAMOTIS - EVRYTERI PERIOCHI KAI PARAKTIA ZONI"]
[null,null,"3280 Constantly flowing Mediterranean rivers with Paspalo-Agrostidion species and hanging curtains of Salix and Populus alba",null,null,null,"Alauda arvensis",null,null,null,null,null,"EL543","Ιωάννινα",null,null,null,null,null,"GR1150011 OROS PANGAIO KAI NOTIES YPOREIES TOU"]
[null,null,"3290 Intermittently flowing Mediterranean rivers of the Paspalo-Agrostidion",null,null,null,"Alcedo atthis",null,null,null,null,null,"EL611","Καρδίτσα, Τρίκαλα",null,null,null,null,null,"GR1150012 THASOS (OROS YPSARIO KAI PARAKTIA ZONI) KAI NISIDES KOINYRA, XIRONISI"]
[null,null,"4060 Alpine and Boreal heaths",null,null,null,"Alectoris chukar",null,null,null,null,null,"EL612","Λάρισα",null,null,null,null,null,"GR1150013 PERICHORA LIMENA THASOU"]
[null,null,"4090 Endemic oro-Mediterranean heaths with gorse",null,null,null,"Alectoris graeca all others",null,null,null,null,null,"EL613","Μαγνησία, Σποράδες",null,null,null,null,null,"GR1150014 THALASSIA PERIOCHI KAVALAS - THASOU"]
[null,null,"5110 Stable xerothermophilous formations with Buxus sempervirens on rock slopes (Berberidion p.p.)",null,null,null,"Anas acuta",null,null,null,null,null,"EL621","Ζάκυνθος",null,null,null,null,null,"GR1210001 OROS VERMIO"]
[null,null,"5210 Arborescent matorral with Juniperus spp.",null,null,null,"Anas crecca",null,null,null,null,null,"EL622","Κέρκυρα",null,null,null,null,null,"GR1210002 STENA ALIAKMONA"]
[null,null,"5230 Arborescent matorral with Laurus nobilis",null,null,null,"Anas platyrhynchos",null,null,null,null,null,"EL623","Ιθάκη, Κεφαλληνία",null,null,null,null,null,"GR1220001 LIMNES VOLVI KAI LAGKADA – EVRYTERI PERIOCHI"]
[null,null,"5310 Laurus nobilis thickets",null,null,null,"Anser albifrons albifrons",null,null,null,null,null,"EL624","Λευκάδα",null,null,null,null,null,"GR1220002 DELTA AXIOU - LOUDIA - ALIAKMONA – EVRYTERI PERIOCHI - AXIOUPOLI"]
[null,null,"5330 Thermo-Mediterranean and pre-desert scrub",null,null,null,"Anser anser | all other native populations",null,null,null,null,null,"EL631","Αιτωλοακαρνανία",null,null,null,null,null,"GR1220003 STENA RENTINAS – EVRYTERI PERIOCHI SPILAIO DRAKOTRYPA- SPILAIO LAKKIA KAI REMA NEROMANA"]
[null,null,"5420 Sarcopoterium spinosum phryganas",null,null,null,"Anser erythropus",null,null,null,null,null,"EL632","Αχαΐα",null,null,null,null,null,"GR1220005 LIMNOTHALASSA ANGELOCHORIOU"]
[null,null,"5430 Endemic phryganas of the Euphorbio-Verbascion",null,null,null,"Anthus campestris",null,null,null,null,null,"EL633","Ηλεία",null,null,null,null,null,"GR1220009 LIMNES KORONEIAS - VOLVIS, STENA RENTINAS KAI EVRYTERI PERIOCHI"]
[null,null,"6110 Rupicolous calcareous or basophilic grasslands of the Alysso-Sedion albi",null,null,null,"Anthus spinoletta",null,null,null,null,null,"EL641","Βοιωτία",null,null,null,null,null,"GR1220010 DELTA AXIOU - LOUDIA - ALIAKMONA - ALYKI KITROUS"]
[null,null,"6170 Alpine and subalpine calcareous grasslands",null,null,null,"Anthus trivialis",null,null,null,null,null,"EL642","Εύβοια",null,null,null,null,null,"GR1220011 LIMNOTHALASSA EPANOMIS"]
[null,null,"6220 Pseudo-steppe with grasses and annuals of the Thero-Brachypodietea",null,null,null,"Apus apus",null,null,null,null,null,"EL643","Ευρυτανία",null,null,null,null,null,"GR1220012 LIMNOTHALASSA EPANOMIS KAI THALASSIA PARAKTIA ZONI"]
[null,null,"6230 Species-rich Nardus grasslands, on silicious substrates in mountain areas (and submountain areas in Continental Europe)",null,null,null,"Apus pallidus",null,null,null,null,null,"EL644","Φθιώτιδα",null,null,null,null,null,"GR1230001 LIMNI PIKROLIMNI"]
[null,null,"6260 Pannonic sand steppes",null,null,null,"Aquila chrysaetos",null,null,null,null,null,"EL645","Φωκίδα",null,null,null,null,null,"GR1230002 YDROCHARES DASOS MOURION"]
[null,null,"62A0 Eastern sub-Mediterranean dry grasslands (Scorzoneratalia villosae)",null,null,null,"Aquila fasciata",null,null,null,null,null,"EL651","Αργολίδα, Αρκαδία",null,null,null,null,null,"GR1230003 LIMNI DOIRANI"]
[null,null,"62D0 Oro-Moesian acidophilous grasslands",null,null,null,"Aquila heliaca",null,null,null,null,null,"EL652","Κορινθία",null,null,null,null,null,"GR1230004 LIMNI PIKROLIMNI - XILOKERATEA"]
[null,null,"6420 Mediterranean tall humid grasslands of the Molinio-Holoschoenion",null,null,null,"Ardea alba",null,null,null,null,null,"EL653","Λακωνία, Μεσσηνία",null,null,null,null,null,"GR1230005 PERIOCHI ELOUS ARTZAN"]
[null,null,"6430 Hydrophilous tall herb fringe communities of plains and of the montane to alpine levels",null,null,null,"Ardea cinerea",null,null,null,null,null,null,null,null,null,null,null,null,"GR1230006 PERIOCHI ANTHOFYTOU"]
[null,null,"6510 Lowland hay meadows (Alopecurus pratensis, Sanguisorba officinalis)",null,null,null,"Ardea purpurea",null,null,null,null,null,null,null,null,null,null,null,null,"GR1240001 KORYFES OROUS VORA"]
[null,null,"7140 Transition mires and quaking bogs",null,null,null,"Ardeola ralloides",null,null,null,null,null,null,null,null,null,null,null,null,"GR1240002 ORI TZENA"]
[null,null,"7210 Calcareous fens with Cladium mariscus and species of the Caricion davallianae",null,null,null,"Asio flammeus",null,null,null,null,null,null,null,null,null,null,null,null,"GR1240003 OROS PAIKO"]
[null,null,"7220 Petrifying springs with tufa formation (Cratoneurion)",null,null,null,"Asio otus",null,null,null,null,null,null,null,null,null,null,null,null,"GR1240004 LIMNI AGRA"]
[null,null,"7230 Alkaline fens",null,null,null,"Athene noctua",null,null,null,null,null,null,null,null,null,null,null,null,"GR1240005 STENA APSALOU - MOGLENITSAS"]
[null,null,"8140 Eastern Mediterranean screes",null,null,null,"Aythya ferina",null,null,null,null,null,null,null,null,null,null,null,null,"GR1240006 LIMNI KAI FRAGMA AGRA"]
[null,null,"8210 Calcareous rocky slopes with chasmophytic vegetation",null,null,null,"Aythya fuligula",null,null,null,null,null,null,null,null,null,null,null,null,"GR1240007 ORI TZENA KAI PINOVO"]
[null,null,"8220 Siliceous rocky slopes with chasmophytic vegetation",null,null,null,"Aythya marila",null,null,null,null,null,null,null,null,null,null,null,null,"GR1240008 OROS VORAS"]
[null,null,"8230 Siliceous rock with pioneer vegetation of the Sedo-Scleranthion or of the Sedo albi-Veronicion dillenii",null,null,null,"Aythya nyroca",null,null,null,null,null,null,null,null,null,null,null,null,"GR1240009 OROS PAIKO, STENA APSALOU KAI MOGLENITSAS"]
[null,null,"8310 Caves not open to the public",null,null,null,"Botaurus stellaris",null,null,null,null,null,null,null,null,null,null,null,null,"GR1250001 OROS OLYMPOS"]
[null,null,"8320 Fields of lava and natural excavations",null,null,null,"Branta ruficollis",null,null,null,null,null,null,null,null,null,null,null,null,"GR1250002 PIERIA ORI"]
[null,null,"9110 Luzulo-Fagetum beech forests",null,null,null,"Bubo bubo",null,null,null,null,null,null,null,null,null,null,null,null,"GR1250003 OROS TITAROS"]
[null,null,"9130 Asperulo-Fagetum beech forests",null,null,null,"Bubulcus ibis",null,null,null,null,null,null,null,null,null,null,null,null,"GR1250004 ALYKI KITROUS - EVRYTERI PERIOCHI"]
[null,null,"9140 Medio-European subalpine beech woods with Acer and Rumex arifolius",null,null,null,"Bucephala clangula",null,null,null,null,null,null,null,null,null,null,null,null,"GR1260001 LIMNI KERKINI - KROUSIA - KORYFES OROUS BELES, ANGISTRO - CHAROPO"]
[null,null,"9150 Medio-European limestone beech forests of the Cephalanthero-Fagion",null,null,null,"Burhinus oedicnemus",null,null,null,null,null,null,null,null,null,null,null,null,"GR1260002 EKVOLES POTAMOU STRYMONA"]
[null,null,"9180 Tilio-Acerion forests of slopes, screes and ravines",null,null,null,"Buteo buteo",null,null,null,null,null,null,null,null,null,null,null,null,"GR1260003 AI GIANNIS - EPTAMYLOI"]
[null,null,"91BA Moesian silver fir forests",null,null,null,"Buteo rufinus",null,null,null,null,null,null,null,null,null,null,null,null,"GR1260004 KORYFES OROUS MENOIKION – OROS KOUSKOURAS - YPSOMA -SPILAIO PELADE"]
[null,null,"91CA Rhodopide and Balkan Range Scots pine forests",null,null,null,"Calandrella brachydactyla",null,null,null,null,null,null,null,null,null,null,null,null,"GR1260005 KORYFES OROUS ORVILOS"]
[null,null,"91E0 Alluvial forests with Alnus glutinosa and Fraxinus excelsior (Alno-Padion, Alnion incanae, Salicion albae)",null,null,null,"Calidris alba",null,null,null,null,null,null,null,null,null,null,null,null,"GR1260007 ORI VRONTOUS - LAILIAS – ERIMIKES SPILAIA ZESTA NERA KAI KATARRAKTON"]
[null,null,"91F0 Riparian mixed forests of Quercus robur, Ulmus laevis and Ulmus minor, Fraxinus excelsior or Fraxinus angustifolia, along the great rivers (Ulmenion minoris)",null,null,null,"Calidris alpina | all non-breeding populations",null,null,null,null,null,null,null,null,null,null,null,null,"GR1260008 TECHNITI LIMNI KERKINIS - OROS KROUSIA"]
[null,null,"91M0 Pannonian-Balkanic turkey oak - sessile oak forests",null,null,null,"Calidris canutus",null,null,null,null,null,null,null,null,null,null,null,null,"GR1260009 KOILADA TIMIOU PRODROMOU-MENOIKION"]
[null,null,"9250 Quercus trojana woods",null,null,null,"Calidris ferruginea",null,null,null,null,null,null,null,null,null,null,null,null,"GR1260010 OROS BELES"]
[null,null,"9260 Castanea sativa woods",null,null,null,"Calidris minuta",null,null,null,null,null,null,null,null,null,null,null,null,"GR1270001 OROS CHOLOMONTAS"]
[null,null,"9270 Hellenic beech forests with Abies borisii-regis",null,null,null,"Calidris pugnax",null,null,null,null,null,null,null,null,null,null,null,null,"GR1270002 OROS ITAMOS - SITHONIA"]
[null,null,"9280 Quercus frainetto woods",null,null,null,"Calidris temminckii",null,null,null,null,null,null,null,null,null,null,null,null,"GR1270003 CHERSONISOS ATHOS"]
[null,null,"9290 Cupressus forests (Acero-Cupression)",null,null,null,"Calonectris diomedea s. str. | sensu stricto [excluding borealis]",null,null,null,null,null,null,null,null,null,null,null,null,"GR1270004 LIMNOTHALASSA AGIOU MAMA"]
[null,null,"92A0 Salix alba and Populus alba galleries",null,null,null,"Caprimulgus europaeus",null,null,null,null,null,null,null,null,null,null,null,null,"GR1270005 OROS STRATONIKON - KORYFI SKAMNI"]
[null,null,"92C0 Platanus orientalis and Liquidambar orientalis woods (Platanion orientalis)",null,null,null,"Carduelis carduelis",null,null,null,null,null,null,null,null,null,null,null,null,"GR1270007 AKROTIRIO ELIA - AKROTIRIO KASTRO - EKVOLI RAGOULA"]
[null,null,"92D0 Southern riparian galleries and thickets (Nerio-Tamaricetea and Securinegion tinctoriae)",null,null,null,"Cecropis daurica",null,null,null,null,null,null,null,null,null,null,null,null,"GR1270008 PALIOURI – AKROTIRI KAI THALASSIA ZONI"]
[null,null,"9310 Aegean Quercus brachyphylla woods",null,null,null,"Cercotrichas galactotes",null,null,null,null,null,null,null,null,null,null,null,null,"GR1270009 PLATANITSI - SYKIA: ΑKR. RIGAS - AKR. ADOLO"]
[null,null,"9320 Olea and Ceratonia forests",null,null,null,"Certhia brachydactyla all others",null,null,null,null,null,null,null,null,null,null,null,null,"GR1270010 AKROTIRIO PYRGOS - ORMOS KYPSAS - MALAMO"]
[null,null,"9340 Quercus ilex and Quercus rotundifolia forests",null,null,null,"Certhia brachydactyla dorotheae",null,null,null,null,null,null,null,null,null,null,null,null,"GR1270012 OROS CHOLOMONTAS"]
[null,null,"9350 Quercus macrolepis forests",null,null,null,"Certhia familiaris",null,null,null,null,null,null,null,null,null,null,null,null,"GR1270013 YGROTOPOI NEAS FOKAIAS"]
[null,null,"9370 Palm groves of Phoenix",null,null,null,"Cettia cetti",null,null,null,null,null,null,null,null,null,null,null,null,"GR1270014 CHERSONISOS SITHONIAS"]
[null,null,"9410 Acidophilous Picea forests of the montane to alpine levels (Vaccinio-Piceetea)",null,null,null,"Charadrius alexandrinus",null,null,null,null,null,null,null,null,null,null,null,null,"GR1270015 THALASSIA ZONI CHERSONISOU ATHONA"]
[null,null,"9530 (Sub-) Mediterranean pine forests with endemic black pines",null,null,null,"Charadrius dubius",null,null,null,null,null,null,null,null,null,null,null,null,"GR1270016 THALASSIA ZONI ANATOLIKA KAI NOTIA CHERSONISOU ATHONA"]
[null,null,"9540 Mediterranean pine forests with endemic Mesogean pines",null,null,null,"Chlidonias hybrida",null,null,null,null,null,null,null,null,null,null,null,null,"GR1310001 VASILITSA"]
[null,null,"9560 Endemic forests with Juniperus spp.",null,null,null,"Chlidonias niger",null,null,null,null,null,null,null,null,null,null,null,null,"GR1310002 VALIA KALNTA KAI TECHNITI LIMNI AOOU"]
[null,null,"95A0 High oro-Mediterranean pine forests",null,null,null,"Chloris chloris",null,null,null,null,null,null,null,null,null,null,null,null,"GR1310003 ETHNIKOS DRYMOS PINDOU (VALIA KALNTA) - EVRΥTERI PERIOCHI"]
[null,null,"xxxx Other",null,null,null,"Ciconia ciconia | Central & Eastern Europe/Sub-Saharan Africa",null,null,null,null,null,null,null,null,null,null,null,null,"GR1310004 ORI ORLIAKAS KAI TSOURGIAKAS"]
[null,null,null,null,null,null,"Ciconia nigra",null,null,null,null,null,null,null,null,null,null,null,null,"GR1320001 LIMNI KASTORIAS"]
[null,null,null,null,null,null,"Cinclus cinclus",null,null,null,null,null,null,null,null,null,null,null,null,"GR1320002 KORYFES OROUS GRAMMOS"]
[null,null,null,null,null,null,"Circaetus gallicus",null,null,null,null,null,null,null,null,null,null,null,null,"GR1320003 LIMNI ORESTIAS (KASTORIAS)"]
[null,null,null,null,null,null,"Circus aeruginosus",null,null,null,null,null,null,null,null,null,null,null,null,"GR1330001 OROS VOURINOS (KORYFI ASPROVOUNI)"]
[null,null,null,null,null,null,"Circus cyaneus",null,null,null,null,null,null,null,null,null,null,null,null,"GR1330002 ORI VOREIOU VOURINOU KAI MELLIA"]
[null,null,null,null,null,null,"Circus macrourus",null,null,null,null,null,null,null,null,null,null,null,null,"GR1340001 ETHNIKOS DRYMOS PRESPON"]
[null,null,null,null,null,null,"Circus pygargus",null,null,null,null,null,null,null,null,null,null,null,null,"GR1340003 ORI VARNOUNTA"]
[null,null,null,null,null,null,"Cisticola juncidis",null,null,null,null,null,null,null,null,null,null,null,null,"GR1340004 LIMNES VEGORITIDA - PETRON"]
[null,null,null,null,null,null,"Clamator glandarius",null,null,null,null,null,null,null,null,null,null,null,null,"GR1340005 LIMNES CHEIMADITIDA - ZAZARI"]
[null,null,null,null,null,null,"Clanga clanga",null,null,null,null,null,null,null,null,null,null,null,null,"GR1340006 OROS VERNON - KORYFI VITSI"]
[null,null,null,null,null,null,"Clanga pomarina",null,null,null,null,null,null,null,null,null,null,null,null,"GR1340007 LIMNI PETRON"]
[null,null,null,null,null,null,"Coccothraustes coccothraustes",null,null,null,null,null,null,null,null,null,null,null,null,"GR1340008 LIMNES ChEIMADITIDA KAI ZAZARI"]
[null,null,null,null,null,null,"Columba livia | feral populations",null,null,null,null,null,null,null,null,null,null,null,null,"GR1340009 ORI VARNOUNTA – EVRYTERI PERIOCHI"]
[null,null,null,null,null,null,"Columba livia | wild populations",null,null,null,null,null,null,null,null,null,null,null,null,"GR1340010 ETHNIKOS DRYMOS PRESPON – EVRYTERI PERIOCHI"]
[null,null,null,null,null,null,"Columba oenas",null,null,null,null,null,null,null,null,null,null,null,null,"GR1410001 PERIOCHI LIMNIS TAVROPOU"]
[null,null,null,null,null,null,"Columba palumbus palumbus",null,null,null,null,null,null,null,null,null,null,null,null,"GR1410002 AGRAFA"]
[null,null,null,null,null,null,"Coracias garrulus",null,null,null,null,null,null,null,null,null,null,null,null,"GR1420001 KATO OLYMPOS - KALLIPEFKI"]
[null,null,null,null,null,null,"Corvus corax",null,null,null,null,null,null,null,null,null,null,null,null,"GR1420003 AISTHITIKO DASOS OSSAS"]
[null,null,null,null,null,null,"Corvus corone | [including cornix]",null,null,null,null,null,null,null,null,null,null,null,null,"GR1420004 KARLA – MAVROVOUNI – KEFALOVRYSO VELESTINOU – NEOCHORI"]
[null,null,null,null,null,null,"Corvus frugilegus",null,null,null,null,null,null,null,null,null,null,null,null,"GR1420005 AISTHITIKO DASOS KOILADAS TEMPON"]
[null,null,null,null,null,null,"Corvus monedula",null,null,null,null,null,null,null,null,null,null,null,null,"GR1420006 OROS MAVROVOUNI"]
[null,null,null,null,null,null,"Coturnix coturnix",null,null,null,null,null,null,null,null,null,null,null,null,"GR1420007 OROS OSSA"]
[null,null,null,null,null,null,"Crex crex",null,null,null,null,null,null,null,null,null,null,null,null,"GR1420008 KATO OLYMPOS, OROS GODAMANI KAI KOILADA RODIAS"]
[null,null,null,null,null,null,"Cuculus canorus",null,null,null,null,null,null,null,null,null,null,null,null,"GR1420009 STENA KALAMAKIOU KAI ORI ZARKOU"]
[null,null,null,null,null,null,"Curruca cantillans | [excluding subalpina, but including iberiae]",null,null,null,null,null,null,null,null,null,null,null,null,"GR1420010 STENA KALAMAKIOU"]
[null,null,null,null,null,null,"Curruca communis",null,null,null,null,null,null,null,null,null,null,null,null,"GR1420011 PERIOCHI THESSALIKOU KAMPOU"]
[null,null,null,null,null,null,"Curruca crassirostris",null,null,null,null,null,null,null,null,null,null,null,null,"GR1420012 PERIOCHI FARSALON"]
[null,null,null,null,null,null,"Curruca curruca",null,null,null,null,null,null,null,null,null,null,null,null,"GR1420013 PERIOCHI TYRNAVOU"]
[null,null,null,null,null,null,"Curruca melanocephala",null,null,null,null,null,null,null,null,null,null,null,null,"GR1420014 PERIOCHI ELASSONAS"]
[null,null,null,null,null,null,"Curruca nisoria",null,null,null,null,null,null,null,null,null,null,null,null,"GR1420015 DELTA PINEIOU"]
[null,null,null,null,null,null,"Curruca ruppeli",null,null,null,null,null,null,null,null,null,null,null,null,"GR1430001 OROS PILIO KAI PARAKTIA THALASSIA ZONI- SPILAIA MALAKI KAI SKEPONI"]
[null,null,null,null,null,null,"Cyanistes caeruleus s. str. | sensu stricto [excluding teneriffae]",null,null,null,null,null,null,null,null,null,null,null,null,"GR1430002 KOURI ALMYROU - AGIOS SERAFEIM"]
[null,null,null,null,null,null,"Cygnus columbianus bewickii",null,null,null,null,null,null,null,null,null,null,null,null,"GR1430003 SKIATHOS: KOUKOUNARIES KAI EVRYTERI THALASSIA PERIOCHI"]
[null,null,null,null,null,null,"Cygnus cygnus",null,null,null,null,null,null,null,null,null,null,null,null,"GR1430004 ETHNIKO THALASSIO PARKO ALONNISOU – VOREION SPORADON, ANATOLIKI SKOPELOS"]
[null,null,null,null,null,null,"Cygnus olor",null,null,null,null,null,null,null,null,null,null,null,null,"GR1430005 NISIA KYRA PANAGIA, PIPERI, PSATHOURA KAI GYRO NISIDES AGIOS GEORGIOS, NISOI ADELFOI, LECHOUSA, GAIDOURONISIA"]
[null,null,null,null,null,null,"Delichon urbicum",null,null,null,null,null,null,null,null,null,null,null,null,"GR1430006 OROS OTHRYS, VOUNA GKOURAS KAI FARANGI PALAIOKERASIAS"]
[null,null,null,null,null,null,"Dendrocopos leucotos",null,null,null,null,null,null,null,null,null,null,null,null,"GR1430007 PERIOCHI TAMIEFTIRON PROIN LIMNIS KARLAS"]
[null,null,null,null,null,null,"Dendrocopos major all others",null,null,null,null,null,null,null,null,null,null,null,null,"GR1430008 OROS PILIO"]
[null,null,null,null,null,null,"Dendrocopos syriacus",null,null,null,null,null,null,null,null,null,null,null,null,"GR1430009 NISIDES ASPRONISOS, ARGKOS, MARAGKOS, REPI, TSOUGKRIA, TSOUGKRIAKI KAI THALASSIA PERIOCHI NISON SKIATHOU KAI SKOPELOU"]
[null,null,null,null,null,null,"Dryobates minor",null,null,null,null,null,null,null,null,null,null,null,null,"GR1440001 ASPROPOTAMOS"]
[null,null,null,null,null,null,"Dryocopus martius",null,null,null,null,null,null,null,null,null,null,null,null,"GR1440002 KERKETIO OROS (KOZIAKAS)"]
[null,null,null,null,null,null,"Egretta garzetta",null,null,null,null,null,null,null,null,null,null,null,null,"GR1440003 ANTICHASIA ORI KAI METEORA - SPILAIO MELISSOTRYPA"]
[null,null,null,null,null,null,"Emberiza caesia",null,null,null,null,null,null,null,null,null,null,null,null,"GR1440005 ANTICHASIA ORI KAI METEORA"]
[null,null,null,null,null,null,"Emberiza calandra",null,null,null,null,null,null,null,null,null,null,null,null,"GR1440006 KORYFES OROUS KOZIAKA"]
[null,null,null,null,null,null,"Emberiza cia",null,null,null,null,null,null,null,null,null,null,null,null,"GR2110001 AMVRAKIKOS KOLPOS, DELTA LOUROU KAI ARACHTHOU (PETRA, MYTIKAS, EVRYTERI PERIOCHI, KATO POUS ARACHTHOU, KAMPI FILIPPIADAS)"]
[null,null,null,null,null,null,"Emberiza cineracea",null,null,null,null,null,null,null,null,null,null,null,null,"GR2110002 ORI ATHAMANON (NERAIDA)"]
[null,null,null,null,null,null,"Emberiza cirlus",null,null,null,null,null,null,null,null,null,null,null,null,"GR2110004 AMVRAKIKOS KOLPOS, LIMNOTHALASSA KATAFOURKO KAI KORAKONISIA"]
[null,null,null,null,null,null,"Emberiza citrinella",null,null,null,null,null,null,null,null,null,null,null,null,"GR2110006 KOILADA ACHELOOU KAI ORI VALTOU"]
[null,null,null,null,null,null,"Emberiza hortulana",null,null,null,null,null,null,null,null,null,null,null,null,"GR2120001 EKVOLES (DELTA) KALAMA"]
[null,null,null,null,null,null,"Emberiza melanocephala",null,null,null,null,null,null,null,null,null,null,null,null,"GR2120002 ELOS KALODIKI"]
[null,null,null,null,null,null,"Emberiza schoeniclus",null,null,null,null,null,null,null,null,null,null,null,null,"GR2120003 LIMNI LIMNOPOULA"]
[null,null,null,null,null,null,"Eremophila alpestris",null,null,null,null,null,null,null,null,null,null,null,null,"GR2120004 STENA KALAMA"]
[null,null,null,null,null,null,"Erithacus rubecula",null,null,null,null,null,null,null,null,null,null,null,null,"GR2120005 YGROTOPOS EKVOLON KALAMA KAI NISOS PRASOUDI"]
[null,null,null,null,null,null,"Eudromias morinellus",null,null,null,null,null,null,null,null,null,null,null,null,"GR2120006 ELI KALODIKI, MARGARITI, KARTERI KAI LIMNI PRONTANI"]
[null,null,null,null,null,null,"Falco biarmicus",null,null,null,null,null,null,null,null,null,null,null,null,"GR2120007 STENA PARAKALAMOU"]
[null,null,null,null,null,null,"Falco cherrug",null,null,null,null,null,null,null,null,null,null,null,null,"GR2120008 ORI PARAMYTHIAS, STENA KALAMA ΚΑΙ STENA ACHERONTA"]
[null,null,null,null,null,null,"Falco columbarius",null,null,null,null,null,null,null,null,null,null,null,null,"GR2120009 ORI TSAMANTA, FILIATON, FARMAKOVOUNI, MEGALI RACHI"]
[null,null,null,null,null,null,"Falco eleonorae",null,null,null,null,null,null,null,null,null,null,null,null,"GR2130001 ETHNIKOS DRYMOS VIKOU - AOOU"]
[null,null,null,null,null,null,"Falco naumanni",null,null,null,null,null,null,null,null,null,null,null,null,"GR2130002 KORYFES OROUS SMOLIKAS"]
[null,null,null,null,null,null,"Falco peregrinus | [including pelegrinoides]",null,null,null,null,null,null,null,null,null,null,null,null,"GR2130004 KENTRIKO TMIMA ZAGORIOU"]
[null,null,null,null,null,null,"Falco subbuteo",null,null,null,null,null,null,null,null,null,null,null,null,"GR2130005 LIMNI IOANNINON"]
[null,null,null,null,null,null,"Falco tinnunculus",null,null,null,null,null,null,null,null,null,null,null,null,"GR2130006 PERIOCHI METSOVOU (ANILIO - KATARA)"]
[null,null,null,null,null,null,"Falco vespertinus",null,null,null,null,null,null,null,null,null,null,null,null,"GR2130007 OROS LAKMOS (PERISTERI)"]
[null,null,null,null,null,null,"Ficedula albicollis",null,null,null,null,null,null,null,null,null,null,null,null,"GR2130008 OROS MITSIKELI"]
[null,null,null,null,null,null,"Ficedula parva",null,null,null,null,null,null,null,null,null,null,null,null,"GR2130009 OROS TYMFI (GKAMILA)"]
[null,null,null,null,null,null,"Ficedula semitorquata",null,null,null,null,null,null,null,null,null,null,null,null,"GR2130010 OROS DOUSKON, ORAIOKASTRO, DASOS MEROPIS, KOILADA GORMOU, LIMNI DELVINAKIOU"]
[null,null,null,null,null,null,"Fringilla coelebs all others",null,null,null,null,null,null,null,null,null,null,null,null,"GR2130011 KENTRIKO ZAGORI KAI ANATOLIKO TMIMA OROUS MITSIKELI"]
[null,null,null,null,null,null,"Fulica atra",null,null,null,null,null,null,null,null,null,null,null,null,"GR2130012 EVRYTERI PERIOCHI POLIS IOANNINON"]
[null,null,null,null,null,null,"Galerida cristata",null,null,null,null,null,null,null,null,null,null,null,null,"GR2130013 EVRYTERI PERIOCHI ATHAMANIKON OREON"]
[null,null,null,null,null,null,"Gallinago gallinago",null,null,null,null,null,null,null,null,null,null,null,null,"GR2140001 EKVOLES ACHERONTA (APO GLOSSA EOS ALONAKI) KAI STENA ACHERONTA"]
[null,null,null,null,null,null,"Gallinago media",null,null,null,null,null,null,null,null,null,null,null,null,"GR2140003 PARAKTIA THALASSIA ZONI APO PARGA EOS AKROTIRIO AGIOS THOMAS (PREVEZA), AKR. KELADIO - AG. THOMAS"]
[null,null,null,null,null,null,"Gallinula chloropus",null,null,null,null,null,null,null,null,null,null,null,null,"GR2210001 DYTIKES KAI VOREIOANATOLIKES AKTES ZAKYNTHOU"]
[null,null,null,null,null,null,"Garrulus glandarius",null,null,null,null,null,null,null,null,null,null,null,null,"GR2210002 KOLPOS LAGANA ZAKYNTHOU (AKR. GERAKI - KERI) KAI NISIDES MARATHONISI KAI PELOUZO"]
[null,null,null,null,null,null,"Gavia arctica",null,null,null,null,null,null,null,null,null,null,null,null,"GR2210003 NISOI STROFADES"]
[null,null,null,null,null,null,"Gavia stellata",null,null,null,null,null,null,null,null,null,null,null,null,"GR2210004 NISIDES STAMFANI KAI ARPYIA (STROFADES) KAI THALASSIA ZONI"]
[null,null,null,null,null,null,"Gelochelidon nilotica",null,null,null,null,null,null,null,null,null,null,null,null,"GR2220001 KALON OROS KEFALONIAS"]
[null,null,null,null,null,null,"Glareola pratincola",null,null,null,null,null,null,null,null,null,null,null,null,"GR2220002 ETHNIKOS DRYMOS AINOU"]
[null,null,null,null,null,null,"Glaucidium passerinum",null,null,null,null,null,null,null,null,null,null,null,null,"GR2220003 ESOTERIKO ARCHIPELAGOS IONIOU (MEGANISI, ARKOUDI, ATOKOS, VROMONAS)"]
[null,null,null,null,null,null,"Grus grus",null,null,null,null,null,null,null,null,null,null,null,null,"GR2220004 PARAKTIA THALASSIA ZONI APO ARGOSTOLI EOS VLACHATA (KEFALONIA) KAI ORMOS MOUNTA"]
[null,null,null,null,null,null,"Gulosus aristotelis desmarestii",null,null,null,null,null,null,null,null,null,null,null,null,"GR2220005 DYTIKES AKTES KEFALONIAS - STENO KEFALONIAS ITHAKIS - VOREIA ITHAKI (AKROTIRIA GERO GKOMPOS - DRAKOU PIDIMA - KENTRI - AG. IOANNIS)"]
[null,null,null,null,null,null,"Gypaetus barbatus",null,null,null,null,null,null,null,null,null,null,null,null,"GR2220006 KEFALONIA: AINOS, AGIA DYNATI KAI KALON OROS"]
[null,null,null,null,null,null,"Gyps fulvus",null,null,null,null,null,null,null,null,null,null,null,null,"GR2220007 THALASSIA ZONI APO ARGOSTOLI EOS ORMO MOUNTA"]
[null,null,null,null,null,null,"Haematopus ostralegus",null,null,null,null,null,null,null,null,null,null,null,null,"GR2230001 LIMNOTHALASSA ANTINIOTI (KERKYRA)"]
[null,null,null,null,null,null,"Haliaeetus albicilla",null,null,null,null,null,null,null,null,null,null,null,null,"GR2230002 LIMNOTHALASSA KORISSION (KERKYRA)"]
[null,null,null,null,null,null,"Hieraaetus pennatus",null,null,null,null,null,null,null,null,null,null,null,null,"GR2230003 ALYKI LEFKIMΜIS (KERKYRA)"]
[null,null,null,null,null,null,"Himantopus himantopus",null,null,null,null,null,null,null,null,null,null,null,null,"GR2230004 NISOI PAXOI KAI ANTIPAXOI KAI EVRYTERI THALASSIA PERIOCHI"]
[null,null,null,null,null,null,"Hippolais olivetorum",null,null,null,null,null,null,null,null,null,null,null,null,"GR2230005 PARAKTIA THALASSIA ZONI APO KANONI EOS MESONGI (KERKYRA)"]
[null,null,null,null,null,null,"Hirundo rustica",null,null,null,null,null,null,null,null,null,null,null,null,"GR2230007 LIMNOTHALASSA KORISSION (KERKYRA) KAI NISOS LAGOUDIA"]
[null,null,null,null,null,null,"Hydrobates pelagicus",null,null,null,null,null,null,null,null,null,null,null,null,"GR2230008 DIAPONTIA NISIA (OTHONOI, EREIKOUSA, MATHRAKI KAI VRACHONISIDES)"]
[null,null,null,null,null,null,"Hydrocoloeus minutus",null,null,null,null,null,null,null,null,null,null,null,null,"GR2230009 LIMNOTHALASSA ANTINIOTI KAI POTAMOS FONISSAS (KERKYRA)"]
[null,null,null,null,null,null,"Hydroprogne caspia",null,null,null,null,null,null,null,null,null,null,null,null,"GR2230010 THALASSIA PERIOCHI DIAPONTION NISON"]
[null,null,null,null,null,null,"Iduna pallida s. str. | sensu stricto [excluding opaca]",null,null,null,null,null,null,null,null,null,null,null,null,"GR2240001 LIMNOTHALASSES STENON LEFKADAS (PALIONIS - AVLIMON) KAI ALYKES LEFKADAS"]
[null,null,null,null,null,null,"Ixobrychus minutus",null,null,null,null,null,null,null,null,null,null,null,null,"GR2240002 PERIOCHI CHORTATON (LEFKADA)"]
[null,null,null,null,null,null,"Jynx torquilla",null,null,null,null,null,null,null,null,null,null,null,null,"GR2310001 DELTA ACHELOOU, LIMNOTHALASSA MESOLONGIOU - AITOLIKOU, EKVOLES EVINOU, NISOI ECHINADES, NISOS PETALAS"]
[null,null,null,null,null,null,"Lanius collurio",null,null,null,null,null,null,null,null,null,null,null,null,"GR2310004 OROS PANAITOLIKO"]
[null,null,null,null,null,null,"Lanius minor",null,null,null,null,null,null,null,null,null,null,null,null,"GR2310005 OROS VARASOVA"]
[null,null,null,null,null,null,"Lanius nubicus",null,null,null,null,null,null,null,null,null,null,null,null,"GR2310006 LIMNES VOULKARIA KAI SALTINI"]
[null,null,null,null,null,null,"Lanius senator",null,null,null,null,null,null,null,null,null,null,null,null,"GR2310007 LIMNI AMVRAKIA"]
[null,null,null,null,null,null,"Larus audouinii",null,null,null,null,null,null,null,null,null,null,null,null,"GR2310008 LIMNI OZEROS"]
[null,null,null,null,null,null,"Larus canus",null,null,null,null,null,null,null,null,null,null,null,null,"GR2310009 LIMNES TRICHONIDA KAI LYSIMACHEIA"]
[null,null,null,null,null,null,"Larus fuscus all others",null,null,null,null,null,null,null,null,null,null,null,null,"GR2310010 OROS ARAKYNTHOS KAI STENA KLEISOURAS"]
[null,null,null,null,null,null,"Larus genei",null,null,null,null,null,null,null,null,null,null,null,null,"GR2310011 OROS TSEREKAS (AKARNANIKA)"]
[null,null,null,null,null,null,"Larus melanocephalus",null,null,null,null,null,null,null,null,null,null,null,null,"GR2310013 LIMNI LYSIMACHEIA"]
[null,null,null,null,null,null,"Larus michahellis",null,null,null,null,null,null,null,null,null,null,null,null,"GR2310014 LIMNI VOULKARIA"]
[null,null,null,null,null,null,"Larus ridibundus",null,null,null,null,null,null,null,null,null,null,null,null,"GR2310015 DELTA ACHELOOU, LIMNOTHALASSA MESOLONGIOU - AITOLIKOU KAI EKVOLES EVINOU, NISOI ECHINADES, NISOS PETALAS, DYTIKOS ARAKYNTHOS KAI STENA KLEISOURAS"]
[null,null,null,null,null,null,"Leiopicus medius",null,null,null,null,null,null,null,null,null,null,null,null,"GR2310016 LIMNI AMVRAKIA"]
[null,null,null,null,null,null,"Limosa lapponica",null,null,null,null,null,null,null,null,null,null,null,null,"GR2320001 LIMNOTHALASSA KALOGRIAS, DASOS STROFYLIAS KAI ELOS LAMIAS, ARAXOS"]
[null,null,null,null,null,null,"Limosa limosa | all non-breeding populations",null,null,null,null,null,null,null,null,null,null,null,null,"GR2320002 OROS CHELMOS KAI YDATA STYGOS"]
[null,null,null,null,null,null,"Linaria cannabina",null,null,null,null,null,null,null,null,null,null,null,null,"GR2320003 FARANGI VOURAIKOU"]
[null,null,null,null,null,null,"Locustella luscinioides",null,null,null,null,null,null,null,null,null,null,null,null,"GR2320004 AISTHITIKO DASOS KALAVRYTON"]
[null,null,null,null,null,null,"Lophophanes cristatus",null,null,null,null,null,null,null,null,null,null,null,null,"GR2320005 ORI BARMPAS KAI KLOKOS, FARANGI SELINOUNTA"]
[null,null,null,null,null,null,"Loxia curvirostra",null,null,null,null,null,null,null,null,null,null,null,null,"GR2320006 ALYKI AIGIOU"]
[null,null,null,null,null,null,"Lullula arborea",null,null,null,null,null,null,null,null,null,null,null,null,"GR2320007 OROS PANACHAIKO – SYRAGKES PANAGOPOULAS"]
[null,null,null,null,null,null,"Luscinia megarhynchos",null,null,null,null,null,null,null,null,null,null,null,null,"GR2320008 OROS ERYMANTHOS"]
[null,null,null,null,null,null,"Luscinia svecica",null,null,null,null,null,null,null,null,null,null,null,null,"GR2320009 SPILAIO KASTRION"]
[null,null,null,null,null,null,"Lymnocryptes minimus",null,null,null,null,null,null,null,null,null,null,null,null,"GR2320010 ORI BARMPAS, KLOKOS, FARANGI SELINOUNTA"]
[null,null,null,null,null,null,"Mareca penelope",null,null,null,null,null,null,null,null,null,null,null,null,"GR2320011 YGROTOPOI KALOGRIAS-LAMIAS KAI DASOS STROFYLIAS"]
[null,null,null,null,null,null,"Mareca strepera",null,null,null,null,null,null,null,null,null,null,null,null,"GR2320012 OROS ERYMANTHOS"]
[null,null,null,null,null,null,"Melanitta fusca",null,null,null,null,null,null,null,null,null,null,null,null,"GR2320013 OROS CHELMOS (AROANIA) - FARANGI VOURAIKOU KAI PERIOCHI KALAVRYTON"]
[null,null,null,null,null,null,"Melanocorypha calandra",null,null,null,null,null,null,null,null,null,null,null,null,"GR2330002 OROPEDIO FOLOIS"]
[null,null,null,null,null,null,"Mergellus albellus",null,null,null,null,null,null,null,null,null,null,null,null,"GR2330003 EKVOLES (DELTA) PINEIOU"]
[null,null,null,null,null,null,"Mergus merganser",null,null,null,null,null,null,null,null,null,null,null,null,"GR2330004 OLYMPIA"]
[null,null,null,null,null,null,"Mergus serrator",null,null,null,null,null,null,null,null,null,null,null,null,"GR2330005 THINES KAI PARALIAKO DASOS ZACHAROS,  LIMNI KAIAFA, STROFYLIA, KAKOVATOS"]
[null,null,null,null,null,null,"Merops apiaster",null,null,null,null,null,null,null,null,null,null,null,null,"GR2330006 LIMNOTHALASSA KOTYCHI, BRINIA"]
[null,null,null,null,null,null,"Microcarbo pygmaeus",null,null,null,null,null,null,null,null,null,null,null,null,"GR2330007 PARAKTIA THALASSIA ZONI APO AKR. KYLLINI EOS TOUMPI - KALOGRIA"]
[null,null,null,null,null,null,"Milvus migrans",null,null,null,null,null,null,null,null,null,null,null,null,"GR2330008 THALASSIA PERIOCHI KOLPOU KYPARISSIAS: AKR. KATAKOLO - KYPARISSIA"]
[null,null,null,null,null,null,"Milvus milvus",null,null,null,null,null,null,null,null,null,null,null,null,"GR2330009 LIMNOTHALASSA KOTYCHI - ALYKI LECHAINON"]
[null,null,null,null,null,null,"Monticola saxatilis",null,null,null,null,null,null,null,null,null,null,null,null,"GR2410001 LIMNES YLIKI KAI PARALIMNI – SYSTIMA VOIOTIKOU KIFISOU -KATAVOTHRA ALIARTOU"]
[null,null,null,null,null,null,"Monticola solitarius",null,null,null,null,null,null,null,null,null,null,null,null,"GR2410002 OROS PARNASSOS"]
[null,null,null,null,null,null,"Montifringilla nivalis",null,null,null,null,null,null,null,null,null,null,null,null,"GR2420001 OROS OCHI – KAMPOS KARYSTOU – POTAMI – AKROTIRIO KAFIREFS – PARAKTIA THALASSIA ZONI"]
[null,null,null,null,null,null,"Motacilla alba",null,null,null,null,null,null,null,null,null,null,null,null,"GR2420002 DIRFYS: DASOS STENIS - DELFI"]
[null,null,null,null,null,null,"Motacilla cinerea",null,null,null,null,null,null,null,null,null,null,null,null,"GR2420004 MEGALO KAI MIKRO LIVARI - DELTA XERIA - YDROCHARES DASOS AG. NIKOLAOU - PARAKTIA THALASSIA ZONI"]
[null,null,null,null,null,null,"Motacilla flava",null,null,null,null,null,null,null,null,null,null,null,null,"GR2420006 SKYROS: OROS KOCHYLAS"]
[null,null,null,null,null,null,"Muscicapa striata",null,null,null,null,null,null,null,null,null,null,null,null,"GR2420007 MEGALO KAI MIKRO LIVARI - DELTA XERIA"]
[null,null,null,null,null,null,"Neophron percnopterus",null,null,null,null,null,null,null,null,null,null,null,null,"GR2420008 LIMNI DYSTOS"]
[null,null,null,null,null,null,"Netta rufina",null,null,null,null,null,null,null,null,null,null,null,null,"GR2420009 NISIDES SKYROU KAI THALASSIA PERIOCHI"]
[null,null,null,null,null,null,"Nucifraga caryocatactes",null,null,null,null,null,null,null,null,null,null,null,null,"GR2420010 OROS KANTILI"]
[null,null,null,null,null,null,"Numenius arquata arquata",null,null,null,null,null,null,null,null,null,null,null,null,"GR2420011 ORI KENTRIKIS EVVOIAS, PARAKTIA ZONI KAI NISIDES"]
[null,null,null,null,null,null,"Numenius tenuirostris",null,null,null,null,null,null,null,null,null,null,null,null,"GR2420012 OROS OCHI, PARAKTIA ZONI KAI NISIDES"]
[null,null,null,null,null,null,"Nycticorax nycticorax",null,null,null,null,null,null,null,null,null,null,null,null,"GR2420013 NISIDES LICHADES KAI THALASSIA PERIOCHI"]
[null,null,null,null,null,null,"Oenanthe hispanica",null,null,null,null,null,null,null,null,null,null,null,null,"GR2420014 THALASSIA PERIOCHI KAI YFALOI VOREIOANATOLIKIS EVVOIAS"]
[null,null,null,null,null,null,"Oenanthe isabellina",null,null,null,null,null,null,null,null,null,null,null,null,"GR2420015 THALASSIA ZONI ANATOLIKIS EVVOIAS APO AKRA OKTONIA EVVOIAS EOS ZARAKES"]
[null,null,null,null,null,null,"Oenanthe oenanthe",null,null,null,null,null,null,null,null,null,null,null,null,"GR2420016 THALASSIA PERIOCHI NOTIOU EVVOIKOU KOLPOU"]
[null,null,null,null,null,null,"Oriolus oriolus",null,null,null,null,null,null,null,null,null,null,null,null,"GR2420017 POTAMOS MANIKIATIS"]
[null,null,null,null,null,null,"Otus scops s. str. | sensu stricto [excluding cyprius]",null,null,null,null,null,null,null,null,null,null,null,null,"GR2430001 OROS TYMFRISTOS (VELOUCHI)"]
[null,null,null,null,null,null,"Oxyura leucocephala",null,null,null,null,null,null,null,null,null,null,null,null,"GR2430002 ORI AGRAFA"]
[null,null,null,null,null,null,"Pandion haliaetus",null,null,null,null,null,null,null,null,null,null,null,null,"GR2440002 KOILADA KAI EKVOLES SPERCHEIOU – MALIAKOS KOLPOS – MESOCHORI SPERCHEIOU"]
[null,null,null,null,null,null,"Panurus biarmicus",null,null,null,null,null,null,null,null,null,null,null,null,"GR2440003 FARANGI GORGOPOTAMOU"]
[null,null,null,null,null,null,"Parus major",null,null,null,null,null,null,null,null,null,null,null,null,"GR2440004 ETHNIKOS DRYMOS OITIS"]
[null,null,null,null,null,null,"Passer domesticus s. str. | sensu stricto [excluding italiae]",null,null,null,null,null,null,null,null,null,null,null,null,"GR2440005 KATO ROUS KAI EKVOLES SPERCHEIOU POTAMOU"]
[null,null,null,null,null,null,"Passer hispaniolensis",null,null,null,null,null,null,null,null,null,null,null,null,"GR2440006 OROS KALLIDROMO"]
[null,null,null,null,null,null,"Passer italiae",null,null,null,null,null,null,null,null,null,null,null,null,"GR2440007 ETHNIKOS DRYMOS OITIS - KOILADA ASOPOU"]
[null,null,null,null,null,null,"Passer montanus",null,null,null,null,null,null,null,null,null,null,null,null,"GR2450001 ORI VARDOUSIA"]
[null,null,null,null,null,null,"Pelecanus crispus",null,null,null,null,null,null,null,null,null,null,null,null,"GR2450002 OROS GKIONA"]
[null,null,null,null,null,null,"Pelecanus onocrotalus",null,null,null,null,null,null,null,null,null,null,null,null,"GR2450004 PARALIAKI ZONI APO NAFPAKTO EOS ITEA - PERIOCHI PIGON CHILIADOU"]
[null,null,null,null,null,null,"Perdix perdix all others",null,null,null,null,null,null,null,null,null,null,null,null,"GR2450005 NOTIOANATOLIKOS PARNASSOS – ETHNIKOS DRYMOS PARNASSOU – DASOS TITHOREAS, SPILAIOVARATHRO"]
[null,null,null,null,null,null,"Periparus ater all others",null,null,null,null,null,null,null,null,null,null,null,null,"GR2450007 KORYFES OROUS GKIONA, CHARADRA REKA, LAZOREMA KAI VATHIA LAKKA"]
[null,null,null,null,null,null,"Pernis apivorus",null,null,null,null,null,null,null,null,null,null,null,null,"GR2450008 OROS VARDOUSIA"]
[null,null,null,null,null,null,"Petronia petronia",null,null,null,null,null,null,null,null,null,null,null,null,"GR2450009 EVRYTERI PERIOCHI GALAXEIDIOU"]
[null,null,null,null,null,null,"Phalacrocorax carbo sinensis",null,null,null,null,null,null,null,null,null,null,null,null,"GR2510003 AKRONAFPLIA KAI PALAMIDI"]
[null,null,null,null,null,null,"Phalaropus lobatus",null,null,null,null,null,null,null,null,null,null,null,null,"GR2510004 ORI ARTEMISIO KAI LYRKEIO"]
[null,null,null,null,null,null,"Phasianus colchicus",null,null,null,null,null,null,null,null,null,null,null,null,"GR2510005 THALASSIA PERIOCHI PAFSANIA – YPOTHALASSIA IFAISTEIA METHANON"]
[null,null,null,null,null,null,"Phasianus colchicus | non-native populations",null,null,null,null,null,null,null,null,null,null,null,null,"GR2520001 OROS MAINALO"]
[null,null,null,null,null,null,"Phoenicopterus roseus",null,null,null,null,null,null,null,null,null,null,null,null,"GR2520002 LIMNI TAKA"]
[null,null,null,null,null,null,"Phoenicurus ochruros",null,null,null,null,null,null,null,null,null,null,null,null,"GR2520003 LIMNOTHALASSA MOUSTOU"]
[null,null,null,null,null,null,"Phoenicurus phoenicurus",null,null,null,null,null,null,null,null,null,null,null,null,"GR2520005 MONI ELONAS KAI CHARADRA LEONIDIOU -  SPILAIO MANA KAI GALAZIA LIMNI"]
[null,null,null,null,null,null,"Phylloscopus collybita s. str. | sensu stricto [excluding canariensis, ibericus and tristis]",null,null,null,null,null,null,null,null,null,null,null,null,"GR2520006 OROS PARNONAS (KAI PERIOCHI MALEVIS)"]
[null,null,null,null,null,null,"Phylloscopus orientalis",null,null,null,null,null,null,null,null,null,null,null,null,"GR2530001 KORYFES OROUS KYLLINI (ZIRIA) KAI CHARADRA FLAMPOURITSA"]
[null,null,null,null,null,null,"Phylloscopus sibilatrix",null,null,null,null,null,null,null,null,null,null,null,null,"GR2530002 LIMNI STYMFALIA"]
[null,null,null,null,null,null,"Pica pica",null,null,null,null,null,null,null,null,null,null,null,null,"GR2530003 AKROKORINTHOS"]
[null,null,null,null,null,null,"Picoides tridactylus",null,null,null,null,null,null,null,null,null,null,null,null,"GR2530004 OROS OLIGYRTOS"]
[null,null,null,null,null,null,"Picus canus",null,null,null,null,null,null,null,null,null,null,null,null,"GR2530005 ORI GERANEIA"]
[null,null,null,null,null,null,"Picus viridis s. str. | sensu stricto [excluding sharpei]",null,null,null,null,null,null,null,null,null,null,null,null,"GR2530006 OROS ZIREIA (KYLLINI)"]
[null,null,null,null,null,null,"Platalea leucorodia",null,null,null,null,null,null,null,null,null,null,null,null,"GR2530007 KORINTHIAKOS KOLPOS"]
[null,null,null,null,null,null,"Plegadis falcinellus",null,null,null,null,null,null,null,null,null,null,null,null,"GR2540001 ORI GIDOVOUNI, CHIONOVOUNI, GAIDOUROVOUNI, KORAKIA, KALOGEROVOUNI, KOULOCHERA KAI PERIOCHI MONEMVASIAS SPILAIO SOLOMOU TRYPA KAI PYRGOS AG. STEFANOU KAI THALASSIA ZONI EOS AKROTIRIO KAMILI"]
[null,null,null,null,null,null,"Pluvialis apricaria",null,null,null,null,null,null,null,null,null,null,null,null,"GR2540002 PERIOCHI NEAPOLIS KAI NISOS ELAFONISOS"]
[null,null,null,null,null,null,"Pluvialis squatarola",null,null,null,null,null,null,null,null,null,null,null,null,"GR2540003 EKVOLES EVROTA, PERIOCHI VRONTAMA KAI THALASSIA PERIOCHI LAKONIKOU KOLPOU"]
[null,null,null,null,null,null,"Podiceps auritus",null,null,null,null,null,null,null,null,null,null,null,null,"GR2540005 LAGKADA TRYPIS"]
[null,null,null,null,null,null,"Podiceps cristatus",null,null,null,null,null,null,null,null,null,null,null,null,"GR2540006 YGROTOPOI EKVOLON EVROTA"]
[null,null,null,null,null,null,"Podiceps grisegena",null,null,null,null,null,null,null,null,null,null,null,null,"GR2540007 ORI ANATOLIKIS LAKONIAS"]
[null,null,null,null,null,null,"Podiceps nigricollis",null,null,null,null,null,null,null,null,null,null,null,null,"GR2540008 NOTIA MANI"]
[null,null,null,null,null,null,"Poecile lugubris",null,null,null,null,null,null,null,null,null,null,null,null,"GR2540009 THALASSIA ZONI  NOTIAS MANIS"]
[null,null,null,null,null,null,"Poecile montanus",null,null,null,null,null,null,null,null,null,null,null,null,"GR2550001 FARANGI NEDONA (PETALON - CHANI)"]
[null,null,null,null,null,null,"Poecile palustris",null,null,null,null,null,null,null,null,null,null,null,null,"GR2550003 NISOI SAPIENTZA KAI SCHIZA, AKROTIRIO AKRITAS"]
[null,null,null,null,null,null,"Porzana porzana",null,null,null,null,null,null,null,null,null,null,null,null,"GR2550004 LIMNOTHALASSA PYLOU (DIVARI) KAI NISOS SFAKTIRIA, AGIOS DIMITRIOS"]
[null,null,null,null,null,null,"Prunella collaris",null,null,null,null,null,null,null,null,null,null,null,null,"GR2550005 THINES KYPARISSIAS (NEOCHORI - KYPARISSIA)"]
[null,null,null,null,null,null,"Prunella modularis",null,null,null,null,null,null,null,null,null,null,null,null,"GR2550006 OROS TAYGETOS SPILAIO TRACHILAS SPILAIO VATSINIDI"]
[null,null,null,null,null,null,"Ptyonoprogne rupestris",null,null,null,null,null,null,null,null,null,null,null,null,"GR2550007 THALASSIA PERIOCHI STENOU METHONIS"]
[null,null,null,null,null,null,"Puffinus yelkouan",null,null,null,null,null,null,null,null,null,null,null,null,"GR2550008 LIMNOTHALASSA GIALOVAS KAI NISOS SFAKTIRIA"]
[null,null,null,null,null,null,"Pyrrhocorax graculus",null,null,null,null,null,null,null,null,null,null,null,null,"GR2550009 OROS TAYGETOS - LAGKADA TRYPIS"]
[null,null,null,null,null,null,"Pyrrhocorax pyrrhocorax",null,null,null,null,null,null,null,null,null,null,null,null,"GR2550010 THALASSIA PERIOCHI NOTIAS MESSINIAS"]
[null,null,null,null,null,null,"Pyrrhula pyrrhula",null,null,null,null,null,null,null,null,null,null,null,null,"GR3000001 OROS PARNITHA"]
[null,null,null,null,null,null,"Rallus aquaticus",null,null,null,null,null,null,null,null,null,null,null,null,"GR3000003 ETHNIKO PARKO SCHINIA - MARATHONA"]
[null,null,null,null,null,null,"Recurvirostra avosetta",null,null,null,null,null,null,null,null,null,null,null,null,"GR3000004 VRAVRONA - PARAKTIA THALASSIA ZONI"]
[null,null,null,null,null,null,"Regulus ignicapilla",null,null,null,null,null,null,null,null,null,null,null,null,"GR3000005 SOUNIO - NISIDA PATROKLOU KAI PARAKTIA THALASSIA ZONI"]
[null,null,null,null,null,null,"Regulus regulus",null,null,null,null,null,null,null,null,null,null,null,null,"GR3000006 YMITTOS - AISTHITIKO DASOS KAISARIANIS - LIMNI VOULIAGMENIS"]
[null,null,null,null,null,null,"Remiz pendulinus",null,null,null,null,null,null,null,null,null,null,null,null,"GR3000008 ANTIKYTHIRA - PRASONISI KAI LAGOUVARDOS"]
[null,null,null,null,null,null,"Riparia riparia",null,null,null,null,null,null,null,null,null,null,null,null,"GR3000010 NISIDES KYTHIRON: PRASONISI, DRAGONERA, ANTIDRAGONERA"]
[null,null,null,null,null,null,"Saxicola rubetra",null,null,null,null,null,null,null,null,null,null,null,null,"GR3000011 NISIDES MYRTOOU PELAGOUS: FALKONERA,VELOPOULA, ANANES KAI THALASSIA ZONI"]
[null,null,null,null,null,null,"Saxicola torquatus",null,null,null,null,null,null,null,null,null,null,null,null,"GR3000012 NISOS ANTIKYTHIRA KAI NISIDES PRASONISI, LAGOUVARDOS, PLAKOULITHRA KAI NISIDES THYMONIES"]
[null,null,null,null,null,null,"Scolopax rusticola",null,null,null,null,null,null,null,null,null,null,null,null,"GR3000013 KYTHIRA KAI GYRO NISIDES: PRASONISI, DRAGONERA, ANTIDRAGONERA, AVGO, KAPELLO, KOUFO KAI FIDONISI"]
[null,null,null,null,null,null,"Serinus serinus",null,null,null,null,null,null,null,null,null,null,null,null,"GR3000014 PERIOCHI LEGRENON - NISIDA PATROKLOU"]
[null,null,null,null,null,null,"Sitta europaea",null,null,null,null,null,null,null,null,null,null,null,null,"GR3000015 OROS YMITTOS"]
[null,null,null,null,null,null,"Sitta krueperi",null,null,null,null,null,null,null,null,null,null,null,null,"GR3000016 YGROTOPOS SCHINIA"]
[null,null,null,null,null,null,"Sitta neumayer",null,null,null,null,null,null,null,null,null,null,null,null,"GR3000017 PARAKTIA KAI THALASSIA ZONI MAKRONISOU"]
[null,null,null,null,null,null,"Spatula clypeata",null,null,null,null,null,null,null,null,null,null,null,null,"GR3000018 KANALI MAKRONISOU"]
[null,null,null,null,null,null,"Spatula querquedula",null,null,null,null,null,null,null,null,null,null,null,null,"GR3000019 THALASSIA PERIOCHI KYTHIRON"]
[null,null,null,null,null,null,"Spinus spinus",null,null,null,null,null,null,null,null,null,null,null,null,"GR3000020 NISIDES SARONIKOU KOLPOU KAI THALASSIA PERIOCHI"]
[null,null,null,null,null,null,"Sterna hirundo",null,null,null,null,null,null,null,null,null,null,null,null,"GR4110001 LIMNOS: CHORTAROLIMNI - LIMNI ALYKI KAI THALASSIA PERIOCHI"]
[null,null,null,null,null,null,"Sternula albifrons",null,null,null,null,null,null,null,null,null,null,null,null,"GR4110002 AGIOS EFSTRATIOS KAI PARAKTIA THALASSIA ZONI"]
[null,null,null,null,null,null,"Streptopelia decaocto",null,null,null,null,null,null,null,null,null,null,null,null,"GR4110003 LESVOS: DYTIKI CHERSONISOS - APOLITHOMENO DASOS"]
[null,null,null,null,null,null,"Streptopelia turtur",null,null,null,null,null,null,null,null,null,null,null,null,"GR4110004 LESVOS: KOLPOS KALLONIS KAI CHERSAIA PARAKTIA ZONI"]
[null,null,null,null,null,null,"Strix aluco",null,null,null,null,null,null,null,null,null,null,null,null,"GR4110005 LESVOS KOLPOS GERAS, ELOS NTIPI KAI OROS OLYMPOS – POTAMOS EVERGETOULAS"]
[null,null,null,null,null,null,"Sturnus vulgaris",null,null,null,null,null,null,null,null,null,null,null,null,"GR4110006 LIMNOS, LIMNES CHORTAROLIMNI KAI ALYKI, KOLPOS MOUDROU ELOS DIAPORI KAI CHERSONISOS FAKOS, NISOS SERGITSI KAI NISIDES DIAVATES KOMPIOKASTRIA, TIGANI, KARKALAS, PRASONISI KAI THALASSIA PERIOCHI"]
[null,null,null,null,null,null,"Sylvia atricapilla",null,null,null,null,null,null,null,null,null,null,null,null,"GR4110007 LESVOS PARAKTIOI YGROTOPOI KAI KOLPOS KALLONIS"]
[null,null,null,null,null,null,"Sylvia borin",null,null,null,null,null,null,null,null,null,null,null,null,"GR4110008 NISIDES KAI VRACHONISIDES LIMNOU: NISOS SERGITSI KAI NISIDES DIAVATES, KOMPIO, KASTRIA, TIGANI, KARKALAS, PRASONISI"]
[null,null,null,null,null,null,"Tachybaptus ruficollis",null,null,null,null,null,null,null,null,null,null,null,null,"GR4110009 NISIDES LESVOU (SYMPLEGMA TOMARONISION, KODONAS, AGIOS GEORGIOS, GLARONISI, KLP) KAI THALASSIA PERIOCHI)"]
[null,null,null,null,null,null,"Tachymarptis melba",null,null,null,null,null,null,null,null,null,null,null,null,"GR4110010 NOTIODYTIKI CHERSONISOS, APOLITHOMENO DASOS LESVOU"]
[null,null,null,null,null,null,"Tadorna ferruginea",null,null,null,null,null,null,null,null,null,null,null,null,"GR4110011 OROS OLYMPOS LESVOU"]
[null,null,null,null,null,null,"Tadorna tadorna",null,null,null,null,null,null,null,null,null,null,null,null,"GR4110012 VOREIA LESVOS"]
[null,null,null,null,null,null,"Tetrao urogallus all others",null,null,null,null,null,null,null,null,null,null,null,null,"GR4110013 LESVOS: KOLPOS GERAS, ELI NTIPI KAI CHARAMIDA"]
[null,null,null,null,null,null,"Tetrastes bonasia",null,null,null,null,null,null,null,null,null,null,null,null,"GR4110014 NISOS AGIOS EFSTRATIOS KAI THALASSIA ZONI"]
[null,null,null,null,null,null,"Tetrax tetrax",null,null,null,null,null,null,null,null,null,null,null,null,"GR4110015 THALASSIA PERIOCHI NISIDON TOKMAKIA"]
[null,null,null,null,null,null,"Thalasseus sandvicensis",null,null,null,null,null,null,null,null,null,null,null,null,"GR4110016 THALASSIA PERIOCHI DYTIKIS LESVOU"]
[null,null,null,null,null,null,"Tichodroma muraria",null,null,null,null,null,null,null,null,null,null,null,null,"GR4120001 SAMOS: PARALIA ALYKI"]
[null,null,null,null,null,null,"Tringa glareola",null,null,null,null,null,null,null,null,null,null,null,null,"GR4120002 SAMOS: OROS AMPELOS (KARVOUNIS)"]
[null,null,null,null,null,null,"Tringa nebularia",null,null,null,null,null,null,null,null,null,null,null,null,"GR4120003 SAMOS: OROS KERKETEFS - MIKRO KAI MEGALO SEITANI - DASOS KASTANIAS KAI LEKKAS, AKR. KATAVASIS - LIMENAS"]
[null,null,null,null,null,null,"Tringa ochropus",null,null,null,null,null,null,null,null,null,null,null,null,"GR4120004 IKARIA - FOURNOI KAI PARAKTIA ZONI"]
[null,null,null,null,null,null,"Tringa stagnatilis",null,null,null,null,null,null,null,null,null,null,null,null,"GR4120005 NISOS IKARIA (NOTIODYTIKO TMIMA)"]
[null,null,null,null,null,null,"Tringa totanus",null,null,null,null,null,null,null,null,null,null,null,null,"GR4120006 NISOS FOURNOI KAI NISIDES  THYMAINA ALATONISI, THYMAINAKI, STRONGYLO, PLAKA, MAKRONISI, MIKROS KAI MEGALOS ANTHROPOFAGOS, AGIOS MINAS KAI THALASSIA PERIOCHI"]
[null,null,null,null,null,null,"Troglodytes troglodytes all others",null,null,null,null,null,null,null,null,null,null,null,null,"GR4120007 SAMOS: ALΥKΙ PSILIS AMMOU"]
[null,null,null,null,null,null,"Turdus iliacus",null,null,null,null,null,null,null,null,null,null,null,null,"GR4120008 SAMOS: OROS KERKIS"]
[null,null,null,null,null,null,"Turdus merula",null,null,null,null,null,null,null,null,null,null,null,null,"GR4130001 VOREIA CHIOS KAI NISOI OINOUSSES KAI PARAKTIA THALASSIA ZONI"]
[null,null,null,null,null,null,"Turdus philomelos",null,null,null,null,null,null,null,null,null,null,null,null,"GR4130002 NISIA ANTIPSARA KAI NISIDES DASKALIO, MASTROGIORGI, PRASONISI, KATO NISI, MESIAKO, KOYTSOYLIA KAI THALASSIA ZONI"]
[null,null,null,null,null,null,"Turdus pilaris",null,null,null,null,null,null,null,null,null,null,null,null,"GR4130003 VOREIA CHIOS"]
[null,null,null,null,null,null,"Turdus torquatus",null,null,null,null,null,null,null,null,null,null,null,null,"GR4130004 NISIDA VENETIKO"]
[null,null,null,null,null,null,"Turdus viscivorus",null,null,null,null,null,null,null,null,null,null,null,null,"GR4130005 VRACHONISIDES KALOGEROI KAI THALASSIA ZONI"]
[null,null,null,null,null,null,"Tyto alba",null,null,null,null,null,null,null,null,null,null,null,null,"GR4210001 KASOS KAI KASONISIA – EVRYTERI THALASSIA PERIOCHI"]
[null,null,null,null,null,null,"Upupa epops",null,null,null,null,null,null,null,null,null,null,null,null,"GR4210002 KENTRIKI KARPATHOS: KALI LIMNI - LASTOS - KYRA PANAGIA KAI PARAKTIA THALASSIA ZONI"]
[null,null,null,null,null,null,"Vanellus spinosus",null,null,null,null,null,null,null,null,null,null,null,null,"GR4210003 VOREIA KARPATHOS KAI SARIA KAI PARAKTIA THALASSIA ZONI"]
[null,null,null,null,null,null,"Vanellus vanellus",null,null,null,null,null,null,null,null,null,null,null,null,"GR4210004 KASTELLORIZO KAI NISIDES RO KAI STRONGYLI KAI PARAKTIA THALASSIA ZONI"]
[null,null,null,null,null,null,"Xenus cinereus",null,null,null,null,null,null,null,null,null,null,null,null,"GR4210005 RODOS: AKRAMYTIS, ARMENISTIS, ATTAVYROS, REMATA KAI THALASSIA ZONI (KARAVOLA-ORMOS GLYFADA)"]
[null,null,null,null,null,null,"Zapornia parva",null,null,null,null,null,null,null,null,null,null,null,null,"GR4210006 RODOS: PROFITIS ILIAS - EPTA PIGES – PETALOUDES - REMATA"]
[null,null,null,null,null,null,"Zapornia pusilla",null,null,null,null,null,null,null,null,null,null,null,null,"GR4210007 NOTIA NISYROS KAI  STRONGYLI, IFAISTIAKO PEDIO KAI PARAKTIA THALASSIA ZONI"]
[null,null,null,null,null,null,"Other",null,null,null,null,null,null,null,null,null,null,null,null,"GR4210008 KOS: AKROTIRIO LOUROS - LIMNI PSALIDI - OROS DIKAIOS - ALYKI - PARAKTIA THALASSIA ZONI"]
[null,null,null,null,null,null,"Ψάρια",null,null,null,null,null,null,null,null,null,null,null,null,"GR4210009 ASTYPALAIA: ANATOLIKO TMIMA, GYRO NISIDES KAI OFIDOUSSA KAI THALASSIA ZONI (AKR. LANTRA - AKR. VRYSI)"]
[null,null,null,null,null,null,"species_code_refLabel",null,null,null,null,null,null,null,null,null,null,null,null,"GR4210010 ARKOI, LEIPSOI, AGATHONISI KAI VRACHONISIDES"]
[null,null,null,null,null,null,"Acipenser naccarii",null,null,null,null,null,null,null,null,null,null,null,null,"GR4210011 VRACHONISIA NOTIOU AIGAIOU: VELOPOULA, FALKONERA, ANANES, CHRISTIANA, PACHEIA, FTENO, MAKRA, ASTAKIDONISIA, SYRNA - GYRO NISIA KAI THALASSIA ZONI"]
[null,null,null,null,null,null,"Acipenser stellatus",null,null,null,null,null,null,null,null,null,null,null,null,"GR4210014 NISIDES PATMOU: PETROKARAVO, ANYDROS"]
[null,null,null,null,null,null,"Acipenser sturio",null,null,null,null,null,null,null,null,null,null,null,null,"GR4210019 NISIDES KALYMNOU: EPANO NERA, SARI, TELENDOS  KAI THALASSIA PERIOCHI"]
[null,null,null,null,null,null,"Alburnus vistonicus",null,null,null,null,null,null,null,null,null,null,null,null,"GR4210020 NISOI KINAROS KAI LEVITHA KAI NISIDES LIADIA, PLAKA, GLAROS, MAVRA KAI THALASSIA PERIOCHI"]
[null,null,null,null,null,null,"Alburnus volviticus",null,null,null,null,null,null,null,null,null,null,null,null,"GR4210021 ANATOLIKO TMIMA ASTYPALEAS KAI NISIDES KOUNOUPI, FTENO, CHONDROPOULO, KOYTSOMYTIS, MONI, AGIA KYRIAKI, TIGANI, CHONDRI, LIGNO, FOKIONISIA, KATSAGRELI, PONTIKOYSSA, FIDOYSSA, KTENIA KAI THALASSIA PERIOCHI"]
[null,null,null,null,null,null,"Alosa fallax",null,null,null,null,null,null,null,null,null,null,null,null,"GR4210022 NISOS SYRNA KAI NISIDES MEGALOS ADELFOS, MIKROS ADELFOS, KATSIKAS, MESONISI, PLAKIDA, STEFANIA, NAVAGIO"]
[null,null,null,null,null,null,"Alosa macedonica",null,null,null,null,null,null,null,null,null,null,null,null,"GR4210023 NISIDES KARPATHIOU PELAGOUS: MEGALO SOFRANO, SOCHAS, MIKRO SOFRANO, AVGO, DIVOUNIA, CHAMILI, ASTAKIDONISIA"]
[null,null,null,null,null,null,"Alosa vistonica",null,null,null,null,null,null,null,null,null,null,null,null,"GR4210024 NISOS TILOS KAI NISIDES: ANTITILOS, PELEKOUSA, GAIDOURONISI, GIAKOUMIS, AGIOS ANDREAS, PRASOUDA , NISI KAI THALASSIA PERIOCHI"]
[null,null,null,null,null,null,"Aphanius almiriensis",null,null,null,null,null,null,null,null,null,null,null,null,"GR4210025 ANATOLIKO TMIMA NISOU SYMIS KAI NISIDES KOULOUNDROS SESKLI, TROUMPETO, MARMARAS, KARAVALONISI, MEGALONISI, GIALESINO, OXEIA, CHONDROS, PLATY, NIMOS  KAI THALASSIA PERIOCHI NISOU SYMIS"]
[null,null,null,null,null,null,"Aphanius fasciatus",null,null,null,null,null,null,null,null,null,null,null,null,"GR4210026 NISOS CHALKI KAI NISIDES: KOLOFONA, PANO PRASSOUDA, TRAGOUSA, STRONGYLI, AGIOS THEODOROS, MAELONISI ALIMIA, KREVVATI, NISAKI, MAKRY KAI THALASSIA PERIOCHI"]
[null,null,null,null,null,null,"Aspius aspius",null,null,null,null,null,null,null,null,null,null,null,null,"GR4210027 KOS: LIMNI PSALIDI - ALYKI"]
[null,null,null,null,null,null,"Barbus albanicus",null,null,null,null,null,null,null,null,null,null,null,null,"GR4210028 NISOS KASOS KAI SYMPLEGMA KASONISION KAI THALASSIA PERIOCHI"]
[null,null,null,null,null,null,"Barbus balcanicus",null,null,null,null,null,null,null,null,null,null,null,null,"GR4210029 ANATOLIKI RODOS: PROFITIS ILIAS - EPTA PIGES - EKVOLI LOUTANI - KATERGO, REMA GADOURA - CHERSONISOS LINDOU - NISIDES PENTANISA KAI TETRAPOLIS, LOFOS PSALIDI"]
[null,null,null,null,null,null,"Barbus cyclolepis",null,null,null,null,null,null,null,null,null,null,null,null,"GR4210030 DYTIKI RODOS: ORI ATTAVYROS & AKRAMYTIS, TECHNITI LIMNI APOLAKKIAS KAI NISIDES GEORGIOU, STRONGYLI, CHTENIES & KARAVOLAS"]
[null,null,null,null,null,null,"Barbus euboicus",null,null,null,null,null,null,null,null,null,null,null,null,"GR4210031 NOTIO AKRO RODOU, PRASONISI, YGROTOPOS LIVADI KATTAVIAS"]
[null,null,null,null,null,null,"Barbus macedonicus",null,null,null,null,null,null,null,null,null,null,null,null,"GR4210032 NISOS NISYROS KAI NISIDES"]
[null,null,null,null,null,null,"Barbus peloponnesius",null,null,null,null,null,null,null,null,null,null,null,null,"GR4210033 THALASSIA PERIOCHI NOTIAS PATMOU"]
[null,null,null,null,null,null,"Barbus pergamonensis",null,null,null,null,null,null,null,null,null,null,null,null,"GR4210034 NISIDES VOREION DODEKANISON KAI THALASSIA PERIOCHI"]
[null,null,null,null,null,null,"Barbus prespensis",null,null,null,null,null,null,null,null,null,null,null,null,"GR4220001 ANDROS: ORMOS VITALI KAI KENTRIKOS OREINOS OGKOS"]
[null,null,null,null,null,null,"Barbus sperchiensis",null,null,null,null,null,null,null,null,null,null,null,null,"GR4220002 ANAFI: CHERSONISOS KALAMOS - ROUKOUNAS"]
[null,null,null,null,null,null,"Barbus strumicae",null,null,null,null,null,null,null,null,null,null,null,null,"GR4220003 SANTORINI: NEA KAI PALIA KAMENI - PROFITIS ILIAS"]
[null,null,null,null,null,null,"Cobitis arachthosensis",null,null,null,null,null,null,null,null,null,null,null,null,"GR4220004 FOLEGANDROS ANATOLIKI MECHRI DYTIKI SIKINO KAI THALASSIA ZONI"]
[null,null,null,null,null,null,"Cobitis hellenica",null,null,null,null,null,null,null,null,null,null,null,null,"GR4220005 PARAKTIA ZONI DYTIKIS MILOY"]
[null,null,null,null,null,null,"Cobitis meridionalis",null,null,null,null,null,null,null,null,null,null,null,null,"GR4220006 NISOS POLYAIGOS - KIMOLOS"]
[null,null,null,null,null,null,"Cobitis ohridana",null,null,null,null,null,null,null,null,null,null,null,null,"GR4220007 NISOS ANTIMILOS - THALASSIA PARAKTIA ZONI"]
[null,null,null,null,null,null,"Cobitis puncticulata",null,null,null,null,null,null,null,null,null,null,null,null,"GR4220008 SIFNOS: PROFITIS ILIAS MECHRI DYTIKES AKTES KAI THALASSIA PERIOCHI"]
[null,null,null,null,null,null,"Cobitis punctilineata",null,null,null,null,null,null,null,null,null,null,null,null,"GR4220009 NOTIA SERIFOS"]
[null,null,null,null,null,null,"Cobitis stephanidisi",null,null,null,null,null,null,null,null,null,null,null,null,"GR4220010 VOREIODYTIKI KYTHNOS: OROS ATHERAS - AKROTIRIO KEFALOS KAI PARAKTIA ZONI"]
[null,null,null,null,null,null,"Cobitis strumicae",null,null,null,null,null,null,null,null,null,null,null,null,"GR4220011 ANATOLIKI KEA"]
[null,null,null,null,null,null,"Cobitis trichonica",null,null,null,null,null,null,null,null,null,null,null,null,"GR4220012 VOREIA AMORGOS KAI KINAROS, LEVITHA, MAVRA, GLAROS KAI THALASSIA ZONI"]
[null,null,null,null,null,null,"Cobitis vardarensis",null,null,null,null,null,null,null,null,null,null,null,null,"GR4220013 MIKRES KYKLADES: IRAKLEIA, SCHOINOUSSA, KOUFONISIA, KEROS, ANTIKERIA KAI THALASSIA ZONI"]
[null,null,null,null,null,null,"Economidichthys pygmaeus",null,null,null,null,null,null,null,null,null,null,null,null,"GR4220014 KENTRIKI KAI NOTIA NAXOS: ZAS KAI VIGLA EOS MAVROVOUNI KAI THALASSIA ZONI (ORMOS KARADES - ORMOS MOUTSOUNAS)"]
[null,null,null,null,null,null,"Economidichthys trichonis",null,null,null,null,null,null,null,null,null,null,null,null,"GR4220016 NISOS PAROS: PETALOUDES"]
[null,null,null,null,null,null,"Eudontomyzon graecus",null,null,null,null,null,null,null,null,null,null,null,null,"GR4220017 NISOI DESPOTIKO KAI STRONGYLO KAI THALASSIA ZONI"]
[null,null,null,null,null,null,"Eudontomyzon hellenicus",null,null,null,null,null,null,null,null,null,null,null,null,"GR4220018 SYROS: OROS SYRINGAS EOS PARALIA"]
[null,null,null,null,null,null,"Knipowitschia goerneri",null,null,null,null,null,null,null,null,null,null,null,null,"GR4220019 TINOS: MYRSINI - AKROTIRIO LIVADA"]
[null,null,null,null,null,null,"Knipowitschia milleri",null,null,null,null,null,null,null,null,null,null,null,null,"GR4220020 NISOS MILOS: PROFITIS ILIAS - EVRYTERI PERIOCHI"]
[null,null,null,null,null,null,"Ladigesocypris ghigii",null,null,null,null,null,null,null,null,null,null,null,null,"GR4220021 MIKRES KYKLADES, VOREIOANATOLIKI AMORGOS, ANATOLIKES AKTES DONOUSAS, GYRO NISIDES KAI THALASSIA PERIOCHI"]
[null,null,null,null,null,null,"Luciobarbus graecus",null,null,null,null,null,null,null,null,null,null,null,null,"GR4220022 NISOI CHRISTIANA"]
[null,null,null,null,null,null,"Pelasgus epiroticus",null,null,null,null,null,null,null,null,null,null,null,null,"GR4220023 ANAFI, ANATOLIKO KAI VOREIO TMIMA KAI GYRO NISIDES KAI THALASSIA PERIOCHI"]
[null,null,null,null,null,null,"Pelasgus laconicus",null,null,null,null,null,null,null,null,null,null,null,null,"GR4220025 NISIDES PAROU KAI NOTIA ANTIPAROS KAI THALASSIA PERIOCHI"]
[null,null,null,null,null,null,"Pelasgus marathonicus",null,null,null,null,null,null,null,null,null,null,null,null,"GR4220026 NAXOS: ORI ANATHEMATISTRA, KORONOS, MAVROVOUNI, ZAS, VIGLATOURI"]
[null,null,null,null,null,null,"Pelasgus prespensis",null,null,null,null,null,null,null,null,null,null,null,null,"GR4220027 NISIDES MYKONOU: RINEIA, CHTAPODIA, KAI TRAGONISI  KAI THALASSIA PERIOCHI"]
[null,null,null,null,null,null,"Pelasgus stymphalicus",null,null,null,null,null,null,null,null,null,null,null,null,"GR4220028 ANDROS: KENTRIKO KAI NOTIO TMIMA, GYRO NISIDES KAI PARAKTIA THALASSIA ZONI"]
[null,null,null,null,null,null,"Pelasgus thesproticus",null,null,null,null,null,null,null,null,null,null,null,null,"GR4220029 SERIFOS: PARAKTIA ZONI KAI NISIDES SERIFOPOULA, PIPERI KAI VOUS"]
[null,null,null,null,null,null,"Petromyzon marinus",null,null,null,null,null,null,null,null,null,null,null,null,"GR4220030 DYTIKI MILOS, ANTIMILOS, POLYAIGOS KAI NISIDES"]
[null,null,null,null,null,null,"Rhodeus amarus",null,null,null,null,null,null,null,null,null,null,null,null,"GR4220031 VOREIOANATOLIKI TINOS KAI NISIDES"]
[null,null,null,null,null,null,"Rhodeus meridionalis",null,null,null,null,null,null,null,null,null,null,null,null,"GR4220032 VOREIA SYROS KAI NISIDES"]
[null,null,null,null,null,null,"Romanogobio elimeius",null,null,null,null,null,null,null,null,null,null,null,null,"GR4220033 NISOS GYAROS KAI THALASSIA ZONI"]
[null,null,null,null,null,null,"Rutilus panosi",null,null,null,null,null,null,null,null,null,null,null,null,"GR4220034 PARAKTIA KAI THALASSIA ZONI VOREIAS ANAFIS"]
[null,null,null,null,null,null,"Rutilus prespensis",null,null,null,null,null,null,null,null,null,null,null,null,"GR4220035 THALASSIA ZONI ANDROU"]
[null,null,null,null,null,null,"Rutilus ylikiensis",null,null,null,null,null,null,null,null,null,null,null,null,"GR4220036 THALASSIA PERIOCHI KOLOUMVO"]
[null,null,null,null,null,null,"Sabanejewia balcanica",null,null,null,null,null,null,null,null,null,null,null,null,"GR4310002 GIOUCHTAS - FARANGI AGIAS EIRINIS"]
[null,null,null,null,null,null,"Salmo farioides",null,null,null,null,null,null,null,null,null,null,null,null,"GR4310003 NISOS DIA"]
[null,null,null,null,null,null,"Salmo louroensis",null,null,null,null,null,null,null,null,null,null,null,null,"GR4310004 DYTIKA ASTEROUSIA (APO AGIOFARANGO EOS KOKKINO PYRGO)"]
[null,null,null,null,null,null,"Salmo macedonicus",null,null,null,null,null,null,null,null,null,null,null,null,"GR4310005 ASTEROUSIA (KOFINAS)"]
[null,null,null,null,null,null,"Salmo pelagonicus",null,null,null,null,null,null,null,null,null,null,null,null,"GR4310006 DIKTI: OMALOS VIANNOU (SYMI - OMALOS)"]
[null,null,null,null,null,null,"Salmo peristericus",null,null,null,null,null,null,null,null,null,null,null,null,"GR4310009 KROUSONAS - VROMONERO IDIS"]
[null,null,null,null,null,null,"Scardinius graecus",null,null,null,null,null,null,null,null,null,null,null,null,"GR4310010 OROS GIOUCHTAS"]
[null,null,null,null,null,null,"Silurus aristotelis",null,null,null,null,null,null,null,null,null,null,null,null,"GR4310011 KORYFI KOUPA (DYTIKI KRITI)"]
[null,null,null,null,null,null,"Squalius keadicus",null,null,null,null,null,null,null,null,null,null,null,null,"GR4310012 EKVOLI GEROPOTAMOU MESARAS"]
[null,null,null,null,null,null,"Telestes beoticus",null,null,null,null,null,null,null,null,null,null,null,null,"GR4310013 ASTEROUSIA ORI (KOFINAS)"]
[null,null,null,null,null,null,"Telestes pleurobipunctatus",null,null,null,null,null,null,null,null,null,null,null,null,"GR4320002 DIKTI: OROPEDIO LASITHIOU, KATHARO, SELENA, SELAKANO, CHALASMENI KORYFI"]
[null,null,null,null,null,null,"Tropidophoxinellus hellenicus",null,null,null,null,null,null,null,null,null,null,null,null,"GR4320003 NISOS CHRYSI"]
[null,null,null,null,null,null,"Tropidophoxinellus spartiaticus",null,null,null,null,null,null,null,null,null,null,null,null,"GR4320004 MONI KAPSA (FARANGI KAPSA KAI GYRO PERIOCHI)"]
[null,null,null,null,null,null,"Valencia letourneuxi",null,null,null,null,null,null,null,null,null,null,null,null,"GR4320005 OROS THRYPTIS KAI GYRO PERIOCHI"]
[null,null,null,null,null,null,"Valencia robertae",null,null,null,null,null,null,null,null,null,null,null,null,"GR4320006 VOREIOANATOLIKO AKRO KRITIS: DIONYSADES, ELASA KAI CHERSONISOS SIDERO (AKRA MAVRO MOURI – VAI – AKRA PLAKAS) KAI THALASSIA ZONI"]
[null,null,null,null,null,null,"Zingel balcanicus",null,null,null,null,null,null,null,null,null,null,null,null,"GR4320008 NISOS KOUFONISI KAI PARAKTIA THALASSIA ZONI"]
[null,null,null,null,null,null,"Other",null,null,null,null,null,null,null,null,null,null,null,null,"GR4320009 VOREIOANATOLIKO AKRO KRITIS"]
[null,null,null,null,null,null,"Ασπόνδυλα",null,null,null,null,null,null,null,null,null,null,null,null,"GR4320010 LAZAROS KORYFI - MADARA DIKTIS"]
[null,null,null,null,null,null,"species_code_refLabel",null,null,null,null,null,null,null,null,null,null,null,null,"GR4320011 DIONYSADES NISOI KAI THALASSIA ZONI"]
[null,null,null,null,null,null,"Apatura metis",null,null,null,null,null,null,null,null,null,null,null,null,"GR4320013 FARANGI SELINARI - VRACHASI"]
[null,null,null,null,null,null,"Astacus astacus",null,null,null,null,null,null,null,null,null,null,null,null,"GR4320014 NOTIODYTIKI THRYPTI (KOUFOTO)"]
[null,null,null,null,null,null,"Austropotamobius torrentium",null,null,null,null,null,null,null,null,null,null,null,null,"GR4320016 ORI ZAKROU"]
[null,null,null,null,null,null,"Buprestis splendens",null,null,null,null,null,null,null,null,null,null,null,null,"GR4320017 NISOS KOUFONISI, GYRO NISIDES KAI NISIDES KAVALLOI"]
[null,null,null,null,null,null,"Catopta thrips",null,null,null,null,null,null,null,null,null,null,null,null,"GR4330002 OROS KEDROS"]
[null,null,null,null,null,null,"Centrostephanus longispinus",null,null,null,null,null,null,null,null,null,null,null,null,"GR4330003 KOURTALIOTIKO FARANGI - MONI PREVELI - EVRYTERI PERIOCHI"]
[null,null,null,null,null,null,"Cerambyx cerdo",null,null,null,null,null,null,null,null,null,null,null,null,"GR4330004 PRASSANO FARANGI - PATSOS - SFAKORYAKO REMA - PARALIA RETHYMNOU KAI EKVOLI GEROPOTAMOU, AKR. LIANOS KAVOS - PERIVOLIA"]
[null,null,null,null,null,null,"Coenagrion ornatum",null,null,null,null,null,null,null,null,null,null,null,null,"GR4330005 OROS IDI (VORIZIA, GERANOI, KALI MADARA)"]
[null,null,null,null,null,null,"Corallium rubrum",null,null,null,null,null,null,null,null,null,null,null,null,"GR4330006 SOROS - AGKATHI - KEDROS"]
[null,null,null,null,null,null,"Cordulegaster heros",null,null,null,null,null,null,null,null,null,null,null,null,"GR4330007 KOURTALIOTIKO FARANGI, FARANGI PREVELI"]
[null,null,null,null,null,null,"Dioszeghyana schmidtii",null,null,null,null,null,null,null,null,null,null,null,null,"GR4330008 PRASSANO FARANGI"]
[null,null,null,null,null,null,"Eriogaster catax",null,null,null,null,null,null,null,null,null,null,null,null,"GR4330009 OROS PSILOREITIS (NOTIODYTIKO TMIMA)"]
[null,null,null,null,null,null,"Euphydryas aurinia",null,null,null,null,null,null,null,null,null,null,null,null,"GR4340001 IMERI KAI AGRIA GRAMVOUSSA - TIGANI KAI FALASARNA - PONTIKONISI, ORMOS LIVADI - VIGLIA"]
[null,null,null,null,null,null,"Euplagia quadripunctaria",null,null,null,null,null,null,null,null,null,null,null,null,"GR4340002 NISOS ELAFONISOS KAI PARAKTIA THALASSIA ZONI"]
[null,null,null,null,null,null,"Hirudo verbana",null,null,null,null,null,null,null,null,null,null,null,null,"GR4340003 CHERSONISOS RODOPOU – PARALIA MALEME -KOLPOS CHANION"]
[null,null,null,null,null,null,"Hyles hippophaes",null,null,null,null,null,null,null,null,null,null,null,null,"GR4340004 ELOS - TOPOLIA - SASALOS - AGIOS DIKAIOS"]
[null,null,null,null,null,null,"Lindenia tetraphylla",null,null,null,null,null,null,null,null,null,null,null,null,"GR4340005 ORMOS SOUGIAS - VARDIA - FARANGI LISSOU MECHRI ANYDROUS KAI PARAKTIA ZONI"]
[null,null,null,null,null,null,"Lithophaga lithophaga",null,null,null,null,null,null,null,null,null,null,null,null,"GR4340006 LIMNI AGIAS – PLATANIAS – REMA KAI EKVOLI KERITI – KOILADA FASA"]
[null,null,null,null,null,null,"Lucanus cervus",null,null,null,null,null,null,null,null,null,null,null,null,"GR4340007 FARANGI THERISSOU"]
[null,null,null,null,null,null,"Lycaena dispar",null,null,null,null,null,null,null,null,null,null,null,null,"GR4340008 LEFKA ORI KAI PARAKTIA ZONI"]
[null,null,null,null,null,null,"Maculinea arion",null,null,null,null,null,null,null,null,null,null,null,null,"GR4340010 DRAPANO (VOREIOANATOLIKES AKTES) – PARALIA GEORGIOUPOLIS – LIMNI KOURNA - SPILAIO PSIMAKI"]
[null,null,null,null,null,null,"Morimus asper funereus",null,null,null,null,null,null,null,null,null,null,null,null,"GR4340011 FRE - TZITZIFES - NIPOS"]
[null,null,null,null,null,null,"Ophiogomphus cecilia",null,null,null,null,null,null,null,null,null,null,null,null,"GR4340012 ASFENDOU - KALLIKRATIS KAI PARAKTIA ZONI"]
[null,null,null,null,null,null,"Osmoderma barnabita",null,null,null,null,null,null,null,null,null,null,null,null,"GR4340013 NISOI GAVDOS KAI GAVDOPOULA"]
[null,null,null,null,null,null,"Osmoderma lassallei",null,null,null,null,null,null,null,null,null,null,null,null,"GR4340014 ETHNIKOS DRYMOS SAMARIAS - FARANGI TRYPITIS - PSILAFI - KOUSTOGERAKO"]
[null,null,null,null,null,null,"Papilio alexanor",null,null,null,null,null,null,null,null,null,null,null,null,"GR4340015 PARALIA APO CHRYSOSKALITISSA MECHRI AKROTIRIO KRIOS"]
[null,null,null,null,null,null,"Paracaloptenus caloptenoides",null,null,null,null,null,null,null,null,null,null,null,null,"GR4340016 METERIZIA AGIOS DIKAIOS - TSOUNARA - VITSILIA LEFKON OREON"]
[null,null,null,null,null,null,"Parnassius apollo",null,null,null,null,null,null,null,null,null,null,null,null,"GR4340017 CHERSONISOS GRAMVOUSAS KAI NISIDES IMERI KAI AGRIA GRAMVOUSA, PONTIKONISI KAI THALASSIA  ZONI"]
[null,null,null,null,null,null,"Parnassius mnemosyne",null,null,null,null,null,null,null,null,null,null,null,null,"GR4340018 NISIDA AGIOI THEODOROI"]
[null,null,null,null,null,null,"Pinna nobilis",null,null,null,null,null,null,null,null,null,null,null,null,"GR4340019 FARANGI KALLIKRATIS - ARGOULIANO FARANGI - OROPEDIO MANIKA"]
[null,null,null,null,null,null,"Polyommatus eroides",null,null,null,null,null,null,null,null,null,null,null,null,"GR4340020 LIMNI AGIAS (CHANIA)"]
[null,null,null,null,null,null,"Probaticus subrugosus",null,null,null,null,null,null,null,null,null,null,null,null,"GR4340021 CHERSONISOS RODOPOU"]
[null,null,null,null,null,null,"Proserpinus proserpina",null,null,null,null,null,null,null,null,null,null,null,null,"GR4340022 LIMNI KOURNA KAI EKVOLI ALMYROU"]
[null,null,null,null,null,null,"Pseudophilotes bavius",null,null,null,null,null,null,null,null,null,null,null,null,"GR4340023 NOTIODYTIKI GAVDOS KAI GAVDOPOULA  KAI THALASSIA PERIOCHI"]
[null,null,null,null,null,null,"Rhysodes sulcatus",null,null,null,null,null,null,null,null,null,null,null,null,"GR4340024 THALASSIA PERIOCHI  DYTIKIS KAI NOTIODYTIKIS KRITIS"]
[null,null,null,null,null,null,"Rosalia alpina"]
[null,null,null,null,null,null,"Scyllarides latus"]
[null,null,null,null,null,null,"Stenobothrus eurasius"]
[null,null,null,null,null,null,"Stylurus flavipes"]
[null,null,null,null,null,null,"Unio crassus"]
[null,null,null,null,null,null,"Unio elongatulus"]
[null,null,null,null,null,null,"Vertigo angustior"]
[null,null,null,null,null,null,"Vertigo moulinsiana"]
[null,null,null,null,null,null,"Zerynthia polyxena"]
[null,null,null,null,null,null,"Other"]
[null,null,null,null,null,null,"Θηλαστικά"]
[null,null,null,null,null,null,"species_code_refLabel"]
[null,null,null,null,null,null,"Balaenoptera acutorostrata"]
[null,null,null,null,null,null,"Balaenoptera physalus"]
[null,null,null,null,null,null,"Barbastella barbastellus"]
[null,null,null,null,null,null,"Canis aureus"]
[null,null,null,null,null,null,"Canis lupus"]
[null,null,null,null,null,null,"Capra aegagrus"]
[null,null,null,null,null,null,"Delphinus delphis"]
[null,null,null,null,null,null,"Dryomys nitedula"]
[null,null,null,null,null,null,"Eptesicus anatolicus"]
[null,null,null,null,null,null,"Eptesicus serotinus"]
[null,null,null,null,null,null,"Felis silvestris"]
[null,null,null,null,null,null,"Grampus griseus"]
[null,null,null,null,null,null,"Hypsugo savii"]
[null,null,null,null,null,null,"Lutra lutra"]
[null,null,null,null,null,null,"Lynx lynx"]
[null,null,null,null,null,null,"Martes martes"]
[null,null,null,null,null,null,"Megaptera novaeangliae"]
[null,null,null,null,null,null,"Miniopterus schreibersii"]
[null,null,null,null,null,null,"Monachus monachus"]
[null,null,null,null,null,null,"Muscardinus avellanarius"]
[null,null,null,null,null,null,"Mustela putorius"]
[null,null,null,null,null,null,"Myomimus roachi"]
[null,null,null,null,null,null,"Myotis alcathoe"]
[null,null,null,null,null,null,"Myotis bechsteinii"]
[null,null,null,null,null,null,"Myotis blythii"]
[null,null,null,null,null,null,"Myotis brandtii"]
[null,null,null,null,null,null,"Myotis capaccinii"]
[null,null,null,null,null,null,"Myotis daubentonii"]
[null,null,null,null,null,null,"Myotis davidii"]
[null,null,null,null,null,null,"Myotis emarginatus"]
[null,null,null,null,null,null,"Myotis myotis"]
[null,null,null,null,null,null,"Myotis mystacinus"]
[null,null,null,null,null,null,"Myotis nattereri"]
[null,null,null,null,null,null,"Nyctalus lasiopterus"]
[null,null,null,null,null,null,"Nyctalus leisleri"]
[null,null,null,null,null,null,"Nyctalus noctula"]
[null,null,null,null,null,null,"Phocoena phocoena"]
[null,null,null,null,null,null,"Physeter macrocephalus"]
[null,null,null,null,null,null,"Pipistrellus hanaki"]
[null,null,null,null,null,null,"Pipistrellus kuhlii"]
[null,null,null,null,null,null,"Pipistrellus nathusii"]
[null,null,null,null,null,null,"Pipistrellus pipistrellus"]
[null,null,null,null,null,null,"Pipistrellus pygmaeus"]
[null,null,null,null,null,null,"Plecotus auritus"]
[null,null,null,null,null,null,"Plecotus austriacus"]
[null,null,null,null,null,null,"Plecotus kolombatovici"]
[null,null,null,null,null,null,"Plecotus macrobullaris"]
[null,null,null,null,null,null,"Pseudorca crassidens"]
[null,null,null,null,null,null,"Rhinolophus blasii"]
[null,null,null,null,null,null,"Rhinolophus euryale"]
[null,null,null,null,null,null,"Rhinolophus ferrumequinum"]
[null,null,null,null,null,null,"Rhinolophus hipposideros"]
[null,null,null,null,null,null,"Rhinolophus mehelyi"]
[null,null,null,null,null,null,"Rousettus aegyptiacus"]
[null,null,null,null,null,null,"Rupicapra rupicapra balcanica"]
[null,null,null,null,null,null,"Sciurus anomalus"]
[null,null,null,null,null,null,"Spermophilus citellus"]
[null,null,null,null,null,null,"Stenella coeruleoalba"]
[null,null,null,null,null,null,"Steno bredanensis"]
[null,null,null,null,null,null,"Tadarida teniotis"]
[null,null,null,null,null,null,"Tursiops truncatus"]
[null,null,null,null,null,null,"Ursus arctos"]
[null,null,null,null,null,null,"Vespertilio murinus"]
[null,null,null,null,null,null,"Vormela peregusna"]
[null,null,null,null,null,null,"Ziphius cavirostris"]
[null,null,null,null,null,null,"Other"]
[null,null,null,null,null,null,"Plants"]
[null,null,null,null,null,null,"species_code_refLabel"]
[null,null,null,null,null,null,"Aldrovanda vesiculosa"]
[null,null,null,null,null,null,"Androcymbium rechingeri"]
[null,null,null,null,null,null,"Anthemis glaberrima"]
[null,null,null,null,null,null,"Artemisia eriantha"]
[null,null,null,null,null,null,"Asyneuma giganteum"]
[null,null,null,null,null,null,"Botrychium simplex"]
[null,null,null,null,null,null,"Bupleurum capillare"]
[null,null,null,null,null,null,"Bupleurum kakiskalae"]
[null,null,null,null,null,null,"Buxbaumia viridis"]
[null,null,null,null,null,null,"Centaurea attica subsp. megarensis"]
[null,null,null,null,null,null,"Centaurea heldreichii"]
[null,null,null,null,null,null,"Centaurea immanuelis-loewii"]
[null,null,null,null,null,null,"Centaurea kalambakensis"]
[null,null,null,null,null,null,"Centaurea lactiflora"]
[null,null,null,null,null,null,"Centaurea lancifolia"]
[null,null,null,null,null,null,"Centaurea niederi"]
[null,null,null,null,null,null,"Centaurea peucedanifolia"]
[null,null,null,null,null,null,"Centaurea princeps"]
[null,null,null,null,null,null,"Cephalanthera cucullata"]
[null,null,null,null,null,null,"Clinopodium taygeteum"]
[null,null,null,null,null,null,"Consolida samia"]
[null,null,null,null,null,null,"Convolvulus argyrothamnus"]
[null,null,null,null,null,null,"Crepis pusilla"]
[null,null,null,null,null,null,"Dactylorhiza kalopissii subsp. kalopissii"]
[null,null,null,null,null,null,"Fritillaria conica"]
[null,null,null,null,null,null,"Fritillaria drenovskii"]
[null,null,null,null,null,null,"Fritillaria gussichiae"]
[null,null,null,null,null,null,"Fritillaria obliqua"]
[null,null,null,null,null,null,"Fritillaria rhodocanakis"]
[null,null,null,null,null,null,"Galanthus nivalis"]
[null,null,null,null,null,null,"Gentiana lutea"]
[null,null,null,null,null,null,"Gladiolus palustris"]
[null,null,null,null,null,null,"Globularia stygia"]
[null,null,null,null,null,null,"Helichrysum sibthorpii"]
[null,null,null,null,null,null,"Himantoglossum jankae"]
[null,null,null,null,null,null,"Hypericum aciferum"]
[null,null,null,null,null,null,"Iberis runemarkii"]
[null,null,null,null,null,null,"Jankaea heldreichii"]
[null,null,null,null,null,null,"Linaria hellenica"]
[null,null,null,null,null,null,"Lindernia procumbens"]
[null,null,null,null,null,null,"Marsilea quadrifolia"]
[null,null,null,null,null,null,"Nepeta argolica subsp. dirphya"]
[null,null,null,null,null,null,"Nepeta sphaciotica"]
[null,null,null,null,null,null,"Ophrys argolica subsp. argolica"]
[null,null,null,null,null,null,"Origanum dictamnus"]
[null,null,null,null,null,null,"Paeonia clusii subsp. rhodia"]
[null,null,null,null,null,null,"Paeonia parnassica"]
[null,null,null,null,null,null,"Phitosia crocifolia"]
[null,null,null,null,null,null,"Phoenix theophrasti"]
[null,null,null,null,null,null,"Polygonum praelongum"]
[null,null,null,null,null,null,"Pontechium maculatum subsp. maculatum"]
[null,null,null,null,null,null,"Ramonda serbica"]
[null,null,null,null,null,null,"Rhododendron luteum"]
[null,null,null,null,null,null,"Ruscus aculeatus"]
[null,null,null,null,null,null,"Silene holzmannii"]
[null,null,null,null,null,null,"Silene orphanidis"]
[null,null,null,null,null,null,"Solenanthus albanicus"]
[null,null,null,null,null,null,"Symphytum cycladense"]
[null,null,null,null,null,null,"Tozzia carpathica"]
[null,null,null,null,null,null,"Veronica oetaea"]
[null,null,null,null,null,null,"Viola athois"]
[null,null,null,null,null,null,"Viola delphinantha"]
[null,null,null,null,null,null,"Woodwardia radicans"]
[null,null,null,null,null,null,"Zelkova abelicea"]
[null,null,null,null,null,null,"Other"]
[null,null,null,null,null,null,"Ερπετά"]
[null,null,null,null,null,null,"species_code_refLabel"]
[null,null,null,null,null,null,"Ablepharus kitaibelii"]
[null,null,null,null,null,null,"Algyroides moreoticus"]
[null,null,null,null,null,null,"Algyroides nigropunctatus"]
[null,null,null,null,null,null,"Anatololacerta anatolica"]
[null,null,null,null,null,null,"Anatololacerta pelasgiana"]
[null,null,null,null,null,null,"Caretta caretta"]
[null,null,null,null,null,null,"Chalcides ocellatus"]
[null,null,null,null,null,null,"Chamaeleo chamaeleon"]
[null,null,null,null,null,null,"Chelonia mydas"]
[null,null,null,null,null,null,"Coronella austriaca"]
[null,null,null,null,null,null,"Dermochelys coriacea"]
[null,null,null,null,null,null,"Dolichophis caspius"]
[null,null,null,null,null,null,"Dolichophis jugularis"]
[null,null,null,null,null,null,"Eirenis modestus"]
[null,null,null,null,null,null,"Elaphe quatuorlineata"]
[null,null,null,null,null,null,"Elaphe sauromates"]
[null,null,null,null,null,null,"Emys orbicularis"]
[null,null,null,null,null,null,"Eryx jaculus"]
[null,null,null,null,null,null,"Hellenolacerta graeca"]
[null,null,null,null,null,null,"Hemorrhois nummifer"]
[null,null,null,null,null,null,"Hierophis gemonensis"]
[null,null,null,null,null,null,"Hierophis viridiflavus"]
[null,null,null,null,null,null,"Lacerta agilis"]
[null,null,null,null,null,null,"Lacerta citrovittata"]
[null,null,null,null,null,null,"Lacerta trilineata"]
[null,null,null,null,null,null,"Lacerta viridis"]
[null,null,null,null,null,null,"Laudakia stellio"]
[null,null,null,null,null,null,"Macrovipera schweizeri"]
[null,null,null,null,null,null,"Mauremys rivulata"]
[null,null,null,null,null,null,"Mediodactylus bartoni"]
[null,null,null,null,null,null,"Mediodactylus danilewski"]
[null,null,null,null,null,null,"Mediodactylus kotschyi"]
[null,null,null,null,null,null,"Mediodactylus oertzeni"]
[null,null,null,null,null,null,"Mediodactylus orientalis"]
[null,null,null,null,null,null,"Montivipera xanthina"]
[null,null,null,null,null,null,"Natrix tessellata"]
[null,null,null,null,null,null,"Ophiomorus kardesi"]
[null,null,null,null,null,null,"Ophiomorus punctatissimus"]
[null,null,null,null,null,null,"Ophisops elegans"]
[null,null,null,null,null,null,"Platyceps najadum"]
[null,null,null,null,null,null,"Podarcis cretensis"]
[null,null,null,null,null,null,"Podarcis erhardii"]
[null,null,null,null,null,null,"Podarcis gaigeae"]
[null,null,null,null,null,null,"Podarcis levendis"]
[null,null,null,null,null,null,"Podarcis milensis"]
[null,null,null,null,null,null,"Podarcis muralis"]
[null,null,null,null,null,null,"Podarcis peloponnesiaca"]
[null,null,null,null,null,null,"Podarcis tauricus/Podarcis ionicus complex"]
[null,null,null,null,null,null,"Pseudopus  apodus"]
[null,null,null,null,null,null,"Telescopus fallax"]
[null,null,null,null,null,null,"Testudo graeca"]
[null,null,null,null,null,null,"Testudo hermanni"]
[null,null,null,null,null,null,"Testudo marginata"]
[null,null,null,null,null,null,"Vipera ammodytes"]
[null,null,null,null,null,null,"Vipera graeca"]
[null,null,null,null,null,null,"Zamenis longissimus"]
[null,null,null,null,null,null,"Zamenis situla"]
[null,null,null,null,null,null,"Other"]